Workbook

Sheet Anleitung
C3: EWI Merit-Order Tool 2023
C5: Kurzanleitung | E5: =Impressum!F5 -> Version 2023.0
D8: Um alle Funktionen des EWI Merit-Order Tools 2023 nutzen zu können, müssen Makros aktiviert werden.
D10: Die Merit-Order
D11: Als Merit-Order wird die Einsatzreihenfolge der an der Strombörse anbietenden Kraftwerke bezeichnet. Sie orientiert sich an den Grenzkosten der Kraftwerke, diese werden aufsteigend sortiert. Es handelt sich dabei um eine Annäherung an die tatsächlichen Angebotskurven bspw. der Day-Ahead-Auktion an der Strombörse. Die jährlich mittlere Merit-Order des deutschen Kraftwerksparks gibt einen guten Überblick über die Verhältnisse der Grenzkosten der Kraftwerke entsprechend aktueller Bedingungen. Die Merit-Order wird dabei insbesondere vom Kraftwerkspark und den zugrundeliegenden Brennstoffpreisen und Emissionszertifikatspreisen beeinflusst.
D13: Das EWI Merit-Order Tool 2023
D14: Das EWI Merit-Order Tool 2023 ermöglicht die Ermittlung und grafische Repräsentation der jährlichen mittleren Merit-Order basierend auf dem konventionellen Kraftwerkspark 2023. Benutzer*innen können die der Merit-Order zugrundeliegenden Annahmen variieren, um den Effekt veränderter Brennstoffpreise oder anderer Annahmen auf die Merit-Order zu untersuchen. Zusätzlich besteht die Möglichkeit, Kraftwerke aus der Merit-Order zu entfernen oder hinzuzufügen. Nutzer*innen können also auch den Einfluss von Kraftwerksstilllegungen oder -zubauten auf die Merit-Order analysieren und visualisieren. Als Standardeinstellung wird nur die Merit-Order der konventionellen Kraftwerke ausgegeben. Um die Merit-Order in Abhängigkeit konkreter Einspeisesituationen erneuerbarer-Energien-Anlagen (EE-Anlagen) abzubilden, kann außerdem eine Annahme zur verfügbaren EE-Leistung getroffen werden.
D16: Bedienung:
D18: Start:
D19: Im Tabellenblatt Start können die der Merit-Order zugrundeliegenden Annahmen angepasst werden. Die Standardannahmen bilden die Merit-Order konventioneller Kraftwerke des Jahres 2023 ab. Um einen Überblick über die Auswirkungen veränderter Annahmen auf die Merit-Order zu geben, wird die Verteilung der Grenzkosten der Kraftwerke als Boxplot-Diagramm visualisiert. Außerdem kann eine Annahme zur EE-Erzeugung getroffen werden.
D21: Über die Schaltfläche Annahmen zurücksetzen können die Annahmen auf die Standardwerte zurückgesetzt werden.
D23: Bei Aktivierung des Schalters Merit-Order aktualisieren wird die Merit-Order im Tabellenblatt Merit-Order, basierend auf den gewählten Annahmen, neu aufgestellt.
D25: Merit-Order:
D26: Im Tabellenblatt Merit-Order wird die Merit-Order visualisiert. Die Darstellung gibt die Merit-Order blockscharf wieder. Dabei werden die einzelnen Kraftwerkstypen farblich kenntlich gemacht. Zusätzlich wird die Merit-Order als nach Grenzkosten sortierte Liste der Kraftwerksblöcke dargestellt. Die Merit-Order wird bei Aktivierung der Schaltfläche Merit-Order aktualisieren neu berechnet.
D28: Kraftwerksliste:
D29: In der Kraftwerksliste werden alle Kraftwerksblöcke und die dazugehörigen Annahmen dargestellt. Einzelne Annahmen können verändert werden. Zusätzlich können Kraftwerke aus der Merit-Order entfernt oder hinzugefügt werden.
D31: Eine ausführliche Dokumentation gibt es auf unserer Website:
D32: https://www.ewi.uni-koeln.de/de/publikationen/#misc-publications

Sheet Start
C3: EWI Merit-Order Tool 2023
C5: Start | P5: =Impressum!F5 -> Version 2023.0
C7: Brennstoffkosten | H7: Übersicht über die Grenzkosten der Kraftwerke
C8: Brennstoff | D8: Kosten | E8: Einheit | F8: Quelle | H8: Das Boxplot-Diagramm gibt einen ersten Überblick über die Grenzkosten der Kraftwerke. In der Abbildung rechts
C9: Kernenergie | D9: 5.5 | E9: EUR/MWhth | F9: siehe Dokumentation | H9: werden die einzelnen Elemente des Diagramms erläutert. Veränderungen der Annahmen gibt das Diagramm
C10: Braunkohle | D10: 3.1 | E10: EUR/MWhth | F10: EWI (2019) | H10: augenblicklich wieder. Um die Annahmen in die Merit-Order (Tabellenblatt: Merit-Order) zu übernehmen, muss die
C11: Steinkohle | D11: 16.59 | E11: EUR/MWhth | F11: ARA, investing.com (2024a) | H11: Schaltfläche Aktualisiere Merit-Order aktiviert werden.
C12: Erdgas | D12: 45.16 | E12: EUR/MWhth | F12: Spot TTF
C13: Öl | D13: 86.87 | E13: EUR/MWhth | F13: en2x (2024)
C14: Abfall | D14: 0 | E14: EUR/MWhth | F14: siehe Dokumentation
C15: Sonstige | D15: 86.87 | E15: EUR/MWhth | F15: siehe Dokumentation
C17: Emissionszertifikatspreis
D18: Kosten | E18: Einheit | F18: Quelle
C19: Emissionszertifikatspreis | D19: 84.6 | E19: EUR/tCO2 | F19: EU-ETS, investing.com (2024b)
C21: Transportkosten
C22: Kraftwerkstyp | D22: Kosten | E22: Einheit | F22: Quelle
C23: Kernenergie | D23: 0 | E23: EUR/MWhth | F23: siehe Dokumentation
C24: Braunkohle | D24: 0 | E24: EUR/MWhth | F24: siehe Dokumentation
C25: Steinkohle | D25: 1.25 | E25: EUR/MWhth | F25: R2B (2019)
C26: Erdgas | D26: 0.5 | E26: EUR/MWhth | F26: R2B (2019)
C27: Öl | D27: 0.3 | E27: EUR/MWhth | F27: R2B (2019)
C28: Abfall | D28: 0 | E28: EUR/MWhth | F28: siehe Dokumentation
C29: Sonstige | D29: 0 | E29: EUR/MWhth | F29: siehe Dokumentation | H29: Verfügbare EE-Leistung | I29: 0 | J29: MW
C31: Sonstige variable Kosten | H31: Nicht-Verfügbarkeit | M31: Emissionsfaktoren
C32: Kraftwerkstyp | D32: Kosten | E32: Einheit | F32: Quelle | H32: Kraftwerkstyp | J32: Einheit | K32: Quelle | M32: Brennstoff | O32: Einheit | P32: Quelle
C33: Kernenergie | D33: 1.2 | E33: EUR/Mwhel | F33: siehe Dokumentation | H33: Kernenergie | I33: 7 | J33: % | K33: siehe Dokumentation | M33: Kernenergie | N33: 0 | O33: tCO2/MWhth | P33: siehe Dokumentation
C34: Braunkohle | D34: 1.7 | E34: EUR/Mwhel | F34: R2B (2019) | H34: Braunkohle | I34: 13 | J34: % | K34: siehe Dokumentation | M34: Braunkohle | N34: 0.404 | O34: tCO2/MWhth | P34: ÜNB (2019)
C35: Steinkohle | D35: 1.3 | E35: EUR/Mwhel | F35: R2B (2019) | H35: Steinkohle | I35: 20 | J35: % | K35: siehe Dokumentation | M35: Steinkohle | N35: 0.337 | O35: tCO2/MWhth | P35: ÜNB (2019)
C36: GuD | D36: 1.5 | E36: EUR/Mwhel | F36: R2B (2019) | H36: GuD | I36: 13 | J36: % | K36: siehe Dokumentation | M36: Erdgas | N36: 0.201 | O36: tCO2/MWhth | P36: ÜNB (2019)
C37: Gasturbine | D37: 1 | E37: EUR/Mwhel | F37: R2B (2019) | H37: Gasturbine | I37: 13 | J37: % | K37: siehe Dokumentation | M37: Öl | N37: 0.28 | O37: tCO2/MWhth | P37: ÜNB (2019)
C38: Öl | D38: 1 | E38: EUR/Mwhel | F38: siehe Dokumentation | H38: Öl | I38: 15 | J38: % | K38: siehe Dokumentation | M38: Abfall | N38: 0 | O38: tCO2/MWhth | P38: siehe Dokumentation
C39: Abfall | D39: 1 | E39: EUR/Mwhel | F39: siehe Dokumentation | H39: Abfall | I39: 15 | J39: % | K39: siehe Dokumentation | M39: Sonstige | N39: 0.214 | O39: tCO2/MWhth | P39: ÜNB (2019)
C40: Sonstige | D40: 1 | E40: EUR/Mwhel | F40: siehe Dokumentation | H40: Sonstige | I40: 15 | J40: % | K40: siehe Dokumentation

Sheet Merit-Order
C3: EWI Merit-Order Tool 2023
C5: Merit-Order | K5: =Impressum!F5 -> Version 2023.0
C7: Grafische Darstellung der Merit-Order
C10: Merit-Order in tabellarischer Form
C11: MaStR-Nr. | D11: Status | E11: Anlagenbetreiber | F11: Anzeige-Name | G11: Datum der erstmaligen Inbetriebnahme der Einheit | H11: Kraftwerkstyp | I11: Durchschnittliche verfügbare Nettonennleistung [MW] | J11: Kumulierte verfügbare Nettonennleistung [MW] | K11: Grenzkosten [EUR/MWhel]
C12: SEE900128586359 | D12: In Betrieb | E12: N-ERGIE Kraftwerke GmbH | F12: HKW-Sandreuth (Müll) | G12: 17.07.1992 | H12: Abfall | I12: 15.98 | J12: 15.98 | K12: 1
C13: SEE900664653232 | D13: In Betrieb | E13: AMK-Abfallentsorgungsgesellschaft des Märkischen Kreises mbH | F13: Turbine 1 | G13: 01.08.1996 | H13: Abfall | I13: 9.095 | J13: 25.075 | K13: 1
C14: SEE900838448145 | D14: In Betrieb | E14: Zweckverband Müllverwertung Schwandorf | F14: MKW SAD Turbine 3 | G14: 31.08.1982 | H14: Abfall | I14: 8.5 | J14: 33.575 | K14: 1
C15: SEE901453618340 | D15: In Betrieb | E15: Stadt Rosenheim | F15: MHKW Dampfturbine 2 | G15: 01.01.1957 | H15: Abfall | I15: 1.785 | J15: 35.36 | K15: 1
C16: SEE904604163027 | D16: In Betrieb | E16: RWE Generation SE | F16: Karnap B | G16: 14.02.1987 | H16: Abfall | I16: 32.3 | J16: 67.66 | K16: 1
C17: SEE904983741502 | D17: In Betrieb | E17: MVV Umwelt Asset GmbH | F17: MHKW Mannheim Generator T60 | G17: 07.01.2010 | H17: Abfall | I17: 21.76 | J17: 89.42 | K17: 1
C18: SEE906215229154 | D18: In Betrieb | E18: EEW Energy from Waste Helmstedt GmbH | F18: MVA EEW Helmstedt | G18: 01.01.2014 | H18: Abfall | I18: 31.875 | J18: 121.295 | K18: 1
C19: SEE906331863386 | D19: In Betrieb | E19: GSB Sonderabfall-Entsorgung Bayern GmbH | F19: Turbine VA3 | G19: 20.12.1995 | H19: Abfall | I19: 0.4607 | J19: 121.7557 | K19: 1
C20: SEE907370296296 | D20: In Betrieb | E20: Zweckverband Müllverwertung Schwandorf | F20: MKW SAD Turbine 5 | G20: 04.06.1992 | H20: Abfall | I20: 25.5 | J20: 147.2557 | K20: 1
C21: SEE909031885047 | D21: In Betrieb | E21: Müllverwertung Borsigstraße GmbH | F21: MVB Borsigstraße Müll | G21: 16.07.2010 | H21: Abfall | I21: 8.5e-06 | J21: 147.2557085 | K21: 1
C22: SEE912257091857 | D22: In Betrieb | E22: MHKW Müllheizkraftwerk Frankfurt am Main GmbH | F22: Turbine 7 | G22: 21.12.2005 | H22: Abfall | I22: 39.525 | J22: 186.7807085 | K22: 1
C23: SEE914179988338 | D23: In Betrieb | E23: Enertec Hameln GmbH | F23: Turbine 6 | G23: 13.11.1970 | H23: Abfall | I23: 2.1675 | J23: 188.9482085 | K23: 1
C24: SEE917110358740 | D24: In Betrieb | E24: Steinbeis Energie GmbH | F24: Steinbeis Energie EBS Kessel 6 | G24: 27.09.2010 | H24: Abfall | I24: 14.45 | J24: 203.3982085 | K24: 1
C25: SEE918623387630 | D25: In Betrieb | E25: EEW Energy from Waste Stapelfeld GmbH | F25: EEW Stapelfeld GmbH | G25: 01.10.1979 | H25: Abfall | I25: 9.69 | J25: 213.0882085 | K25: 1
C26: SEE921479798321 | D26: In Betrieb | E26: EkoCity | F26: Generator C | G26: 20.12.2017 | H26: Abfall | I26: 7.9696 | J26: 221.0578085 | K26: 1
C27: SEE922849915072 | D27: In Betrieb | E27: MHB Hamm Betriebsführungsgesellschaft mbH | F27: MVA Hamm Turbine 1 | G27: 01.01.1985 | H27: Abfall | I27: 5.61 | J27: 226.6678085 | K27: 1
C28: SEE923271533315 | D28: In Betrieb | E28: RZR II Herten GmbH | F28: RZR II Turbine3 | G28: 01.01.2009 | H28: Abfall | I28: 19.975 | J28: 246.6428085 | K28: 1
C29: SEE923791565131 | D29: In Betrieb | E29: Zweckverband Müllheizkraftwerk Stadt und Landkreis Bamberg | F29: Rheinstraße | G29: 07.08.2014 | H29: Abfall | I29: 7.905 | J29: 254.5478085 | K29: 1
C30: SEE923959807806 | D30: In Betrieb | E30: BASF SE | F30: Turbine 3 | G30: 10.11.2006 | H30: Abfall | I30: 9.469 | J30: 264.0168085 | K30: 1
C31: SEE924286409503 | D31: In Betrieb | E31: IKW Rüdersdorf | F31: IKW Rüdersdorf | G31: 12.12.2007 | H31: Abfall | I31: 25.5 | J31: 289.5168085 | K31: 1
C32: SEE924302504816 | D32: In Betrieb | E32: Energie- und Wasserversorgung Bonn/Rhein-Sieg GmbH | F32: HKW Bonn-Nord, Turbogruppe 4 | G32: 01.04.1991 | H32: Abfall | I32: 10.302 | J32: 299.8188085 | K32: 1
C33: SEE925011950635 | D33: In Betrieb | E33: Zweckverband Müllverwertungsanlage Ingolstadt | F33: Turbine VE 40 ZV MVA IN | G33: 10.09.1996 | H33: Abfall | I33: 15.504 | J33: 315.3228085 | K33: 1
C34: SEE925411264011 | D34: In Betrieb | E34: EGK Entsorgungsgesellschaft Krefeld GmbH & Co. KG | F34: Turbine 5 | G34: 01.12.1997 | H34: Abfall | I34: 1.6405 | J34: 316.9633085 | K34: 1
C35: SEE925652456091 | D35: In Betrieb | E35: Müllheizkraftwerk Kassel GmbH | F35: Müllheizkraftwerk Kassel M7 | G35: 17.12.1985 | H35: Abfall | I35: 6.8 | J35: 323.7633085 | K35: 1
C36: SEE925794342412 | D36: In Betrieb | E36: MVV Umwelt Asset GmbH | F36: TREA Leuna 2 | G36: 19.06.2007 | H36: Abfall | I36: 13.80825 | J36: 337.5715585 | K36: 1
C37: SEE927032372373 | D37: In Betrieb | E37: Bremerhavener Entsorgungsgesellschaft mbH | F37: MHKW, Generator 1+2 | G37: 17.03.1977 | H37: Abfall | I37: 11.9 | J37: 349.4715585 | K37: 1
C38: SEE927716043575 | D38: In Betrieb | E38: EEW Energy from Waste Hannover GmbH | F38: MVA EEW Hannover | G38: 01.06.2005 | H38: Abfall | I38: 23.12 | J38: 372.5915585 | K38: 1
C39: SEE927727929912 | D39: In Betrieb | E39: MVA Weisweiler GmbH & Co. KG | F39: MVA-Turbine | G39: 01.10.1996 | H39: Abfall | I39: 22.95 | J39: 395.5415585 | K39: 1
C40: SEE928761575349 | D40: In Betrieb | E40: EEW Energy from Waste Großräschen GmbH | F40: EEW Großräschen GmbH | G40: 16.01.2008 | H40: Abfall | I40: 21.25 | J40: 416.7915585 | K40: 1
C41: SEE929095613516 | D41: In Betrieb | E41: GSB Sonderabfall-Entsorgung Bayern GmbH | F41: Turbine VA2 | G41: 06.10.1995 | H41: Abfall | I41: 0.4607 | J41: 417.2522585 | K41: 1
C42: SEE932127408097 | D42: In Betrieb | E42: PreZero Energy Zorbau GmbH | F42: Generator Zorbau | G42: 06.06.2005 | H42: Abfall | I42: 23.12 | J42: 440.3722585 | K42: 1
C43: SEE934298270268 | D43: In Betrieb | E43: Thermische Abfallbehandlung Lauta GmbH & Co. oHG | F43: T.A. Lauta | G43: 21.07.2004 | H43: Abfall | I43: 13.345 | J43: 453.7172585 | K43: 1
C44: SEE937544161082 | D44: In Betrieb | E44: SpreeStromErzeugungs GmbH | F44: EBS Heizkraftwerk Spremberg | G44: 12.12.2012 | H44: Abfall | I44: 14.875 | J44: 468.5922585 | K44: 1
C45: SEE937822704543 | D45: In Betrieb | E45: Zweckverband Abfallverwertung Südhessen (ZAS) | F45: Turbine 2 | G45: 27.01.2020 | H45: Abfall | I45: 1.00045 | J45: 469.5927085 | K45: 1
C46: SEE937978171572 | D46: In Betrieb | E46: AMK-Abfallentsorgungsgesellschaft des Märkischen Kreises mbH | F46: Turbine 2 | G46: 01.04.1981 | H46: Abfall | I46: 2.89 | J46: 472.4827085 | K46: 1
C47: SEE938035990372 | D47: In Betrieb | E47: AVA Velsen GmbH | F47: ABR992555104343 | G47: 07.08.1997 | H47: Abfall | I47: 13.6 | J47: 486.0827085 | K47: 1
C48: SEE938782869693 | D48: In Betrieb | E48: Energieversorgung Offenbach AG | F48: Müllheizkraftwerk Offenbach Turbine 1 | G48: 29.07.2016 | H48: Abfall | I48: 14.2477 | J48: 500.3304085 | K48: 1
C49: SEE939382623364 | D49: In Betrieb | E49: Klingele Paper Weener SE & Co. KG | F49: TWIN2 | G49: 01.03.2008 | H49: Abfall | I49: 3.9865 | J49: 504.3169085 | K49: 1
C50: SEE940303116315 | D50: In Betrieb | E50: EEW Energy from Waste Premnitz GmbH | F50: Turbosatz 5 | G50: 16.11.2021 | H50: Abfall | I50: 27.472 | J50: 531.7889085 | K50: 1
C51: SEE940474859066 | D51: In Betrieb | E51: BASF SE | F51: Z564 VT1 | G51: 30.04.1992 | H51: Abfall | I51: 10.2 | J51: 541.9889085 | K51: 1
C52: SEE941568392261 | D52: In Betrieb | E52: AGR Abfallentsorgungs-Gesellschaft Ruhrgebiet mbH | F52: RZR I Turbine2 | G52: 01.01.1981 | H52: Abfall | I52: 12.648 | J52: 554.6369085 | K52: 1
C53: SEE941568476039 | D53: In Betrieb | E53: AVG Abfallentsorgungs- und Verwertungsgesellschaft Köln mbH | F53: Turbosatz 1 | G53: 02.02.1998 | H53: Abfall | I53: 39.1 | J53: 593.7369085 | K53: 1
C54: SEE942253705168 | D54: In Betrieb | E54: Technische Werke Ludwigshafen am Rhein | F54: FHKW DT 2 | G54: 24.02.1989 | H54: Abfall | I54: 10.2595 | J54: 603.9964085 | K54: 1
C55: SEE942366584926 | D55: In Betrieb | E55: SWM Services GmbH | F55: SWM HKW Nord 1 T10 | G55: 29.08.1991 | H55: Abfall | I55: 15.3 | J55: 619.2964085 | K55: 1
C56: SEE942777699660 | D56: In Betrieb | E56: EBS Kraftwerk GmbH | F56: EBKW Knapsack | G56: 01.01.2009 | H56: Abfall | I56: 25.415 | J56: 644.7114085 | K56: 1
C57: SEE942956157011 | D57: In Betrieb | E57: AVG Abfallentsorgungs- und Verwertungsgesellschaft Köln mbH | F57: Turbosatz 2 | G57: 30.05.2017 | H57: Abfall | I57: 15.3 | J57: 660.0114085 | K57: 1
C58: SEE943548208159 | D58: In Betrieb | E58: AVA Abfallverwertung Augsburg Kommunalunternehmen | F58: AHKW ND Turbine | G58: 16.09.1994 | H58: Abfall | I58: 5.712 | J58: 665.7234085 | K58: 1
C59: SEE943841929270 | D59: In Betrieb | E59: AVA Abfallverwertung Augsburg Kommunalunternehmen | F59: AHKW HD Turbine | G59: 16.09.1994 | H59: Abfall | I59: 6.7745 | J59: 672.4979085 | K59: 1
C60: SEE944111876263 | D60: In Betrieb | E60: Progroup Power 1 GmbH | F60: PPO1 - Eisenhüttenstadt | G60: 19.10.2009 | H60: Abfall | I60: 27.2 | J60: 699.6979085 | K60: 1
C61: SEE944429192826 | D61: In Betrieb | E61: Zweckverband Abfallverwertung Südostbayern | F61: SEE944429192826 (MHKW Burgkirchen (Müllverbrennung)) | G61: 28.01.1994 | H61: Abfall | I61: 10.88 | J61: 710.5779085 | K61: 1
C62: SEE945150729886 | D62: In Betrieb | E62: AGR Abfallentsorgungs-Gesellschaft Ruhrgebiet mbH | F62: RZR I Turbine1 | G62: 01.01.1981 | H62: Abfall | I62: 12.648 | J62: 723.2259085 | K62: 1
C63: SEE945602121718 | D63: In Betrieb | E63: EkoCity | F63: Generator B | G63: 01.01.1976 | H63: Abfall | I63: 17 | J63: 740.2259085 | K63: 1
C64: SEE946934017984 | D64: In Betrieb | E64: Vattenfall Europe New Energy Ecopower GmbH | F64: EBS-HKW Rostock | G64: 31.03.2010 | H64: Abfall | I64: 15.725 | J64: 755.9509085 | K64: 1
C65: SEE947996339434 | D65: In Betrieb | E65: RZR II Herten GmbH | F65: RZR II Turbine4 | G65: 07.02.2019 | H65: Abfall | I65: 10.421 | J65: 766.3719085 | K65: 1
C66: SEE948093740512 | D66: In Betrieb | E66: MVV Umwelt Asset GmbH | F66: MHKW Mannheim Generator TE0 | G66: 14.06.2012 | H66: Abfall | I66: 3.621 | J66: 769.9929085 | K66: 1
C67: SEE950201173198 | D67: In Betrieb | E67: swb Entsorgung GmbH&Co. KG | F67: MHKW_Gen4 | G67: 01.01.2013 | H67: Abfall | I67: 41.82 | J67: 811.8129085 | K67: 1
C68: SEE950593842498 | D68: In Betrieb | E68: Remondis Thermische Abfallverwertung GmbH | F68: Remondis Thermische Abfallverwertung GmbH | G68: 06.12.2007 | H68: Abfall | I68: 20.4 | J68: 832.2129085 | K68: 1
C69: SEE951648072822 | D69: In Betrieb | E69: Zweckverband für Abfallwirtschaft Südwestthüringen (ZASt) | F69: ZASt | G69: 15.10.2007 | H69: Abfall | I69: 10.285 | J69: 842.4979085 | K69: 1
C70: SEE951966828576 | D70: In Betrieb | E70: Zweckverband Müllverwertungsanlage Ingolstadt | F70: Turbine VE 32 ZV MVA IN | G70: 10.09.1996 | H70: Abfall | I70: 6.256 | J70: 848.7539085 | K70: 1
C71: SEE953182244383 | D71: In Betrieb | E71: MVV Umwelt Asset GmbH | F71: MHKW Mannheim Generator X1 | G71: 13.03.2020 | H71: Abfall | I71: 3.468 | J71: 852.2219085 | K71: 1
C72: SEE953730197888 | D72: In Betrieb | E72: MVV Umwelt Asset GmbH | F72: MHKW Mannheim Generator TD0 | G72: 13.08.2012 | H72: Abfall | I72: 3.621 | J72: 855.8429085 | K72: 1
C73: SEE955292024220 | D73: In Betrieb | E73: Zweckverband Müllverwertung Schwandorf | F73: MKW SAD Turbine 4 | G73: 21.09.1982 | H73: Abfall | I73: 8.5 | J73: 864.3429085 | K73: 1
C74: SEE955548455112 | D74: In Betrieb | E74: Zweckverband Restmüllheizkraftwerk Böblingen | F74: Restmüllheizkraftwerk | G74: 01.05.1999 | H74: Abfall | I74: 10.71 | J74: 875.0529085 | K74: 1
C75: SEE955718847075 | D75: In Betrieb | E75: Stadtwerke Rosenheim GmbH & Co. KG | F75: DT1 | G75: 01.01.1988 | H75: Abfall | I75: 5.865 | J75: 880.9179085 | K75: 1
C76: SEE955937262338 | D76: In Betrieb | E76: GMVA Gemeinschafts-Müll-Verbrennungsanlage Niederrhein GmbH | F76: „Turbosatz 1“ | G76: 06.04.2006 | H76: Abfall | I76: 17.935 | J76: 898.8529085 | K76: 1
C77: SEE956268312785 | D77: In Betrieb | E77: Solvay Chemicals GmbH | F77: Kondensationsturbine EKT | G77: 17.12.2009 | H77: Abfall | I77: 25.5 | J77: 924.3529085 | K77: 1
C78: SEE957509710094 | D78: In Betrieb | E78: EEW Energy from Waste Saarbrücken GmbH AHKW-Neunkirchen | F78: AHKW-Neunkirchen | G78: 02.06.1977 | H78: Abfall | I78: 9.86 | J78: 934.2129085 | K78: 1
C79: SEE957686843929 | D79: In Betrieb | E79: Zweckverband Abfallverwertung Südhessen (ZAS) | F79: Turbine 1 | G79: 09.10.1991 | H79: Abfall | I79: 8.6887 | J79: 942.9016085 | K79: 1
C80: SEE957830042178 | D80: In Betrieb | E80: AVEA Entsorgungsbetriebe | F80: Turbine 3 | G80: 09.08.2010 | H80: Abfall | I80: 15.8525 | J80: 958.7541085 | K80: 1
C81: SEE958310939391 | D81: In Betrieb | E81: swb Entsorgung GmbH&Co. KG | F81: MKK | G81: 03.07.2009 | H81: Abfall | I81: 27.2 | J81: 985.9541085 | K81: 1
C82: SEE958335974377 | D82: In Betrieb | E82: IHKW Industrieheizkraftwerk Andernach GmbH | F82: Dampfturbine | G82: 15.12.2008 | H82: Abfall | I82: 10.625 | J82: 996.5791085 | K82: 1
C83: SEE958909269267 | D83: In Betrieb | E83: Infraserv GmbH & Co. Höchst KG | F83: IPH Ersatzbrennstoffverbrennung Turbine | G83: 28.07.2014 | H83: Abfall | I83: 60.35 | J83: 1056.929108 | K83: 1
C84: SEE962737235608 | D84: In Betrieb | E84: Müllheizkraftwerk Rothensee GmbH | F84: Block 1 | G84: 17.07.2005 | H84: Abfall | I84: 24.82 | J84: 1081.749108 | K84: 1
C85: SEE964170331206 | D85: In Betrieb | E85: Zweckverband für Abfallwirtschaft in Nordwest-Oberfranken | F85: MHKW Coburg | G85: 01.01.1988 | H85: Abfall | I85: 9.01 | J85: 1090.759108 | K85: 1
C86: SEE966264899036 | D86: In Betrieb | E86: Technische Werke Ludwigshafen am Rhein | F86: FHKW DT5 | G86: 05.07.2005 | H86: Abfall | I86: 7.772672 | J86: 1098.53178 | K86: 1
C87: SEE969698095906 | D87: In Betrieb | E87: Technische Werke Ludwigshafen am Rhein | F87: FHKW DT6 | G87: 12.04.2018 | H87: Abfall | I87: 4.6636015 | J87: 1103.195382 | K87: 1
C88: SEE971280976463 | D88: In Betrieb | E88: EEW Energy from Waste Göppingen | F88: MHKW Turbine | G88: 01.07.1975 | H88: Abfall | I88: 9.35 | J88: 1112.545382 | K88: 1
C89: SEE971796321603 | D89: In Betrieb | E89: Zweckverband Abfallwirtschaft Raum Würzburg | F89: TS II | G89: 09.11.1998 | H89: Abfall | I89: 10.2 | J89: 1122.745382 | K89: 1
C90: SEE972694764301 | D90: In Betrieb | E90: swb Entsorgung GmbH&Co. KG | F90: MHKW_Gen1 | G90: 01.01.1984 | H90: Abfall | I90: 2.21 | J90: 1124.955382 | K90: 1
C91: SEE973464796218 | D91: In Betrieb | E91: LEIPA Georg Leinfelder GmbH | F91: Dampfturbine FSK Kuhheide 32a | G91: 01.04.2011 | H91: Abfall | I91: 24.5684 | J91: 1149.523782 | K91: 1
C92: SEE974051053875 | D92: In Betrieb | E92: Klingele Paper Weener SE & Co. KG | F92: Turbine 4 | G92: 12.08.2021 | H92: Abfall | I92: 11.7725 | J92: 1161.296282 | K92: 1
C93: SEE976589352260 | D93: In Betrieb | E93: Müllheizkraftwerk Kassel GmbH | F93: Müllheizkraftwerk Kassel M8 | G93: 12.03.2012 | H93: Abfall | I93: 12.495 | J93: 1173.791282 | K93: 1
C94: SEE976826191515 | D94: In Betrieb | E94: MHB Hamm Betriebsführungsgesellschaft mbH | F94: MVA Hamm Turbine 2 | G94: 01.01.1985 | H94: Abfall | I94: 5.525 | J94: 1179.316282 | K94: 1
C95: SEE977514334252 | D95: In Betrieb | E95: Energieversorgung Offenbach AG | F95: Müllheizkraftwerk Offenbach Turbine 2 | G95: 30.06.2006 | H95: Abfall | I95: 1.802 | J95: 1181.118282 | K95: 1
C96: SEE977770417713 | D96: In Betrieb | E96: SWN Stadtwerke Neumünster GmbH | F96: T3 | G96: 06.07.1979 | H96: Abfall | I96: 10.6437 | J96: 1191.761982 | K96: 1
C97: SEE977898966292 | D97: In Betrieb | E97: MVR Müllverwertung Rugenberger Damm GmbH | F97: MVR Rugenberger Damm Müll | G97: 16.02.1999 | H97: Abfall | I97: 20.29375 | J97: 1212.055732 | K97: 1
C98: SEE979423615132 | D98: In Betrieb | E98: EGK Entsorgungsgesellschaft Krefeld GmbH & Co. KG | F98: Turbine 1 | G98: 27.08.1974 | H98: Abfall | I98: 0.7905 | J98: 1212.846232 | K98: 1
C99: SEE981003349412 | D99: In Betrieb | E99: SWN Stadtwerke Neumünster GmbH | F99: T6 | G99: 10.07.2014 | H99: Abfall | I99: 12.274 | J99: 1225.120232 | K99: 1
C100: SEE981876305560 | D100: In Betrieb | E100: MVV Umwelt Asset GmbH | F100: TREA Leuna 1 | G100: 26.08.2005 | H100: Abfall | I100: 13.80825 | J100: 1238.928482 | K100: 1
C101: SEE986030306643 | D101: In Betrieb | E101: Entsorgungsgesellschaft Mainz mbH | F101: MHKW DTS | G101: 01.06.2009 | H101: Abfall | I101: 12.75 | J101: 1251.678482 | K101: 1
C102: SEE986413873564 | D102: In Betrieb | E102: swb Entsorgung GmbH&Co. KG | F102: MHKW_Gen2 | G102: 01.01.2004 | H102: Abfall | I102: 11.305 | J102: 1262.983482 | K102: 1
C103: SEE988429673565 | D103: In Betrieb | E103: EEW Energy from Waste Saarbrücken GmbH | F103: TREA Breisgau | G103: 17.05.2004 | H103: Abfall | I103: 11.56 | J103: 1274.543482 | K103: 1
C104: SEE988580370860 | D104: In Betrieb | E104: EEW Energy from Waste Premnitz GmbH | F104: Turbosatz 4 | G104: 18.12.2005 | H104: Abfall | I104: 1.1475 | J104: 1275.690982 | K104: 1
C105: SEE988841475051 | D105: In Betrieb | E105: B+T Energie GmbH | F105: HKW Witzenhausen | G105: 24.06.2009 | H105: Abfall | I105: 23.8 | J105: 1299.490982 | K105: 1
C106: SEE988848971327 | D106: In Betrieb | E106: Vattenfall Wärme Berlin AG | F106: HKW Reuter, Dampfturbine M | G106: 04.02.1998 | H106: Abfall | I106: 30.6 | J106: 1330.090982 | K106: 1
C107: SEE989887901764 | D107: In Betrieb | E107: Enertec Hameln GmbH | F107: Turbine 5 | G107: 01.10.2009 | H107: Abfall | I107: 10.421 | J107: 1340.511982 | K107: 1
C108: SEE990065849372 | D108: In Betrieb | E108: Zweckverband Abfallwirtschaft Raum Würzburg | F108: TS I | G108: 04.06.1984 | H108: Abfall | I108: 7.395 | J108: 1347.906982 | K108: 1
C109: SEE990760688887 | D109: In Betrieb | E109: Entsorgungsgesellschaft Mainz mbH | F109: MHKW EBT | G109: 01.01.2003 | H109: Abfall | I109: 4.25 | J109: 1352.156982 | K109: 1
C110: SEE992607731794 | D110: In Betrieb | E110: EGK Entsorgungsgesellschaft Krefeld GmbH & Co. KG | F110: Turbine 4 | G110: 05.04.2001 | H110: Abfall | I110: 7.8455 | J110: 1360.002482 | K110: 1
C111: SEE992947793209 | D111: In Betrieb | E111: Kreis Weseler Abfallgesellschaft mbH & Co.KG | F111: Dampfturbine | G111: 01.04.1997 | H111: Abfall | I111: 13.6 | J111: 1373.602482 | K111: 1
C112: SEE993054223955 | D112: In Betrieb | E112: GMVA Gemeinschafts-Müll-Verbrennungsanlage Niederrhein GmbH | F112: „Turbosatz 2“ | G112: 17.10.1991 | H112: Abfall | I112: 34.34 | J112: 1407.942482 | K112: 1
C113: SEE993546424112 | D113: In Betrieb | E113: Enertec Hameln GmbH | F113: Turbine 2 | G113: 05.08.1952 | H113: Abfall | I113: 10.727 | J113: 1418.669482 | K113: 1
C114: SEE993787055366 | D114: In Betrieb | E114: EGK Entsorgungsgesellschaft Krefeld GmbH & Co. KG | F114: Turbine 2 | G114: 27.08.1974 | H114: Abfall | I114: 0.7905 | J114: 1419.459982 | K114: 1
C115: SEE994238154089 | D115: In Betrieb | E115: MHB Hamm Betriebsführungsgesellschaft mbH | F115: MVA Hamm Turbine 3 | G115: 24.03.2006 | H115: Abfall | I115: 3.5275 | J115: 1422.987482 | K115: 1
C116: SEE994551453975 | D116: In Betrieb | E116: EkoCity | F116: Generator A | G116: 01.01.1976 | H116: Abfall | I116: 17 | J116: 1439.987482 | K116: 1
C117: SEE996047653111 | D117: In Betrieb | E117: PD energy GmbH | F117: KW TRB Bitterfeld, Bitterfeld-Wolfen, Oststr. 1 | G117: 19.11.2009 | H117: Abfall | I117: 8.5 | J117: 1448.487482 | K117: 1
C118: SEE996891820448 | D118: In Betrieb | E118: EGK Entsorgungsgesellschaft Krefeld GmbH & Co. KG | F118: Turbine 3 | G118: 01.01.1978 | H118: Abfall | I118: 6.8 | J118: 1455.287482 | K118: 1
C119: SEE998216550733 | D119: In Betrieb | E119: Klingele Paper Weener SE & Co. KG | F119: TWIN 1 | G119: 01.03.2008 | H119: Abfall | I119: 3.9865 | J119: 1459.273982 | K119: 1
C120: SEE998261618013 | D120: In Betrieb | E120: Enertec Hameln GmbH | F120: Turbine 1 | G120: 31.10.2000 | H120: Abfall | I120: 4.1905 | J120: 1463.464482 | K120: 1
C121: SEE998278854237 | D121: In Betrieb | E121: SWM Services GmbH | F121: SWM HKW Nord 3 T30 | G121: 14.03.1984 | H121: Abfall | I121: 18.7 | J121: 1482.164482 | K121: 1
C122: SEE999588015110 | D122: In Betrieb | E122: MHKW Müllheizkraftwerk Frankfurt am Main GmbH | F122: Turbine 3 | G122: 12.12.1986 | H122: Abfall | I122: 22.1 | J122: 1504.264482 | K122: 1
C123: SEE999819576335 | D123: In Betrieb | E123: Müllheizkraftwerk Rothensee GmbH | F123: Block 2 | G123: 08.09.2006 | H123: Abfall | I123: 28.56 | J123: 1532.824482 | K123: 1
D124: In Betrieb | E124: Nicht-EEG-Anlagen < 10 MW | H124: Abfall | I124: 145.2678135 | J124: 1678.092295 | K124: 1
C125: SEE968582186379 | D125: In Betrieb | E125: Lausitz Energie Kraftwerke AG | F125: Boxberg Block R | G125: 06.11.2012 | H125: Braunkohle | I125: 548.1 | J125: 2226.192295 | K125: 87.00526316
C126: SEE952937205877 | D126: In Betrieb | E126: Pfeifer & Langen GmbH ＆ Co. KG | F126: Könnern Generator 2 | G126: 28.09.1993 | H126: Braunkohle | I126: 17.1129 | J126: 2243.305195 | K126: 87.67416974
C127: SEE925599434282 | D127: In Betrieb | E127: RWE Power AG | F127: Neurath F | G127: 03.08.2012 | H127: Braunkohle | I127: 922.2 | J127: 3165.505195 | K127: 88.39395349
C128: SEE983252937631 | D128: In Betrieb | E128: RWE Power AG | F128: Niederaußem K | G128: 28.01.2003 | H128: Braunkohle | I128: 821.28 | J128: 3986.785195 | K128: 88.39395349
C129: SEE993592183001 | D129: In Betrieb | E129: RWE Power AG | F129: Neurath G | G129: 08.07.2012 | H129: Braunkohle | I129: 922.2 | J129: 4908.985195 | K129: 88.39395349
C130: SEE915426748132 | D130: In Betrieb | E130: RheinEnergie AG | F130: Block 6 Merkenich RheinEnergie | G130: 16.12.2010 | H130: Braunkohle | I130: 65.511 | J130: 4974.496195 | K130: 89.62075472
C131: SEE907389779292 | D131: In Betrieb | E131: Lausitz Energie Kraftwerke AG | F131: Boxberg Block Q | G131: 01.10.2000 | H131: Braunkohle | I131: 730.8 | J131: 5705.296196 | K131: 89.8286052
C132: SEE957229968300 | D132: In Betrieb | E132: RWE Power AG | F132: Niederaußem H | G132: 16.09.1974 | H132: Braunkohle | I132: 563.76 | J132: 6269.056196 | K132: 90.12125237
C133: SEE998199911088 | D133: In Betrieb | E133: EnBW Energie Baden-Württemberg AG | F133: Kraftwerk Lippendorf Block S | G133: 01.12.1999 | H133: Braunkohle | I133: 775.17 | J133: 7044.226196 | K133: 90.45809524
C134: SEE921905907730 | D134: In Betrieb | E134: RWE Power AG | F134: Niederaußem G | G134: 23.10.1974 | H134: Braunkohle | I134: 546.36 | J134: 7590.586196 | K134: 90.62748092
C135: SEE938337436349 | D135: In Betrieb | E135: Lausitz Energie Kraftwerke AG | F135: Kraftwerk Schwarze Pumpe Block A | G135: 15.12.1997 | H135: Braunkohle | I135: 656.85 | J135: 8247.436196 | K135: 92.62292683
C136: SEE952672318108 | D136: In Betrieb | E136: Lausitz Energie Kraftwerke AG | F136: Kraftwerk Schwarze Pumpe Block B | G136: 25.05.1998 | H136: Braunkohle | I136: 656.85 | J136: 8904.286196 | K136: 92.62292683
C137: SEE966331411864 | D137: In Betrieb | E137: Lausitz Energie Kraftwerke AG | F137: Kraftwerk Lippendorf Block R | G137: 20.06.2000 | H137: Braunkohle | I137: 775.17 | J137: 9679.456196 | K137: 92.62292683
C138: SEE990438768378 | D138: In Betrieb | E138: Stadtwerke Flensburg | F138: Dampfturbine 8 | G138: 24.05.1985 | H138: Steinkohle | I138: 26.32 | J138: 9705.776196 | K138: 93.26468254
C139: SEE919134316447 | D139: In Betrieb | E139: Saale Energie GmbH | F139: Schkopau A+B Bahngenerator | G139: 01.01.1996 | H139: Braunkohle | I139: 95.7 | J139: 9801.476196 | K139: 94.896
C140: SEE921449009914 | D140: In Betrieb | E140: CropEnergies Bioethanol GmbH | F140: Dampfturbine IV CropEnergies Zeitz | G140: 01.01.2004 | H140: Braunkohle | I140: 15.46251 | J140: 9816.938706 | K140: 94.896
C141: SEE947677200282 | D141: In Betrieb | E141: Saale Energie GmbH | F141: Schkopau B | G141: 01.01.1996 | H141: Braunkohle | I141: 391.5 | J141: 10208.43871 | K141: 94.896
C142: SEE960652233358 | D142: In Betrieb | E142: Saale Energie GmbH | F142: Schkopau A | G142: 01.01.1995 | H142: Braunkohle | I142: 391.5 | J142: 10599.93871 | K142: 94.896
C143: SEE978888539755 | D143: In Betrieb | E143: Stadtwerke Cottbus GmbH | F143: Mittel-Niederdruckdampfturbine | G143: 23.03.1999 | H143: Braunkohle | I143: 39.15 | J143: 10639.08871 | K143: 94.896
C144: SEE975343602986 | D144: In Betrieb | E144: Martinswerk GmbH | F144: KWK-Anlage: Generator 2 | G144: 01.01.1961 | H144: Braunkohle | I144: 8.613 | J144: 10647.70171 | K144: 97.77835052
C145: SEE986936308987 | D145: In Betrieb | E145: Martinswerk GmbH | F145: KWK-Anlage: Generator 1 | G145: 01.01.1961 | H145: Braunkohle | I145: 8.613 | J145: 10656.31471 | K145: 97.77835052
C146: SEE998111672394 | D146: In Betrieb | E146: MIBRAG GmbH | F146: IKW Wählitz | G146: 25.08.1994 | H146: Braunkohle | I146: 26.97 | J146: 10683.28471 | K146: 98.52701299
C147: SEE970305352633 | D147: In Betrieb | E147: Südzucker AG | F147: Dampfturbine III Südzucker Zeitz | G147: 01.08.1993 | H147: Braunkohle | I147: 14.6595 | J147: 10697.94421 | K147: 98.98183716
C148: SEE999145467468 | D148: In Betrieb | E148: RWE Power AG | F148: GoWerk F | G148: 01.12.1992 | H148: Braunkohle | I148: 54.81 | J148: 10752.75421 | K148: 98.98183716
C149: SEE957285549260 | D149: In Betrieb | E149: Stadtwerke Flensburg | F149: Dampfturbine 9 | G149: 16.08.1988 | H149: Steinkohle | I149: 26.32 | J149: 10779.07421 | K149: 99.39566138
C150: SEE996990805407 | D150: In Betrieb | E150: Braunschweiger Versorgungs-AG & Co. KG | F150: HKW Mitte Kessel 1 | G150: 18.01.1985 | H150: Steinkohle | I150: 35.6 | J150: 10814.67421 | K150: 100.3388889
C151: SEE933960350956 | D151: In Betrieb | E151: eins energie in sachsen GmbH & Co. KG | F151: HKW Chemnitz Nord II, Block C | G151: 07.06.1990 | H151: Braunkohle | I151: 80.32884 | J151: 10895.00305 | K151: 100.8446809
C152: SEE994335340088 | D152: In Betrieb | E152: Stadtwerke Frankfurt (Oder) GmbH | F152: HKW DT | G152: 09.10.1997 | H152: Braunkohle | I152: 14.79 | J152: 10909.79305 | K152: 100.8446809
D153: In Betrieb | E153: Nicht-EEG-Anlagen < 10 MW | H153: Braunkohle | I153: 21.735645 | J153: 10931.52869 | K153: 100.8446809
C154: SEE901205245022 | D154: In Betrieb | E154: eins energie in sachsen GmbH & Co. KG | F154: Motor-Heizkraftwerk Chemnitz-Süd, Motor 3 | G154: 21.12.2022 | H154: GuD | I154: 11.076318 | J154: 10942.60501 | K154: 100.967619
C155: SEE903604447151 | D155: In Betrieb | E155: SWP Stadtwerke Pforzheim | F155: E-BHKW | G155: 23.06.2017 | H155: GuD | I155: 1.65213 | J155: 10944.25714 | K155: 100.967619
C156: SEE903779951637 | D156: In Betrieb | E156: eins energie in sachsen GmbH & Co. KG | F156: Motor-Heizkraftwerk Chemnitz-Süd, Motor 5 | G156: 21.12.2022 | H156: GuD | I156: 11.076318 | J156: 10955.33346 | K156: 100.967619
C157: SEE905023260298 | D157: In Betrieb | E157: Stadtwerke Rosenheim GmbH & Co. KG | F157: GM7 | G157: 04.04.2022 | H157: GuD | I157: 3.87759 | J157: 10959.21105 | K157: 100.967619
C158: SEE905366486355 | D158: In Betrieb | E158: Infraserv GmbH & Co. Höchst KG | F158: IPH Strom VT4 | G158: 15.09.2021 | H158: GuD | I158: 23.316 | J158: 10982.52705 | K158: 100.967619
C159: SEE905410926998 | D159: In Betrieb | E159: Forschungszentrum Jülich GmbH | F159: FZJ_WVVZ-03.19_BHKW-1 | G159: 27.06.2022 | H159: GuD | I159: 3.62877 | J159: 10986.15582 | K159: 100.967619
C160: SEE908964165929 | D160: In Betrieb | E160: SWE Energie GmbH | F160: swe energie T-DT | G160: 01.01.2022 | H160: GuD | I160: 9.135 | J160: 10995.29082 | K160: 100.967619
C161: SEE909438607068 | D161: In Betrieb | E161: Infraserv GmbH & Co. Höchst KG | F161: IPH Strom VT3 | G161: 15.09.2021 | H161: GuD | I161: 11.223 | J161: 11006.51382 | K161: 100.967619
C162: SEE909466066615 | D162: In Betrieb | E162: eins energie in sachsen GmbH & Co. KG | F162: Motor-Heizkraftwerk Chemnitz-Nord. Motor 3 | G162: 06.07.2023 | H162: GuD | I162: 10.90545 | J162: 11017.41927 | K162: 100.967619
C163: SEE909553236495 | D163: In Betrieb | E163: Arla Foods Deutschland GmbH | F163: Turbine Pronsfeld | G163: 27.10.2021 | H163: GuD | I163: 10.66185 | J163: 11028.08112 | K163: 100.967619
C164: SEE911129038174 | D164: In Betrieb | E164: Stadtwerke Cottbus GmbH | F164: BHKW-Anlage | G164: 15.09.2022 | H164: GuD | I164: 46.52847 | J164: 11074.60959 | K164: 100.967619
C165: SEE912224455828 | D165: In Betrieb | E165: eins energie in sachsen GmbH & Co. KG | F165: Motor-Heizkraftwerk Chemnitz-Süd, Motor 2 | G165: 21.12.2022 | H165: GuD | I165: 11.076318 | J165: 11085.6859 | K165: 100.967619
C166: SEE912583238223 | D166: In Betrieb | E166: TEAG Thüringer Energie AG | F166: Gasmotor 3 Jena | G166: 04.11.2022 | H166: GuD | I166: 10.59225 | J166: 11096.27815 | K166: 100.967619
C167: SEE913088869400 | D167: In Betrieb | E167: Städtische Werke Energie + Wärme GmbH | F167: Kombi-HKW GT1 | G167: 31.03.2021 | H167: GuD | I167: 13.3023 | J167: 11109.58045 | K167: 100.967619
C168: SEE913985941537 | D168: In Betrieb | E168: medl GmbH | F168: medl BHKW Broich Modul 2 neu | G168: 30.11.2020 | H168: GuD | I168: 2.32551 | J168: 11111.90596 | K168: 100.967619
C169: SEE915375007878 | D169: In Betrieb | E169: Stadtwerke Duisburg AG | F169: Mitte BHKW 2 Modul 4 | G169: 17.05.2023 | H169: GuD | I169: 3.89064 | J169: 11115.7966 | K169: 100.967619
C170: SEE915851127786 | D170: In Betrieb | E170: Stadtwerke Aachen AG | F170: BHKW Schwarzer Weg | G170: 05.04.2023 | H170: GuD | I170: 18.70935 | J170: 11134.50595 | K170: 100.967619
C171: SEE917303295586 | D171: In Betrieb | E171: eins energie in sachsen GmbH & Co. KG | F171: Motor-Heizkraftwerk Chemnitz-Süd, Motor 4 | G171: 21.12.2022 | H171: GuD | I171: 11.076318 | J171: 11145.58227 | K171: 100.967619
C172: SEE917925869486 | D172: In Betrieb | E172: Nordland Papier GmbH | F172: Nordland GuD-Anlage HD-DTS | G172: 23.05.2022 | H172: GuD | I172: 19.6707 | J172: 11165.25297 | K172: 100.967619
C173: SEE918506212059 | D173: In Betrieb | E173: Energieversorgung Oberhausen | F173: Gasmotoren Danziger Straße | G173: 10.05.2021 | H173: GuD | I173: 7.6647 | J173: 11172.91767 | K173: 100.967619
C174: SEE919939073064 | D174: In Betrieb | E174: Volkswagen AG | F174: GT 31 GuD Süd Wolfsburg | G174: 27.12.2021 | H174: GuD | I174: 42.978 | J174: 11215.89567 | K174: 100.967619
C175: SEE920801236685 | D175: In Betrieb | E175: Evonik Operations GmbH | F175: Kraftwerk VII, Block 71, DT710 | G175: 12.12.2022 | H175: GuD | I175: 32.103 | J175: 11247.99867 | K175: 100.967619
C176: SEE921877855527 | D176: In Betrieb | E176: Solvay Chemicals GmbH | F176: Gasturbine 01 Industriekraftwerk | G176: 16.12.2019 | H176: GuD | I176: 50.895 | J176: 11298.89367 | K176: 100.967619
C177: SEE923129957027 | D177: In Betrieb | E177: Stadtwerke Duisburg AG | F177: Mitte BHKW 2 Modul 3 | G177: 17.05.2023 | H177: GuD | I177: 3.89064 | J177: 11302.78431 | K177: 100.967619
C178: SEE923793340132 | D178: In Betrieb | E178: DREWAG - Stadtwerke Dresden GmbH | F178: Gasmotoren-Heizkraftwerk Dresden-Reick - Aggregat VIII | G178: 18.02.2022 | H178: GuD | I178: 10.005 | J178: 11312.78931 | K178: 100.967619
C179: SEE924562445072 | D179: In Betrieb | E179: DREWAG - Stadtwerke Dresden GmbH | F179: Gasmotoren-Heizkraftwerk Dresden-Reick - Aggregat V | G179: 18.02.2022 | H179: GuD | I179: 10.005 | J179: 11322.79431 | K179: 100.967619
C180: SEE927282130440 | D180: In Betrieb | E180: Energie SaarLorLux AG | F180: Gasmotorenkraftwerk Römerbrücke | G180: 01.07.2022 | H180: GuD | I180: 45.67152 | J180: 11368.46583 | K180: 100.967619
C181: SEE927303933470 | D181: In Betrieb | E181: Nordland Papier GmbH | F181: Nordland GuD-Anlage ND-DTS | G181: 23.05.2022 | H181: GuD | I181: 3.47565 | J181: 11371.94148 | K181: 100.967619
C182: SEE928331694449 | D182: In Betrieb | E182: eins energie in sachsen GmbH & Co. KG | F182: Motor-Heizkraftwerk Chemnitz-Nord, Motor 2 | G182: 06.07.2023 | H182: GuD | I182: 10.90545 | J182: 11382.84693 | K182: 100.967619
C183: SEE929090964958 | D183: In Betrieb | E183: Forschungszentrum Jülich GmbH | F183: FZJ_WVVZ-03.19_BHKW-3 | G183: 27.06.2022 | H183: GuD | I183: 3.62877 | J183: 11386.4757 | K183: 100.967619
C184: SEE930277153294 | D184: In Betrieb | E184: Stadtwerke Duisburg AG | F184: Mitte BHKW 2 Modul 7 | G184: 17.05.2023 | H184: GuD | I184: 3.89064 | J184: 11390.36634 | K184: 100.967619
C185: SEE930647914081 | D185: In Betrieb | E185: DREWAG - Stadtwerke Dresden GmbH | F185: Gasmotoren-Heizkraftwerk Dresden-Reick - Aggregat III | G185: 18.02.2022 | H185: GuD | I185: 10.005 | J185: 11400.37134 | K185: 100.967619
C186: SEE936473203580 | D186: In Betrieb | E186: TEAG Thüringer Energie AG | F186: Gasmotor 2 Jena | G186: 11.11.2022 | H186: GuD | I186: 10.59225 | J186: 11410.96359 | K186: 100.967619
C187: SEE936668903264 | D187: In Betrieb | E187: Fernwärme Ulm GmbH | F187: BHKW1 | G187: 09.12.2022 | H187: GuD | I187: 17.87241 | J187: 11428.836 | K187: 100.967619
C188: SEE936761155751 | D188: In Betrieb | E188: eins energie in sachsen GmbH & Co. KG | F188: Motor-Heizkraftwerk Chemnitz-Süd, Motor 1 | G188: 21.12.2022 | H188: GuD | I188: 11.076318 | J188: 11439.91232 | K188: 100.967619
C189: SEE939899660715 | D189: In Betrieb | E189: DREWAG - Stadtwerke Dresden GmbH | F189: Gasmotoren-Heizkraftwerk Dresden-Reick - Aggregat VII | G189: 18.02.2022 | H189: GuD | I189: 10.005 | J189: 11449.91732 | K189: 100.967619
C190: SEE939917723934 | D190: In Betrieb | E190: SWU Energie GmbH | F190: BHKW Neu-Ulm M3 | G190: 14.12.2021 | H190: GuD | I190: 2.28114 | J190: 11452.19846 | K190: 100.967619
C191: SEE944044057432 | D191: In Betrieb | E191: eins energie in sachsen GmbH & Co. KG | F191: Motor-Heizkraftwerk Chemnitz-Nord, Motor 1 | G191: 06.07.2023 | H191: GuD | I191: 10.90545 | J191: 11463.10391 | K191: 100.967619
C192: SEE944148486770 | D192: In Betrieb | E192: ORION Engineered Carbons GmbH | F192: Generator 4 | G192: 21.12.2017 | H192: GuD | I192: 19.14 | J192: 11482.24391 | K192: 100.967619
C193: SEE946709181179 | D193: In Betrieb | E193: eins energie in sachsen GmbH & Co. KG | F193: Motor-Heizkraftwerk Chemnitz-Nord, Motor 4 | G193: 06.07.2023 | H193: GuD | I193: 10.90545 | J193: 11493.14936 | K193: 100.967619
C194: SEE949216632202 | D194: In Betrieb | E194: Stadtwerke Flensburg | F194: Dampfturbine 13 | G194: 16.12.2022 | H194: GuD | I194: 33.234 | J194: 11526.38336 | K194: 100.967619
C195: SEE951078548935 | D195: In Betrieb | E195: Stadtwerke Kempen GmbH | F195: 0050 - STW - BHKW - KWK | G195: 01.11.2017 | H195: GuD | I195: 2.88231 | J195: 11529.26567 | K195: 100.967619
C196: SEE951160693116 | D196: In Betrieb | E196: TEAG Thüringer Energie AG | F196: Gasmotor 5 Jena | G196: 11.11.2022 | H196: GuD | I196: 10.59225 | J196: 11539.85792 | K196: 100.967619
C197: SEE951344432289 | D197: In Betrieb | E197: BTB Blockheizkraftwerks-, Träger- und Betreibergesellschaft | F197: KWK Adlershof Modul 2 | G197: 06.07.2023 | H197: GuD | I197: 3.8193 | J197: 11543.67722 | K197: 100.967619
C198: SEE951684578067 | D198: In Betrieb | E198: Stadtwerke Bielefeld GmbH | F198: Gasturbine 2 - GuD MPE | G198: 15.02.2021 | H198: GuD | I198: 13.0935 | J198: 11556.77072 | K198: 100.967619
C199: SEE953907486180 | D199: In Betrieb | E199: Forschungszentrum Jülich GmbH | F199: FZJ_WVVZ-03.19_BHKW-2 | G199: 27.06.2022 | H199: GuD | I199: 3.62877 | J199: 11560.39949 | K199: 100.967619
C200: SEE953987748918 | D200: In Betrieb | E200: Stadtwerke Duisburg AG | F200: Mitte BHKW 2 Modul 6 | G200: 17.05.2023 | H200: GuD | I200: 3.89064 | J200: 11564.29013 | K200: 100.967619
C201: SEE955076814825 | D201: In Betrieb | E201: eins energie in sachsen GmbH & Co. KG | F201: Motor-Heizkraftwerk Chemnitz-Nord, Motor 7 | G201: 06.07.2023 | H201: GuD | I201: 10.90545 | J201: 11575.19558 | K201: 100.967619
C202: SEE955178360381 | D202: In Betrieb | E202: BMW AG | F202: KWK 1 Gebäude 192.0 | G202: 26.03.2019 | H202: GuD | I202: 3.48435 | J202: 11578.67993 | K202: 100.967619
C203: SEE957163765348 | D203: In Betrieb | E203: ORION Engineered Carbons GmbH | F203: Generator 3 | G203: 03.07.2020 | H203: GuD | I203: 11.658 | J203: 11590.33793 | K203: 100.967619
C204: SEE959044776498 | D204: In Betrieb | E204: Stadtwerke Duisburg AG | F204: Mitte BHKW 2 Modul 5 | G204: 17.05.2023 | H204: GuD | I204: 3.89064 | J204: 11594.22857 | K204: 100.967619
C205: SEE960155611554 | D205: In Betrieb | E205: medl GmbH | F205: medl BHKW Broich Modul 3 neu | G205: 13.12.2021 | H205: GuD | I205: 2.32551 | J205: 11596.55408 | K205: 100.967619
C206: SEE962395118756 | D206: In Betrieb | E206: DREWAG - Stadtwerke Dresden GmbH | F206: Gasmotoren-Heizkraftwerk Dresden-Reick - Aggregat IV | G206: 18.02.2022 | H206: GuD | I206: 10.005 | J206: 11606.55908 | K206: 100.967619
... 967 more rows

Sheet Kraftwerksliste
C3: EWI Merit-Order Tool 2023
C5: Kraftwerksliste | Z5: =Impressum!F5 -> Version 2023.0
C7: Die Kraftwerksliste basiert auf der Kraftwerksliste der Bundesnetzagentur (BNetzA, 2023). In die Kraftwerksliste eingegangen sind alle konventionellen Kraftwerke, die am 17.11.2023 in Betrieb waren. Die in dunkelgelb eingefärben Spalten sind unverändert aus BNetzA (2023) übernommen. Die hellgelben Spalten enthalten zusätzliche Informationen, basierend auf eigenen Annahmen, Berechnungen und weiteren Quellen. Die Annahmen zur Effizienz der Kraftwerke sind beispielsweise größtenteils aus OPSD (2020) entnommen. Die weiß hinterlegten Felder können von den Nutzer*innen angepasst werden. So können Kraftwerke aus der Merit-Order entfernt und bis zu 10 neue Kraftwerke hinzugefügt werden.
C10: Teil der Merit-Order? | D10: MaStR-Nr. | E10: Status | F10: Anlagenbetreiber | G10: Anzeige-Name | H10: PLZ der Einheit | I10: Ort der Einheit | J10: Straße und Hausnummer der Einheit | K10: Bundesland der Einheit | L10: Datum der erstmaligen Inbetriebnahme der Einheit | M10: Energieträger | N10: Hauptbrennstoff | O10: Auswertung Energieträger | P10: Wärmeauskopplung (KW) ja/nein | Q10: Technologie der Stromerzeugung | R10: Angenommener Hauptenergieträger | S10: Zuordnung Kraftwerkstyp | T10: Effizienz | U10: Quelle Effizienz | V10: Bruttoleistung [MW] | W10: Netto-Nennleistung (elektrische Wirkleistung) [MW] | X10: Mittlere verfügbare Netto-Nennleistung [MW] | Y10: Brennstoffkosten (inkl. Transport) [EUR/MWHth] | Z10: Grenzkosten [EUR/MWHel]
C11: Nein | D11: (optional) | E11: (optional) | F11: (optional) | G11: (optional) | H11: (optional) | I11: (optional) | J11: (optional) | K11: (optional) | L11: (optional) | M11: (optional) | N11: (optional) | O11: (optional) | P11: (optional) | Q11: (optional) | R11: (notwendig) | S11: (notwendig) | T11: (notwendig) | U11: (optional) | V11: (optional) | W11: (notwendig) | X11: =IF(ISNUMBER((1-VLOOKUP(S11,Start!$H$33:$I$40,2,FALSE)/100)*W11),(1-VLOOKUP(S11,Start!$H$33:$I$40,2,FALSE)/100)*W11,0) -> 0 | Y11: =IF(ISNUMBER(VLOOKUP(R11,Start!$C$9:$D$15,2,FALSE)+VLOOKUP(R11,Start!$C$23:$D$29,2,FALSE)),VLOOKUP(R11,Start!$C$9:$D$15,2,FALSE)+VLOOKUP(R11,Start!$C$23:$D$29,2,FALSE),0) -> 0 | Z11: =IF(ISNUMBER((Y11/T11)+Start!$D$19*(VLOOKUP(R11,Start!$M$33:$N$39,2,FALSE)/T11)+VLOOKUP(S11,Start!$C$33:$D$40,2,FALSE)),(Y11/T11)+Start!$D$19*(VLOOKUP(R11,Start!$M$33:$N$39,2,FALSE)/T11)+VLOOKUP(S11,Start!$C$33:$D$40,2,FALSE),0) -> 0
C12: Nein | D12: (optional) | E12: (optional) | F12: (optional) | G12: (optional) | H12: (optional) | I12: (optional) | J12: (optional) | K12: (optional) | L12: (optional) | M12: (optional) | N12: (optional) | O12: (optional) | P12: (optional) | Q12: (optional) | R12: (notwendig) | S12: (notwendig) | T12: (notwendig) | U12: (optional) | V12: (optional) | W12: (notwendig) | X12: =IF(ISNUMBER((1-VLOOKUP(S12,Start!$H$33:$I$40,2,FALSE)/100)*W12),(1-VLOOKUP(S12,Start!$H$33:$I$40,2,FALSE)/100)*W12,0) -> 0 | Y12: =IF(ISNUMBER(VLOOKUP(R12,Start!$C$9:$D$15,2,FALSE)+VLOOKUP(R12,Start!$C$23:$D$29,2,FALSE)),VLOOKUP(R12,Start!$C$9:$D$15,2,FALSE)+VLOOKUP(R12,Start!$C$23:$D$29,2,FALSE),0) -> 0 | Z12: =IF(ISNUMBER((Y12/T12)+Start!$D$19*(VLOOKUP(R12,Start!$M$33:$N$39,2,FALSE)/T12)+VLOOKUP(S12,Start!$C$33:$D$40,2,FALSE)),(Y12/T12)+Start!$D$19*(VLOOKUP(R12,Start!$M$33:$N$39,2,FALSE)/T12)+VLOOKUP(S12,Start!$C$33:$D$40,2,FALSE),0) -> 0
C13: Nein | D13: (optional) | E13: (optional) | F13: (optional) | G13: (optional) | H13: (optional) | I13: (optional) | J13: (optional) | K13: (optional) | L13: (optional) | M13: (optional) | N13: (optional) | O13: (optional) | P13: (optional) | Q13: (optional) | R13: (notwendig) | S13: (notwendig) | T13: (notwendig) | U13: (optional) | V13: (optional) | W13: (notwendig) | X13: =IF(ISNUMBER((1-VLOOKUP(S13,Start!$H$33:$I$40,2,FALSE)/100)*W13),(1-VLOOKUP(S13,Start!$H$33:$I$40,2,FALSE)/100)*W13,0) -> 0 | Y13: =IF(ISNUMBER(VLOOKUP(R13,Start!$C$9:$D$15,2,FALSE)+VLOOKUP(R13,Start!$C$23:$D$29,2,FALSE)),VLOOKUP(R13,Start!$C$9:$D$15,2,FALSE)+VLOOKUP(R13,Start!$C$23:$D$29,2,FALSE),0) -> 0 | Z13: =IF(ISNUMBER((Y13/T13)+Start!$D$19*(VLOOKUP(R13,Start!$M$33:$N$39,2,FALSE)/T13)+VLOOKUP(S13,Start!$C$33:$D$40,2,FALSE)),(Y13/T13)+Start!$D$19*(VLOOKUP(R13,Start!$M$33:$N$39,2,FALSE)/T13)+VLOOKUP(S13,Start!$C$33:$D$40,2,FALSE),0) -> 0
C14: Nein | D14: (optional) | E14: (optional) | F14: (optional) | G14: (optional) | H14: (optional) | I14: (optional) | J14: (optional) | K14: (optional) | L14: (optional) | M14: (optional) | N14: (optional) | O14: (optional) | P14: (optional) | Q14: (optional) | R14: (notwendig) | S14: (notwendig) | T14: (notwendig) | U14: (optional) | V14: (optional) | W14: (notwendig) | X14: =IF(ISNUMBER((1-VLOOKUP(S14,Start!$H$33:$I$40,2,FALSE)/100)*W14),(1-VLOOKUP(S14,Start!$H$33:$I$40,2,FALSE)/100)*W14,0) -> 0 | Y14: =IF(ISNUMBER(VLOOKUP(R14,Start!$C$9:$D$15,2,FALSE)+VLOOKUP(R14,Start!$C$23:$D$29,2,FALSE)),VLOOKUP(R14,Start!$C$9:$D$15,2,FALSE)+VLOOKUP(R14,Start!$C$23:$D$29,2,FALSE),0) -> 0 | Z14: =IF(ISNUMBER((Y14/T14)+Start!$D$19*(VLOOKUP(R14,Start!$M$33:$N$39,2,FALSE)/T14)+VLOOKUP(S14,Start!$C$33:$D$40,2,FALSE)),(Y14/T14)+Start!$D$19*(VLOOKUP(R14,Start!$M$33:$N$39,2,FALSE)/T14)+VLOOKUP(S14,Start!$C$33:$D$40,2,FALSE),0) -> 0
C15: Nein | D15: (optional) | E15: (optional) | F15: (optional) | G15: (optional) | H15: (optional) | I15: (optional) | J15: (optional) | K15: (optional) | L15: (optional) | M15: (optional) | N15: (optional) | O15: (optional) | P15: (optional) | Q15: (optional) | R15: (notwendig) | S15: (notwendig) | T15: (notwendig) | U15: (optional) | V15: (optional) | W15: (notwendig) | X15: =IF(ISNUMBER((1-VLOOKUP(S15,Start!$H$33:$I$40,2,FALSE)/100)*W15),(1-VLOOKUP(S15,Start!$H$33:$I$40,2,FALSE)/100)*W15,0) -> 0 | Y15: =IF(ISNUMBER(VLOOKUP(R15,Start!$C$9:$D$15,2,FALSE)+VLOOKUP(R15,Start!$C$23:$D$29,2,FALSE)),VLOOKUP(R15,Start!$C$9:$D$15,2,FALSE)+VLOOKUP(R15,Start!$C$23:$D$29,2,FALSE),0) -> 0 | Z15: =IF(ISNUMBER((Y15/T15)+Start!$D$19*(VLOOKUP(R15,Start!$M$33:$N$39,2,FALSE)/T15)+VLOOKUP(S15,Start!$C$33:$D$40,2,FALSE)),(Y15/T15)+Start!$D$19*(VLOOKUP(R15,Start!$M$33:$N$39,2,FALSE)/T15)+VLOOKUP(S15,Start!$C$33:$D$40,2,FALSE),0) -> 0
C16: Nein | D16: (optional) | E16: (optional) | F16: (optional) | G16: (optional) | H16: (optional) | I16: (optional) | J16: (optional) | K16: (optional) | L16: (optional) | M16: (optional) | N16: (optional) | O16: (optional) | P16: (optional) | Q16: (optional) | R16: (notwendig) | S16: (notwendig) | T16: (notwendig) | U16: (optional) | V16: (optional) | W16: (notwendig) | X16: =IF(ISNUMBER((1-VLOOKUP(S16,Start!$H$33:$I$40,2,FALSE)/100)*W16),(1-VLOOKUP(S16,Start!$H$33:$I$40,2,FALSE)/100)*W16,0) -> 0 | Y16: =IF(ISNUMBER(VLOOKUP(R16,Start!$C$9:$D$15,2,FALSE)+VLOOKUP(R16,Start!$C$23:$D$29,2,FALSE)),VLOOKUP(R16,Start!$C$9:$D$15,2,FALSE)+VLOOKUP(R16,Start!$C$23:$D$29,2,FALSE),0) -> 0 | Z16: =IF(ISNUMBER((Y16/T16)+Start!$D$19*(VLOOKUP(R16,Start!$M$33:$N$39,2,FALSE)/T16)+VLOOKUP(S16,Start!$C$33:$D$40,2,FALSE)),(Y16/T16)+Start!$D$19*(VLOOKUP(R16,Start!$M$33:$N$39,2,FALSE)/T16)+VLOOKUP(S16,Start!$C$33:$D$40,2,FALSE),0) -> 0
C17: Nein | D17: (optional) | E17: (optional) | F17: (optional) | G17: (optional) | H17: (optional) | I17: (optional) | J17: (optional) | K17: (optional) | L17: (optional) | M17: (optional) | N17: (optional) | O17: (optional) | P17: (optional) | Q17: (optional) | R17: (notwendig) | S17: (notwendig) | T17: (notwendig) | U17: (optional) | V17: (optional) | W17: (notwendig) | X17: =IF(ISNUMBER((1-VLOOKUP(S17,Start!$H$33:$I$40,2,FALSE)/100)*W17),(1-VLOOKUP(S17,Start!$H$33:$I$40,2,FALSE)/100)*W17,0) -> 0 | Y17: =IF(ISNUMBER(VLOOKUP(R17,Start!$C$9:$D$15,2,FALSE)+VLOOKUP(R17,Start!$C$23:$D$29,2,FALSE)),VLOOKUP(R17,Start!$C$9:$D$15,2,FALSE)+VLOOKUP(R17,Start!$C$23:$D$29,2,FALSE),0) -> 0 | Z17: =IF(ISNUMBER((Y17/T17)+Start!$D$19*(VLOOKUP(R17,Start!$M$33:$N$39,2,FALSE)/T17)+VLOOKUP(S17,Start!$C$33:$D$40,2,FALSE)),(Y17/T17)+Start!$D$19*(VLOOKUP(R17,Start!$M$33:$N$39,2,FALSE)/T17)+VLOOKUP(S17,Start!$C$33:$D$40,2,FALSE),0) -> 0
C18: Nein | D18: (optional) | E18: (optional) | F18: (optional) | G18: (optional) | H18: (optional) | I18: (optional) | J18: (optional) | K18: (optional) | L18: (optional) | M18: (optional) | N18: (optional) | O18: (optional) | P18: (optional) | Q18: (optional) | R18: (notwendig) | S18: (notwendig) | T18: (notwendig) | U18: (optional) | V18: (optional) | W18: (notwendig) | X18: =IF(ISNUMBER((1-VLOOKUP(S18,Start!$H$33:$I$40,2,FALSE)/100)*W18),(1-VLOOKUP(S18,Start!$H$33:$I$40,2,FALSE)/100)*W18,0) -> 0 | Y18: =IF(ISNUMBER(VLOOKUP(R18,Start!$C$9:$D$15,2,FALSE)+VLOOKUP(R18,Start!$C$23:$D$29,2,FALSE)),VLOOKUP(R18,Start!$C$9:$D$15,2,FALSE)+VLOOKUP(R18,Start!$C$23:$D$29,2,FALSE),0) -> 0 | Z18: =IF(ISNUMBER((Y18/T18)+Start!$D$19*(VLOOKUP(R18,Start!$M$33:$N$39,2,FALSE)/T18)+VLOOKUP(S18,Start!$C$33:$D$40,2,FALSE)),(Y18/T18)+Start!$D$19*(VLOOKUP(R18,Start!$M$33:$N$39,2,FALSE)/T18)+VLOOKUP(S18,Start!$C$33:$D$40,2,FALSE),0) -> 0
C19: Nein | D19: (optional) | E19: (optional) | F19: (optional) | G19: (optional) | H19: (optional) | I19: (optional) | J19: (optional) | K19: (optional) | L19: (optional) | M19: (optional) | N19: (optional) | O19: (optional) | P19: (optional) | Q19: (optional) | R19: (notwendig) | S19: (notwendig) | T19: (notwendig) | U19: (optional) | V19: (optional) | W19: (notwendig) | X19: =IF(ISNUMBER((1-VLOOKUP(S19,Start!$H$33:$I$40,2,FALSE)/100)*W19),(1-VLOOKUP(S19,Start!$H$33:$I$40,2,FALSE)/100)*W19,0) -> 0 | Y19: =IF(ISNUMBER(VLOOKUP(R19,Start!$C$9:$D$15,2,FALSE)+VLOOKUP(R19,Start!$C$23:$D$29,2,FALSE)),VLOOKUP(R19,Start!$C$9:$D$15,2,FALSE)+VLOOKUP(R19,Start!$C$23:$D$29,2,FALSE),0) -> 0 | Z19: =IF(ISNUMBER((Y19/T19)+Start!$D$19*(VLOOKUP(R19,Start!$M$33:$N$39,2,FALSE)/T19)+VLOOKUP(S19,Start!$C$33:$D$40,2,FALSE)),(Y19/T19)+Start!$D$19*(VLOOKUP(R19,Start!$M$33:$N$39,2,FALSE)/T19)+VLOOKUP(S19,Start!$C$33:$D$40,2,FALSE),0) -> 0
C20: Nein | D20: (optional) | E20: (optional) | F20: (optional) | G20: (optional) | H20: (optional) | I20: (optional) | J20: (optional) | K20: (optional) | L20: (optional) | M20: (optional) | N20: (optional) | O20: (optional) | P20: (optional) | Q20: (optional) | R20: (notwendig) | S20: (notwendig) | T20: (notwendig) | U20: (optional) | V20: (optional) | W20: (notwendig) | X20: =IF(ISNUMBER((1-VLOOKUP(S20,Start!$H$33:$I$40,2,FALSE)/100)*W20),(1-VLOOKUP(S20,Start!$H$33:$I$40,2,FALSE)/100)*W20,0) -> 0 | Y20: =IF(ISNUMBER(VLOOKUP(R20,Start!$C$9:$D$15,2,FALSE)+VLOOKUP(R20,Start!$C$23:$D$29,2,FALSE)),VLOOKUP(R20,Start!$C$9:$D$15,2,FALSE)+VLOOKUP(R20,Start!$C$23:$D$29,2,FALSE),0) -> 0 | Z20: =IF(ISNUMBER((Y20/T20)+Start!$D$19*(VLOOKUP(R20,Start!$M$33:$N$39,2,FALSE)/T20)+VLOOKUP(S20,Start!$C$33:$D$40,2,FALSE)),(Y20/T20)+Start!$D$19*(VLOOKUP(R20,Start!$M$33:$N$39,2,FALSE)/T20)+VLOOKUP(S20,Start!$C$33:$D$40,2,FALSE),0) -> 0
C21: Ja | D21: SEE900040609433 | E21: In Betrieb | F21: R.D.M. Arnsberg GmbH | G21: SSW-NT | H21: 59821 | I21: Arnsberg | J21: Hellefelder Straße 51 | K21: Nordrhein-Westfalen | L21: 1957-02-27 | M21: Steinkohle | N21: Steinkohlen | O21: Steinkohle | P21: Ja | Q21: Kondensationsmaschine mit Entnahme | R21: Steinkohle | S21: Steinkohle | T21: 0.2325 | U21: OPSD (2020) | V21: 7 | W21: 6.14 | X21: =(1-VLOOKUP(S21,Start!$H$33:$I$40,2,FALSE)/100)*W21 -> 4.912 | Y21: =VLOOKUP(R21,Start!$C$9:$D$15,2,FALSE)+VLOOKUP(R21,Start!$C$23:$D$29,2,FALSE) -> 17.84 | Z21: =(Y21/T21)+Start!$D$19*(VLOOKUP(R21,Start!$M$33:$N$39,2,FALSE)/T21)+VLOOKUP(S21,Start!$C$33:$D$40,2,FALSE) -> 200.6556989
C22: Ja | D22: SEE900100287427 | E22: In Betrieb | F22: Grace GmbH | G22: GT2 | H22: 67547 | I22: Worms | J22: In der Hollerhecke 1 | K22: Rheinland-Pfalz | L22: 1991-08-27 | M22: Erdgas | N22: Erdgas, Erdölgas | O22: Erdgas | P22: Ja | Q22: Gasturbinen mit Abhitzekessel | R22: Erdgas | S22: GuD | T22: 0.3751 | U22: OPSD (2020) | V22: 6.5 | W22: 6.41 | X22: =(1-VLOOKUP(S22,Start!$H$33:$I$40,2,FALSE)/100)*W22 -> 5.5767 | Y22: =VLOOKUP(R22,Start!$C$9:$D$15,2,FALSE)+VLOOKUP(R22,Start!$C$23:$D$29,2,FALSE) -> 45.66 | Z22: =(Y22/T22)+Start!$D$19*(VLOOKUP(R22,Start!$M$33:$N$39,2,FALSE)/T22)+VLOOKUP(S22,Start!$C$33:$D$40,2,FALSE) -> 168.5610504
C23: Ja | D23: SEE900128586359 | E23: In Betrieb | F23: N-ERGIE Kraftwerke GmbH | G23: HKW-Sandreuth (Müll) | H23: 90441 | I23: Nürnberg | J23: Sandreuthstraße 55 | K23: Bayern | L23: 1992-07-17 | M23: Wärme | N23: Dampf (zum Beispiel Prozesswärme) | O23: Abfall | P23: Ja | Q23: Kondensationsmaschine mit Entnahme | R23: Abfall | S23: Abfall | T23: 0.33 | U23: OPSD (2020) | V23: 26.28 | W23: 18.8 | X23: =(1-VLOOKUP(S23,Start!$H$33:$I$40,2,FALSE)/100)*W23 -> 15.98 | Y23: =VLOOKUP(R23,Start!$C$9:$D$15,2,FALSE)+VLOOKUP(R23,Start!$C$23:$D$29,2,FALSE) -> 0 | Z23: =(Y23/T23)+Start!$D$19*(VLOOKUP(R23,Start!$M$33:$N$39,2,FALSE)/T23)+VLOOKUP(S23,Start!$C$33:$D$40,2,FALSE) -> 1
C24: Ja | D24: SEE900240101683 | E24: In Betrieb | F24: Daimler Truck AG | G24: 129870 Modul 3 | H24: 76744 | I24: Wörth | J24: Daimlerstraße 1 | K24: Rheinland-Pfalz | L24: 2013-02-20 | M24: Erdgas | N24: Erdgas, Erdölgas | O24: Erdgas | P24: Ja | Q24: Verbrennungsmotor | R24: Erdgas | S24: GuD | T24: 0.3993 | U24: OPSD (2020) | V24: 4.49 | W24: 4.44 | X24: =(1-VLOOKUP(S24,Start!$H$33:$I$40,2,FALSE)/100)*W24 -> 3.8628 | Y24: =VLOOKUP(R24,Start!$C$9:$D$15,2,FALSE)+VLOOKUP(R24,Start!$C$23:$D$29,2,FALSE) -> 45.66 | Z24: =(Y24/T24)+Start!$D$19*(VLOOKUP(R24,Start!$M$33:$N$39,2,FALSE)/T24)+VLOOKUP(S24,Start!$C$33:$D$40,2,FALSE) -> 158.4361382
C25: Ja | D25: SEE900295294101 | E25: In Betrieb | F25: Stadtwerke Tübingen GmbH | G25: BHKW Obere Viehweide M4 (Waldhäuser Str 100) | H25: 72076 | I25: Tübingen | J25: Waldhäuser Straße 100 | K25: Baden-Württemberg | L25: 2013-11-07 | M25: Erdgas | N25: Erdgas, Erdölgas | O25: Erdgas | P25: Ja | Q25: Verbrennungsmotor | R25: Erdgas | S25: GuD | T25: 0.385 | U25: OPSD (2020) | V25: 3.352 | W25: 3.233 | X25: =(1-VLOOKUP(S25,Start!$H$33:$I$40,2,FALSE)/100)*W25 -> 2.81271 | Y25: =VLOOKUP(R25,Start!$C$9:$D$15,2,FALSE)+VLOOKUP(R25,Start!$C$23:$D$29,2,FALSE) -> 45.66 | Z25: =(Y25/T25)+Start!$D$19*(VLOOKUP(R25,Start!$M$33:$N$39,2,FALSE)/T25)+VLOOKUP(S25,Start!$C$33:$D$40,2,FALSE) -> 164.2651948
C26: Ja | D26: SEE900341307519 | E26: In Betrieb | F26: Venator Germany GmbH | G26: HKW Venator Germany | H26: 47198 | I26: Duisburg | J26: Dr.-Rudolf-Sachtleben-Str. 4 | K26: Nordrhein-Westfalen | L26: 1960-05-20 | M26: Erdgas | N26: Erdgas, Erdölgas | O26: Erdgas | P26: Ja | Q26: Gegendruckmaschine mit Entnahme | R26: Erdgas | S26: GuD | T26: 0.341 | U26: Annahme basierend auf DIW (2014) | V26: 9.9 | W26: 8.9 | X26: =(1-VLOOKUP(S26,Start!$H$33:$I$40,2,FALSE)/100)*W26 -> 7.743 | Y26: =VLOOKUP(R26,Start!$C$9:$D$15,2,FALSE)+VLOOKUP(R26,Start!$C$23:$D$29,2,FALSE) -> 45.66 | Z26: =(Y26/T26)+Start!$D$19*(VLOOKUP(R26,Start!$M$33:$N$39,2,FALSE)/T26)+VLOOKUP(S26,Start!$C$33:$D$40,2,FALSE) -> 185.2671554
C27: Ja | D27: SEE900348277440 | E27: In Betrieb | F27: Jäckering Mühlen- und Nährmittelwerke GmbH | G27: BHKW Hafen - Modul 4 | H27: 59067 | I27: Hamm | J27: Speicherstraße 15 | K27: Nordrhein-Westfalen | L27: 2013-04-01 | M27: Erdgas | N27: Erdgas, Erdölgas | O27: Erdgas | P27: Ja | Q27: Verbrennungsmotor | R27: Erdgas | S27: GuD | T27: 0.4 | U27: eigene Annahme | V27: 2.19 | W27: 2.173 | X27: =(1-VLOOKUP(S27,Start!$H$33:$I$40,2,FALSE)/100)*W27 -> 1.89051 | Y27: =VLOOKUP(R27,Start!$C$9:$D$15,2,FALSE)+VLOOKUP(R27,Start!$C$23:$D$29,2,FALSE) -> 45.66 | Z27: =(Y27/T27)+Start!$D$19*(VLOOKUP(R27,Start!$M$33:$N$39,2,FALSE)/T27)+VLOOKUP(S27,Start!$C$33:$D$40,2,FALSE) -> 158.1615
C28: Ja | D28: SEE900364034072 | E28: In Betrieb | F28: EnBW Energie Baden-Württemberg AG | G28: Heizkraftwerk Heilbronn FHT 1 | H28: 74076 | I28: Heilbronn | J28: Lichtenbergerstraße 23 | K28: Baden-Württemberg | L28: 2003-01-01 | M28: Erdgas | N28: Erdgas, Erdölgas | O28: Erdgas | P28: Ja | Q28: Gegendruckmaschine mit Entnahme | R28: Erdgas | S28: GuD | T28: 0.4 | U28: eigene Annahme | V28: 6.5 | W28: 6.5 | X28: =(1-VLOOKUP(S28,Start!$H$33:$I$40,2,FALSE)/100)*W28 -> 5.655 | Y28: =VLOOKUP(R28,Start!$C$9:$D$15,2,FALSE)+VLOOKUP(R28,Start!$C$23:$D$29,2,FALSE) -> 45.66 | Z28: =(Y28/T28)+Start!$D$19*(VLOOKUP(R28,Start!$M$33:$N$39,2,FALSE)/T28)+VLOOKUP(S28,Start!$C$33:$D$40,2,FALSE) -> 158.1615
C29: Ja | D29: SEE900403199748 | E29: In Betrieb | F29: Heizkraftwerk Halle-Trotha GmbH | G29: Heizkraftwerk Halle-Trotha - Dampfturbine | H29: 6118 | I29: Halle | J29: Brachwitzer Straße 23 | K29: Sachsen-Anhalt | L29: 1994-04-01 | M29: Erdgas | N29: Dampf (zum Beispiel Prozesswärme) | O29: Erdgas | P29: Ja | Q29: Gegendruckmaschine mit Entnahme | R29: Erdgas | S29: GuD | T29: 0.525 | U29: https://evh.de/gro%C3%9Fkunden/unternehmen/Heizkraftwerke/energiepark/trotha | V29: 12.471 | W29: 12.158467 | X29: =(1-VLOOKUP(S29,Start!$H$33:$I$40,2,FALSE)/100)*W29 -> 10.57786629 | Y29: =VLOOKUP(R29,Start!$C$9:$D$15,2,FALSE)+VLOOKUP(R29,Start!$C$23:$D$29,2,FALSE) -> 45.66 | Z29: =(Y29/T29)+Start!$D$19*(VLOOKUP(R29,Start!$M$33:$N$39,2,FALSE)/T29)+VLOOKUP(S29,Start!$C$33:$D$40,2,FALSE) -> 120.8611429
C30: Ja | D30: SEE900452778307 | E30: In Betrieb | F30: Salzgitter Flachstahl GmbH | G30: GGT HO B | H30: 38239 | I30: Salzgitter | J30: Eisenhüttenstraße 99 | K30: Niedersachsen | L30: 2012-04-15 | M30: Druck aus Gasleitungen | O30: Sonstige Energieträger (nicht erneuerbar) | P30: Nein | Q30: Sonstige | R30: Sonstige | S30: Sonstige | T30: 0.4 | U30: eigene Annahme | V30: 12 | W30: 8.2 | X30: =(1-VLOOKUP(S30,Start!$H$33:$I$40,2,FALSE)/100)*W30 -> 6.97 | Y30: =VLOOKUP(R30,Start!$C$9:$D$15,2,FALSE)+VLOOKUP(R30,Start!$C$23:$D$29,2,FALSE) -> 86.87 | Z30: =(Y30/T30)+Start!$D$19*(VLOOKUP(R30,Start!$M$33:$N$39,2,FALSE)/T30)+VLOOKUP(S30,Start!$C$33:$D$40,2,FALSE) -> 263.436
C31: Ja | D31: SEE900549498521 | E31: In Betrieb | F31: Stadtwerke Frankfurt (Oder) GmbH | G31: HKW FFO GM4 | H31: 15236 | I31: Frankfurt | J31: Am Hohen Feld 4 | K31: Brandenburg | L31: 2022-04-01 | M31: Erdgas | N31: Erdgas, Erdölgas | O31: Erdgas | P31: Ja | Q31: Verbrennungsmotor | R31: Erdgas | S31: GuD | T31: 0.48 | U31: https://www.man-es.com/energy-storage/products/gas-fuel-engines | V31: 10.6 | W31: 10.1 | X31: =(1-VLOOKUP(S31,Start!$H$33:$I$40,2,FALSE)/100)*W31 -> 8.787 | Y31: =VLOOKUP(R31,Start!$C$9:$D$15,2,FALSE)+VLOOKUP(R31,Start!$C$23:$D$29,2,FALSE) -> 45.66 | Z31: =(Y31/T31)+Start!$D$19*(VLOOKUP(R31,Start!$M$33:$N$39,2,FALSE)/T31)+VLOOKUP(S31,Start!$C$33:$D$40,2,FALSE) -> 132.05125
C32: Ja | D32: SEE900559860912 | E32: In Betrieb | F32: WUN Pellets GmbH | G32: WUN Pellets - BHKW - Modul II | H32: 95632 | I32: Wunsiedel | J32: Am Energiepark 1 | K32: Bayern | L32: 2018-10-01 | M32: Erdgas | N32: Erdgas, Erdölgas | O32: Erdgas | P32: Ja | Q32: Verbrennungsmotor | R32: Erdgas | S32: GuD | T32: 0.4 | U32: eigene Annahme | V32: 4.5 | W32: 4.41 | X32: =(1-VLOOKUP(S32,Start!$H$33:$I$40,2,FALSE)/100)*W32 -> 3.8367 | Y32: =VLOOKUP(R32,Start!$C$9:$D$15,2,FALSE)+VLOOKUP(R32,Start!$C$23:$D$29,2,FALSE) -> 45.66 | Z32: =(Y32/T32)+Start!$D$19*(VLOOKUP(R32,Start!$M$33:$N$39,2,FALSE)/T32)+VLOOKUP(S32,Start!$C$33:$D$40,2,FALSE) -> 158.1615
C33: Ja | D33: SEE900628853036 | E33: In Betrieb | F33: Trianel Gaskraftwerk Hamm | G33: Trianel Gaskraftwerk Hamm Block 20 | H33: 59071 | I33: Hamm | J33: Trianelstraße 1 | K33: Nordrhein-Westfalen | L33: 2007-12-23 | M33: Erdgas | N33: Erdgas, Erdölgas | O33: Erdgas | P33: Nein | Q33: Gasturbinen mit nachgeschalteter Dampfturbine | R33: Erdgas | S33: GuD | T33: 0.577 | U33: OPSD (2020) | V33: 453 | W33: 445 | X33: =(1-VLOOKUP(S33,Start!$H$33:$I$40,2,FALSE)/100)*W33 -> 387.15 | Y33: =VLOOKUP(R33,Start!$C$9:$D$15,2,FALSE)+VLOOKUP(R33,Start!$C$23:$D$29,2,FALSE) -> 45.66 | Z33: =(Y33/T33)+Start!$D$19*(VLOOKUP(R33,Start!$M$33:$N$39,2,FALSE)/T33)+VLOOKUP(S33,Start!$C$33:$D$40,2,FALSE) -> 110.1041594
C34: Ja | D34: SEE900664653232 | E34: In Betrieb | F34: AMK-Abfallentsorgungsgesellschaft des Märkischen Kreises mbH | G34: Turbine 1 | H34: 58636 | I34: Iserlohn | J34: Giesestraße 10 | K34: Nordrhein-Westfalen | L34: 1996-08-01 | M34: nicht biogener Abfall | N34: Abfall (Hausmüll, Siedl.abf.) | O34: Abfall | P34: Ja | Q34: Kondensationsmaschine mit Entnahme | R34: Abfall | S34: Abfall | T34: 0.33 | U34: OPSD (2020) | V34: 13 | W34: 10.7 | X34: =(1-VLOOKUP(S34,Start!$H$33:$I$40,2,FALSE)/100)*W34 -> 9.095 | Y34: =VLOOKUP(R34,Start!$C$9:$D$15,2,FALSE)+VLOOKUP(R34,Start!$C$23:$D$29,2,FALSE) -> 0 | Z34: =(Y34/T34)+Start!$D$19*(VLOOKUP(R34,Start!$M$33:$N$39,2,FALSE)/T34)+VLOOKUP(S34,Start!$C$33:$D$40,2,FALSE) -> 1
C35: Ja | D35: SEE900758207372 | E35: In Betrieb | F35: Opel Automobile GmbH / Werk Eisenach | G35: HKW Wiesengrund | H35: 99817 | I35: Eisenach | J35: Adam-Opel-Straße 101 | K35: Thüringen | L35: 1993-10-13 | M35: Erdgas | N35: Erdgas, Erdölgas | O35: Erdgas | P35: Ja | Q35: Gasturbinen mit nachgeschalteter Dampfturbine | R35: Erdgas | S35: GuD | T35: 0.3773 | U35: OPSD (2020) | V35: 9.5 | W35: 9.5 | X35: =(1-VLOOKUP(S35,Start!$H$33:$I$40,2,FALSE)/100)*W35 -> 8.265 | Y35: =VLOOKUP(R35,Start!$C$9:$D$15,2,FALSE)+VLOOKUP(R35,Start!$C$23:$D$29,2,FALSE) -> 45.66 | Z35: =(Y35/T35)+Start!$D$19*(VLOOKUP(R35,Start!$M$33:$N$39,2,FALSE)/T35)+VLOOKUP(S35,Start!$C$33:$D$40,2,FALSE) -> 167.5869335
C36: Ja | D36: SEE900838448145 | E36: In Betrieb | F36: Zweckverband Müllverwertung Schwandorf | G36: MKW SAD Turbine 3 | H36: 92421 | I36: Schwandorf | J36: Alustraße 7 | K36: Bayern | L36: 1982-08-31 | M36: nicht biogener Abfall | N36: Abfall (Hausmüll, Siedl.abf.) | O36: Abfall | P36: Ja | Q36: Kondensationsmaschine mit Entnahme | R36: Abfall | S36: Abfall | T36: 0.33 | U36: OPSD (2020) | V36: 10 | W36: 10 | X36: =(1-VLOOKUP(S36,Start!$H$33:$I$40,2,FALSE)/100)*W36 -> 8.5 | Y36: =VLOOKUP(R36,Start!$C$9:$D$15,2,FALSE)+VLOOKUP(R36,Start!$C$23:$D$29,2,FALSE) -> 0 | Z36: =(Y36/T36)+Start!$D$19*(VLOOKUP(R36,Start!$M$33:$N$39,2,FALSE)/T36)+VLOOKUP(S36,Start!$C$33:$D$40,2,FALSE) -> 1
C37: Ja | D37: SEE900957573537 | E37: In Betrieb | F37: InfraLeuna GmbH | G37: KT1 | H37: 6237 | I37: Leuna | K37: Sachsen-Anhalt | L37: 2010-04-30 | M37: Wärme | N37: Dampf (zum Beispiel Prozesswärme) | O37: Sonstige Energieträger (nicht erneuerbar) | P37: Nein | Q37: Kondensationsmaschine ohne Entnahme | R37: Sonstige | S37: Sonstige | T37: 0.396 | U37: Annahme basierend auf DIW (2014) | V37: 21.6 | W37: 20 | X37: =(1-VLOOKUP(S37,Start!$H$33:$I$40,2,FALSE)/100)*W37 -> 17 | Y37: =VLOOKUP(R37,Start!$C$9:$D$15,2,FALSE)+VLOOKUP(R37,Start!$C$23:$D$29,2,FALSE) -> 86.87 | Z37: =(Y37/T37)+Start!$D$19*(VLOOKUP(R37,Start!$M$33:$N$39,2,FALSE)/T37)+VLOOKUP(S37,Start!$C$33:$D$40,2,FALSE) -> 266.0868687
C38: Ja | D38: SEE901050642113 | E38: In Betrieb | F38: EVH GmbH | G38: Heizkraftwerk Dieselstraße Block C | H38: 6130 | I38: Halle | J38: Dieselstraße 141 | K38: Sachsen-Anhalt | L38: 2020-10-01 | M38: Erdgas | N38: Erdgas, Erdölgas | O38: Erdgas | P38: Ja | Q38: Gasturbinen mit Abhitzekessel | R38: Erdgas | S38: GuD | T38: 0.44 | U38: https://evh.de/privatkunden/unternehmen/energiepark/dieselstra%C3%9Fe | V38: 57.332 | W38: 57.322 | X38: =(1-VLOOKUP(S38,Start!$H$33:$I$40,2,FALSE)/100)*W38 -> 49.87014 | Y38: =VLOOKUP(R38,Start!$C$9:$D$15,2,FALSE)+VLOOKUP(R38,Start!$C$23:$D$29,2,FALSE) -> 45.66 | Z38: =(Y38/T38)+Start!$D$19*(VLOOKUP(R38,Start!$M$33:$N$39,2,FALSE)/T38)+VLOOKUP(S38,Start!$C$33:$D$40,2,FALSE) -> 143.9195455
C39: Ja | D39: SEE901120268069 | E39: befristete Strommarktrückkehr | F39: Evonik Operations GmbH | G39: Kraftwerk I, GT11 | H39: 45772 | I39: Marl | J39: Paul-Baumann-Straße 1 | K39: Nordrhein-Westfalen | L39: 1942-02-22 | M39: Steinkohle | N39: Steinkohlen | O39: Steinkohle | P39: Ja | Q39: Gegendruckmaschine ohne Entnahme | R39: Steinkohle | S39: Steinkohle | T39: 0.27 | U39: OPSD (2020) | V39: 18.4 | W39: 18.4 | X39: =(1-VLOOKUP(S39,Start!$H$33:$I$40,2,FALSE)/100)*W39 -> 14.72 | Y39: =VLOOKUP(R39,Start!$C$9:$D$15,2,FALSE)+VLOOKUP(R39,Start!$C$23:$D$29,2,FALSE) -> 17.84 | Z39: =(Y39/T39)+Start!$D$19*(VLOOKUP(R39,Start!$M$33:$N$39,2,FALSE)/T39)+VLOOKUP(S39,Start!$C$33:$D$40,2,FALSE) -> 172.9674074
C40: Ja | D40: SEE901196452256 | E40: In Betrieb | F40: essity Operations Mainz-Kostheim GmbH | G40: Turbine 4 | H40: 55246 | I40: Mainz-Kostheim | J40: Kommerzienrat-Disch-Brücke 1 | K40: Hessen | L40: 1983-06-30 | M40: Erdgas | N40: Erdgas, Erdölgas | O40: Erdgas | P40: Ja | Q40: Gegendruckmaschine mit Entnahme | R40: Erdgas | S40: GuD | T40: 0.4 | U40: eigene Annahme | V40: 7.18 | W40: 6.71 | X40: =(1-VLOOKUP(S40,Start!$H$33:$I$40,2,FALSE)/100)*W40 -> 5.8377 | Y40: =VLOOKUP(R40,Start!$C$9:$D$15,2,FALSE)+VLOOKUP(R40,Start!$C$23:$D$29,2,FALSE) -> 45.66 | Z40: =(Y40/T40)+Start!$D$19*(VLOOKUP(R40,Start!$M$33:$N$39,2,FALSE)/T40)+VLOOKUP(S40,Start!$C$33:$D$40,2,FALSE) -> 158.1615
C41: Ja | D41: SEE901205245022 | E41: In Betrieb | F41: eins energie in sachsen GmbH & Co. KG | G41: Motor-Heizkraftwerk Chemnitz-Süd, Motor 3 | H41: 9125 | I41: Chemnitz | J41: Südstraße 1 | K41: Sachsen | L41: 2022-12-21 | M41: Erdgas | N41: Erdgas, Erdölgas | O41: Erdgas | P41: Ja | Q41: Verbrennungsmotor | R41: Erdgas | S41: GuD | T41: 0.63 | U41: Annahme basierend auf DIW (2014) | V41: 12.9 | W41: 12.7314 | X41: =(1-VLOOKUP(S41,Start!$H$33:$I$40,2,FALSE)/100)*W41 -> 11.076318 | Y41: =VLOOKUP(R41,Start!$C$9:$D$15,2,FALSE)+VLOOKUP(R41,Start!$C$23:$D$29,2,FALSE) -> 45.66 | Z41: =(Y41/T41)+Start!$D$19*(VLOOKUP(R41,Start!$M$33:$N$39,2,FALSE)/T41)+VLOOKUP(S41,Start!$C$33:$D$40,2,FALSE) -> 100.967619
C42: Ja | D42: SEE901246020381 | E42: In Betrieb | F42: TEAG Thüringer Energie AG | G42: Gasmotor Bad Salzungen | H42: 36433 | I42: Bad Salzungen | J42: Langenfelder Straße 82 | K42: Thüringen | L42: 2018-12-04 | M42: Erdgas | N42: Erdgas, Erdölgas | O42: Erdgas | P42: Ja | Q42: Verbrennungsmotor | R42: Erdgas | S42: GuD | T42: 0.4048 | U42: OPSD (2020) | V42: 10.051 | W42: 10.003 | X42: =(1-VLOOKUP(S42,Start!$H$33:$I$40,2,FALSE)/100)*W42 -> 8.70261 | Y42: =VLOOKUP(R42,Start!$C$9:$D$15,2,FALSE)+VLOOKUP(R42,Start!$C$23:$D$29,2,FALSE) -> 45.66 | Z42: =(Y42/T42)+Start!$D$19*(VLOOKUP(R42,Start!$M$33:$N$39,2,FALSE)/T42)+VLOOKUP(S42,Start!$C$33:$D$40,2,FALSE) -> 156.3038538
C43: Ja | D43: SEE901410470721 | E43: In Betrieb | F43: DREWAG - Stadtwerke Dresden GmbH | G43: GT3 | H43: 1159 | I43: Dresden | J43: Oederaner Straße 21 | K43: Sachsen | L43: 1995-03-29 | M43: Erdgas | N43: Erdgas, Erdölgas | O43: Erdgas | P43: Ja | Q43: Gasturbinen mit nachgeschalteter Dampfturbine | R43: Erdgas | S43: GuD | T43: 0.5175 | U43: OPSD (2020) | V43: 65 | W43: 62 | X43: =(1-VLOOKUP(S43,Start!$H$33:$I$40,2,FALSE)/100)*W43 -> 53.94 | Y43: =VLOOKUP(R43,Start!$C$9:$D$15,2,FALSE)+VLOOKUP(R43,Start!$C$23:$D$29,2,FALSE) -> 45.66 | Z43: =(Y43/T43)+Start!$D$19*(VLOOKUP(R43,Start!$M$33:$N$39,2,FALSE)/T43)+VLOOKUP(S43,Start!$C$33:$D$40,2,FALSE) -> 122.5910145
C44: Ja | D44: SEE901453618340 | E44: In Betrieb | F44: Stadt Rosenheim | G44: MHKW Dampfturbine 2 | H44: 83022 | I44: Rosenheim | J44: Färberstraße 47 | K44: Bayern | L44: 1957-01-01 | M44: nicht biogener Abfall | N44: Industrieabfall | O44: Abfall | P44: Ja | Q44: Sonstige | R44: Abfall | S44: Abfall | T44: 0.58 | U44: https://docplayer.org/40235524-Das-gas-und-dampfturbinen-heizkraftwerk-niehl-ii.html | V44: 2.2 | W44: 2.1 | X44: =(1-VLOOKUP(S44,Start!$H$33:$I$40,2,FALSE)/100)*W44 -> 1.785 | Y44: =VLOOKUP(R44,Start!$C$9:$D$15,2,FALSE)+VLOOKUP(R44,Start!$C$23:$D$29,2,FALSE) -> 0 | Z44: =(Y44/T44)+Start!$D$19*(VLOOKUP(R44,Start!$M$33:$N$39,2,FALSE)/T44)+VLOOKUP(S44,Start!$C$33:$D$40,2,FALSE) -> 1
C45: Ja | D45: SEE901516014812 | E45: In Betrieb | F45: Smurfit Kappa Herzberg Solid Board GmbH | G45: Dampfturbine 1 | H45: 37412 | I45: Herzberg | J45: Andreasberger Straße 1 | K45: Niedersachsen | L45: 1955-01-01 | M45: Erdgas | N45: Erdgas, Erdölgas | O45: Erdgas | P45: Ja | Q45: Gegendruckmaschine ohne Entnahme | R45: Erdgas | S45: GuD | T45: 0.35 | U45: eigene Annahme | V45: 2.84 | W45: 2.64 | X45: =(1-VLOOKUP(S45,Start!$H$33:$I$40,2,FALSE)/100)*W45 -> 2.2968 | Y45: =VLOOKUP(R45,Start!$C$9:$D$15,2,FALSE)+VLOOKUP(R45,Start!$C$23:$D$29,2,FALSE) -> 45.66 | Z45: =(Y45/T45)+Start!$D$19*(VLOOKUP(R45,Start!$M$33:$N$39,2,FALSE)/T45)+VLOOKUP(S45,Start!$C$33:$D$40,2,FALSE) -> 180.5417143
C46: Ja | D46: SEE901786750397 | E46: befristete Strommarktrückkehr | F46: RWE Power AG | G46: Niederaußem E | H46: 50129 | I46: Bergheim | J46: Werkstr. | K46: Nordrhein-Westfalen | L46: 1970-04-12 | M46: Braunkohle | N46: Rohbraunkohlen | O46: Braunkohle | P46: Ja | Q46: Kondensationsmaschine mit Entnahme | R46: Braunkohle | S46: Braunkohle | T46: 0.328 | U46: OPSD (2020) | V46: 324 | W46: 295 | X46: =(1-VLOOKUP(S46,Start!$H$33:$I$40,2,FALSE)/100)*W46 -> 256.65 | Y46: =VLOOKUP(R46,Start!$C$9:$D$15,2,FALSE)+VLOOKUP(R46,Start!$C$23:$D$29,2,FALSE) -> 3.1 | Z46: =(Y46/T46)+Start!$D$19*(VLOOKUP(R46,Start!$M$33:$N$39,2,FALSE)/T46)+VLOOKUP(S46,Start!$C$33:$D$40,2,FALSE) -> 115.3536585
C47: Ja | D47: SEE901789931854 | E47: In Betrieb | F47: SWM Services GmbH | G47: SWM HKW Sued GuD1 GT2 | H47: 81371 | I47: München | J47: Schäftlarnstraße 15 | K47: Bayern | L47: 1980-10-01 | M47: Erdgas | N47: Erdgas, Erdölgas | O47: Erdgas | P47: Ja | Q47: Gasturbinen mit Abhitzekessel | R47: Erdgas | S47: GuD | T47: 0.45 | U47: OPSD (2020) | V47: 98.9 | W47: 97.9 | X47: =(1-VLOOKUP(S47,Start!$H$33:$I$40,2,FALSE)/100)*W47 -> 85.173 | Y47: =VLOOKUP(R47,Start!$C$9:$D$15,2,FALSE)+VLOOKUP(R47,Start!$C$23:$D$29,2,FALSE) -> 45.66 | Z47: =(Y47/T47)+Start!$D$19*(VLOOKUP(R47,Start!$M$33:$N$39,2,FALSE)/T47)+VLOOKUP(S47,Start!$C$33:$D$40,2,FALSE) -> 140.7546667
C48: Ja | D48: SEE901884895389 | E48: In Betrieb | F48: Universitätsklinkum Freiburg Standort Bad Krozingen | G48: Dampfturbine 1 | H48: 79106 | I48: Freiburg | J48: Hartmannstraße 1 | K48: Baden-Württemberg | L48: 2012-12-01 | M48: Erdgas | N48: Erdgas, Erdölgas | O48: Erdgas | P48: Ja | Q48: Gegendruckmaschine mit Entnahme | R48: Erdgas | S48: GuD | T48: 0.3861 | U48: OPSD (2020) | V48: 12.988 | W48: 12.8 | X48: =(1-VLOOKUP(S48,Start!$H$33:$I$40,2,FALSE)/100)*W48 -> 11.136 | Y48: =VLOOKUP(R48,Start!$C$9:$D$15,2,FALSE)+VLOOKUP(R48,Start!$C$23:$D$29,2,FALSE) -> 45.66 | Z48: =(Y48/T48)+Start!$D$19*(VLOOKUP(R48,Start!$M$33:$N$39,2,FALSE)/T48)+VLOOKUP(S48,Start!$C$33:$D$40,2,FALSE) -> 163.8014763
C49: Ja | D49: SEE901925227438 | E49: In Betrieb | F49: Mohn Media Mohndruck GmbH | G49: DT | H49: 33332 | I49: Gütersloh | J49: Carl-Bertelsmann-Straße 161 | K49: Nordrhein-Westfalen | L49: 1994-03-28 | M49: Wärme | O49: Erdgas | P49: Ja | Q49: Gegendruckmaschine ohne Entnahme | R49: Erdgas | S49: GuD | T49: 0.3784 | U49: OPSD (2020) | V49: 6.46 | W49: 6.358 | X49: =(1-VLOOKUP(S49,Start!$H$33:$I$40,2,FALSE)/100)*W49 -> 5.53146 | Y49: =VLOOKUP(R49,Start!$C$9:$D$15,2,FALSE)+VLOOKUP(R49,Start!$C$23:$D$29,2,FALSE) -> 45.66 | Z49: =(Y49/T49)+Start!$D$19*(VLOOKUP(R49,Start!$M$33:$N$39,2,FALSE)/T49)+VLOOKUP(S49,Start!$C$33:$D$40,2,FALSE) -> 167.1041226
C50: Ja | D50: SEE901935169124 | E50: In Betrieb | F50: Salzgitter Flachstahl GmbH | G50: SSD2 | H50: 38239 | I50: Salzgitter | J50: Eisenhüttenstraße 99 | K50: Niedersachsen | L50: 2013-11-12 | M50: Mineralölprodukte | N50: Heizöl, leicht | O50: Mineralölprodukte | P50: Nein | Q50: Verbrennungsmotor | R50: Öl | S50: Öl | T50: 0.4 | U50: eigene Annahme | V50: 2.48 | W50: 2.478 | X50: =(1-VLOOKUP(S50,Start!$H$33:$I$40,2,FALSE)/100)*W50 -> 2.1063 | Y50: =VLOOKUP(R50,Start!$C$9:$D$15,2,FALSE)+VLOOKUP(R50,Start!$C$23:$D$29,2,FALSE) -> 87.17 | Z50: =(Y50/T50)+Start!$D$19*(VLOOKUP(R50,Start!$M$33:$N$39,2,FALSE)/T50)+VLOOKUP(S50,Start!$C$33:$D$40,2,FALSE) -> 278.145
C51: Ja | D51: SEE902096864651 | E51: In Betrieb | F51: Mineraloelraffinerie Oberrhein | G51: Maschine 1 | H51: 76187 | I51: Karlsruhe | J51: Nördliche Raffineriestraße 1 | K51: Baden-Württemberg | L51: 1995-06-17 | M51: Mineralölprodukte | N51: Raffineriegas | O51: Mineralölprodukte | P51: Ja | Q51: Kondensationsmaschine mit Entnahme | R51: Öl | S51: Öl | T51: 0.3795 | U51: OPSD (2020) | V51: 12.5 | W51: 11.3 | X51: =(1-VLOOKUP(S51,Start!$H$33:$I$40,2,FALSE)/100)*W51 -> 9.605 | Y51: =VLOOKUP(R51,Start!$C$9:$D$15,2,FALSE)+VLOOKUP(R51,Start!$C$23:$D$29,2,FALSE) -> 87.17 | Z51: =(Y51/T51)+Start!$D$19*(VLOOKUP(R51,Start!$M$33:$N$39,2,FALSE)/T51)+VLOOKUP(S51,Start!$C$33:$D$40,2,FALSE) -> 293.115942
C52: Ja | D52: SEE902114639810 | E52: In Betrieb | F52: envia THERM GmbH | G52: Bitterfeld BHKW | H52: 6749 | I52: Bitterfeld-Wolfen | J52: Parsevalstraße 3 B | K52: Sachsen-Anhalt | L52: 2016-04-11 | M52: Erdgas | N52: Erdgas, Erdölgas | O52: Erdgas | P52: Ja | Q52: Verbrennungsmotor | R52: Erdgas | S52: GuD | T52: 0.4 | U52: eigene Annahme | V52: 2.478 | W52: 2 | X52: =(1-VLOOKUP(S52,Start!$H$33:$I$40,2,FALSE)/100)*W52 -> 1.74 | Y52: =VLOOKUP(R52,Start!$C$9:$D$15,2,FALSE)+VLOOKUP(R52,Start!$C$23:$D$29,2,FALSE) -> 45.66 | Z52: =(Y52/T52)+Start!$D$19*(VLOOKUP(R52,Start!$M$33:$N$39,2,FALSE)/T52)+VLOOKUP(S52,Start!$C$33:$D$40,2,FALSE) -> 158.1615
C53: Ja | D53: SEE902267138956 | E53: In Betrieb | F53: Uniper Kraftwerke GmbH | G53: Kirchmöser GT 2 | H53: 14774 | I53: Brandenburg | J53: Bahntechnikerring 17 | K53: Brandenburg | L53: 1994-01-01 | M53: Erdgas | N53: Erdgas, Erdölgas | O53: Erdgas | P53: Nein | Q53: Gasturbinen mit nachgeschalteter Dampfturbine | R53: Erdgas | S53: GuD | T53: 0.513 | U53: OPSD (2020) | V53: 63 | W53: 60 | X53: =(1-VLOOKUP(S53,Start!$H$33:$I$40,2,FALSE)/100)*W53 -> 52.2 | Y53: =VLOOKUP(R53,Start!$C$9:$D$15,2,FALSE)+VLOOKUP(R53,Start!$C$23:$D$29,2,FALSE) -> 45.66 | Z53: =(Y53/T53)+Start!$D$19*(VLOOKUP(R53,Start!$M$33:$N$39,2,FALSE)/T53)+VLOOKUP(S53,Start!$C$33:$D$40,2,FALSE) -> 123.6532164
C54: Ja | D54: SEE902329484380 | E54: In Betrieb | F54: Südzucker AG | G54: Dampfturbine I Südzucker Wabern | H54: 34590 | I54: Wabern | J54: Homberger Straße 1 | K54: Hessen | L54: 1976-10-08 | M54: Wärme | N54: Dampf (zum Beispiel Prozesswärme) | O54: Wärme | P54: Ja | Q54: Gegendruckmaschine ohne Entnahme | R54: Sonstige | S54: Sonstige | T54: 0.35 | U54: eigene Annahme | V54: 12.54 | W54: 11.8754 | X54: =(1-VLOOKUP(S54,Start!$H$33:$I$40,2,FALSE)/100)*W54 -> 10.09409 | Y54: =VLOOKUP(R54,Start!$C$9:$D$15,2,FALSE)+VLOOKUP(R54,Start!$C$23:$D$29,2,FALSE) -> 86.87 | Z54: =(Y54/T54)+Start!$D$19*(VLOOKUP(R54,Start!$M$33:$N$39,2,FALSE)/T54)+VLOOKUP(S54,Start!$C$33:$D$40,2,FALSE) -> 300.9268571
C55: Ja | D55: SEE902418917676 | E55: In Betrieb | F55: Henkel AG & Co. KGaA | G55: Z39NEA | H55: 40589 | I55: Düsseldorf | J55: Henkelstraße 67 | K55: Nordrhein-Westfalen | L55: 2004-01-01 | M55: Mineralölprodukte | N55: Heizöl, leicht | O55: Mineralölprodukte | P55: Nein | Q55: Verbrennungsmotor | R55: Öl | S55: Öl | T55: 0.442 | U55: Annahme basierend auf DIW (2014) | V55: 1.4 | W55: 1.4 | X55: =(1-VLOOKUP(S55,Start!$H$33:$I$40,2,FALSE)/100)*W55 -> 1.19 | Y55: =VLOOKUP(R55,Start!$C$9:$D$15,2,FALSE)+VLOOKUP(R55,Start!$C$23:$D$29,2,FALSE) -> 87.17 | Z55: =(Y55/T55)+Start!$D$19*(VLOOKUP(R55,Start!$M$33:$N$39,2,FALSE)/T55)+VLOOKUP(S55,Start!$C$33:$D$40,2,FALSE) -> 251.8099548
C56: Ja | D56: SEE902686859227 | E56: In Betrieb | F56: Nordzucker AG Werk Uelzen | G56: Generator 2 | H56: 29525 | I56: Uelzen | J56: An der Zuckerfabrik 1 | K56: Niedersachsen | L56: 1965-09-01 | M56: Steinkohle | N56: Steinkohlen | O56: Steinkohle | P56: Ja | Q56: Gegendruckmaschine mit Entnahme | R56: Steinkohle | S56: Steinkohle | T56: 0.3375 | U56: OPSD (2020) | V56: 17.1 | W56: 14.9 | X56: =(1-VLOOKUP(S56,Start!$H$33:$I$40,2,FALSE)/100)*W56 -> 11.92 | Y56: =VLOOKUP(R56,Start!$C$9:$D$15,2,FALSE)+VLOOKUP(R56,Start!$C$23:$D$29,2,FALSE) -> 17.84 | Z56: =(Y56/T56)+Start!$D$19*(VLOOKUP(R56,Start!$M$33:$N$39,2,FALSE)/T56)+VLOOKUP(S56,Start!$C$33:$D$40,2,FALSE) -> 138.6339259
C57: Ja | D57: SEE902725989434 | E57: In Betrieb | F57: BMW AG | G57: Regensburg KWK 4 | H57: 93055 | I57: Regensburg | J57: Herbert-Quandt-Allee 1 | K57: Bayern | L57: 2012-10-29 | M57: Erdgas | N57: Erdgas, Erdölgas | O57: Erdgas | P57: Ja | Q57: Verbrennungsmotor | R57: Erdgas | S57: GuD | T57: 0.3982 | U57: OPSD (2020) | V57: 2.678 | W57: 2.624 | X57: =(1-VLOOKUP(S57,Start!$H$33:$I$40,2,FALSE)/100)*W57 -> 2.28288 | Y57: =VLOOKUP(R57,Start!$C$9:$D$15,2,FALSE)+VLOOKUP(R57,Start!$C$23:$D$29,2,FALSE) -> 45.66 | Z57: =(Y57/T57)+Start!$D$19*(VLOOKUP(R57,Start!$M$33:$N$39,2,FALSE)/T57)+VLOOKUP(S57,Start!$C$33:$D$40,2,FALSE) -> 158.8696635
C58: Ja | D58: SEE902796244388 | E58: In Betrieb | F58: Sappi Alfeld | G58: Turbine 4 | H58: 31061 | I58: Alfeld | J58: Mühlenmasch 1 | K58: Niedersachsen | L58: 1970-09-21 | M58: Erdgas | N58: Erdgas, Erdölgas | O58: Erdgas | P58: Ja | Q58: Gegendruckmaschine mit Entnahme | R58: Erdgas | S58: GuD | T58: 0.3267 | U58: OPSD (2020) | V58: 14 | W58: 11 | X58: =(1-VLOOKUP(S58,Start!$H$33:$I$40,2,FALSE)/100)*W58 -> 9.57 | Y58: =VLOOKUP(R58,Start!$C$9:$D$15,2,FALSE)+VLOOKUP(R58,Start!$C$23:$D$29,2,FALSE) -> 45.66 | Z58: =(Y58/T58)+Start!$D$19*(VLOOKUP(R58,Start!$M$33:$N$39,2,FALSE)/T58)+VLOOKUP(S58,Start!$C$33:$D$40,2,FALSE) -> 193.3108356
C59: Ja | D59: SEE902845037787 | E59: In Betrieb | F59: BMW AG | G59: Werk 1.1 KWK 3 | H59: 80809 | I59: München | J59: Lerchenauer Straße 76 | K59: Bayern | L59: 2019-02-20 | M59: Erdgas | N59: Erdgas, Erdölgas | O59: Erdgas | P59: Ja | Q59: Verbrennungsmotor | R59: Erdgas | S59: GuD | T59: 0.4059 | U59: OPSD (2020) | V59: 4.5 | W59: 4.5 | X59: =(1-VLOOKUP(S59,Start!$H$33:$I$40,2,FALSE)/100)*W59 -> 3.915 | Y59: =VLOOKUP(R59,Start!$C$9:$D$15,2,FALSE)+VLOOKUP(R59,Start!$C$23:$D$29,2,FALSE) -> 45.66 | Z59: =(Y59/T59)+Start!$D$19*(VLOOKUP(R59,Start!$M$33:$N$39,2,FALSE)/T59)+VLOOKUP(S59,Start!$C$33:$D$40,2,FALSE) -> 155.8843311
C60: Ja | D60: SEE903050601572 | E60: In Betrieb | F60: Wacker Chemie AG | G60: Turbine/Generator 9 | H60: 84489 | I60: Burghausen | J60: Johannes-Hess-Straße 24 | K60: Bayern | L60: 1987-01-01 | M60: Erdgas | N60: Erdgas, Erdölgas | O60: Erdgas | P60: Ja | Q60: Gegendruckmaschine mit Entnahme | R60: Erdgas | S60: GuD | T60: 0.3619 | U60: OPSD (2020) | V60: 13.6 | W60: 13.5 | X60: =(1-VLOOKUP(S60,Start!$H$33:$I$40,2,FALSE)/100)*W60 -> 11.745 | Y60: =VLOOKUP(R60,Start!$C$9:$D$15,2,FALSE)+VLOOKUP(R60,Start!$C$23:$D$29,2,FALSE) -> 45.66 | Z60: =(Y60/T60)+Start!$D$19*(VLOOKUP(R60,Start!$M$33:$N$39,2,FALSE)/T60)+VLOOKUP(S60,Start!$C$33:$D$40,2,FALSE) -> 174.6544626
C61: Ja | D61: SEE903153060207 | E61: In Betrieb | F61: Cerdia Produktions GmbH | G61: Dampfturbine9 | H61: 79108 | I61: Freiburg | J61: Engesserstraße 8 | K61: Baden-Württemberg | L61: 2020-04-18 | M61: Erdgas | N61: Erdgas, Erdölgas | O61: Erdgas | P61: Ja | Q61: Gegendruckmaschine mit Entnahme | R61: Erdgas | S61: GuD | T61: 0.531 | U61: OPSD (2020) | V61: 19.017 | W61: 18.339 | X61: =(1-VLOOKUP(S61,Start!$H$33:$I$40,2,FALSE)/100)*W61 -> 15.95493 | Y61: =VLOOKUP(R61,Start!$C$9:$D$15,2,FALSE)+VLOOKUP(R61,Start!$C$23:$D$29,2,FALSE) -> 45.66 | Z61: =(Y61/T61)+Start!$D$19*(VLOOKUP(R61,Start!$M$33:$N$39,2,FALSE)/T61)+VLOOKUP(S61,Start!$C$33:$D$40,2,FALSE) -> 119.5124294
C62: Ja | D62: SEE903406002589 | E62: In Betrieb | F62: GLOBALFOUNDRIES Dresden Module Two LLC & Co. KG | G62: Gasmotoren-Blockheizkraftwerk I (Generator 5) | H62: 1468 | I62: Moritzburg | J62: Ringstraße 3 | K62: Sachsen | L62: 1998-09-01 | M62: Erdgas | N62: Erdgas, Erdölgas | O62: Erdgas | P62: Ja | Q62: Verbrennungsmotor | R62: Erdgas | S62: GuD | T62: 0.3828 | U62: OPSD (2020) | V62: 3.884 | W62: 3.879 | X62: =(1-VLOOKUP(S62,Start!$H$33:$I$40,2,FALSE)/100)*W62 -> 3.37473 | Y62: =VLOOKUP(R62,Start!$C$9:$D$15,2,FALSE)+VLOOKUP(R62,Start!$C$23:$D$29,2,FALSE) -> 45.66 | Z62: =(Y62/T62)+Start!$D$19*(VLOOKUP(R62,Start!$M$33:$N$39,2,FALSE)/T62)+VLOOKUP(S62,Start!$C$33:$D$40,2,FALSE) -> 165.200627
C63: Ja | D63: SEE903508467828 | E63: In Betrieb | F63: FairEnergie GmbH | G63: BHKW Hauffstraße | H63: 72762 | I63: Reutlingen | J63: Hauffstraße 89 | K63: Baden-Württemberg | L63: 2011-02-21 | M63: Erdgas | N63: Erdgas, Erdölgas | O63: Erdgas | P63: Ja | Q63: Verbrennungsmotor | R63: Erdgas | S63: GuD | T63: 0.4574 | U63: OPSD (2020) | V63: 2.016 | W63: 1.968 | X63: =(1-VLOOKUP(S63,Start!$H$33:$I$40,2,FALSE)/100)*W63 -> 1.71216 | Y63: =VLOOKUP(R63,Start!$C$9:$D$15,2,FALSE)+VLOOKUP(R63,Start!$C$23:$D$29,2,FALSE) -> 45.66 | Z63: =(Y63/T63)+Start!$D$19*(VLOOKUP(R63,Start!$M$33:$N$39,2,FALSE)/T63)+VLOOKUP(S63,Start!$C$33:$D$40,2,FALSE) -> 138.501749
C64: Ja | D64: SEE903604447151 | E64: In Betrieb | F64: SWP Stadtwerke Pforzheim | G64: E-BHKW | H64: 75175 | I64: Pforzheim | J64: Hohwiesenweg 15 | K64: Baden-Württemberg | L64: 2017-06-23 | M64: Erdgas | N64: Erdgas, Erdölgas | O64: Erdgas | P64: Ja | Q64: Verbrennungsmotor | R64: Erdgas | S64: GuD | T64: 0.63 | U64: Annahme basierend auf DIW (2014) | V64: 1.999 | W64: 1.899 | X64: =(1-VLOOKUP(S64,Start!$H$33:$I$40,2,FALSE)/100)*W64 -> 1.65213 | Y64: =VLOOKUP(R64,Start!$C$9:$D$15,2,FALSE)+VLOOKUP(R64,Start!$C$23:$D$29,2,FALSE) -> 45.66 | Z64: =(Y64/T64)+Start!$D$19*(VLOOKUP(R64,Start!$M$33:$N$39,2,FALSE)/T64)+VLOOKUP(S64,Start!$C$33:$D$40,2,FALSE) -> 100.967619
C65: Ja | D65: SEE903702464654 | E65: In Betrieb | F65: Papier- u. Kartonfabrik Varel GmbH & Co. KG | G65: PKV Dampfsammelschienen-KWK-Anlage Generator / Turbine GT 5 | H65: 26316 | I65: Varel | J65: Dangaster Straße 38 | K65: Niedersachsen | L65: 1989-01-01 | M65: Erdgas | N65: Erdgas, Erdölgas | O65: Erdgas | P65: Ja | Q65: Gasturbinen mit nachgeschalteter Dampfturbine | R65: Erdgas | S65: GuD | T65: 0.3729 | U65: OPSD (2020) | V65: 5.4 | W65: 5.238 | X65: =(1-VLOOKUP(S65,Start!$H$33:$I$40,2,FALSE)/100)*W65 -> 4.55706 | Y65: =VLOOKUP(R65,Start!$C$9:$D$15,2,FALSE)+VLOOKUP(R65,Start!$C$23:$D$29,2,FALSE) -> 45.66 | Z65: =(Y65/T65)+Start!$D$19*(VLOOKUP(R65,Start!$M$33:$N$39,2,FALSE)/T65)+VLOOKUP(S65,Start!$C$33:$D$40,2,FALSE) -> 169.5466613
C66: Ja | D66: SEE903779951637 | E66: In Betrieb | F66: eins energie in sachsen GmbH & Co. KG | G66: Motor-Heizkraftwerk Chemnitz-Süd, Motor 5 | H66: 9125 | I66: Chemnitz | J66: Südstraße 1 | K66: Sachsen | L66: 2022-12-21 | M66: Erdgas | N66: Erdgas, Erdölgas | O66: Erdgas | P66: Ja | Q66: Verbrennungsmotor | R66: Erdgas | S66: GuD | T66: 0.63 | U66: Annahme basierend auf DIW (2014) | V66: 12.9 | W66: 12.7314 | X66: =(1-VLOOKUP(S66,Start!$H$33:$I$40,2,FALSE)/100)*W66 -> 11.076318 | Y66: =VLOOKUP(R66,Start!$C$9:$D$15,2,FALSE)+VLOOKUP(R66,Start!$C$23:$D$29,2,FALSE) -> 45.66 | Z66: =(Y66/T66)+Start!$D$19*(VLOOKUP(R66,Start!$M$33:$N$39,2,FALSE)/T66)+VLOOKUP(S66,Start!$C$33:$D$40,2,FALSE) -> 100.967619
C67: Ja | D67: SEE903983424590 | E67: In Betrieb | F67: Statkraft Markets GmbH | G67: Kraftwerk Knapsack II | H67: 50354 | I67: Hürth | J67: Industriestraße 300 | K67: Nordrhein-Westfalen | L67: 2013-06-01 | M67: Erdgas | N67: Erdgas, Erdölgas | O67: Erdgas | P67: Nein | Q67: Gasturbinen mit Abhitzekessel | R67: Erdgas | S67: GuD | T67: 0.592 | U67: OPSD (2020) | V67: 450 | W67: 430 | X67: =(1-VLOOKUP(S67,Start!$H$33:$I$40,2,FALSE)/100)*W67 -> 374.1 | Y67: =VLOOKUP(R67,Start!$C$9:$D$15,2,FALSE)+VLOOKUP(R67,Start!$C$23:$D$29,2,FALSE) -> 45.66 | Z67: =(Y67/T67)+Start!$D$19*(VLOOKUP(R67,Start!$M$33:$N$39,2,FALSE)/T67)+VLOOKUP(S67,Start!$C$33:$D$40,2,FALSE) -> 107.3523649
C68: Ja | D68: SEE904017020009 | E68: In Betrieb | F68: ROGESA Roheisengesellschaft Saar mbH | G68: ET HO5 | H68: 66763 | I68: Dillingen | J68: Werkstraße 1 | K68: Saarland | L68: 1984-01-01 | M68: Druck aus Gasleitungen | O68: Sonstige Energieträger (nicht erneuerbar) | P68: Nein | Q68: Sonstige | R68: Sonstige | S68: Sonstige | T68: 0.35 | U68: eigene Annahme | V68: 9.52 | W68: 9.52 | X68: =(1-VLOOKUP(S68,Start!$H$33:$I$40,2,FALSE)/100)*W68 -> 8.092 | Y68: =VLOOKUP(R68,Start!$C$9:$D$15,2,FALSE)+VLOOKUP(R68,Start!$C$23:$D$29,2,FALSE) -> 86.87 | Z68: =(Y68/T68)+Start!$D$19*(VLOOKUP(R68,Start!$M$33:$N$39,2,FALSE)/T68)+VLOOKUP(S68,Start!$C$33:$D$40,2,FALSE) -> 300.9268571
C69: Ja | D69: SEE904076796426 | E69: In Betrieb | F69: Stadtwerke Kiel AG | G69: Küstenkraftwerk K.I.E.L Motor 4 | H69: 24149 | I69: Kiel | J69: Hasselfelde 30 | K69: Schleswig-Holstein | L69: 2018-11-23 | M69: Erdgas | N69: Erdgas, Erdölgas | O69: Erdgas | P69: Ja | Q69: Verbrennungsmotor | R69: Erdgas | S69: GuD | T69: 0.4059 | U69: OPSD (2020) | V69: 9.571 | W69: 9.456 | X69: =(1-VLOOKUP(S69,Start!$H$33:$I$40,2,FALSE)/100)*W69 -> 8.22672 | Y69: =VLOOKUP(R69,Start!$C$9:$D$15,2,FALSE)+VLOOKUP(R69,Start!$C$23:$D$29,2,FALSE) -> 45.66 | Z69: =(Y69/T69)+Start!$D$19*(VLOOKUP(R69,Start!$M$33:$N$39,2,FALSE)/T69)+VLOOKUP(S69,Start!$C$33:$D$40,2,FALSE) -> 155.8843311
C70: Ja | D70: SEE904161631090 | E70: In Betrieb | F70: EnBW Energie Baden-Württemberg AG | G70: Heizkraftwerk Altbach/Deizisau GT C | H70: 73776 | I70: Altbach | J70: Industriestraße 11 | K70: Baden-Württemberg | L70: 1975-09-01 | M70: Erdgas | N70: Erdgas, Erdölgas | O70: Erdgas | P70: Nein | Q70: Gasturbinen ohne Abhitzekessel | R70: Erdgas | S70: Gasturbine | T70: 0.315 | U70: OPSD (2020) | V70: 87 | W70: 81 | X70: =(1-VLOOKUP(S70,Start!$H$33:$I$40,2,FALSE)/100)*W70 -> 70.47 | Y70: =VLOOKUP(R70,Start!$C$9:$D$15,2,FALSE)+VLOOKUP(R70,Start!$C$23:$D$29,2,FALSE) -> 45.66 | Z70: =(Y70/T70)+Start!$D$19*(VLOOKUP(R70,Start!$M$33:$N$39,2,FALSE)/T70)+VLOOKUP(S70,Start!$C$33:$D$40,2,FALSE) -> 199.9352381
C71: Ja | D71: SEE904165703137 | E71: In Betrieb | F71: BASF Schwarzheide GmbH | G71: GT1 | H71: 1987 | I71: Schwarzheide | J71: Schipkauer Straße 1 | K71: Brandenburg | L71: 1994-11-28 | M71: Erdgas | N71: Erdgas, Erdölgas | O71: Erdgas | P71: Ja | Q71: Gasturbinen mit nachgeschalteter Dampfturbine | R71: Erdgas | S71: GuD | T71: 0.513 | U71: OPSD (2020) | V71: 52 | W71: 51.431 | X71: =(1-VLOOKUP(S71,Start!$H$33:$I$40,2,FALSE)/100)*W71 -> 44.74497 | Y71: =VLOOKUP(R71,Start!$C$9:$D$15,2,FALSE)+VLOOKUP(R71,Start!$C$23:$D$29,2,FALSE) -> 45.66 | Z71: =(Y71/T71)+Start!$D$19*(VLOOKUP(R71,Start!$M$33:$N$39,2,FALSE)/T71)+VLOOKUP(S71,Start!$C$33:$D$40,2,FALSE) -> 123.6532164
C72: Ja | D72: SEE904194792843 | E72: befristete Strommarktrückkehr | F72: Kraftwerk Mehrum GmbH | G72: KWM Block 3 | H72: 31249 | I72: Hohenhameln | J72: Triftstraße 25 | K72: Niedersachsen | L72: 1979-08-24 | M72: Steinkohle | N72: Steinkohlen | O72: Steinkohle | P72: Nein | Q72: Sonstige | R72: Steinkohle | S72: Steinkohle | T72: 0.4325 | U72: OPSD (2020) | V72: 750 | W72: 690 | X72: =(1-VLOOKUP(S72,Start!$H$33:$I$40,2,FALSE)/100)*W72 -> 552 | Y72: =VLOOKUP(R72,Start!$C$9:$D$15,2,FALSE)+VLOOKUP(R72,Start!$C$23:$D$29,2,FALSE) -> 17.84 | Z72: =(Y72/T72)+Start!$D$19*(VLOOKUP(R72,Start!$M$33:$N$39,2,FALSE)/T72)+VLOOKUP(S72,Start!$C$33:$D$40,2,FALSE) -> 108.4680925
C73: Ja | D73: SEE904364883227 | E73: In Betrieb | F73: Röhm GmbH | G73: KonTu | H73: 67547 | I73: Worms | J73: Im Pfaffenwinkel 6 | K73: Rheinland-Pfalz | L73: 2012-03-12 | M73: Erdgas | N73: Erdgas, Erdölgas | O73: Erdgas | P73: Nein | Q73: Kondensationsmaschine ohne Entnahme | R73: Erdgas | S73: GuD | T73: 0.33 | U73: eigene Annahme | V73: 7.1 | W73: 6.9 | X73: =(1-VLOOKUP(S73,Start!$H$33:$I$40,2,FALSE)/100)*W73 -> 6.003 | Y73: =VLOOKUP(R73,Start!$C$9:$D$15,2,FALSE)+VLOOKUP(R73,Start!$C$23:$D$29,2,FALSE) -> 45.66 | Z73: =(Y73/T73)+Start!$D$19*(VLOOKUP(R73,Start!$M$33:$N$39,2,FALSE)/T73)+VLOOKUP(S73,Start!$C$33:$D$40,2,FALSE) -> 191.3927273
C74: Ja | D74: SEE904455926604 | E74: In Betrieb | F74: Maxauer Papierfarbik GmbH | G74: Turbine 4 | H74: 76187 | I74: Karlsruhe | J74: Mitscherlichstraße | K74: Baden-Württemberg | L74: 2010-10-27 | M74: Wärme | N74: Dampf (zum Beispiel Prozesswärme) | O74: Wärme | P74: Ja | Q74: Gegendruckmaschine mit Entnahme | R74: Sonstige | S74: Sonstige | T74: 0.38 | U74: OPSD (2020) | V74: 42.5 | W74: 40 | X74: =(1-VLOOKUP(S74,Start!$H$33:$I$40,2,FALSE)/100)*W74 -> 34 | Y74: =VLOOKUP(R74,Start!$C$9:$D$15,2,FALSE)+VLOOKUP(R74,Start!$C$23:$D$29,2,FALSE) -> 86.87 | Z74: =(Y74/T74)+Start!$D$19*(VLOOKUP(R74,Start!$M$33:$N$39,2,FALSE)/T74)+VLOOKUP(S74,Start!$C$33:$D$40,2,FALSE) -> 277.2484211
C75: Ja | D75: SEE904604163027 | E75: In Betrieb | F75: RWE Generation SE | G75: Karnap B | H75: 45329 | I75: Essen | J75: Arenbergstr. 45 | K75: Nordrhein-Westfalen | L75: 1987-02-14 | M75: nicht biogener Abfall | N75: Abfall (Hausmüll, Siedl.abf.) | O75: Abfall | P75: Nein | Q75: Kondensationsmaschine mit Entnahme | R75: Abfall | S75: Abfall | T75: 0.33 | U75: OPSD (2020) | V75: 48 | W75: 38 | X75: =(1-VLOOKUP(S75,Start!$H$33:$I$40,2,FALSE)/100)*W75 -> 32.3 | Y75: =VLOOKUP(R75,Start!$C$9:$D$15,2,FALSE)+VLOOKUP(R75,Start!$C$23:$D$29,2,FALSE) -> 0 | Z75: =(Y75/T75)+Start!$D$19*(VLOOKUP(R75,Start!$M$33:$N$39,2,FALSE)/T75)+VLOOKUP(S75,Start!$C$33:$D$40,2,FALSE) -> 1
C76: Ja | D76: SEE904662075126 | E76: In Betrieb | F76: Sachsenmilch Leppersdorf GmbH | G76: 7712MKA10-GT2 | H76: 1454 | I76: Wachau | J76: An den Breiten | K76: Sachsen | L76: 2014-05-14 | M76: Erdgas | N76: Erdgas, Erdölgas | O76: Erdgas | P76: Ja | Q76: Gasturbinen mit Abhitzekessel | R76: Erdgas | S76: GuD | T76: 0.585 | U76: Annahme basierend auf DIW (2014) | V76: 15.45 | W76: 14.885 | X76: =(1-VLOOKUP(S76,Start!$H$33:$I$40,2,FALSE)/100)*W76 -> 12.94995 | Y76: =VLOOKUP(R76,Start!$C$9:$D$15,2,FALSE)+VLOOKUP(R76,Start!$C$23:$D$29,2,FALSE) -> 45.66 | Z76: =(Y76/T76)+Start!$D$19*(VLOOKUP(R76,Start!$M$33:$N$39,2,FALSE)/T76)+VLOOKUP(S76,Start!$C$33:$D$40,2,FALSE) -> 108.6189744
C77: Ja | D77: SEE904748267797 | E77: In Betrieb | F77: ENGIE Deutschland GmbH | G77: 70001314.01 | H77: 7549 | I77: Gera | J77: Vogtlandstraße 11 | K77: Thüringen | L77: 2018-11-20 | M77: Erdgas | N77: Erdgas, Erdölgas | O77: Erdgas | P77: Ja | Q77: Verbrennungsmotor | R77: Erdgas | S77: GuD | T77: 0.4048 | U77: OPSD (2020) | V77: 4.404 | W77: 4.387 | X77: =(1-VLOOKUP(S77,Start!$H$33:$I$40,2,FALSE)/100)*W77 -> 3.81669 | Y77: =VLOOKUP(R77,Start!$C$9:$D$15,2,FALSE)+VLOOKUP(R77,Start!$C$23:$D$29,2,FALSE) -> 45.66 | Z77: =(Y77/T77)+Start!$D$19*(VLOOKUP(R77,Start!$M$33:$N$39,2,FALSE)/T77)+VLOOKUP(S77,Start!$C$33:$D$40,2,FALSE) -> 156.3038538
C78: Ja | D78: SEE904819420762 | E78: In Betrieb | F78: Vattenfall Wärme Berlin AG | G78: HKW Mitte Gasturbine 1 | H78: 10179 | I78: Berlin | J78: Köpenicker Straße 60 | K78: Berlin | L78: 1997-09-08 | M78: Erdgas | N78: Erdgas, Erdölgas | O78: Erdgas | P78: Ja | Q78: Gasturbinen mit Abhitzekessel | R78: Erdgas | S78: GuD | T78: 0.49 | U78: OPSD (2020) | V78: 172 | W78: 164 | X78: =(1-VLOOKUP(S78,Start!$H$33:$I$40,2,FALSE)/100)*W78 -> 142.68 | Y78: =VLOOKUP(R78,Start!$C$9:$D$15,2,FALSE)+VLOOKUP(R78,Start!$C$23:$D$29,2,FALSE) -> 45.66 | Z78: =(Y78/T78)+Start!$D$19*(VLOOKUP(R78,Start!$M$33:$N$39,2,FALSE)/T78)+VLOOKUP(S78,Start!$C$33:$D$40,2,FALSE) -> 129.3869388
C79: Ja | D79: SEE904887370686 | E79: In Betrieb | F79: InfraLeuna GmbH | G79: DT1 | H79: 6237 | I79: Leuna | K79: Sachsen-Anhalt | L79: 1994-07-01 | M79: Wärme | N79: Dampf (zum Beispiel Prozesswärme) | O79: Sonstige Energieträger (nicht erneuerbar) | P79: Ja | Q79: Gegendruckmaschine mit Entnahme | R79: Sonstige | S79: Sonstige | T79: 0.374 | U79: Annahme basierend auf DIW (2014) | V79: 9.1 | W79: 8.7 | X79: =(1-VLOOKUP(S79,Start!$H$33:$I$40,2,FALSE)/100)*W79 -> 7.395 | Y79: =VLOOKUP(R79,Start!$C$9:$D$15,2,FALSE)+VLOOKUP(R79,Start!$C$23:$D$29,2,FALSE) -> 86.87 | Z79: =(Y79/T79)+Start!$D$19*(VLOOKUP(R79,Start!$M$33:$N$39,2,FALSE)/T79)+VLOOKUP(S79,Start!$C$33:$D$40,2,FALSE) -> 281.6802139
C80: Ja | D80: SEE904968236689 | E80: befristete Strommarktrückkehr | F80: Onyx Kraftwerk Farge GmbH & Co. KGaA | G80: Kraftwerk Farge | H80: 28777 | I80: Bremen | J80: Wilhelmshavener Straße 6 | K80: Bremen | L80: 1969-01-01 | M80: Steinkohle | N80: Steinkohlen | O80: Steinkohle | P80: Nein | Q80: Kondensationsmaschine ohne Entnahme | R80: Steinkohle | S80: Steinkohle | T80: 0.4425 | U80: OPSD (2020) | V80: 380 | W80: 350 | X80: =(1-VLOOKUP(S80,Start!$H$33:$I$40,2,FALSE)/100)*W80 -> 280 | Y80: =VLOOKUP(R80,Start!$C$9:$D$15,2,FALSE)+VLOOKUP(R80,Start!$C$23:$D$29,2,FALSE) -> 17.84 | Z80: =(Y80/T80)+Start!$D$19*(VLOOKUP(R80,Start!$M$33:$N$39,2,FALSE)/T80)+VLOOKUP(S80,Start!$C$33:$D$40,2,FALSE) -> 106.0462147
C81: Ja | D81: SEE904983741502 | E81: In Betrieb | F81: MVV Umwelt Asset GmbH | G81: MHKW Mannheim Generator T60 | H81: 68169 | I81: Mannheim | J81: Otto-Hahn-Straße 1 | K81: Baden-Württemberg | L81: 2010-01-07 | M81: nicht biogener Abfall | N81: Abfall (Hausmüll, Siedl.abf.) | O81: Abfall | P81: Ja | Q81: Kondensationsmaschine mit Entnahme | R81: Abfall | S81: Abfall | T81: 0.33 | U81: OPSD (2020) | V81: 27.6 | W81: 25.6 | X81: =(1-VLOOKUP(S81,Start!$H$33:$I$40,2,FALSE)/100)*W81 -> 21.76 | Y81: =VLOOKUP(R81,Start!$C$9:$D$15,2,FALSE)+VLOOKUP(R81,Start!$C$23:$D$29,2,FALSE) -> 0 | Z81: =(Y81/T81)+Start!$D$19*(VLOOKUP(R81,Start!$M$33:$N$39,2,FALSE)/T81)+VLOOKUP(S81,Start!$C$33:$D$40,2,FALSE) -> 1
C82: Ja | D82: SEE905023260298 | E82: In Betrieb | F82: Stadtwerke Rosenheim GmbH & Co. KG | G82: GM7 | H82: 83026 | I82: Rosenheim | J82: Oberaustraße 12 | K82: Bayern | L82: 2022-04-04 | M82: Erdgas | N82: Erdgas, Erdölgas | O82: Erdgas | P82: Ja | Q82: Verbrennungsmotor | R82: Erdgas | S82: GuD | T82: 0.63 | U82: Annahme basierend auf DIW (2014) | V82: 4.502 | W82: 4.457 | X82: =(1-VLOOKUP(S82,Start!$H$33:$I$40,2,FALSE)/100)*W82 -> 3.87759 | Y82: =VLOOKUP(R82,Start!$C$9:$D$15,2,FALSE)+VLOOKUP(R82,Start!$C$23:$D$29,2,FALSE) -> 45.66 | Z82: =(Y82/T82)+Start!$D$19*(VLOOKUP(R82,Start!$M$33:$N$39,2,FALSE)/T82)+VLOOKUP(S82,Start!$C$33:$D$40,2,FALSE) -> 100.967619
C83: Ja | D83: SEE905035807238 | E83: In Betrieb | F83: Uniper Kraftwerke GmbH | G83: Kirchmöser GT 1 | H83: 14774 | I83: Brandenburg | J83: Bahntechnikerring 17 | K83: Brandenburg | L83: 1994-01-01 | M83: Erdgas | N83: Erdgas, Erdölgas | O83: Erdgas | P83: Nein | Q83: Gasturbinen mit nachgeschalteter Dampfturbine | R83: Erdgas | S83: GuD | T83: 0.513 | U83: OPSD (2020) | V83: 63 | W83: 60 | X83: =(1-VLOOKUP(S83,Start!$H$33:$I$40,2,FALSE)/100)*W83 -> 52.2 | Y83: =VLOOKUP(R83,Start!$C$9:$D$15,2,FALSE)+VLOOKUP(R83,Start!$C$23:$D$29,2,FALSE) -> 45.66 | Z83: =(Y83/T83)+Start!$D$19*(VLOOKUP(R83,Start!$M$33:$N$39,2,FALSE)/T83)+VLOOKUP(S83,Start!$C$33:$D$40,2,FALSE) -> 123.6532164
C84: Ja | D84: SEE905054165586 | E84: In Betrieb | F84: GLOBALFOUNDRIES Dresden Module One LLC & Co. KG | G84: Gasmotoren-Blockheizkraftwerk II (Generator 7) | H84: 1468 | I84: Moritzburg | J84: Ringstraße 3 | K84: Sachsen | L84: 2004-11-10 | M84: Erdgas | N84: Erdgas, Erdölgas | O84: Erdgas | P84: Ja | Q84: Verbrennungsmotor | R84: Erdgas | S84: GuD | T84: 0.54 | U84: Annahme basierend auf DIW (2014) | V84: 3.832 | W84: 3.772 | X84: =(1-VLOOKUP(S84,Start!$H$33:$I$40,2,FALSE)/100)*W84 -> 3.28164 | Y84: =VLOOKUP(R84,Start!$C$9:$D$15,2,FALSE)+VLOOKUP(R84,Start!$C$23:$D$29,2,FALSE) -> 45.66 | Z84: =(Y84/T84)+Start!$D$19*(VLOOKUP(R84,Start!$M$33:$N$39,2,FALSE)/T84)+VLOOKUP(S84,Start!$C$33:$D$40,2,FALSE) -> 117.5455556
C85: Ja | D85: SEE905192478234 | E85: In Betrieb | F85: Knapsack Power GmbH & Co. KG | G85: Knapsack I - Gasturbine GT12 | H85: 50354 | I85: Hürth | J85: Industriestraße 300 | K85: Nordrhein-Westfalen | L85: 2007-10-17 | M85: Erdgas | N85: Erdgas, Erdölgas | O85: Erdgas | P85: Nein | Q85: Gasturbinen mit nachgeschalteter Dampfturbine | R85: Erdgas | S85: GuD | T85: 0.5715 | U85: OPSD (2020) | V85: 308 | W85: 308 | X85: =(1-VLOOKUP(S85,Start!$H$33:$I$40,2,FALSE)/100)*W85 -> 267.96 | Y85: =VLOOKUP(R85,Start!$C$9:$D$15,2,FALSE)+VLOOKUP(R85,Start!$C$23:$D$29,2,FALSE) -> 45.66 | Z85: =(Y85/T85)+Start!$D$19*(VLOOKUP(R85,Start!$M$33:$N$39,2,FALSE)/T85)+VLOOKUP(S85,Start!$C$33:$D$40,2,FALSE) -> 111.1493438
C86: Ja | D86: SEE905229048430 | E86: In Betrieb | F86: EGGER Holzwerkstoffe Brilon GmbH & Co. KG | G86: GT8 | H86: 59929 | I86: Brilon | J86: Im Kissen 19 | K86: Nordrhein-Westfalen | L86: 1998-06-01 | M86: Erdgas | N86: Erdgas, Erdölgas | O86: Erdgas | P86: Ja | Q86: Gasturbinen mit Abhitzekessel | R86: Erdgas | S86: GuD | T86: 0.3696 | U86: OPSD (2020) | V86: 5 | W86: 5 | X86: =(1-VLOOKUP(S86,Start!$H$33:$I$40,2,FALSE)/100)*W86 -> 4.35 | Y86: =VLOOKUP(R86,Start!$C$9:$D$15,2,FALSE)+VLOOKUP(R86,Start!$C$23:$D$29,2,FALSE) -> 45.66 | Z86: =(Y86/T86)+Start!$D$19*(VLOOKUP(R86,Start!$M$33:$N$39,2,FALSE)/T86)+VLOOKUP(S86,Start!$C$33:$D$40,2,FALSE) -> 171.0470779
C87: Ja | D87: SEE905257392765 | E87: In Betrieb | F87: Cosun Beet Company GmbH & Co. KG | G87: Kesselhaus | H87: 17389 | I87: Anklam | J87: Bluthsluster Straße 24 | K87: Mecklenburg-Vorpommern | L87: 1993-09-26 | M87: Erdgas | N87: Erdgas, Erdölgas | O87: Erdgas | P87: Ja | Q87: Gegendruckmaschine mit Entnahme | R87: Erdgas | S87: GuD | T87: 0.3773 | U87: OPSD (2020) | V87: 16 | W87: 15 | X87: =(1-VLOOKUP(S87,Start!$H$33:$I$40,2,FALSE)/100)*W87 -> 13.05 | Y87: =VLOOKUP(R87,Start!$C$9:$D$15,2,FALSE)+VLOOKUP(R87,Start!$C$23:$D$29,2,FALSE) -> 45.66 | Z87: =(Y87/T87)+Start!$D$19*(VLOOKUP(R87,Start!$M$33:$N$39,2,FALSE)/T87)+VLOOKUP(S87,Start!$C$33:$D$40,2,FALSE) -> 167.5869335
C88: Ja | D88: SEE905270326723 | E88: In Betrieb | F88: envia THERM GmbH | G88: Großkayna GT3 | H88: 6242 | I88: Großkayna | J88: Werkstraße 1 | K88: Sachsen-Anhalt | L88: 1994-01-17 | M88: Mineralölprodukte | N88: Heizöl, leicht | O88: Mineralölprodukte | P88: Nein | Q88: Gasturbinen ohne Abhitzekessel | R88: Öl | S88: Öl | T88: 0.3644 | U88: OPSD (2020) | V88: 45.625 | W88: 45.625 | X88: =(1-VLOOKUP(S88,Start!$H$33:$I$40,2,FALSE)/100)*W88 -> 38.78125 | Y88: =VLOOKUP(R88,Start!$C$9:$D$15,2,FALSE)+VLOOKUP(R88,Start!$C$23:$D$29,2,FALSE) -> 87.17 | Z88: =(Y88/T88)+Start!$D$19*(VLOOKUP(R88,Start!$M$33:$N$39,2,FALSE)/T88)+VLOOKUP(S88,Start!$C$33:$D$40,2,FALSE) -> 305.2206367
C89: Ja | D89: SEE905366486355 | E89: In Betrieb | F89: Infraserv GmbH & Co. Höchst KG | G89: IPH Strom VT4 | H89: 65929 | I89: Frankfurt | J89: Brüningstraße 50 | K89: Hessen | L89: 2021-09-15 | M89: Erdgas | N89: Erdgas, Erdölgas | O89: Erdgas | P89: Ja | Q89: Gegendruckmaschine ohne Entnahme | R89: Erdgas | S89: GuD | T89: 0.63 | U89: Annahme basierend auf DIW (2014) | V89: 27 | W89: 26.8 | X89: =(1-VLOOKUP(S89,Start!$H$33:$I$40,2,FALSE)/100)*W89 -> 23.316 | Y89: =VLOOKUP(R89,Start!$C$9:$D$15,2,FALSE)+VLOOKUP(R89,Start!$C$23:$D$29,2,FALSE) -> 45.66 | Z89: =(Y89/T89)+Start!$D$19*(VLOOKUP(R89,Start!$M$33:$N$39,2,FALSE)/T89)+VLOOKUP(S89,Start!$C$33:$D$40,2,FALSE) -> 100.967619
C90: Ja | D90: SEE905410926998 | E90: In Betrieb | F90: Forschungszentrum Jülich GmbH | G90: FZJ_WVVZ-03.19_BHKW-1 | H90: 52428 | I90: Jülich | K90: Nordrhein-Westfalen | L90: 2022-06-27 | M90: Erdgas | N90: Erdgas, Erdölgas | O90: Erdgas | P90: Ja | Q90: Verbrennungsmotor | R90: Erdgas | S90: GuD | T90: 0.63 | U90: Annahme basierend auf DIW (2014) | V90: 4.3 | W90: 4.171 | X90: =(1-VLOOKUP(S90,Start!$H$33:$I$40,2,FALSE)/100)*W90 -> 3.62877 | Y90: =VLOOKUP(R90,Start!$C$9:$D$15,2,FALSE)+VLOOKUP(R90,Start!$C$23:$D$29,2,FALSE) -> 45.66 | Z90: =(Y90/T90)+Start!$D$19*(VLOOKUP(R90,Start!$M$33:$N$39,2,FALSE)/T90)+VLOOKUP(S90,Start!$C$33:$D$40,2,FALSE) -> 100.967619
C91: Ja | D91: SEE905714722562 | E91: In Betrieb | F91: EnBW Energie Baden-Württemberg AG | G91: Heizkraftwerk Stuttgart-Münster DT 15 | H91: 70376 | I91: Stuttgart | J91: Voltastraße 45 | K91: Baden-Württemberg | L91: 1984-01-01 | M91: Steinkohle | N91: Steinkohlen | O91: Steinkohle | P91: Ja | Q91: Gegendruckmaschine mit Entnahme | R91: Steinkohle | S91: Steinkohle | T91: 0.385 | U91: OPSD (2020) | V91: 47.2 | W91: 45 | X91: =(1-VLOOKUP(S91,Start!$H$33:$I$40,2,FALSE)/100)*W91 -> 36 | Y91: =VLOOKUP(R91,Start!$C$9:$D$15,2,FALSE)+VLOOKUP(R91,Start!$C$23:$D$29,2,FALSE) -> 17.84 | Z91: =(Y91/T91)+Start!$D$19*(VLOOKUP(R91,Start!$M$33:$N$39,2,FALSE)/T91)+VLOOKUP(S91,Start!$C$33:$D$40,2,FALSE) -> 121.6901299
C92: Ja | D92: SEE905714982744 | E92: In Betrieb | F92: GKS-Gemeinschaftskraftwerk Schweinfurt GmbH | G92: VMA 2 | H92: 97424 | I92: Schweinfurt | J92: Hafenstraße 30 | K92: Bayern | L92: 1997-07-23 | M92: Mineralölprodukte | N92: Heizöl, leicht | O92: Mineralölprodukte | P92: Nein | Q92: Verbrennungsmotor | R92: Öl | S92: Öl | T92: 0.38 | U92: eigene Annahme | V92: 4.2 | W92: 4.1 | X92: =(1-VLOOKUP(S92,Start!$H$33:$I$40,2,FALSE)/100)*W92 -> 3.485 | Y92: =VLOOKUP(R92,Start!$C$9:$D$15,2,FALSE)+VLOOKUP(R92,Start!$C$23:$D$29,2,FALSE) -> 87.17 | Z92: =(Y92/T92)+Start!$D$19*(VLOOKUP(R92,Start!$M$33:$N$39,2,FALSE)/T92)+VLOOKUP(S92,Start!$C$33:$D$40,2,FALSE) -> 292.7315789
C93: Ja | D93: SEE905721866655 | E93: In Betrieb | F93: RWE Power AG | G93: Fab Frechen | H93: 50226 | I93: Frechen | J93: Ludwigstraße | K93: Nordrhein-Westfalen | L93: 1962-12-23 | M93: Braunkohle | N93: Rohbraunkohlen | O93: Braunkohle | P93: Ja | Q93: Kondensationsmaschine mit Entnahme | R93: Braunkohle | S93: Braunkohle | T93: 0.3712 | U93: OPSD (2020) | V93: 82 | W93: 56 | X93: =(1-VLOOKUP(S93,Start!$H$33:$I$40,2,FALSE)/100)*W93 -> 48.72 | Y93: =VLOOKUP(R93,Start!$C$9:$D$15,2,FALSE)+VLOOKUP(R93,Start!$C$23:$D$29,2,FALSE) -> 3.1 | Z93: =(Y93/T93)+Start!$D$19*(VLOOKUP(R93,Start!$M$33:$N$39,2,FALSE)/T93)+VLOOKUP(S93,Start!$C$33:$D$40,2,FALSE) -> 102.1267241
C94: Ja | D94: SEE905937514456 | E94: In Betrieb | F94: Bayernwerk Natur GmbH | G94: GT 4 | H94: 83734 | I94: Hausham | J94: Brentenstraße 3 | K94: Bayern | L94: 1982-11-01 | M94: Mineralölprodukte | N94: Heizöl, leicht | O94: Mineralölprodukte | P94: Nein | Q94: Gasturbinen ohne Abhitzekessel | R94: Öl | S94: Öl | T94: 0.3332 | U94: OPSD (2020) | V94: 23.2 | W94: 23.2 | X94: =(1-VLOOKUP(S94,Start!$H$33:$I$40,2,FALSE)/100)*W94 -> 19.72 | Y94: =VLOOKUP(R94,Start!$C$9:$D$15,2,FALSE)+VLOOKUP(R94,Start!$C$23:$D$29,2,FALSE) -> 87.17 | Z94: =(Y94/T94)+Start!$D$19*(VLOOKUP(R94,Start!$M$33:$N$39,2,FALSE)/T94)+VLOOKUP(S94,Start!$C$33:$D$40,2,FALSE) -> 333.7070828
C95: Ja | D95: SEE905939296770 | E95: In Betrieb | F95: Stadtwerke Kiel AG | G95: Küstenkraftwerk K.I.E.L Motor 13 | H95: 24149 | I95: Kiel | J95: Hasselfelde 30 | K95: Schleswig-Holstein | L95: 2018-08-21 | M95: Erdgas | N95: Erdgas, Erdölgas | O95: Erdgas | P95: Ja | Q95: Verbrennungsmotor | R95: Erdgas | S95: GuD | T95: 0.4059 | U95: OPSD (2020) | V95: 9.571 | W95: 9.456 | X95: =(1-VLOOKUP(S95,Start!$H$33:$I$40,2,FALSE)/100)*W95 -> 8.22672 | Y95: =VLOOKUP(R95,Start!$C$9:$D$15,2,FALSE)+VLOOKUP(R95,Start!$C$23:$D$29,2,FALSE) -> 45.66 | Z95: =(Y95/T95)+Start!$D$19*(VLOOKUP(R95,Start!$M$33:$N$39,2,FALSE)/T95)+VLOOKUP(S95,Start!$C$33:$D$40,2,FALSE) -> 155.8843311
C96: Ja | D96: SEE906061539261 | E96: In Betrieb | F96: Universität Stuttgart | G96: HKW Pfaffenwald, Generator 42 | H96: 70569 | I96: Stuttgart | J96: Pfaffenwaldring 8 | K96: Baden-Württemberg | L96: 1988-01-01 | M96: Erdgas | N96: Erdgas, Erdölgas | O96: Erdgas | P96: Ja | Q96: Gasturbinen mit nachgeschalteter Dampfturbine | R96: Erdgas | S96: GuD | T96: 0.3718 | U96: OPSD (2020) | V96: 5.2 | W96: 4.9 | X96: =(1-VLOOKUP(S96,Start!$H$33:$I$40,2,FALSE)/100)*W96 -> 4.263 | Y96: =VLOOKUP(R96,Start!$C$9:$D$15,2,FALSE)+VLOOKUP(R96,Start!$C$23:$D$29,2,FALSE) -> 45.66 | Z96: =(Y96/T96)+Start!$D$19*(VLOOKUP(R96,Start!$M$33:$N$39,2,FALSE)/T96)+VLOOKUP(S96,Start!$C$33:$D$40,2,FALSE) -> 170.0438408
C97: Ja | D97: SEE906120609386 | E97: In Betrieb | F97: Essity Operations Mannheim GmbH | G97: DTS 2 | H97: 68305 | I97: Mannheim | J97: Sandhofer Straße 176 | K97: Baden-Württemberg | L97: 1969-11-21 | M97: Erdgas | N97: Erdgas, Erdölgas | O97: Erdgas | P97: Ja | Q97: Gegendruckmaschine mit Entnahme | R97: Erdgas | S97: GuD | T97: 0.38 | U97: OPSD (2020) | V97: 28.5 | W97: 28.448 | X97: =(1-VLOOKUP(S97,Start!$H$33:$I$40,2,FALSE)/100)*W97 -> 24.74976 | Y97: =VLOOKUP(R97,Start!$C$9:$D$15,2,FALSE)+VLOOKUP(R97,Start!$C$23:$D$29,2,FALSE) -> 45.66 | Z97: =(Y97/T97)+Start!$D$19*(VLOOKUP(R97,Start!$M$33:$N$39,2,FALSE)/T97)+VLOOKUP(S97,Start!$C$33:$D$40,2,FALSE) -> 166.4068421
C98: Ja | D98: SEE906215229154 | E98: In Betrieb | F98: EEW Energy from Waste Helmstedt GmbH | G98: MVA EEW Helmstedt | H98: 38372 | I98: Büddenstedt | J98: Am Kraftwerk 2 | K98: Niedersachsen | L98: 2014-01-01 | M98: nicht biogener Abfall | N98: Abfall (Hausmüll, Siedl.abf.) | O98: Abfall | P98: Nein | Q98: Kondensationsmaschine ohne Entnahme | R98: Abfall | S98: Abfall | T98: 0.33 | U98: OPSD (2020) | V98: 42.3 | W98: 37.5 | X98: =(1-VLOOKUP(S98,Start!$H$33:$I$40,2,FALSE)/100)*W98 -> 31.875 | Y98: =VLOOKUP(R98,Start!$C$9:$D$15,2,FALSE)+VLOOKUP(R98,Start!$C$23:$D$29,2,FALSE) -> 0 | Z98: =(Y98/T98)+Start!$D$19*(VLOOKUP(R98,Start!$M$33:$N$39,2,FALSE)/T98)+VLOOKUP(S98,Start!$C$33:$D$40,2,FALSE) -> 1
C99: Ja | D99: SEE906231810480 | E99: In Betrieb | F99: ADM Hamburg Aktiengesellschaft | G99: GT1 | H99: 21107 | I99: Hamburg | J99: Nippoldstraße 117 | K99: Hamburg | L99: 2013-11-25 | M99: Erdgas | N99: Erdgas, Erdölgas | O99: Erdgas | P99: Ja | Q99: Gasturbinen mit Abhitzekessel | R99: Erdgas | S99: GuD | T99: 0.3773 | U99: OPSD (2020) | V99: 5.688 | W99: 5.538 | X99: =(1-VLOOKUP(S99,Start!$H$33:$I$40,2,FALSE)/100)*W99 -> 4.81806 | Y99: =VLOOKUP(R99,Start!$C$9:$D$15,2,FALSE)+VLOOKUP(R99,Start!$C$23:$D$29,2,FALSE) -> 45.66 | Z99: =(Y99/T99)+Start!$D$19*(VLOOKUP(R99,Start!$M$33:$N$39,2,FALSE)/T99)+VLOOKUP(S99,Start!$C$33:$D$40,2,FALSE) -> 167.5869335
C100: Ja | D100: SEE906257837416 | E100: In Betrieb | F100: PCK Raffinerie GmbH | G100: 5MKA | H100: 16303 | I100: Schwedt | J100: Passower Chaussee 111 | K100: Brandenburg | L100: 1972-01-27 | M100: Mineralölprodukte | N100: Andere Mineralölprodukte | O100: Mineralölprodukte | P100: Ja | Q100: Gegendruckmaschine mit Entnahme | R100: Öl | S100: Öl | T100: 0.3542 | U100: OPSD (2020) | V100: 30 | W100: 28 | X100: =(1-VLOOKUP(S100,Start!$H$33:$I$40,2,FALSE)/100)*W100 -> 23.8 | Y100: =VLOOKUP(R100,Start!$C$9:$D$15,2,FALSE)+VLOOKUP(R100,Start!$C$23:$D$29,2,FALSE) -> 87.17 | Z100: =(Y100/T100)+Start!$D$19*(VLOOKUP(R100,Start!$M$33:$N$39,2,FALSE)/T100)+VLOOKUP(S100,Start!$C$33:$D$40,2,FALSE) -> 313.9813665
C101: Ja | D101: SEE906326984744 | E101: befristete Strommarktrückkehr | F101: STEAG Power GmbH | G101: Weiher 3 | H101: 66287 | I101: Quierschied | J101: Holzer Straße | K101: Saarland | L101: 1976-09-24 | M101: Steinkohle | N101: Steinkohlen | O101: Steinkohle | P101: Nein | Q101: Kondensationsmaschine mit Entnahme | R101: Steinkohle | S101: Steinkohle | T101: 0.365 | U101: OPSD (2020) | V101: 724 | W101: 655.6 | X101: =(1-VLOOKUP(S101,Start!$H$33:$I$40,2,FALSE)/100)*W101 -> 524.48 | Y101: =VLOOKUP(R101,Start!$C$9:$D$15,2,FALSE)+VLOOKUP(R101,Start!$C$23:$D$29,2,FALSE) -> 17.84 | Z101: =(Y101/T101)+Start!$D$19*(VLOOKUP(R101,Start!$M$33:$N$39,2,FALSE)/T101)+VLOOKUP(S101,Start!$C$33:$D$40,2,FALSE) -> 128.2868493
C102: Ja | D102: SEE906331863386 | E102: In Betrieb | F102: GSB Sonderabfall-Entsorgung Bayern GmbH | G102: Turbine VA3 | H102: 85107 | I102: Baar-Ebenhausen | J102: Äußerer Ring 50 | K102: Bayern | L102: 1995-12-20 | M102: nicht biogener Abfall | N102: Industrieabfall | O102: Abfall | P102: Nein | Q102: Kondensationsmaschine mit Entnahme | R102: Abfall | S102: Abfall | T102: 0.33 | U102: OPSD (2020) | V102: 7.061 | W102: 0.542 | X102: =(1-VLOOKUP(S102,Start!$H$33:$I$40,2,FALSE)/100)*W102 -> 0.4607 | Y102: =VLOOKUP(R102,Start!$C$9:$D$15,2,FALSE)+VLOOKUP(R102,Start!$C$23:$D$29,2,FALSE) -> 0 | Z102: =(Y102/T102)+Start!$D$19*(VLOOKUP(R102,Start!$M$33:$N$39,2,FALSE)/T102)+VLOOKUP(S102,Start!$C$33:$D$40,2,FALSE) -> 1
C103: Ja | D103: SEE906385906152 | E103: In Betrieb | F103: Mercedes-Benz AG | G103: W065-Gebäude 120 / BHKW Modul 04 | H103: 40476 | I103: Düsseldorf | J103: Rather Straße 51 | K103: Nordrhein-Westfalen | L103: 2012-10-31 | M103: Erdgas | N103: Erdgas, Erdölgas | O103: Erdgas | P103: Ja | Q103: Gasturbinen mit Abhitzekessel | R103: Erdgas | S103: GuD | T103: 0.3982 | U103: OPSD (2020) | V103: 4.3 | W103: 4.2 | X103: =(1-VLOOKUP(S103,Start!$H$33:$I$40,2,FALSE)/100)*W103 -> 3.654 | Y103: =VLOOKUP(R103,Start!$C$9:$D$15,2,FALSE)+VLOOKUP(R103,Start!$C$23:$D$29,2,FALSE) -> 45.66 | Z103: =(Y103/T103)+Start!$D$19*(VLOOKUP(R103,Start!$M$33:$N$39,2,FALSE)/T103)+VLOOKUP(S103,Start!$C$33:$D$40,2,FALSE) -> 158.8696635
C104: Ja | D104: SEE906462907775 | E104: In Betrieb | F104: K+S Minerals and Agriculture GmbH | G104: Kraftwerk HA GT2 | H104: 36269 | I104: Philippsthal | J104: Hattorfer Straße 1 | K104: Hessen | L104: 2017-07-02 | M104: Erdgas | N104: Erdgas, Erdölgas | O104: Erdgas | P104: Ja | Q104: Gasturbinen mit Abhitzekessel | R104: Erdgas | S104: GuD | T104: 0.4 | U104: eigene Annahme | V104: 5.765 | W104: 5.67 | X104: =(1-VLOOKUP(S104,Start!$H$33:$I$40,2,FALSE)/100)*W104 -> 4.9329 | Y104: =VLOOKUP(R104,Start!$C$9:$D$15,2,FALSE)+VLOOKUP(R104,Start!$C$23:$D$29,2,FALSE) -> 45.66 | Z104: =(Y104/T104)+Start!$D$19*(VLOOKUP(R104,Start!$M$33:$N$39,2,FALSE)/T104)+VLOOKUP(S104,Start!$C$33:$D$40,2,FALSE) -> 158.1615
C105: Ja | D105: SEE906681939748 | E105: In Betrieb | F105: Jäckering Mühlen- und Nährmittelwerke GmbH | G105: BHKW Hafen - Modul 1 | H105: 59067 | I105: Hamm | J105: Speicherstraße 15 | K105: Nordrhein-Westfalen | L105: 2013-04-01 | M105: Erdgas | N105: Erdgas, Erdölgas | O105: Erdgas | P105: Ja | Q105: Verbrennungsmotor | R105: Erdgas | S105: GuD | T105: 0.4 | U105: eigene Annahme | V105: 2.19 | W105: 2.173 | X105: =(1-VLOOKUP(S105,Start!$H$33:$I$40,2,FALSE)/100)*W105 -> 1.89051 | Y105: =VLOOKUP(R105,Start!$C$9:$D$15,2,FALSE)+VLOOKUP(R105,Start!$C$23:$D$29,2,FALSE) -> 45.66 | Z105: =(Y105/T105)+Start!$D$19*(VLOOKUP(R105,Start!$M$33:$N$39,2,FALSE)/T105)+VLOOKUP(S105,Start!$C$33:$D$40,2,FALSE) -> 158.1615
C106: Ja | D106: SEE906830618081 | E106: In Betrieb | F106: RWE Power AG | G106: Fab Fortuna | H106: 50129 | I106: Bergheim | J106: Auenheimer Straße | K106: Nordrhein-Westfalen | L106: 1948-06-01 | M106: Braunkohle | N106: Rohbraunkohlen | O106: Braunkohle | P106: Ja | Q106: Kondensationsmaschine mit Entnahme | R106: Braunkohle | S106: Braunkohle | T106: 0.2536 | U106: OPSD (2020) | V106: 30 | W106: 15 | X106: =(1-VLOOKUP(S106,Start!$H$33:$I$40,2,FALSE)/100)*W106 -> 13.05 | Y106: =VLOOKUP(R106,Start!$C$9:$D$15,2,FALSE)+VLOOKUP(R106,Start!$C$23:$D$29,2,FALSE) -> 3.1 | Z106: =(Y106/T106)+Start!$D$19*(VLOOKUP(R106,Start!$M$33:$N$39,2,FALSE)/T106)+VLOOKUP(S106,Start!$C$33:$D$40,2,FALSE) -> 148.6968454
C107: Ja | D107: SEE906834978235 | E107: In Betrieb | F107: Pfeifer & Langen GmbH ＆ Co. KG | G107: Lage Generator 2 | H107: 32791 | I107: Lage | J107: Heidensche Straße 70 | K107: Nordrhein-Westfalen | L107: 1962-08-27 | M107: Steinkohle | N107: Steinkohlen | O107: Steinkohle | P107: Ja | Q107: Gegendruckmaschine ohne Entnahme | R107: Steinkohle | S107: Steinkohle | T107: 0.4037 | U107: OPSD (2020) | V107: 4.48 | W107: 4.077 | X107: =(1-VLOOKUP(S107,Start!$H$33:$I$40,2,FALSE)/100)*W107 -> 3.2616 | Y107: =VLOOKUP(R107,Start!$C$9:$D$15,2,FALSE)+VLOOKUP(R107,Start!$C$23:$D$29,2,FALSE) -> 17.84 | Z107: =(Y107/T107)+Start!$D$19*(VLOOKUP(R107,Start!$M$33:$N$39,2,FALSE)/T107)+VLOOKUP(S107,Start!$C$33:$D$40,2,FALSE) -> 116.1134754
C108: Ja | D108: SEE906899424722 | E108: In Betrieb | F108: BASF SE | G108: S300 NT7 | H108: 67063 | I108: Ludwigshafen | J108: Carl-Bosch-Straße 38 | K108: Rheinland-Pfalz | L108: 2001-11-21 | M108: Wärme | N108: Dampf (zum Beispiel Prozesswärme) | O108: Sonstige Energieträger (nicht erneuerbar) | P108: Ja | Q108: Gegendruckmaschine mit Entnahme | R108: Sonstige | S108: Sonstige | T108: 0.385 | U108: Annahme basierend auf DIW (2014) | V108: 24.5 | W108: 24 | X108: =(1-VLOOKUP(S108,Start!$H$33:$I$40,2,FALSE)/100)*W108 -> 20.4 | Y108: =VLOOKUP(R108,Start!$C$9:$D$15,2,FALSE)+VLOOKUP(R108,Start!$C$23:$D$29,2,FALSE) -> 86.87 | Z108: =(Y108/T108)+Start!$D$19*(VLOOKUP(R108,Start!$M$33:$N$39,2,FALSE)/T108)+VLOOKUP(S108,Start!$C$33:$D$40,2,FALSE) -> 273.6607792
C109: Ja | D109: SEE907064154956 | E109: In Betrieb | F109: K+S Minerals and Agriculture GmbH | G109: Kraftwerk HA GT1 | H109: 36269 | I109: Philippsthal | J109: Hattorfer Straße 1 | K109: Hessen | L109: 2017-07-02 | M109: Erdgas | N109: Erdgas, Erdölgas | O109: Erdgas | P109: Ja | Q109: Gasturbinen mit Abhitzekessel | R109: Erdgas | S109: GuD | T109: 0.4 | U109: eigene Annahme | V109: 6.765 | W109: 5.67 | X109: =(1-VLOOKUP(S109,Start!$H$33:$I$40,2,FALSE)/100)*W109 -> 4.9329 | Y109: =VLOOKUP(R109,Start!$C$9:$D$15,2,FALSE)+VLOOKUP(R109,Start!$C$23:$D$29,2,FALSE) -> 45.66 | Z109: =(Y109/T109)+Start!$D$19*(VLOOKUP(R109,Start!$M$33:$N$39,2,FALSE)/T109)+VLOOKUP(S109,Start!$C$33:$D$40,2,FALSE) -> 158.1615
C110: Ja | D110: SEE907222955227 | E110: In Betrieb | F110: envia THERM GmbH | G110: Sermuth BHKW 3 | H110: 4680 | I110: Colditz | J110: Am Umspannwerk 2 | K110: Sachsen | L110: 1995-10-01 | M110: Mineralölprodukte | N110: Heizöl, leicht | O110: Mineralölprodukte | P110: Nein | Q110: Verbrennungsmotor | R110: Öl | S110: Öl | T110: 0.3795 | U110: OPSD (2020) | V110: 7.2 | W110: 5.7 | X110: =(1-VLOOKUP(S110,Start!$H$33:$I$40,2,FALSE)/100)*W110 -> 4.845 | Y110: =VLOOKUP(R110,Start!$C$9:$D$15,2,FALSE)+VLOOKUP(R110,Start!$C$23:$D$29,2,FALSE) -> 87.17 | Z110: =(Y110/T110)+Start!$D$19*(VLOOKUP(R110,Start!$M$33:$N$39,2,FALSE)/T110)+VLOOKUP(S110,Start!$C$33:$D$40,2,FALSE) -> 293.115942
C111: Ja | D111: SEE907223904750 | E111: In Betrieb | F111: SWM Services GmbH | G111: SWM HKW Sued GuD1 DT1 | H111: 81371 | I111: München | J111: Schäftlarnstraße 15 | K111: Bayern | L111: 1980-10-01 | M111: Erdgas | N111: Erdgas, Erdölgas | O111: Erdgas | P111: Ja | Q111: Kondensationsmaschine mit Entnahme | R111: Erdgas | S111: GuD | T111: 0.45 | U111: OPSD (2020) | V111: 82.7 | W111: 79.7 | X111: =(1-VLOOKUP(S111,Start!$H$33:$I$40,2,FALSE)/100)*W111 -> 69.339 | Y111: =VLOOKUP(R111,Start!$C$9:$D$15,2,FALSE)+VLOOKUP(R111,Start!$C$23:$D$29,2,FALSE) -> 45.66 | Z111: =(Y111/T111)+Start!$D$19*(VLOOKUP(R111,Start!$M$33:$N$39,2,FALSE)/T111)+VLOOKUP(S111,Start!$C$33:$D$40,2,FALSE) -> 140.7546667
C112: Ja | D112: SEE907282834715 | E112: In Betrieb | F112: Evonik Operations GmbH | G112: Kraftwerk VI, Block 61, GT611 | H112: 45772 | I112: Marl | J112: Paul-Baumann-Straße 1 | K112: Nordrhein-Westfalen | L112: 2022-09-09 | M112: Erdgas | N112: Erdgas, Erdölgas | O112: Erdgas | P112: Ja | Q112: Gasturbinen mit nachgeschalteter Dampfturbine | R112: Erdgas | S112: Gasturbine | T112: 0.47 | U112: Annahme basierend auf DIW (2014) | V112: 55 | W112: 53.5 | X112: =(1-VLOOKUP(S112,Start!$H$33:$I$40,2,FALSE)/100)*W112 -> 46.545 | Y112: =VLOOKUP(R112,Start!$C$9:$D$15,2,FALSE)+VLOOKUP(R112,Start!$C$23:$D$29,2,FALSE) -> 45.66 | Z112: =(Y112/T112)+Start!$D$19*(VLOOKUP(R112,Start!$M$33:$N$39,2,FALSE)/T112)+VLOOKUP(S112,Start!$C$33:$D$40,2,FALSE) -> 134.3289362
C113: Ja | D113: SEE907370296296 | E113: In Betrieb | F113: Zweckverband Müllverwertung Schwandorf | G113: MKW SAD Turbine 5 | H113: 92421 | I113: Schwandorf | J113: Alustraße 7 | K113: Bayern | L113: 1992-06-04 | M113: nicht biogener Abfall | N113: Abfall (Hausmüll, Siedl.abf.) | O113: Abfall | P113: Ja | Q113: Kondensationsmaschine mit Entnahme | R113: Abfall | S113: Abfall | T113: 0.33 | U113: OPSD (2020) | V113: 30 | W113: 30 | X113: =(1-VLOOKUP(S113,Start!$H$33:$I$40,2,FALSE)/100)*W113 -> 25.5 | Y113: =VLOOKUP(R113,Start!$C$9:$D$15,2,FALSE)+VLOOKUP(R113,Start!$C$23:$D$29,2,FALSE) -> 0 | Z113: =(Y113/T113)+Start!$D$19*(VLOOKUP(R113,Start!$M$33:$N$39,2,FALSE)/T113)+VLOOKUP(S113,Start!$C$33:$D$40,2,FALSE) -> 1
C114: Ja | D114: SEE907389779292 | E114: In Betrieb | F114: Lausitz Energie Kraftwerke AG | G114: Boxberg Block Q | H114: 2943 | I114: Boxberg | J114: Am Kraftwerk 1 | K114: Sachsen | L114: 2000-10-01 | M114: Braunkohle | N114: Rohbraunkohlen | O114: Braunkohle | P114: Ja | Q114: Kondensationsmaschine mit Entnahme | R114: Braunkohle | S114: Braunkohle | T114: 0.423 | U114: OPSD (2020) | V114: 893 | W114: 840 | X114: =(1-VLOOKUP(S114,Start!$H$33:$I$40,2,FALSE)/100)*W114 -> 730.8 | Y114: =VLOOKUP(R114,Start!$C$9:$D$15,2,FALSE)+VLOOKUP(R114,Start!$C$23:$D$29,2,FALSE) -> 3.1 | Z114: =(Y114/T114)+Start!$D$19*(VLOOKUP(R114,Start!$M$33:$N$39,2,FALSE)/T114)+VLOOKUP(S114,Start!$C$33:$D$40,2,FALSE) -> 89.8286052
C115: Ja | D115: SEE907508778663 | E115: In Betrieb | F115: MVV Enamic Ludwigshafen GmbH | G115: Motor 3 | H115: 67065 | I115: Ludwigshafen | J115: Giulinistrasse 2 | K115: Rheinland-Pfalz | L115: 2007-11-23 | M115: Erdgas | N115: Erdgas, Erdölgas | O115: Erdgas | P115: Ja | Q115: Verbrennungsmotor | R115: Erdgas | S115: GuD | T115: 0.3938 | U115: OPSD (2020) | V115: 3.333 | W115: 3.2 | X115: =(1-VLOOKUP(S115,Start!$H$33:$I$40,2,FALSE)/100)*W115 -> 2.784 | Y115: =VLOOKUP(R115,Start!$C$9:$D$15,2,FALSE)+VLOOKUP(R115,Start!$C$23:$D$29,2,FALSE) -> 45.66 | Z115: =(Y115/T115)+Start!$D$19*(VLOOKUP(R115,Start!$M$33:$N$39,2,FALSE)/T115)+VLOOKUP(S115,Start!$C$33:$D$40,2,FALSE) -> 160.6279837
C116: Ja | D116: SEE907524301289 | E116: In Betrieb | F116: OQ Chemicals Produktion GmbH & Co.KG | G116: T/G 15 | H116: 46147 | I116: Oberhausen | J116: Otto-Roelen-Strasse 3 | K116: Nordrhein-Westfalen | L116: 1954-01-01 | M116: Mineralölprodukte | N116: Andere Mineralölprodukte | O116: Mineralölprodukte | P116: Ja | Q116: Gegendruckmaschine mit Entnahme | R116: Öl | S116: Öl | T116: 0.33 | U116: Annahme basierend auf DIW (2014) | V116: 12 | W116: 10 | X116: =(1-VLOOKUP(S116,Start!$H$33:$I$40,2,FALSE)/100)*W116 -> 8.5 | Y116: =VLOOKUP(R116,Start!$C$9:$D$15,2,FALSE)+VLOOKUP(R116,Start!$C$23:$D$29,2,FALSE) -> 87.17 | Z116: =(Y116/T116)+Start!$D$19*(VLOOKUP(R116,Start!$M$33:$N$39,2,FALSE)/T116)+VLOOKUP(S116,Start!$C$33:$D$40,2,FALSE) -> 336.9333333
C117: Ja | D117: SEE907667929555 | E117: In Betrieb | F117: DREWAG - Stadtwerke Dresden GmbH | G117: HKW Dresden-Nord | H117: 1099 | I117: Dresden | J117: Hermann-Mende-Straße 2 | K117: Sachsen | L117: 2018-12-07 | M117: Erdgas | N117: Erdgas, Erdölgas | O117: Erdgas | P117: Ja | Q117: Gasturbinen mit Abhitzekessel | R117: Erdgas | S117: GuD | T117: 0.4048 | U117: OPSD (2020) | V117: 12 | W117: 11.5 | X117: =(1-VLOOKUP(S117,Start!$H$33:$I$40,2,FALSE)/100)*W117 -> 10.005 | Y117: =VLOOKUP(R117,Start!$C$9:$D$15,2,FALSE)+VLOOKUP(R117,Start!$C$23:$D$29,2,FALSE) -> 45.66 | Z117: =(Y117/T117)+Start!$D$19*(VLOOKUP(R117,Start!$M$33:$N$39,2,FALSE)/T117)+VLOOKUP(S117,Start!$C$33:$D$40,2,FALSE) -> 156.3038538
C118: Ja | D118: SEE907828499484 | E118: befristete Strommarktrückkehr | F118: Henkel AG & Co. KGaA | G118: F13G6 | H118: 40589 | I118: Düsseldorf | J118: Henkelstraße 67 | K118: Nordrhein-Westfalen | L118: 1983-01-01 | M118: Erdgas | N118: Erdgas, Erdölgas | O118: Steinkohle | P118: Ja | Q118: Gegendruckmaschine mit Entnahme | R118: Steinkohle | S118: Steinkohle | T118: 0.3278 | U118: OPSD (2020) | V118: 20 | W118: 18 | X118: =(1-VLOOKUP(S118,Start!$H$33:$I$40,2,FALSE)/100)*W118 -> 14.4 | Y118: =VLOOKUP(R118,Start!$C$9:$D$15,2,FALSE)+VLOOKUP(R118,Start!$C$23:$D$29,2,FALSE) -> 17.84 | Z118: =(Y118/T118)+Start!$D$19*(VLOOKUP(R118,Start!$M$33:$N$39,2,FALSE)/T118)+VLOOKUP(S118,Start!$C$33:$D$40,2,FALSE) -> 142.6978035
C119: Ja | D119: SEE907892165506 | E119: In Betrieb | F119: Mark-E Aktiengesellschaft | G119: Cuno Heizkraftwerk Herdecke BHKW1 | H119: 58313 | I119: Herdecke | J119: Wetterstraße 111 | K119: Nordrhein-Westfalen | L119: 2004-01-01 | M119: Erdgas | N119: Erdgas, Erdölgas | O119: Erdgas | P119: Ja | Q119: Sonstige | R119: Erdgas | S119: GuD | T119: 0.4 | U119: eigene Annahme | V119: 1.988 | W119: 1.95 | X119: =(1-VLOOKUP(S119,Start!$H$33:$I$40,2,FALSE)/100)*W119 -> 1.6965 | Y119: =VLOOKUP(R119,Start!$C$9:$D$15,2,FALSE)+VLOOKUP(R119,Start!$C$23:$D$29,2,FALSE) -> 45.66 | Z119: =(Y119/T119)+Start!$D$19*(VLOOKUP(R119,Start!$M$33:$N$39,2,FALSE)/T119)+VLOOKUP(S119,Start!$C$33:$D$40,2,FALSE) -> 158.1615
C120: Ja | D120: SEE908040387344 | E120: In Betrieb | F120: DFS Energy GmbH | G120: BHKW1 | H120: 63225 | I120: Langen | J120: Am DFS-Campus 3 | K120: Hessen | L120: 2014-10-15 | M120: Erdgas | N120: Erdgas, Erdölgas | O120: Erdgas | P120: Ja | Q120: Verbrennungsmotor | R120: Erdgas | S120: GuD | T120: 0.4 | U120: eigene Annahme | V120: 2.005 | W120: 1.9805 | X120: =(1-VLOOKUP(S120,Start!$H$33:$I$40,2,FALSE)/100)*W120 -> 1.723035 | Y120: =VLOOKUP(R120,Start!$C$9:$D$15,2,FALSE)+VLOOKUP(R120,Start!$C$23:$D$29,2,FALSE) -> 45.66 | Z120: =(Y120/T120)+Start!$D$19*(VLOOKUP(R120,Start!$M$33:$N$39,2,FALSE)/T120)+VLOOKUP(S120,Start!$C$33:$D$40,2,FALSE) -> 158.1615
C121: Ja | D121: SEE908070409573 | E121: In Betrieb | F121: Iqony Gasmotoren Fenne 3 GmbH | G121: Gasmotor 5 Mod. | H121: 66333 | I121: Völklingen | J121: Saarbrücker Straße 135-137 | K121: Saarland | L121: 2021-11-05 | M121: Erdgas | N121: Erdgas, Erdölgas | O121: Erdgas | P121: Ja | Q121: Verbrennungsmotor | R121: Erdgas | S121: GuD | T121: 0.45 | U121: https://www.steag.com/de/leistungen/konventionelle-energieerzeugung | V121: 3.352 | W121: 3.334 | X121: =(1-VLOOKUP(S121,Start!$H$33:$I$40,2,FALSE)/100)*W121 -> 2.90058 | Y121: =VLOOKUP(R121,Start!$C$9:$D$15,2,FALSE)+VLOOKUP(R121,Start!$C$23:$D$29,2,FALSE) -> 45.66 | Z121: =(Y121/T121)+Start!$D$19*(VLOOKUP(R121,Start!$M$33:$N$39,2,FALSE)/T121)+VLOOKUP(S121,Start!$C$33:$D$40,2,FALSE) -> 140.7546667
C122: Ja | D122: SEE908089235248 | E122: In Betrieb | F122: RWE Generation SE | G122: Dormagen GT2 | H122: 41540 | I122: Dormagen | J122: Alte Heerstraße 1 | K122: Nordrhein-Westfalen | L122: 2000-07-23 | M122: Erdgas | N122: Erdgas, Erdölgas | O122: Erdgas | P122: Ja | Q122: Gasturbinen mit Abhitzekessel | R122: Erdgas | S122: GuD | T122: 0.54 | U122: OPSD (2020) | V122: 189 | W122: 184 | X122: =(1-VLOOKUP(S122,Start!$H$33:$I$40,2,FALSE)/100)*W122 -> 160.08 | Y122: =VLOOKUP(R122,Start!$C$9:$D$15,2,FALSE)+VLOOKUP(R122,Start!$C$23:$D$29,2,FALSE) -> 45.66 | Z122: =(Y122/T122)+Start!$D$19*(VLOOKUP(R122,Start!$M$33:$N$39,2,FALSE)/T122)+VLOOKUP(S122,Start!$C$33:$D$40,2,FALSE) -> 117.5455556
C123: Ja | D123: SEE908119179962 | E123: In Betrieb | F123: J. M. Voith SE & Co. KG | G123: HDH_004_Industrieheizkraftwerk-Heidenheim_GM4 | H123: 89522 | I123: Heidenheim | J123: Alexanderstraße 8 | K123: Baden-Württemberg | L123: 1999-01-01 | M123: Erdgas | N123: Erdgas, Erdölgas | O123: Erdgas | P123: Ja | Q123: Verbrennungsmotor | R123: Erdgas | S123: GuD | T123: 0.4004 | U123: OPSD (2020) | V123: 3.884 | W123: 3.725 | X123: =(1-VLOOKUP(S123,Start!$H$33:$I$40,2,FALSE)/100)*W123 -> 3.24075 | Y123: =VLOOKUP(R123,Start!$C$9:$D$15,2,FALSE)+VLOOKUP(R123,Start!$C$23:$D$29,2,FALSE) -> 45.66 | Z123: =(Y123/T123)+Start!$D$19*(VLOOKUP(R123,Start!$M$33:$N$39,2,FALSE)/T123)+VLOOKUP(S123,Start!$C$33:$D$40,2,FALSE) -> 158.004995
C124: Ja | D124: SEE908125004449 | E124: In Betrieb | F124: Lausitz Energie Kraftwerke AG | G124: Boxberg Block P | H124: 2943 | I124: Boxberg | J124: Am Kraftwerk 1 | K124: Sachsen | L124: 1980-07-01 | M124: Braunkohle | N124: Rohbraunkohlen | O124: Braunkohle | P124: Ja | Q124: Kondensationsmaschine mit Entnahme | R124: Braunkohle | S124: Braunkohle | T124: 0.35 | U124: OPSD (2020) | V124: 540 | W124: 500 | X124: =(1-VLOOKUP(S124,Start!$H$33:$I$40,2,FALSE)/100)*W124 -> 435 | Y124: =VLOOKUP(R124,Start!$C$9:$D$15,2,FALSE)+VLOOKUP(R124,Start!$C$23:$D$29,2,FALSE) -> 3.1 | Z124: =(Y124/T124)+Start!$D$19*(VLOOKUP(R124,Start!$M$33:$N$39,2,FALSE)/T124)+VLOOKUP(S124,Start!$C$33:$D$40,2,FALSE) -> 108.2097143
C125: Ja | D125: SEE908154984538 | E125: In Betrieb | F125: Mohn Media Mohndruck GmbH | G125: GT 1 | H125: 33332 | I125: Gütersloh | J125: Carl-Bertelsmann-Straße 161 | K125: Nordrhein-Westfalen | L125: 1994-03-28 | M125: Erdgas | N125: Erdgas, Erdölgas | O125: Erdgas | P125: Ja | Q125: Gasturbinen mit nachgeschalteter Dampfturbine | R125: Erdgas | S125: GuD | T125: 0.3784 | U125: OPSD (2020) | V125: 5.25 | W125: 5.167 | X125: =(1-VLOOKUP(S125,Start!$H$33:$I$40,2,FALSE)/100)*W125 -> 4.49529 | Y125: =VLOOKUP(R125,Start!$C$9:$D$15,2,FALSE)+VLOOKUP(R125,Start!$C$23:$D$29,2,FALSE) -> 45.66 | Z125: =(Y125/T125)+Start!$D$19*(VLOOKUP(R125,Start!$M$33:$N$39,2,FALSE)/T125)+VLOOKUP(S125,Start!$C$33:$D$40,2,FALSE) -> 167.1041226
C126: Ja | D126: SEE908238702164 | E126: In Betrieb | F126: Bayer AG Berlin | G126: Turboeinheit 1 Dampfturbine 60 t Gen 10 MW | H126: 13353 | I126: Berlin | J126: Müllerstraße 170 | K126: Berlin | L126: 1973-06-01 | M126: Erdgas | N126: Erdgas, Erdölgas | O126: Erdgas | P126: Ja | Q126: Gegendruckmaschine mit Entnahme | R126: Erdgas | S126: GuD | T126: 0.3542 | U126: OPSD (2020) | V126: 9.8 | W126: 9.4 | X126: =(1-VLOOKUP(S126,Start!$H$33:$I$40,2,FALSE)/100)*W126 -> 8.178 | Y126: =VLOOKUP(R126,Start!$C$9:$D$15,2,FALSE)+VLOOKUP(R126,Start!$C$23:$D$29,2,FALSE) -> 45.66 | Z126: =(Y126/T126)+Start!$D$19*(VLOOKUP(R126,Start!$M$33:$N$39,2,FALSE)/T126)+VLOOKUP(S126,Start!$C$33:$D$40,2,FALSE) -> 178.41869
C127: Ja | D127: SEE908658611688 | E127: In Betrieb | F127: H&R Chemisch Pharmazeutische Spezialitäten GmbH | G127: HuR-IKW-G4 | H127: 48499 | I127: Salzbergen | J127: Neuenkirchener Straße 8 | K127: Niedersachsen | L127: 1977-01-14 | M127: Erdgas | O127: Erdgas | P127: Nein | Q127: Gegendruckmaschine ohne Entnahme | R127: Erdgas | S127: GuD | T127: 0.35 | U127: eigene Annahme | V127: 6.035 | W127: 6.02 | X127: =(1-VLOOKUP(S127,Start!$H$33:$I$40,2,FALSE)/100)*W127 -> 5.2374 | Y127: =VLOOKUP(R127,Start!$C$9:$D$15,2,FALSE)+VLOOKUP(R127,Start!$C$23:$D$29,2,FALSE) -> 45.66 | Z127: =(Y127/T127)+Start!$D$19*(VLOOKUP(R127,Start!$M$33:$N$39,2,FALSE)/T127)+VLOOKUP(S127,Start!$C$33:$D$40,2,FALSE) -> 180.5417143
C128: Ja | D128: SEE908746529123 | E128: In Betrieb | F128: Stadtwerke Rostock Aktiengesellschaft | G128: GuD-Block 3 | H128: 18069 | I128: Rostock | J128: Schmarler Damm 5 | K128: Mecklenburg-Vorpommern | L128: 1996-10-01 | M128: Erdgas | N128: Erdgas, Erdölgas | O128: Erdgas | P128: Ja | Q128: Gasturbinen mit nachgeschalteter Dampfturbine | R128: Erdgas | S128: GuD | T128: 0.522 | U128: OPSD (2020) | V128: 37 | W128: 36 | X128: =(1-VLOOKUP(S128,Start!$H$33:$I$40,2,FALSE)/100)*W128 -> 31.32 | Y128: =VLOOKUP(R128,Start!$C$9:$D$15,2,FALSE)+VLOOKUP(R128,Start!$C$23:$D$29,2,FALSE) -> 45.66 | Z128: =(Y128/T128)+Start!$D$19*(VLOOKUP(R128,Start!$M$33:$N$39,2,FALSE)/T128)+VLOOKUP(S128,Start!$C$33:$D$40,2,FALSE) -> 121.5471264
C129: Ja | D129: SEE908836263777 | E129: In Betrieb | F129: AUDI | G129: IN_N19_KWKK_GT2 | H129: 85057 | I129: Ingolstadt | J129: Ettinger Straße 105 | K129: Bayern | L129: 1998-08-05 | M129: Erdgas | N129: Erdgas, Erdölgas | O129: Erdgas | P129: Ja | Q129: Gasturbinen mit Abhitzekessel | R129: Erdgas | S129: GuD | T129: 0.38 | U129: eigene Annahme | V129: 5.1 | W129: 4.985 | X129: =(1-VLOOKUP(S129,Start!$H$33:$I$40,2,FALSE)/100)*W129 -> 4.33695 | Y129: =VLOOKUP(R129,Start!$C$9:$D$15,2,FALSE)+VLOOKUP(R129,Start!$C$23:$D$29,2,FALSE) -> 45.66 | Z129: =(Y129/T129)+Start!$D$19*(VLOOKUP(R129,Start!$M$33:$N$39,2,FALSE)/T129)+VLOOKUP(S129,Start!$C$33:$D$40,2,FALSE) -> 166.4068421
C130: Ja | D130: SEE908927793930 | E130: In Betrieb | F130: BMW AG | G130: Regensburg KWK 2 | H130: 93055 | I130: Regensburg | J130: Herbert-Quandt-Allee 1 | K130: Bayern | L130: 2011-07-05 | M130: Erdgas | N130: Erdgas, Erdölgas | O130: Erdgas | P130: Ja | Q130: Verbrennungsmotor | R130: Erdgas | S130: GuD | T130: 0.3982 | U130: OPSD (2020) | V130: 2.678 | W130: 2.624 | X130: =(1-VLOOKUP(S130,Start!$H$33:$I$40,2,FALSE)/100)*W130 -> 2.28288 | Y130: =VLOOKUP(R130,Start!$C$9:$D$15,2,FALSE)+VLOOKUP(R130,Start!$C$23:$D$29,2,FALSE) -> 45.66 | Z130: =(Y130/T130)+Start!$D$19*(VLOOKUP(R130,Start!$M$33:$N$39,2,FALSE)/T130)+VLOOKUP(S130,Start!$C$33:$D$40,2,FALSE) -> 158.8696635
C131: Ja | D131: SEE908964165929 | E131: In Betrieb | F131: SWE Energie GmbH | G131: swe energie T-DT | H131: 99087 | I131: Erfurt | J131: Stotternheimer Straße 40 | K131: Thüringen | L131: 2022-01-01 | M131: Erdgas | N131: Erdgas, Erdölgas | O131: Erdgas | P131: Ja | Q131: Gegendruckmaschine mit Entnahme | R131: Erdgas | S131: GuD | T131: 0.63 | U131: Annahme basierend auf DIW (2014) | V131: 10.5 | W131: 10.5 | X131: =(1-VLOOKUP(S131,Start!$H$33:$I$40,2,FALSE)/100)*W131 -> 9.135 | Y131: =VLOOKUP(R131,Start!$C$9:$D$15,2,FALSE)+VLOOKUP(R131,Start!$C$23:$D$29,2,FALSE) -> 45.66 | Z131: =(Y131/T131)+Start!$D$19*(VLOOKUP(R131,Start!$M$33:$N$39,2,FALSE)/T131)+VLOOKUP(S131,Start!$C$33:$D$40,2,FALSE) -> 100.967619
C132: Ja | D132: SEE909002940690 | E132: In Betrieb | F132: Grosskraftwerk Mannheim | G132: GKM Block 6 | H132: 68199 | I132: Mannheim | J132: Marguerrestraße 1 | K132: Baden-Württemberg | L132: 2005-12-26 | M132: Steinkohle | O132: Steinkohle | P132: Ja | Q132: Gegendruckmaschine mit Entnahme | R132: Steinkohle | S132: Steinkohle | T132: 0.4375 | U132: OPSD (2020) | V132: 280 | W132: 255 | X132: =(1-VLOOKUP(S132,Start!$H$33:$I$40,2,FALSE)/100)*W132 -> 204 | Y132: =VLOOKUP(R132,Start!$C$9:$D$15,2,FALSE)+VLOOKUP(R132,Start!$C$23:$D$29,2,FALSE) -> 17.84 | Z132: =(Y132/T132)+Start!$D$19*(VLOOKUP(R132,Start!$M$33:$N$39,2,FALSE)/T132)+VLOOKUP(S132,Start!$C$33:$D$40,2,FALSE) -> 107.2433143
C133: Ja | D133: SEE909031885047 | E133: In Betrieb | F133: Müllverwertung Borsigstraße GmbH | G133: MVB Borsigstraße Müll | H133: 22113 | I133: Hamburg | K133: Hamburg | L133: 2010-07-16 | M133: nicht biogener Abfall | N133: Abfall (Hausmüll, Siedl.abf.) | O133: Abfall | P133: Nein | Q133: Gegendruckmaschine mit Entnahme | R133: Abfall | S133: Abfall | T133: 0.33 | U133: OPSD (2020) | V133: 3.05 | W133: 1e-05 | X133: =(1-VLOOKUP(S133,Start!$H$33:$I$40,2,FALSE)/100)*W133 -> 8.5e-06 | Y133: =VLOOKUP(R133,Start!$C$9:$D$15,2,FALSE)+VLOOKUP(R133,Start!$C$23:$D$29,2,FALSE) -> 0 | Z133: =(Y133/T133)+Start!$D$19*(VLOOKUP(R133,Start!$M$33:$N$39,2,FALSE)/T133)+VLOOKUP(S133,Start!$C$33:$D$40,2,FALSE) -> 1
C134: Ja | D134: SEE909106315790 | E134: In Betrieb | F134: Mineraloelraffinerie Oberrhein | G134: TG-1904 | H134: 76187 | I134: Karlsruhe | J134: Nördliche Raffineriestraße 1 | K134: Baden-Württemberg | L134: 1995-06-17 | M134: Mineralölprodukte | N134: Raffineriegas | O134: Mineralölprodukte | P134: Ja | Q134: Gegendruckmaschine mit Entnahme | R134: Öl | S134: Öl | T134: 0.3795 | U134: OPSD (2020) | V134: 15 | W134: 13.5 | X134: =(1-VLOOKUP(S134,Start!$H$33:$I$40,2,FALSE)/100)*W134 -> 11.475 | Y134: =VLOOKUP(R134,Start!$C$9:$D$15,2,FALSE)+VLOOKUP(R134,Start!$C$23:$D$29,2,FALSE) -> 87.17 | Z134: =(Y134/T134)+Start!$D$19*(VLOOKUP(R134,Start!$M$33:$N$39,2,FALSE)/T134)+VLOOKUP(S134,Start!$C$33:$D$40,2,FALSE) -> 293.115942
C135: Ja | D135: SEE909297051026 | E135: In Betrieb | F135: BP Europa SE | G135: GT2 | H135: 49808 | I135: Lingen | J135: Raffineriestraße 1 | K135: Niedersachsen | L135: 1996-12-06 | M135: Mineralölprodukte | N135: Erdgas, Erdölgas | O135: Mineralölprodukte | P135: Ja | Q135: Gasturbinen mit Abhitzekessel | R135: Öl | S135: Öl | T135: 0.3806 | U135: OPSD (2020) | V135: 24.88 | W135: 22.7 | X135: =(1-VLOOKUP(S135,Start!$H$33:$I$40,2,FALSE)/100)*W135 -> 19.295 | Y135: =VLOOKUP(R135,Start!$C$9:$D$15,2,FALSE)+VLOOKUP(R135,Start!$C$23:$D$29,2,FALSE) -> 87.17 | Z135: =(Y135/T135)+Start!$D$19*(VLOOKUP(R135,Start!$M$33:$N$39,2,FALSE)/T135)+VLOOKUP(S135,Start!$C$33:$D$40,2,FALSE) -> 292.2716763
C136: Ja | D136: SEE909339504022 | E136: In Betrieb | F136: R.D.M. Arnsberg GmbH | G136: SSW-VT | H136: 59821 | I136: Arnsberg | J136: Hellefelder Straße 51 | K136: Nordrhein-Westfalen | L136: 1957-02-27 | M136: Steinkohle | N136: Steinkohlen | O136: Steinkohle | P136: Ja | Q136: Gegendruckmaschine ohne Entnahme | R136: Steinkohle | S136: Steinkohle | T136: 0.2325 | U136: OPSD (2020) | V136: 7 | W136: 6.14 | X136: =(1-VLOOKUP(S136,Start!$H$33:$I$40,2,FALSE)/100)*W136 -> 4.912 | Y136: =VLOOKUP(R136,Start!$C$9:$D$15,2,FALSE)+VLOOKUP(R136,Start!$C$23:$D$29,2,FALSE) -> 17.84 | Z136: =(Y136/T136)+Start!$D$19*(VLOOKUP(R136,Start!$M$33:$N$39,2,FALSE)/T136)+VLOOKUP(S136,Start!$C$33:$D$40,2,FALSE) -> 200.6556989
C137: Ja | D137: SEE909438607068 | E137: In Betrieb | F137: Infraserv GmbH & Co. Höchst KG | G137: IPH Strom VT3 | H137: 65929 | I137: Frankfurt | J137: Brüningstraße 50 | K137: Hessen | L137: 2021-09-15 | M137: Erdgas | N137: Erdgas, Erdölgas | O137: Erdgas | P137: Ja | Q137: Gegendruckmaschine ohne Entnahme | R137: Erdgas | S137: GuD | T137: 0.63 | U137: Annahme basierend auf DIW (2014) | V137: 13 | W137: 12.9 | X137: =(1-VLOOKUP(S137,Start!$H$33:$I$40,2,FALSE)/100)*W137 -> 11.223 | Y137: =VLOOKUP(R137,Start!$C$9:$D$15,2,FALSE)+VLOOKUP(R137,Start!$C$23:$D$29,2,FALSE) -> 45.66 | Z137: =(Y137/T137)+Start!$D$19*(VLOOKUP(R137,Start!$M$33:$N$39,2,FALSE)/T137)+VLOOKUP(S137,Start!$C$33:$D$40,2,FALSE) -> 100.967619
C138: Ja | D138: SEE909466066615 | E138: In Betrieb | F138: eins energie in sachsen GmbH & Co. KG | G138: Motor-Heizkraftwerk Chemnitz-Nord. Motor 3 | H138: 9114 | I138: Chemnitz | J138: Blankenburgstraße 2 | K138: Sachsen | L138: 2023-07-06 | M138: Erdgas | N138: Erdgas, Erdölgas | O138: Erdgas | P138: Ja | Q138: Verbrennungsmotor | R138: Erdgas | S138: GuD | T138: 0.63 | U138: Annahme basierend auf DIW (2014) | V138: 12.68 | W138: 12.535 | X138: =(1-VLOOKUP(S138,Start!$H$33:$I$40,2,FALSE)/100)*W138 -> 10.90545 | Y138: =VLOOKUP(R138,Start!$C$9:$D$15,2,FALSE)+VLOOKUP(R138,Start!$C$23:$D$29,2,FALSE) -> 45.66 | Z138: =(Y138/T138)+Start!$D$19*(VLOOKUP(R138,Start!$M$33:$N$39,2,FALSE)/T138)+VLOOKUP(S138,Start!$C$33:$D$40,2,FALSE) -> 100.967619
C139: Ja | D139: SEE909553236495 | E139: In Betrieb | F139: Arla Foods Deutschland GmbH | G139: Turbine Pronsfeld | H139: 54597 | I139: Pronsfeld | J139: Im Scheid 1 | K139: Rheinland-Pfalz | L139: 2021-10-27 | M139: Erdgas | N139: Erdgas, Erdölgas | O139: Erdgas | P139: Ja | Q139: Gasturbinen mit Abhitzekessel | R139: Erdgas | S139: GuD | T139: 0.63 | U139: Annahme basierend auf DIW (2014) | V139: 12.982 | W139: 12.255 | X139: =(1-VLOOKUP(S139,Start!$H$33:$I$40,2,FALSE)/100)*W139 -> 10.66185 | Y139: =VLOOKUP(R139,Start!$C$9:$D$15,2,FALSE)+VLOOKUP(R139,Start!$C$23:$D$29,2,FALSE) -> 45.66 | Z139: =(Y139/T139)+Start!$D$19*(VLOOKUP(R139,Start!$M$33:$N$39,2,FALSE)/T139)+VLOOKUP(S139,Start!$C$33:$D$40,2,FALSE) -> 100.967619
C140: Ja | D140: SEE909727831365 | E140: In Betrieb | F140: TEAG Thüringer Energie AG | G140: Gasturbine Bad Salzungen | H140: 36433 | I140: Bad Salzungen | J140: Langenfelder Straße 82 | K140: Thüringen | L140: 1993-10-28 | M140: Erdgas | N140: Erdgas, Erdölgas | O140: Erdgas | P140: Ja | Q140: Gasturbinen mit Abhitzekessel | R140: Erdgas | S140: GuD | T140: 0.3784 | U140: OPSD (2020) | V140: 10.005 | W140: 9.829 | X140: =(1-VLOOKUP(S140,Start!$H$33:$I$40,2,FALSE)/100)*W140 -> 8.55123 | Y140: =VLOOKUP(R140,Start!$C$9:$D$15,2,FALSE)+VLOOKUP(R140,Start!$C$23:$D$29,2,FALSE) -> 45.66 | Z140: =(Y140/T140)+Start!$D$19*(VLOOKUP(R140,Start!$M$33:$N$39,2,FALSE)/T140)+VLOOKUP(S140,Start!$C$33:$D$40,2,FALSE) -> 167.1041226
C141: Ja | D141: SEE909886576275 | E141: In Betrieb | F141: RWE Power AG | G141: Weisweiler G VGT | H141: 52249 | I141: Eschweiler | J141: Am Kraftwerk 17 | K141: Nordrhein-Westfalen | L141: 2006-08-04 | M141: Erdgas | N141: Erdgas, Erdölgas | O141: Erdgas | P141: Ja | Q141: Kondensationsmaschine mit Entnahme | R141: Erdgas | S141: GuD | T141: 0.5 | U141: OPSD (2020) | V141: 202 | W141: 200 | X141: =(1-VLOOKUP(S141,Start!$H$33:$I$40,2,FALSE)/100)*W141 -> 174 | Y141: =VLOOKUP(R141,Start!$C$9:$D$15,2,FALSE)+VLOOKUP(R141,Start!$C$23:$D$29,2,FALSE) -> 45.66 | Z141: =(Y141/T141)+Start!$D$19*(VLOOKUP(R141,Start!$M$33:$N$39,2,FALSE)/T141)+VLOOKUP(S141,Start!$C$33:$D$40,2,FALSE) -> 126.8292
C142: Ja | D142: SEE909927513559 | E142: In Betrieb | F142: Kraftwerke Mainz-Wiesbaden AG | G142: KW3 GT31 | H142: 55120 | I142: Mainz | J142: Kraftwerkallee 1 | K142: Rheinland-Pfalz | L142: 2001-07-05 | M142: Erdgas | N142: Erdgas, Erdölgas | O142: Erdgas | P142: Ja | Q142: Gasturbinen mit Abhitzekessel | R142: Erdgas | S142: GuD | T142: 0.58 | U142: OPSD (2020) | V142: 296.3 | W142: 291.3 | X142: =(1-VLOOKUP(S142,Start!$H$33:$I$40,2,FALSE)/100)*W142 -> 253.431 | Y142: =VLOOKUP(R142,Start!$C$9:$D$15,2,FALSE)+VLOOKUP(R142,Start!$C$23:$D$29,2,FALSE) -> 45.66 | Z142: =(Y142/T142)+Start!$D$19*(VLOOKUP(R142,Start!$M$33:$N$39,2,FALSE)/T142)+VLOOKUP(S142,Start!$C$33:$D$40,2,FALSE) -> 109.5424138
C143: Ja | D143: SEE909963484639 | E143: In Betrieb | F143: BMW AG | G143: BMW Landshut KWK 3 | H143: 84030 | I143: Landshut | J143: Ohmstraße 2 | K143: Bayern | L143: 2014-07-31 | M143: Erdgas | N143: Erdgas, Erdölgas | O143: Erdgas | P143: Ja | Q143: Verbrennungsmotor | R143: Erdgas | S143: GuD | T143: 0.4 | U143: eigene Annahme | V143: 2.627 | W143: 2.55 | X143: =(1-VLOOKUP(S143,Start!$H$33:$I$40,2,FALSE)/100)*W143 -> 2.2185 | Y143: =VLOOKUP(R143,Start!$C$9:$D$15,2,FALSE)+VLOOKUP(R143,Start!$C$23:$D$29,2,FALSE) -> 45.66 | Z143: =(Y143/T143)+Start!$D$19*(VLOOKUP(R143,Start!$M$33:$N$39,2,FALSE)/T143)+VLOOKUP(S143,Start!$C$33:$D$40,2,FALSE) -> 158.1615
C144: Ja | D144: SEE910080930862 | E144: In Betrieb | F144: GLOBALFOUNDRIES Dresden Module One LLC & Co. KG | G144: Gasmotoren-Blockheizkraftwerk II (Generator 4) | H144: 1468 | I144: Moritzburg | J144: Ringstraße 3 | K144: Sachsen | L144: 2004-11-10 | M144: Erdgas | N144: Erdgas, Erdölgas | O144: Erdgas | P144: Ja | Q144: Verbrennungsmotor | R144: Erdgas | S144: GuD | T144: 0.54 | U144: Annahme basierend auf DIW (2014) | V144: 3.832 | W144: 3.772 | X144: =(1-VLOOKUP(S144,Start!$H$33:$I$40,2,FALSE)/100)*W144 -> 3.28164 | Y144: =VLOOKUP(R144,Start!$C$9:$D$15,2,FALSE)+VLOOKUP(R144,Start!$C$23:$D$29,2,FALSE) -> 45.66 | Z144: =(Y144/T144)+Start!$D$19*(VLOOKUP(R144,Start!$M$33:$N$39,2,FALSE)/T144)+VLOOKUP(S144,Start!$C$33:$D$40,2,FALSE) -> 117.5455556
C145: Ja | D145: SEE910102553963 | E145: In Betrieb | F145: Rain Carbon Germany GmbH | G145: Gasturbinenanlage Castrop-Rauxel | H145: 44579 | I145: Castrop-Rauxel | J145: Kekulestraße 30 | K145: Nordrhein-Westfalen | L145: 1992-06-15 | M145: Erdgas | N145: Erdgas, Erdölgas | O145: Erdgas | P145: Ja | Q145: Gasturbinen mit Abhitzekessel | R145: Erdgas | S145: GuD | T145: 0.3566 | U145: OPSD (2020) | V145: 10 | W145: 10 | X145: =(1-VLOOKUP(S145,Start!$H$33:$I$40,2,FALSE)/100)*W145 -> 8.7 | Y145: =VLOOKUP(R145,Start!$C$9:$D$15,2,FALSE)+VLOOKUP(R145,Start!$C$23:$D$29,2,FALSE) -> 45.66 | Z145: =(Y145/T145)+Start!$D$19*(VLOOKUP(R145,Start!$M$33:$N$39,2,FALSE)/T145)+VLOOKUP(S145,Start!$C$33:$D$40,2,FALSE) -> 177.2279865
C146: Ja | D146: SEE910161577337 | E146: In Betrieb | F146: Currenta GmbH & Co. OHG | G146: UER L57 M1 | H146: 47829 | I146: Krefeld | J146: Rheinuferstraße 7 | K146: Nordrhein-Westfalen | L146: 1993-12-15 | M146: Steinkohle | N146: Steinkohlen | O146: Steinkohle | P146: Ja | Q146: Gegendruckmaschine mit Entnahme | R146: Steinkohle | S146: Steinkohle | T146: 0.3175 | U146: OPSD (2020) | V146: 18.2 | W146: 17.097 | X146: =(1-VLOOKUP(S146,Start!$H$33:$I$40,2,FALSE)/100)*W146 -> 13.6776 | Y146: =VLOOKUP(R146,Start!$C$9:$D$15,2,FALSE)+VLOOKUP(R146,Start!$C$23:$D$29,2,FALSE) -> 17.84 | Z146: =(Y146/T146)+Start!$D$19*(VLOOKUP(R146,Start!$M$33:$N$39,2,FALSE)/T146)+VLOOKUP(S146,Start!$C$33:$D$40,2,FALSE) -> 147.2848819
C147: Ja | D147: SEE910326850336 | E147: In Betrieb | F147: BMW AG | G147: Regensburg KWK 1 | H147: 93055 | I147: Regensburg | J147: Herbert-Quandt-Allee 1 | K147: Bayern | L147: 2011-07-05 | M147: Erdgas | N147: Erdgas, Erdölgas | O147: Erdgas | P147: Ja | Q147: Verbrennungsmotor | R147: Erdgas | S147: GuD | T147: 0.3982 | U147: OPSD (2020) | V147: 2.678 | W147: 2.624 | X147: =(1-VLOOKUP(S147,Start!$H$33:$I$40,2,FALSE)/100)*W147 -> 2.28288 | Y147: =VLOOKUP(R147,Start!$C$9:$D$15,2,FALSE)+VLOOKUP(R147,Start!$C$23:$D$29,2,FALSE) -> 45.66 | Z147: =(Y147/T147)+Start!$D$19*(VLOOKUP(R147,Start!$M$33:$N$39,2,FALSE)/T147)+VLOOKUP(S147,Start!$C$33:$D$40,2,FALSE) -> 158.8696635
C148: Ja | D148: SEE910471578864 | E148: In Betrieb | F148: Stadtwerke Würzburg AG | G148: Heizkraftwerk an der Friedensbrücke DampfturbineII | H148: 97080 | I148: Würzburg | J148: Veitshöchheimer Straße 1 | K148: Bayern | L148: 1993-10-26 | M148: Erdgas | N148: Erdgas, Erdölgas | O148: Erdgas | P148: Ja | Q148: Kondensationsmaschine mit Entnahme | R148: Erdgas | S148: GuD | T148: 0.25 | U148: OPSD (2020) | V148: 25.5 | W148: 25 | X148: =(1-VLOOKUP(S148,Start!$H$33:$I$40,2,FALSE)/100)*W148 -> 21.75 | Y148: =VLOOKUP(R148,Start!$C$9:$D$15,2,FALSE)+VLOOKUP(R148,Start!$C$23:$D$29,2,FALSE) -> 45.66 | Z148: =(Y148/T148)+Start!$D$19*(VLOOKUP(R148,Start!$M$33:$N$39,2,FALSE)/T148)+VLOOKUP(S148,Start!$C$33:$D$40,2,FALSE) -> 252.1584
C149: Ja | D149: SEE910623192382 | E149: In Betrieb | F149: Südzucker AG | G149: Dampfturbine II Südzucker Offstein | H149: 67283 | I149: Obrigheim | J149: Wormser Straße 11 | K149: Rheinland-Pfalz | L149: 1969-01-01 | M149: Wärme | N149: Dampf (zum Beispiel Prozesswärme) | O149: Wärme | P149: Ja | Q149: Gegendruckmaschine ohne Entnahme | R149: Sonstige | S149: Sonstige | T149: 0.33 | U149: eigene Annahme | V149: 8.67 | W149: 7.48915 | X149: =(1-VLOOKUP(S149,Start!$H$33:$I$40,2,FALSE)/100)*W149 -> 6.3657775 | Y149: =VLOOKUP(R149,Start!$C$9:$D$15,2,FALSE)+VLOOKUP(R149,Start!$C$23:$D$29,2,FALSE) -> 86.87 | Z149: =(Y149/T149)+Start!$D$19*(VLOOKUP(R149,Start!$M$33:$N$39,2,FALSE)/T149)+VLOOKUP(S149,Start!$C$33:$D$40,2,FALSE) -> 319.1042424
C150: Ja | D150: SEE910823411191 | E150: In Betrieb | F150: BMW AG | G150: Werk 1.1 KWK 1 | H150: 80809 | I150: München | J150: Lerchenauer Straße 76 | K150: Bayern | L150: 2019-02-20 | M150: Erdgas | N150: Erdgas, Erdölgas | O150: Erdgas | P150: Ja | Q150: Verbrennungsmotor | R150: Erdgas | S150: GuD | T150: 0.4059 | U150: OPSD (2020) | V150: 4.5 | W150: 4.5 | X150: =(1-VLOOKUP(S150,Start!$H$33:$I$40,2,FALSE)/100)*W150 -> 3.915 | Y150: =VLOOKUP(R150,Start!$C$9:$D$15,2,FALSE)+VLOOKUP(R150,Start!$C$23:$D$29,2,FALSE) -> 45.66 | Z150: =(Y150/T150)+Start!$D$19*(VLOOKUP(R150,Start!$M$33:$N$39,2,FALSE)/T150)+VLOOKUP(S150,Start!$C$33:$D$40,2,FALSE) -> 155.8843311
C151: Ja | D151: SEE910877433255 | E151: In Betrieb | F151: ExxonMobil Production Deutschland GmbH | G151: Expansionsturbinen S2 | H151: 26197 | I151: Großenkneten | J151: vor dem esch 12 | K151: Niedersachsen | L151: 1992-01-01 | M151: Druck aus Wasserleitungen | O151: Sonstige Energieträger (nicht erneuerbar) | P151: Nein | Q151: Sonstige | R151: Sonstige | S151: Sonstige | T151: 0.385 | U151: eigene Annahme | V151: 1.3 | W151: 1.2 | X151: =(1-VLOOKUP(S151,Start!$H$33:$I$40,2,FALSE)/100)*W151 -> 1.02 | Y151: =VLOOKUP(R151,Start!$C$9:$D$15,2,FALSE)+VLOOKUP(R151,Start!$C$23:$D$29,2,FALSE) -> 86.87 | Z151: =(Y151/T151)+Start!$D$19*(VLOOKUP(R151,Start!$M$33:$N$39,2,FALSE)/T151)+VLOOKUP(S151,Start!$C$33:$D$40,2,FALSE) -> 273.6607792
C152: Ja | D152: SEE910951087138 | E152: In Betrieb | F152: MM Neuss GmbH | G152: MM Neuss GmbH GT1 | H152: 41460 | I152: Neuss | J152: Düsseldorfer Straße 182 | K152: Nordrhein-Westfalen | L152: 1992-07-01 | M152: Erdgas | N152: Erdgas, Erdölgas | O152: Erdgas | P152: Ja | Q152: Gasturbinen mit Abhitzekessel | R152: Erdgas | S152: GuD | T152: 0.3762 | U152: OPSD (2020) | V152: 6.2 | W152: 4.8 | X152: =(1-VLOOKUP(S152,Start!$H$33:$I$40,2,FALSE)/100)*W152 -> 4.176 | Y152: =VLOOKUP(R152,Start!$C$9:$D$15,2,FALSE)+VLOOKUP(R152,Start!$C$23:$D$29,2,FALSE) -> 45.66 | Z152: =(Y152/T152)+Start!$D$19*(VLOOKUP(R152,Start!$M$33:$N$39,2,FALSE)/T152)+VLOOKUP(S152,Start!$C$33:$D$40,2,FALSE) -> 168.0725678
C153: Ja | D153: SEE911097916719 | E153: In Betrieb | F153: Model Sachsen Papier GmbH | G153: Gasturbine Model Sachsen Papier | H153: 4838 | I153: Eilenburg | J153: Am Schanzberg 1 | K153: Sachsen | L153: 2009-12-15 | M153: Erdgas | N153: Erdgas, Erdölgas | O153: Erdgas | P153: Ja | Q153: Gasturbinen mit nachgeschalteter Dampfturbine | R153: Erdgas | S153: GuD | T153: 0.3773 | U153: OPSD (2020) | V153: 30.64926 | W153: 30.64926 | X153: =(1-VLOOKUP(S153,Start!$H$33:$I$40,2,FALSE)/100)*W153 -> 26.6648562 | Y153: =VLOOKUP(R153,Start!$C$9:$D$15,2,FALSE)+VLOOKUP(R153,Start!$C$23:$D$29,2,FALSE) -> 45.66 | Z153: =(Y153/T153)+Start!$D$19*(VLOOKUP(R153,Start!$M$33:$N$39,2,FALSE)/T153)+VLOOKUP(S153,Start!$C$33:$D$40,2,FALSE) -> 167.5869335
C154: Ja | D154: SEE911129038174 | E154: In Betrieb | F154: Stadtwerke Cottbus GmbH | G154: BHKW-Anlage | H154: 3052 | I154: Cottbus | J154: Werner-von-Siemens-Straße 16 | K154: Brandenburg | L154: 2022-09-15 | M154: Erdgas | N154: Erdgas, Erdölgas | O154: Erdgas | P154: Ja | Q154: Verbrennungsmotor | R154: Erdgas | S154: GuD | T154: 0.63 | U154: Annahme basierend auf DIW (2014) | V154: 53.916 | W154: 53.481 | X154: =(1-VLOOKUP(S154,Start!$H$33:$I$40,2,FALSE)/100)*W154 -> 46.52847 | Y154: =VLOOKUP(R154,Start!$C$9:$D$15,2,FALSE)+VLOOKUP(R154,Start!$C$23:$D$29,2,FALSE) -> 45.66 | Z154: =(Y154/T154)+Start!$D$19*(VLOOKUP(R154,Start!$M$33:$N$39,2,FALSE)/T154)+VLOOKUP(S154,Start!$C$33:$D$40,2,FALSE) -> 100.967619
C155: Ja | D155: SEE911257641864 | E155: In Betrieb | F155: Mercedes-Benz AG | G155: W065-Gebäude 120 / BHKW Modul 02 | H155: 40476 | I155: Düsseldorf | J155: Rather Straße 51 | K155: Nordrhein-Westfalen | L155: 2012-10-31 | M155: Erdgas | N155: Erdgas, Erdölgas | O155: Erdgas | P155: Ja | Q155: Gasturbinen mit Abhitzekessel | R155: Erdgas | S155: GuD | T155: 0.3982 | U155: OPSD (2020) | V155: 4.3 | W155: 4.2 | X155: =(1-VLOOKUP(S155,Start!$H$33:$I$40,2,FALSE)/100)*W155 -> 3.654 | Y155: =VLOOKUP(R155,Start!$C$9:$D$15,2,FALSE)+VLOOKUP(R155,Start!$C$23:$D$29,2,FALSE) -> 45.66 | Z155: =(Y155/T155)+Start!$D$19*(VLOOKUP(R155,Start!$M$33:$N$39,2,FALSE)/T155)+VLOOKUP(S155,Start!$C$33:$D$40,2,FALSE) -> 158.8696635
C156: Ja | D156: SEE911283118750 | E156: In Betrieb | F156: Industriekraftwerk Greifswald GmbH | G156: Industriekraftwerk Greifswald GmbH | H156: 17509 | I156: Lubmin | J156: Am Hafen 2 | K156: Mecklenburg-Vorpommern | L156: 2013-12-17 | M156: Erdgas | N156: Erdgas, Erdölgas | O156: Erdgas | P156: Ja | Q156: Gasturbinen mit Abhitzekessel | R156: Erdgas | S156: GuD | T156: 0.3993 | U156: OPSD (2018) | V156: 39 | W156: 38.2 | X156: =(1-VLOOKUP(S156,Start!$H$33:$I$40,2,FALSE)/100)*W156 -> 33.234 | Y156: =VLOOKUP(R156,Start!$C$9:$D$15,2,FALSE)+VLOOKUP(R156,Start!$C$23:$D$29,2,FALSE) -> 45.66 | Z156: =(Y156/T156)+Start!$D$19*(VLOOKUP(R156,Start!$M$33:$N$39,2,FALSE)/T156)+VLOOKUP(S156,Start!$C$33:$D$40,2,FALSE) -> 158.4361382
C157: Ja | D157: SEE911507913505 | E157: In Betrieb | F157: Kelheim Fibres GmbH | G157: Turbine 2 | H157: 93309 | I157: Kelheim | J157: Regensburger Straße 109 | K157: Bayern | L157: 1990-07-18 | M157: Erdgas | N157: Erdgas, Erdölgas | O157: Erdgas | P157: Ja | Q157: Gegendruckmaschine ohne Entnahme | R157: Erdgas | S157: GuD | T157: 0.35 | U157: eigene Annahme | V157: 2.943 | W157: 2.722 | X157: =(1-VLOOKUP(S157,Start!$H$33:$I$40,2,FALSE)/100)*W157 -> 2.36814 | Y157: =VLOOKUP(R157,Start!$C$9:$D$15,2,FALSE)+VLOOKUP(R157,Start!$C$23:$D$29,2,FALSE) -> 45.66 | Z157: =(Y157/T157)+Start!$D$19*(VLOOKUP(R157,Start!$M$33:$N$39,2,FALSE)/T157)+VLOOKUP(S157,Start!$C$33:$D$40,2,FALSE) -> 180.5417143
C158: Ja | D158: SEE911567250299 | E158: In Betrieb | F158: Uniper Kraftwerke GmbH | G158: Itzehoe GT | H158: 25588 | I158: Oldendorf | J158: Straße nach Huje 1 | K158: Schleswig-Holstein | L158: 1972-01-01 | M158: Mineralölprodukte | N158: Heizöl, leicht | O158: Mineralölprodukte | P158: Nein | Q158: Gasturbinen ohne Abhitzekessel | R158: Öl | S158: Öl | T158: 0.3542 | U158: OPSD (2020) | V158: 88 | W158: 87 | X158: =(1-VLOOKUP(S158,Start!$H$33:$I$40,2,FALSE)/100)*W158 -> 73.95 | Y158: =VLOOKUP(R158,Start!$C$9:$D$15,2,FALSE)+VLOOKUP(R158,Start!$C$23:$D$29,2,FALSE) -> 87.17 | Z158: =(Y158/T158)+Start!$D$19*(VLOOKUP(R158,Start!$M$33:$N$39,2,FALSE)/T158)+VLOOKUP(S158,Start!$C$33:$D$40,2,FALSE) -> 313.9813665
C159: Ja | D159: SEE911613995433 | E159: In Betrieb | F159: EnBW Energie Baden-Württemberg AG | G159: Kraftwerk Walheim GTD | H159: 74399 | I159: Walheim | J159: Mühlstraße 1 | K159: Baden-Württemberg | L159: 1981-05-13 | M159: Mineralölprodukte | N159: Heizöl, leicht | O159: Mineralölprodukte | P159: Nein | Q159: Gasturbinen ohne Abhitzekessel | R159: Öl | S159: Öl | T159: 0.3306 | U159: OPSD (2020) | V159: 143 | W159: 136 | X159: =(1-VLOOKUP(S159,Start!$H$33:$I$40,2,FALSE)/100)*W159 -> 115.6 | Y159: =VLOOKUP(R159,Start!$C$9:$D$15,2,FALSE)+VLOOKUP(R159,Start!$C$23:$D$29,2,FALSE) -> 87.17 | Z159: =(Y159/T159)+Start!$D$19*(VLOOKUP(R159,Start!$M$33:$N$39,2,FALSE)/T159)+VLOOKUP(S159,Start!$C$33:$D$40,2,FALSE) -> 336.323654
C160: Ja | D160: SEE911671792326 | E160: In Betrieb | F160: RWE Generation SE | G160: Emsland D GT1 | H160: 49808 | I160: Lingen | J160: Schüttorfer Straße 100 | K160: Niedersachsen | L160: 2010-09-08 | M160: Erdgas | N160: Erdgas, Erdölgas | O160: Erdgas | P160: Ja | Q160: Gasturbinen mit nachgeschalteter Dampfturbine | R160: Erdgas | S160: GuD | T160: 0.592 | U160: OPSD (2020) | V160: 297.93 | W160: 293.5 | X160: =(1-VLOOKUP(S160,Start!$H$33:$I$40,2,FALSE)/100)*W160 -> 255.345 | Y160: =VLOOKUP(R160,Start!$C$9:$D$15,2,FALSE)+VLOOKUP(R160,Start!$C$23:$D$29,2,FALSE) -> 45.66 | Z160: =(Y160/T160)+Start!$D$19*(VLOOKUP(R160,Start!$M$33:$N$39,2,FALSE)/T160)+VLOOKUP(S160,Start!$C$33:$D$40,2,FALSE) -> 107.3523649
C161: Ja | D161: SEE911689709217 | E161: In Betrieb | F161: Smurfit Kappa Herzberg Solid Board GmbH | G161: Dampfturbine 2 | H161: 37412 | I161: Herzberg | J161: Andreasberger Straße 1 | K161: Niedersachsen | L161: 1957-01-01 | M161: Erdgas | N161: Erdgas, Erdölgas | O161: Erdgas | P161: Ja | Q161: Kondensationsmaschine mit Entnahme | R161: Erdgas | S161: GuD | T161: 0.4 | U161: eigene Annahme | V161: 6.4 | W161: 6 | X161: =(1-VLOOKUP(S161,Start!$H$33:$I$40,2,FALSE)/100)*W161 -> 5.22 | Y161: =VLOOKUP(R161,Start!$C$9:$D$15,2,FALSE)+VLOOKUP(R161,Start!$C$23:$D$29,2,FALSE) -> 45.66 | Z161: =(Y161/T161)+Start!$D$19*(VLOOKUP(R161,Start!$M$33:$N$39,2,FALSE)/T161)+VLOOKUP(S161,Start!$C$33:$D$40,2,FALSE) -> 158.1615
C162: Ja | D162: SEE911764038249 | E162: in Betrieb | F162: Uniper Kraftwerke GmbH | G162: Franken DT1 | H162: 90449 | I162: Nürnberg | J162: Felsenstraße 14 | K162: Bayern | L162: 1973-01-01 | M162: Erdgas | N162: Erdgas, Erdölgas | O162: Erdgas | P162: Ja | Q162: Kondensationsmaschine mit Entnahme | R162: Erdgas | S162: GuD | T162: 0.4185 | U162: OPSD (2020) | V162: 395 | W162: 383 | X162: =(1-VLOOKUP(S162,Start!$H$33:$I$40,2,FALSE)/100)*W162 -> 333.21 | Y162: =VLOOKUP(R162,Start!$C$9:$D$15,2,FALSE)+VLOOKUP(R162,Start!$C$23:$D$29,2,FALSE) -> 45.66 | Z162: =(Y162/T162)+Start!$D$19*(VLOOKUP(R162,Start!$M$33:$N$39,2,FALSE)/T162)+VLOOKUP(S162,Start!$C$33:$D$40,2,FALSE) -> 151.2362007
C163: Ja | D163: SEE911850657996 | E163: In Betrieb | F163: Currenta GmbH & Co. OHG | G163: UER N230 VST1 | H163: 47829 | I163: Krefeld | J163: Rheinuferstraße 7 | K163: Nordrhein-Westfalen | L163: 1963-01-28 | M163: Steinkohle | N163: Steinkohlen | O163: Steinkohle | P163: Ja | Q163: Gegendruckmaschine ohne Entnahme | R163: Steinkohle | S163: Steinkohle | T163: 0.3525 | U163: OPSD (2020) | V163: 9 | W163: 6.5 | X163: =(1-VLOOKUP(S163,Start!$H$33:$I$40,2,FALSE)/100)*W163 -> 5.2 | Y163: =VLOOKUP(R163,Start!$C$9:$D$15,2,FALSE)+VLOOKUP(R163,Start!$C$23:$D$29,2,FALSE) -> 17.84 | Z163: =(Y163/T163)+Start!$D$19*(VLOOKUP(R163,Start!$M$33:$N$39,2,FALSE)/T163)+VLOOKUP(S163,Start!$C$33:$D$40,2,FALSE) -> 132.7899291
C164: Ja | D164: SEE912020488365 | E164: In Betrieb | F164: thyssenkrupp Steel Europe AG | G164: Ruhrort 2 | H164: 47166 | I164: Duisburg | J164: Kaiser-Wilhelm-Str. 100 | K164: Nordrhein-Westfalen | L164: 1955-01-01 | M164: andere Gase | N164: Hochofengas, Konvertergas | O164: Sonstige Energieträger (nicht erneuerbar) | P164: Ja | Q164: Kondensationsmaschine mit Entnahme | R164: Erdgas | S164: GuD | T164: 0.33 | U164: Annahme basierend auf DIW (2014) | V164: 64 | W164: 59.6 | X164: =(1-VLOOKUP(S164,Start!$H$33:$I$40,2,FALSE)/100)*W164 -> 51.852 | Y164: =VLOOKUP(R164,Start!$C$9:$D$15,2,FALSE)+VLOOKUP(R164,Start!$C$23:$D$29,2,FALSE) -> 45.66 | Z164: =(Y164/T164)+Start!$D$19*(VLOOKUP(R164,Start!$M$33:$N$39,2,FALSE)/T164)+VLOOKUP(S164,Start!$C$33:$D$40,2,FALSE) -> 191.3927273
C165: Ja | D165: SEE912160334607 | E165: In Betrieb | F165: TotalEnergies Raffinerie Mitteldeutschland GmbH | G165: Leuna GT2 | H165: 6237 | I165: Leuna | K165: Sachsen-Anhalt | L165: 1994-07-01 | M165: Erdgas | N165: Erdgas, Erdölgas | O165: Erdgas | P165: Ja | Q165: Gasturbinen mit Abhitzekessel | R165: Erdgas | S165: GuD | T165: 0.513 | U165: OPSD (2020) | V165: 37.6 | W165: 37 | X165: =(1-VLOOKUP(S165,Start!$H$33:$I$40,2,FALSE)/100)*W165 -> 32.19 | Y165: =VLOOKUP(R165,Start!$C$9:$D$15,2,FALSE)+VLOOKUP(R165,Start!$C$23:$D$29,2,FALSE) -> 45.66 | Z165: =(Y165/T165)+Start!$D$19*(VLOOKUP(R165,Start!$M$33:$N$39,2,FALSE)/T165)+VLOOKUP(S165,Start!$C$33:$D$40,2,FALSE) -> 123.6532164
C166: Ja | D166: SEE912224455828 | E166: In Betrieb | F166: eins energie in sachsen GmbH & Co. KG | G166: Motor-Heizkraftwerk Chemnitz-Süd, Motor 2 | H166: 9125 | I166: Chemnitz | J166: Südstraße 1 | K166: Sachsen | L166: 2022-12-21 | M166: Erdgas | N166: Erdgas, Erdölgas | O166: Erdgas | P166: Ja | Q166: Verbrennungsmotor | R166: Erdgas | S166: GuD | T166: 0.63 | U166: Annahme basierend auf DIW (2014) | V166: 12.9 | W166: 12.7314 | X166: =(1-VLOOKUP(S166,Start!$H$33:$I$40,2,FALSE)/100)*W166 -> 11.076318 | Y166: =VLOOKUP(R166,Start!$C$9:$D$15,2,FALSE)+VLOOKUP(R166,Start!$C$23:$D$29,2,FALSE) -> 45.66 | Z166: =(Y166/T166)+Start!$D$19*(VLOOKUP(R166,Start!$M$33:$N$39,2,FALSE)/T166)+VLOOKUP(S166,Start!$C$33:$D$40,2,FALSE) -> 100.967619
C167: Ja | D167: SEE912257091857 | E167: In Betrieb | F167: MHKW Müllheizkraftwerk Frankfurt am Main GmbH | G167: Turbine 7 | H167: 60439 | I167: Frankfurt | J167: Heddernheimer Landstraße 157 | K167: Hessen | L167: 2005-12-21 | M167: nicht biogener Abfall | N167: Abfall (Hausmüll, Siedl.abf.) | O167: Abfall | P167: Ja | Q167: Kondensationsmaschine mit Entnahme | R167: Abfall | S167: Abfall | T167: 0.33 | U167: OPSD (2020) | V167: 47.5 | W167: 46.5 | X167: =(1-VLOOKUP(S167,Start!$H$33:$I$40,2,FALSE)/100)*W167 -> 39.525 | Y167: =VLOOKUP(R167,Start!$C$9:$D$15,2,FALSE)+VLOOKUP(R167,Start!$C$23:$D$29,2,FALSE) -> 0 | Z167: =(Y167/T167)+Start!$D$19*(VLOOKUP(R167,Start!$M$33:$N$39,2,FALSE)/T167)+VLOOKUP(S167,Start!$C$33:$D$40,2,FALSE) -> 1
C168: Ja | D168: SEE912583238223 | E168: In Betrieb | F168: TEAG Thüringer Energie AG | G168: Gasmotor 3 Jena | H168: 7745 | I168: Jena | J168: Rudolstädter Straße 41 | K168: Thüringen | L168: 2022-11-04 | M168: Erdgas | N168: Erdgas, Erdölgas | O168: Erdgas | P168: Ja | Q168: Verbrennungsmotor | R168: Erdgas | S168: GuD | T168: 0.63 | U168: Annahme basierend auf DIW (2014) | V168: 12.6 | W168: 12.175 | X168: =(1-VLOOKUP(S168,Start!$H$33:$I$40,2,FALSE)/100)*W168 -> 10.59225 | Y168: =VLOOKUP(R168,Start!$C$9:$D$15,2,FALSE)+VLOOKUP(R168,Start!$C$23:$D$29,2,FALSE) -> 45.66 | Z168: =(Y168/T168)+Start!$D$19*(VLOOKUP(R168,Start!$M$33:$N$39,2,FALSE)/T168)+VLOOKUP(S168,Start!$C$33:$D$40,2,FALSE) -> 100.967619
C169: Ja | D169: SEE912764206645 | E169: In Betrieb | F169: Erlanger Stadtwerke AG | G169: HKW - GuD1 | H169: 91052 | I169: Erlangen | J169: Äußere Brucker Straße 33 | K169: Bayern | L169: 2005-09-14 | M169: Erdgas | N169: Erdgas, Erdölgas | O169: Erdgas | P169: Ja | Q169: Gasturbinen mit nachgeschalteter Dampfturbine | R169: Erdgas | S169: GuD | T169: 0.5625 | U169: OPSD (2020) | V169: 22.5 | W169: 21.6 | X169: =(1-VLOOKUP(S169,Start!$H$33:$I$40,2,FALSE)/100)*W169 -> 18.792 | Y169: =VLOOKUP(R169,Start!$C$9:$D$15,2,FALSE)+VLOOKUP(R169,Start!$C$23:$D$29,2,FALSE) -> 45.66 | Z169: =(Y169/T169)+Start!$D$19*(VLOOKUP(R169,Start!$M$33:$N$39,2,FALSE)/T169)+VLOOKUP(S169,Start!$C$33:$D$40,2,FALSE) -> 112.9037333
C170: Ja | D170: SEE912906399075 | E170: In Betrieb | F170: Palm Power GmbH & Co. KG | G170: HKW Eltmann | H170: 97483 | I170: Eltmann | J170: Industriestraße 23 | K170: Bayern | L170: 2017-02-07 | M170: Erdgas | N170: Erdgas, Erdölgas | O170: Erdgas | P170: Ja | Q170: Gasturbinen mit nachgeschalteter Dampfturbine | R170: Erdgas | S170: GuD | T170: 0.3927 | U170: OPSD (2020) | V170: 62.808 | W170: 62.808 | X170: =(1-VLOOKUP(S170,Start!$H$33:$I$40,2,FALSE)/100)*W170 -> 54.64296 | Y170: =VLOOKUP(R170,Start!$C$9:$D$15,2,FALSE)+VLOOKUP(R170,Start!$C$23:$D$29,2,FALSE) -> 45.66 | Z170: =(Y170/T170)+Start!$D$19*(VLOOKUP(R170,Start!$M$33:$N$39,2,FALSE)/T170)+VLOOKUP(S170,Start!$C$33:$D$40,2,FALSE) -> 161.0737204
C171: Ja | D171: SEE912912423627 | E171: In Betrieb | F171: Mineraloelraffinerie Oberrhein | G171: Expander | H171: 76187 | I171: Karlsruhe | J171: Nördliche Raffineriestraße 1 | K171: Baden-Württemberg | L171: 1995-06-17 | M171: Mineralölprodukte | N171: Andere Mineralölprodukte | O171: Mineralölprodukte | P171: Nein | Q171: Sonstige | R171: Öl | S171: Öl | T171: 0.3795 | U171: OPSD (2020) | V171: 19 | W171: 18.9 | X171: =(1-VLOOKUP(S171,Start!$H$33:$I$40,2,FALSE)/100)*W171 -> 16.065 | Y171: =VLOOKUP(R171,Start!$C$9:$D$15,2,FALSE)+VLOOKUP(R171,Start!$C$23:$D$29,2,FALSE) -> 87.17 | Z171: =(Y171/T171)+Start!$D$19*(VLOOKUP(R171,Start!$M$33:$N$39,2,FALSE)/T171)+VLOOKUP(S171,Start!$C$33:$D$40,2,FALSE) -> 293.115942
C172: Ja | D172: SEE912935247576 | E172: In Betrieb | F172: TotalEnergies Raffinerie Mitteldeutschland GmbH | G172: Raffineriekraftwerk Leuna MDT | H172: 6237 | I172: Leuna | J172: Am Haupttor 3691 | K172: Sachsen-Anhalt | L172: 1997-01-01 | M172: Mineralölprodukte | N172: Andere Mineralölprodukte | O172: Mineralölprodukte | P172: Ja | Q172: Gegendruckmaschine mit Entnahme | R172: Öl | S172: Öl | T172: 0.38 | U172: OPSD (2020) | V172: 38.3 | W172: 33.4 | X172: =(1-VLOOKUP(S172,Start!$H$33:$I$40,2,FALSE)/100)*W172 -> 28.39 | Y172: =VLOOKUP(R172,Start!$C$9:$D$15,2,FALSE)+VLOOKUP(R172,Start!$C$23:$D$29,2,FALSE) -> 87.17 | Z172: =(Y172/T172)+Start!$D$19*(VLOOKUP(R172,Start!$M$33:$N$39,2,FALSE)/T172)+VLOOKUP(S172,Start!$C$33:$D$40,2,FALSE) -> 292.7315789
C173: Ja | D173: SEE912975333499 | E173: In Betrieb | F173: UPM GmbH | G173: UPM Schongau HKW 3 GT | H173: 86956 | I173: Schongau | J173: Friedrich-Haindl-Straße 10 | K173: Bayern | L173: 2014-12-20 | M173: Erdgas | N173: Erdgas, Erdölgas | O173: Erdgas | P173: Ja | Q173: Gasturbinen mit Abhitzekessel | R173: Erdgas | S173: GuD | T173: 0.4004 | U173: OPSD (2020) | V173: 47 | W173: 44.328 | X173: =(1-VLOOKUP(S173,Start!$H$33:$I$40,2,FALSE)/100)*W173 -> 38.56536 | Y173: =VLOOKUP(R173,Start!$C$9:$D$15,2,FALSE)+VLOOKUP(R173,Start!$C$23:$D$29,2,FALSE) -> 45.66 | Z173: =(Y173/T173)+Start!$D$19*(VLOOKUP(R173,Start!$M$33:$N$39,2,FALSE)/T173)+VLOOKUP(S173,Start!$C$33:$D$40,2,FALSE) -> 158.004995
C174: Ja | D174: SEE912978354040 | E174: In Betrieb | F174: GLOBALFOUNDRIES Dresden Module One LLC & Co. KG | G174: Gasmotoren-Blockheizkraftwerk II (Generator 6) | H174: 1468 | I174: Moritzburg | J174: Ringstraße 3 | K174: Sachsen | L174: 2004-11-10 | M174: Erdgas | N174: Erdgas, Erdölgas | O174: Erdgas | P174: Ja | Q174: Verbrennungsmotor | R174: Erdgas | S174: GuD | T174: 0.54 | U174: Annahme basierend auf DIW (2014) | V174: 3.832 | W174: 3.772 | X174: =(1-VLOOKUP(S174,Start!$H$33:$I$40,2,FALSE)/100)*W174 -> 3.28164 | Y174: =VLOOKUP(R174,Start!$C$9:$D$15,2,FALSE)+VLOOKUP(R174,Start!$C$23:$D$29,2,FALSE) -> 45.66 | Z174: =(Y174/T174)+Start!$D$19*(VLOOKUP(R174,Start!$M$33:$N$39,2,FALSE)/T174)+VLOOKUP(S174,Start!$C$33:$D$40,2,FALSE) -> 117.5455556
C175: Ja | D175: SEE912994271871 | E175: In Betrieb | F175: thyssenkrupp Steel Europe AG | G175: Hamborn 3 | H175: 47166 | I175: Duisburg | J175: Kaiser-Wilhelm-Str. 100 | K175: Nordrhein-Westfalen | L175: 1958-01-01 | M175: andere Gase | N175: Hochofengas, Konvertergas | O175: Sonstige Energieträger (nicht erneuerbar) | P175: Ja | Q175: Kondensationsmaschine mit Entnahme | R175: Erdgas | S175: GuD | T175: 0.33 | U175: Annahme basierend auf DIW (2014) | V175: 64 | W175: 59.6 | X175: =(1-VLOOKUP(S175,Start!$H$33:$I$40,2,FALSE)/100)*W175 -> 51.852 | Y175: =VLOOKUP(R175,Start!$C$9:$D$15,2,FALSE)+VLOOKUP(R175,Start!$C$23:$D$29,2,FALSE) -> 45.66 | Z175: =(Y175/T175)+Start!$D$19*(VLOOKUP(R175,Start!$M$33:$N$39,2,FALSE)/T175)+VLOOKUP(S175,Start!$C$33:$D$40,2,FALSE) -> 191.3927273
C176: Ja | D176: SEE913088869400 | E176: In Betrieb | F176: Städtische Werke Energie + Wärme GmbH | G176: Kombi-HKW GT1 | H176: 34134 | I176: Kassel | J176: Dennhäuser Straße 122 | K176: Hessen | L176: 2021-03-31 | M176: Erdgas | N176: Erdgas, Erdölgas | O176: Erdgas | P176: Ja | Q176: Gasturbinen mit nachgeschalteter Dampfturbine | R176: Erdgas | S176: GuD | T176: 0.63 | U176: Annahme basierend auf DIW (2014) | V176: 15.68 | W176: 15.29 | X176: =(1-VLOOKUP(S176,Start!$H$33:$I$40,2,FALSE)/100)*W176 -> 13.3023 | Y176: =VLOOKUP(R176,Start!$C$9:$D$15,2,FALSE)+VLOOKUP(R176,Start!$C$23:$D$29,2,FALSE) -> 45.66 | Z176: =(Y176/T176)+Start!$D$19*(VLOOKUP(R176,Start!$M$33:$N$39,2,FALSE)/T176)+VLOOKUP(S176,Start!$C$33:$D$40,2,FALSE) -> 100.967619
C177: Ja | D177: SEE913203719740 | E177: In Betrieb | F177: AG der Dillinger Hüttenwerke | G177: GKW | H177: 66763 | I177: Dillingen | J177: Werkstraße 1 | K177: Saarland | L177: 2009-04-22 | M177: andere Gase | N177: Hochofengas, Konvertergas | O177: Sonstige Energieträger (nicht erneuerbar) | P177: Ja | Q177: Kondensationsmaschine mit Entnahme | R177: Erdgas | S177: GuD | T177: 0.585 | U177: Annahme basierend auf DIW (2014) | V177: 95.558 | W177: 89.337 | X177: =(1-VLOOKUP(S177,Start!$H$33:$I$40,2,FALSE)/100)*W177 -> 77.72319 | Y177: =VLOOKUP(R177,Start!$C$9:$D$15,2,FALSE)+VLOOKUP(R177,Start!$C$23:$D$29,2,FALSE) -> 45.66 | Z177: =(Y177/T177)+Start!$D$19*(VLOOKUP(R177,Start!$M$33:$N$39,2,FALSE)/T177)+VLOOKUP(S177,Start!$C$33:$D$40,2,FALSE) -> 108.6189744
C178: Ja | D178: SEE913280112274 | E178: In Betrieb | F178: K+S Minerals and Agriculture GmbH | G178: Kraftwerk HA DT4 | H178: 36269 | I178: Philippsthal | J178: Hattorfer Straße 1 | K178: Hessen | L178: 1962-07-02 | M178: Wärme | N178: Dampf (zum Beispiel Prozesswärme) | O178: Erdgas | P178: Ja | Q178: Gegendruckmaschine mit Entnahme | R178: Erdgas | S178: GuD | T178: 0.3993 | U178: OPSD (2020) | V178: 21 | W178: 21 | X178: =(1-VLOOKUP(S178,Start!$H$33:$I$40,2,FALSE)/100)*W178 -> 18.27 | Y178: =VLOOKUP(R178,Start!$C$9:$D$15,2,FALSE)+VLOOKUP(R178,Start!$C$23:$D$29,2,FALSE) -> 45.66 | Z178: =(Y178/T178)+Start!$D$19*(VLOOKUP(R178,Start!$M$33:$N$39,2,FALSE)/T178)+VLOOKUP(S178,Start!$C$33:$D$40,2,FALSE) -> 158.4361382
C179: Ja | D179: SEE913282681389 | E179: In Betrieb | F179: Südzucker AG | G179: Dampfturbine I Südzucker Plattling | H179: 94447 | I179: Plattling | J179: Dr.-Ludwig-Kayser-Straße 1 | K179: Bayern | L179: 1962-07-09 | M179: Wärme | N179: Dampf (zum Beispiel Prozesswärme) | O179: Wärme | P179: Ja | Q179: Gegendruckmaschine ohne Entnahme | R179: Sonstige | S179: Sonstige | T179: 0.33 | U179: eigene Annahme | V179: 7.1 | W179: 6.7895 | X179: =(1-VLOOKUP(S179,Start!$H$33:$I$40,2,FALSE)/100)*W179 -> 5.771075 | Y179: =VLOOKUP(R179,Start!$C$9:$D$15,2,FALSE)+VLOOKUP(R179,Start!$C$23:$D$29,2,FALSE) -> 86.87 | Z179: =(Y179/T179)+Start!$D$19*(VLOOKUP(R179,Start!$M$33:$N$39,2,FALSE)/T179)+VLOOKUP(S179,Start!$C$33:$D$40,2,FALSE) -> 319.1042424
C180: Ja | D180: SEE913516809497 | E180: In Betrieb | F180: Uniper Kraftwerke GmbH | G180: Datteln 4 | H180: 45711 | I180: Datteln | J180: Im Löringhof 10 | K180: Nordrhein-Westfalen | L180: 2020-05-30 | M180: Steinkohle | N180: Steinkohlen | O180: Steinkohle | P180: Ja | Q180: Kondensationsmaschine mit Entnahme | R180: Steinkohle | S180: Steinkohle | T180: 0.45 | U180: https://www.uniper.energy/de/datteln-4 | V180: 1100 | W180: 1052 | X180: =(1-VLOOKUP(S180,Start!$H$33:$I$40,2,FALSE)/100)*W180 -> 841.6 | Y180: =VLOOKUP(R180,Start!$C$9:$D$15,2,FALSE)+VLOOKUP(R180,Start!$C$23:$D$29,2,FALSE) -> 17.84 | Z180: =(Y180/T180)+Start!$D$19*(VLOOKUP(R180,Start!$M$33:$N$39,2,FALSE)/T180)+VLOOKUP(S180,Start!$C$33:$D$40,2,FALSE) -> 104.3004444
C181: Ja | D181: SEE913556136355 | E181: In Betrieb | F181: Evonik Operations GmbH | G181: Rheinfelden Dampfturbine | H181: 79618 | I181: Rheinfelden | J181: Untere Kanalstraße 3 | K181: Baden-Württemberg | L181: 2006-01-01 | M181: Erdgas | N181: Erdgas, Erdölgas | O181: Erdgas | P181: Ja | Q181: Gegendruckmaschine mit Entnahme | R181: Erdgas | S181: GuD | T181: 0.3619 | U181: OPSD (2020) | V181: 6.43 | W181: 6.43 | X181: =(1-VLOOKUP(S181,Start!$H$33:$I$40,2,FALSE)/100)*W181 -> 5.5941 | Y181: =VLOOKUP(R181,Start!$C$9:$D$15,2,FALSE)+VLOOKUP(R181,Start!$C$23:$D$29,2,FALSE) -> 45.66 | Z181: =(Y181/T181)+Start!$D$19*(VLOOKUP(R181,Start!$M$33:$N$39,2,FALSE)/T181)+VLOOKUP(S181,Start!$C$33:$D$40,2,FALSE) -> 174.6544626
C182: Ja | D182: SEE913600410226 | E182: In Betrieb | F182: Iqony Gasmotoren Fenne 2 GmbH | G182: Gasmotor 4 Mod. | H182: 66333 | I182: Völklingen | J182: Saarbrücker Straße 135-137 | K182: Saarland | L182: 2021-11-05 | M182: Erdgas | N182: Erdgas, Erdölgas | O182: Erdgas | P182: Ja | Q182: Verbrennungsmotor | R182: Erdgas | S182: GuD | T182: 0.45 | U182: https://www.steag.com/de/leistungen/konventionelle-energieerzeugung | V182: 3.352 | W182: 3.334 | X182: =(1-VLOOKUP(S182,Start!$H$33:$I$40,2,FALSE)/100)*W182 -> 2.90058 | Y182: =VLOOKUP(R182,Start!$C$9:$D$15,2,FALSE)+VLOOKUP(R182,Start!$C$23:$D$29,2,FALSE) -> 45.66 | Z182: =(Y182/T182)+Start!$D$19*(VLOOKUP(R182,Start!$M$33:$N$39,2,FALSE)/T182)+VLOOKUP(S182,Start!$C$33:$D$40,2,FALSE) -> 140.7546667
C183: Ja | D183: SEE913609763316 | E183: In Betrieb | F183: Infraserv GmbH & Co. Wiesbaden KG | G183: Generator 1 Erdgas | H183: 65203 | I183: Wiesbaden | J183: Rheingaustraße | K183: Hessen | L183: 1981-08-31 | M183: Erdgas | N183: Erdgas, Erdölgas | O183: Erdgas | P183: Ja | Q183: Gegendruckmaschine ohne Entnahme | R183: Erdgas | S183: GuD | T183: 0.3916 | U183: OPSD (2020) | V183: 7.25 | W183: 7.25 | X183: =(1-VLOOKUP(S183,Start!$H$33:$I$40,2,FALSE)/100)*W183 -> 6.3075 | Y183: =VLOOKUP(R183,Start!$C$9:$D$15,2,FALSE)+VLOOKUP(R183,Start!$C$23:$D$29,2,FALSE) -> 45.66 | Z183: =(Y183/T183)+Start!$D$19*(VLOOKUP(R183,Start!$M$33:$N$39,2,FALSE)/T183)+VLOOKUP(S183,Start!$C$33:$D$40,2,FALSE) -> 161.5219612
C184: Ja | D184: SEE913896693631 | E184: In Betrieb | F184: Hamburger Energiewerke GmbH | G184: GuD Tiefstack | H184: 22113 | I184: Hamburg | J184: Andreas-Meyer-Straße 8 | K184: Hamburg | L184: 2009-05-01 | M184: Erdgas | N184: Erdgas, Erdölgas | O184: Erdgas | P184: Ja | Q184: Gasturbinen mit nachgeschalteter Dampfturbine | R184: Erdgas | S184: GuD | T184: 0.5805 | U184: OPSD (2020) | V184: 129.4 | W184: 127 | X184: =(1-VLOOKUP(S184,Start!$H$33:$I$40,2,FALSE)/100)*W184 -> 110.49 | Y184: =VLOOKUP(R184,Start!$C$9:$D$15,2,FALSE)+VLOOKUP(R184,Start!$C$23:$D$29,2,FALSE) -> 45.66 | Z184: =(Y184/T184)+Start!$D$19*(VLOOKUP(R184,Start!$M$33:$N$39,2,FALSE)/T184)+VLOOKUP(S184,Start!$C$33:$D$40,2,FALSE) -> 109.449354
C185: Ja | D185: SEE913985941537 | E185: In Betrieb | F185: medl GmbH | G185: medl BHKW Broich Modul 2 neu | H185: 45479 | I185: Mülheim | J185: Duisburger Straße 50 | K185: Nordrhein-Westfalen | L185: 2020-11-30 | M185: Erdgas | N185: Erdgas, Erdölgas | O185: Erdgas | P185: Ja | Q185: Verbrennungsmotor | R185: Erdgas | S185: GuD | T185: 0.63 | U185: Annahme basierend auf DIW (2014) | V185: 2.673 | W185: 2.673 | X185: =(1-VLOOKUP(S185,Start!$H$33:$I$40,2,FALSE)/100)*W185 -> 2.32551 | Y185: =VLOOKUP(R185,Start!$C$9:$D$15,2,FALSE)+VLOOKUP(R185,Start!$C$23:$D$29,2,FALSE) -> 45.66 | Z185: =(Y185/T185)+Start!$D$19*(VLOOKUP(R185,Start!$M$33:$N$39,2,FALSE)/T185)+VLOOKUP(S185,Start!$C$33:$D$40,2,FALSE) -> 100.967619
C186: Ja | D186: SEE914143996840 | E186: In Betrieb | F186: Sasol Germany GmbH | G186: GT3 | H186: 25541 | I186: Brunsbüttel | J186: Fritz-Staiger-Straße 15 | K186: Schleswig-Holstein | L186: 2020-10-02 | M186: Erdgas | N186: Erdgas, Erdölgas | O186: Erdgas | P186: Ja | Q186: Gasturbinen mit Abhitzekessel | R186: Erdgas | S186: GuD | T186: 0.4 | U186: eigene Annahme | V186: 7.486 | W186: 7.428 | X186: =(1-VLOOKUP(S186,Start!$H$33:$I$40,2,FALSE)/100)*W186 -> 6.46236 | Y186: =VLOOKUP(R186,Start!$C$9:$D$15,2,FALSE)+VLOOKUP(R186,Start!$C$23:$D$29,2,FALSE) -> 45.66 | Z186: =(Y186/T186)+Start!$D$19*(VLOOKUP(R186,Start!$M$33:$N$39,2,FALSE)/T186)+VLOOKUP(S186,Start!$C$33:$D$40,2,FALSE) -> 158.1615
C187: Ja | D187: SEE914179988338 | E187: In Betrieb | F187: Enertec Hameln GmbH | G187: Turbine 6 | H187: 31789 | I187: Hameln | J187: Heinrich-Schoormann-Weg 1 | K187: Niedersachsen | L187: 1970-11-13 | M187: nicht biogener Abfall | N187: Abfall (Hausmüll, Siedl.abf.) | O187: Abfall | P187: Ja | Q187: Gegendruckmaschine ohne Entnahme | R187: Abfall | S187: Abfall | T187: 0.33 | U187: OPSD (2020) | V187: 4.25 | W187: 2.55 | X187: =(1-VLOOKUP(S187,Start!$H$33:$I$40,2,FALSE)/100)*W187 -> 2.1675 | Y187: =VLOOKUP(R187,Start!$C$9:$D$15,2,FALSE)+VLOOKUP(R187,Start!$C$23:$D$29,2,FALSE) -> 0 | Z187: =(Y187/T187)+Start!$D$19*(VLOOKUP(R187,Start!$M$33:$N$39,2,FALSE)/T187)+VLOOKUP(S187,Start!$C$33:$D$40,2,FALSE) -> 1
C188: Ja | D188: SEE914187135533 | E188: In Betrieb | F188: Mineraloelraffinerie Oberrhein | G188: Maschine 2 | H188: 76187 | I188: Karlsruhe | J188: Nördliche Raffineriestraße 1 | K188: Baden-Württemberg | L188: 1995-06-17 | M188: Mineralölprodukte | N188: Raffineriegas | O188: Mineralölprodukte | P188: Ja | Q188: Kondensationsmaschine mit Entnahme | R188: Öl | S188: Öl | T188: 0.3795 | U188: OPSD (2020) | V188: 12.5 | W188: 11.3 | X188: =(1-VLOOKUP(S188,Start!$H$33:$I$40,2,FALSE)/100)*W188 -> 9.605 | Y188: =VLOOKUP(R188,Start!$C$9:$D$15,2,FALSE)+VLOOKUP(R188,Start!$C$23:$D$29,2,FALSE) -> 87.17 | Z188: =(Y188/T188)+Start!$D$19*(VLOOKUP(R188,Start!$M$33:$N$39,2,FALSE)/T188)+VLOOKUP(S188,Start!$C$33:$D$40,2,FALSE) -> 293.115942
C189: Ja | D189: SEE914224312040 | E189: In Betrieb | F189: GLOBALFOUNDRIES Dresden Module Two LLC & Co. KG | G189: Gasmotoren-Blockheizkraftwerk I (Generator 1) | H189: 1468 | I189: Moritzburg | J189: Ringstraße 3 | K189: Sachsen | L189: 1998-09-01 | M189: Erdgas | N189: Erdgas, Erdölgas | O189: Erdgas | P189: Ja | Q189: Verbrennungsmotor | R189: Erdgas | S189: GuD | T189: 0.3828 | U189: OPSD (2020) | V189: 3.884 | W189: 3.879 | X189: =(1-VLOOKUP(S189,Start!$H$33:$I$40,2,FALSE)/100)*W189 -> 3.37473 | Y189: =VLOOKUP(R189,Start!$C$9:$D$15,2,FALSE)+VLOOKUP(R189,Start!$C$23:$D$29,2,FALSE) -> 45.66 | Z189: =(Y189/T189)+Start!$D$19*(VLOOKUP(R189,Start!$M$33:$N$39,2,FALSE)/T189)+VLOOKUP(S189,Start!$C$33:$D$40,2,FALSE) -> 165.200627
C190: Ja | D190: SEE914414538991 | E190: In Betrieb | F190: BASF SE | G190: GuD Mitte GT12 | H190: 67063 | I190: Ludwigshafen | J190: Carl-Bosch-Straße 38 | K190: Rheinland-Pfalz | L190: 2005-05-12 | M190: Erdgas | N190: Erdgas, Erdölgas | O190: Erdgas | P190: Ja | Q190: Gasturbinen mit nachgeschalteter Dampfturbine | R190: Erdgas | S190: GuD | T190: 0.43 | U190: OPSD (2020) | V190: 206 | W190: 204 | X190: =(1-VLOOKUP(S190,Start!$H$33:$I$40,2,FALSE)/100)*W190 -> 177.48 | Y190: =VLOOKUP(R190,Start!$C$9:$D$15,2,FALSE)+VLOOKUP(R190,Start!$C$23:$D$29,2,FALSE) -> 45.66 | Z190: =(Y190/T190)+Start!$D$19*(VLOOKUP(R190,Start!$M$33:$N$39,2,FALSE)/T190)+VLOOKUP(S190,Start!$C$33:$D$40,2,FALSE) -> 147.2316279
C191: Ja | D191: SEE914438115895 | E191: In Betrieb | F191: EVH GmbH | G191: Heizkraftwerk Dieselstraße Block A | H191: 6130 | I191: Halle | J191: Dieselstraße 141 | K191: Sachsen-Anhalt | L191: 2020-04-01 | M191: Erdgas | N191: Erdgas, Erdölgas | O191: Erdgas | P191: Ja | Q191: Gasturbinen mit nachgeschalteter Dampfturbine | R191: Erdgas | S191: GuD | T191: 0.3905 | U191: OPSD (2020) | V191: 57.646 | W191: 56.845 | X191: =(1-VLOOKUP(S191,Start!$H$33:$I$40,2,FALSE)/100)*W191 -> 49.45515 | Y191: =VLOOKUP(R191,Start!$C$9:$D$15,2,FALSE)+VLOOKUP(R191,Start!$C$23:$D$29,2,FALSE) -> 45.66 | Z191: =(Y191/T191)+Start!$D$19*(VLOOKUP(R191,Start!$M$33:$N$39,2,FALSE)/T191)+VLOOKUP(S191,Start!$C$33:$D$40,2,FALSE) -> 161.9727273
C192: Ja | D192: SEE914662265496 | E192: In Betrieb | F192: WMF GmbH | G192: Dampfturbine AEG Kanis | H192: 73312 | I192: Geislingen | J192: WMF Platz 1 | K192: Baden-Württemberg | L192: 1965-01-01 | M192: Wärme | N192: Dampf (zum Beispiel Prozesswärme) | O192: Wärme | P192: Ja | Q192: Gegendruckmaschine mit Entnahme | R192: Sonstige | S192: Sonstige | T192: 0.276 | U192: Annahme basierend auf DIW (2014) | V192: 5.5 | W192: 5.47 | X192: =(1-VLOOKUP(S192,Start!$H$33:$I$40,2,FALSE)/100)*W192 -> 4.6495 | Y192: =VLOOKUP(R192,Start!$C$9:$D$15,2,FALSE)+VLOOKUP(R192,Start!$C$23:$D$29,2,FALSE) -> 86.87 | Z192: =(Y192/T192)+Start!$D$19*(VLOOKUP(R192,Start!$M$33:$N$39,2,FALSE)/T192)+VLOOKUP(S192,Start!$C$33:$D$40,2,FALSE) -> 381.342029
C193: Ja | D193: SEE914688001801 | E193: In Betrieb | F193: Smurfit Kappa Hoya Papier und Karton GmbH | G193: DT 2 (KKK) | H193: 27318 | I193: Hoya | J193: Von-dem-Bussche-Straße 1 | K193: Niedersachsen | L193: 1996-01-01 | M193: Erdgas | N193: Erdgas, Erdölgas | O193: Erdgas | P193: Ja | Q193: Gegendruckmaschine mit Entnahme | R193: Erdgas | S193: GuD | T193: 0.4 | U193: eigene Annahme | V193: 4.52 | W193: 4.339 | X193: =(1-VLOOKUP(S193,Start!$H$33:$I$40,2,FALSE)/100)*W193 -> 3.77493 | Y193: =VLOOKUP(R193,Start!$C$9:$D$15,2,FALSE)+VLOOKUP(R193,Start!$C$23:$D$29,2,FALSE) -> 45.66 | Z193: =(Y193/T193)+Start!$D$19*(VLOOKUP(R193,Start!$M$33:$N$39,2,FALSE)/T193)+VLOOKUP(S193,Start!$C$33:$D$40,2,FALSE) -> 158.1615
C194: Ja | D194: SEE914740925915 | E194: In Betrieb | F194: SWP Stadtwerke Pforzheim | G194: MOT 2 | H194: 75175 | I194: Pforzheim | J194: Hohwiesenweg 19 | K194: Baden-Württemberg | L194: 2021-06-15 | M194: Erdgas | N194: Erdgas, Erdölgas | O194: Erdgas | P194: Ja | Q194: Verbrennungsmotor | R194: Erdgas | S194: GuD | T194: 0.45 | U194: https://www.innio.com/de/loesungen/energieerzeugung/kraft-waerme-kopplung | V194: 10.387 | W194: 10.2 | X194: =(1-VLOOKUP(S194,Start!$H$33:$I$40,2,FALSE)/100)*W194 -> 8.874 | Y194: =VLOOKUP(R194,Start!$C$9:$D$15,2,FALSE)+VLOOKUP(R194,Start!$C$23:$D$29,2,FALSE) -> 45.66 | Z194: =(Y194/T194)+Start!$D$19*(VLOOKUP(R194,Start!$M$33:$N$39,2,FALSE)/T194)+VLOOKUP(S194,Start!$C$33:$D$40,2,FALSE) -> 140.7546667
C195: Ja | D195: SEE914749097217 | E195: In Betrieb | F195: Daimler Truck AG | G195: 129870 Modul 1 | H195: 76744 | I195: Wörth | J195: Daimlerstraße 1 | K195: Rheinland-Pfalz | L195: 2013-02-20 | M195: Erdgas | N195: Erdgas, Erdölgas | O195: Erdgas | P195: Ja | Q195: Verbrennungsmotor | R195: Erdgas | S195: GuD | T195: 0.3993 | U195: OPSD (2020) | V195: 4.49 | W195: 4.44 | X195: =(1-VLOOKUP(S195,Start!$H$33:$I$40,2,FALSE)/100)*W195 -> 3.8628 | Y195: =VLOOKUP(R195,Start!$C$9:$D$15,2,FALSE)+VLOOKUP(R195,Start!$C$23:$D$29,2,FALSE) -> 45.66 | Z195: =(Y195/T195)+Start!$D$19*(VLOOKUP(R195,Start!$M$33:$N$39,2,FALSE)/T195)+VLOOKUP(S195,Start!$C$33:$D$40,2,FALSE) -> 158.4361382
C196: Ja | D196: SEE914857304191 | E196: In Betrieb | F196: RWE Generation SE | G196: Dormagen GT1 | H196: 41540 | I196: Dormagen | J196: Alte Heerstraße 1 | K196: Nordrhein-Westfalen | L196: 2000-07-23 | M196: Erdgas | N196: Erdgas, Erdölgas | O196: Erdgas | P196: Ja | Q196: Gasturbinen mit Abhitzekessel | R196: Erdgas | S196: GuD | T196: 0.54 | U196: OPSD (2020) | V196: 189 | W196: 184 | X196: =(1-VLOOKUP(S196,Start!$H$33:$I$40,2,FALSE)/100)*W196 -> 160.08 | Y196: =VLOOKUP(R196,Start!$C$9:$D$15,2,FALSE)+VLOOKUP(R196,Start!$C$23:$D$29,2,FALSE) -> 45.66 | Z196: =(Y196/T196)+Start!$D$19*(VLOOKUP(R196,Start!$M$33:$N$39,2,FALSE)/T196)+VLOOKUP(S196,Start!$C$33:$D$40,2,FALSE) -> 117.5455556
C197: Ja | D197: SEE914878135613 | E197: In Betrieb | F197: Energie und Wasser Potsdam GmbH | G197: HKW Potsdam-Süd Block2 | H197: 14478 | I197: Potsdam | J197: Zum Heizwerk 20 | K197: Brandenburg | L197: 1996-01-01 | M197: Erdgas | N197: Erdgas, Erdölgas | O197: Erdgas | P197: Ja | Q197: Gasturbinen mit nachgeschalteter Dampfturbine | R197: Erdgas | S197: GuD | T197: 0.3806 | U197: OPSD (2020) | V197: 42 | W197: 40.9 | X197: =(1-VLOOKUP(S197,Start!$H$33:$I$40,2,FALSE)/100)*W197 -> 35.583 | Y197: =VLOOKUP(R197,Start!$C$9:$D$15,2,FALSE)+VLOOKUP(R197,Start!$C$23:$D$29,2,FALSE) -> 45.66 | Z197: =(Y197/T197)+Start!$D$19*(VLOOKUP(R197,Start!$M$33:$N$39,2,FALSE)/T197)+VLOOKUP(S197,Start!$C$33:$D$40,2,FALSE) -> 166.1468734
C198: Ja | D198: SEE914931712744 | E198: In Betrieb | F198: EnBW Contracting GmbH | G198: HK_001_Industrieheizkraftwerk-Walsrode_BHKW-GM1 | H198: 29699 | I198: Walsrode | J198: Bahnhofstraße 13 | K198: Niedersachsen | L198: 2019-01-01 | M198: Erdgas | N198: Erdgas, Erdölgas | O198: Erdgas | P198: Ja | Q198: Verbrennungsmotor | R198: Erdgas | S198: GuD | T198: 0.3509 | U198: OPSD (2020) | V198: 3.2 | W198: 3.2 | X198: =(1-VLOOKUP(S198,Start!$H$33:$I$40,2,FALSE)/100)*W198 -> 2.784 | Y198: =VLOOKUP(R198,Start!$C$9:$D$15,2,FALSE)+VLOOKUP(R198,Start!$C$23:$D$29,2,FALSE) -> 45.66 | Z198: =(Y198/T198)+Start!$D$19*(VLOOKUP(R198,Start!$M$33:$N$39,2,FALSE)/T198)+VLOOKUP(S198,Start!$C$33:$D$40,2,FALSE) -> 180.0825021
C199: Ja | D199: SEE914989602134 | E199: In Betrieb | F199: Infraserv GmbH & Co. Höchst KG | G199: IPH Strom GTX2 | H199: 65929 | I199: Frankfurt | J199: Brüningstraße 50 | K199: Hessen | L199: 2011-01-06 | M199: Erdgas | N199: Erdgas, Erdölgas | O199: Erdgas | P199: Ja | Q199: Gasturbinen mit Abhitzekessel | R199: Erdgas | S199: GuD | T199: 0.3982 | U199: OPSD (2020) | V199: 50 | W199: 49.8 | X199: =(1-VLOOKUP(S199,Start!$H$33:$I$40,2,FALSE)/100)*W199 -> 43.326 | Y199: =VLOOKUP(R199,Start!$C$9:$D$15,2,FALSE)+VLOOKUP(R199,Start!$C$23:$D$29,2,FALSE) -> 45.66 | Z199: =(Y199/T199)+Start!$D$19*(VLOOKUP(R199,Start!$M$33:$N$39,2,FALSE)/T199)+VLOOKUP(S199,Start!$C$33:$D$40,2,FALSE) -> 158.8696635
C200: Ja | D200: SEE915096178499 | E200: In Betrieb | F200: BASF SE | G200: W118 GTE | H200: 67063 | I200: Ludwigshafen | J200: Carl-Bosch-Straße 38 | K200: Rheinland-Pfalz | L200: 1972-02-15 | M200: Druck aus Gasleitungen | O200: Sonstige Energieträger (nicht erneuerbar) | P200: Nein | Q200: Sonstige | R200: Sonstige | S200: Sonstige | T200: 0.35 | U200: eigene Annahme | V200: 2.245 | W200: 2.2 | X200: =(1-VLOOKUP(S200,Start!$H$33:$I$40,2,FALSE)/100)*W200 -> 1.87 | Y200: =VLOOKUP(R200,Start!$C$9:$D$15,2,FALSE)+VLOOKUP(R200,Start!$C$23:$D$29,2,FALSE) -> 86.87 | Z200: =(Y200/T200)+Start!$D$19*(VLOOKUP(R200,Start!$M$33:$N$39,2,FALSE)/T200)+VLOOKUP(S200,Start!$C$33:$D$40,2,FALSE) -> 300.9268571
C201: Ja | D201: SEE915098640406 | E201: In Betrieb | F201: K+S Minerals and Agriculture GmbH | G201: ZI TR GT2 | H201: 39326 | I201: Zielitz | J201: Farsleber Straße 1 | K201: Sachsen-Anhalt | L201: 1997-07-02 | M201: Erdgas | N201: Erdgas, Erdölgas | O201: Erdgas | P201: Ja | Q201: Gasturbinen ohne Abhitzekessel | R201: Erdgas | S201: Gasturbine | T201: 0.38 | U201: eigene Annahme | V201: 5.592 | W201: 5.5 | X201: =(1-VLOOKUP(S201,Start!$H$33:$I$40,2,FALSE)/100)*W201 -> 4.785 | Y201: =VLOOKUP(R201,Start!$C$9:$D$15,2,FALSE)+VLOOKUP(R201,Start!$C$23:$D$29,2,FALSE) -> 45.66 | Z201: =(Y201/T201)+Start!$D$19*(VLOOKUP(R201,Start!$M$33:$N$39,2,FALSE)/T201)+VLOOKUP(S201,Start!$C$33:$D$40,2,FALSE) -> 165.9068421
C202: Ja | D202: SEE915108754215 | E202: In Betrieb | F202: Basell Polyolefine GmbH | G202: Kraftwerk Basell Wesseling | H202: 50389 | I202: Wesseling | J202: Brühler Straße 60 | K202: Nordrhein-Westfalen | L202: 1962-07-03 | M202: Mineralölprodukte | N202: Andere Mineralölprodukte | O202: Mineralölprodukte | P202: Ja | Q202: Sonstige | R202: Öl | S202: Öl | T202: 0.3432 | U202: OPSD (2020) | V202: 102 | W202: 90 | X202: =(1-VLOOKUP(S202,Start!$H$33:$I$40,2,FALSE)/100)*W202 -> 76.5 | Y202: =VLOOKUP(R202,Start!$C$9:$D$15,2,FALSE)+VLOOKUP(R202,Start!$C$23:$D$29,2,FALSE) -> 87.17 | Z202: =(Y202/T202)+Start!$D$19*(VLOOKUP(R202,Start!$M$33:$N$39,2,FALSE)/T202)+VLOOKUP(S202,Start!$C$33:$D$40,2,FALSE) -> 324.0128205
C203: Ja | D203: SEE915289541482 | E203: In Betrieb | F203: Mainova AG | G203: HKW West Block 3 | H203: 60327 | I203: Frankfurt | J203: Gutleutstraße 231 | K203: Hessen | L203: 1990-02-15 | M203: Steinkohle | N203: Steinkohlen | O203: Steinkohle | P203: Ja | Q203: Kondensationsmaschine mit Entnahme | R203: Steinkohle | S203: Steinkohle | T203: 0.3975 | U203: OPSD (2020) | V203: 69.5 | W203: 61.5 | X203: =(1-VLOOKUP(S203,Start!$H$33:$I$40,2,FALSE)/100)*W203 -> 49.2 | Y203: =VLOOKUP(R203,Start!$C$9:$D$15,2,FALSE)+VLOOKUP(R203,Start!$C$23:$D$29,2,FALSE) -> 17.84 | Z203: =(Y203/T203)+Start!$D$19*(VLOOKUP(R203,Start!$M$33:$N$39,2,FALSE)/T203)+VLOOKUP(S203,Start!$C$33:$D$40,2,FALSE) -> 117.9042767
C204: Ja | D204: SEE915375007878 | E204: In Betrieb | F204: Stadtwerke Duisburg AG | G204: Mitte BHKW 2 Modul 4 | H204: 47053 | I204: Duisburg | J204: Bungertstr. 27 | K204: Nordrhein-Westfalen | L204: 2023-05-17 | M204: Erdgas | N204: Erdgas, Erdölgas | O204: Erdgas | P204: Ja | Q204: Verbrennungsmotor | R204: Erdgas | S204: GuD | T204: 0.63 | U204: Annahme basierend auf DIW (2014) | V204: 4.5 | W204: 4.472 | X204: =(1-VLOOKUP(S204,Start!$H$33:$I$40,2,FALSE)/100)*W204 -> 3.89064 | Y204: =VLOOKUP(R204,Start!$C$9:$D$15,2,FALSE)+VLOOKUP(R204,Start!$C$23:$D$29,2,FALSE) -> 45.66 | Z204: =(Y204/T204)+Start!$D$19*(VLOOKUP(R204,Start!$M$33:$N$39,2,FALSE)/T204)+VLOOKUP(S204,Start!$C$33:$D$40,2,FALSE) -> 100.967619
C205: Ja | D205: SEE915426748132 | E205: In Betrieb | F205: RheinEnergie AG | G205: Block 6 Merkenich RheinEnergie | H205: 50769 | I205: Köln | J205: Merkenicher Hauptstr. 2 | K205: Nordrhein-Westfalen | L205: 2010-12-16 | M205: Braunkohle | N205: Wirbelschichtkohle | O205: Braunkohle | P205: Ja | Q205: Gegendruckmaschine mit Entnahme | R205: Braunkohle | S205: Braunkohle | T205: 0.424 | U205: OPSD (2020) | V205: 85.2 | W205: 75.3 | X205: =(1-VLOOKUP(S205,Start!$H$33:$I$40,2,FALSE)/100)*W205 -> 65.511 | Y205: =VLOOKUP(R205,Start!$C$9:$D$15,2,FALSE)+VLOOKUP(R205,Start!$C$23:$D$29,2,FALSE) -> 3.1 | Z205: =(Y205/T205)+Start!$D$19*(VLOOKUP(R205,Start!$M$33:$N$39,2,FALSE)/T205)+VLOOKUP(S205,Start!$C$33:$D$40,2,FALSE) -> 89.62075472
C206: Ja | D206: SEE915604855232 | E206: In Betrieb | F206: Sustainable Energy Aschaffenburg GmbH | G206: GuD-Anlage (Gasturbine) | H206: 63741 | I206: Aschaffenburg | J206: Weichertstraße 7 | K206: Bayern | L206: 2013-01-28 | M206: Erdgas | N206: Erdgas, Erdölgas | O206: Erdgas | P206: Ja | Q206: Gasturbinen mit nachgeschalteter Dampfturbine | R206: Erdgas | S206: GuD | T206: 0.5985 | U206: OPSD (2020) | V206: 32.25 | W206: 31.552 | X206: =(1-VLOOKUP(S206,Start!$H$33:$I$40,2,FALSE)/100)*W206 -> 27.45024 | Y206: =VLOOKUP(R206,Start!$C$9:$D$15,2,FALSE)+VLOOKUP(R206,Start!$C$23:$D$29,2,FALSE) -> 45.66 | Z206: =(Y206/T206)+Start!$D$19*(VLOOKUP(R206,Start!$M$33:$N$39,2,FALSE)/T206)+VLOOKUP(S206,Start!$C$33:$D$40,2,FALSE) -> 106.2027569
... 976 more rows

Sheet Quellen
C3: EWI Merit-Order Tool 2023
C5: Quellen | D5: =Impressum!F5 -> Version 2023.0
C7: Abkürzung | D7: Quelle
C8: BNetzA (2023) | D8: Bundesnetzagentur; Kraftwerksliste der Bundesnetzagentur, Stand: 17.11.2023. Lizensiert unter "dl-de/by-2-0": www.govdata.de/dl-de/by-2-0; URL: https://www.bundesnetzagentur.de/DE/Fachthemen/ElektrizitaetundGas/Versorgungssicherheit/Erzeugungskapazitaeten/Kraftwerksliste/start.html (abgerufen am 10.01.2024)
C9: DIW (2014) | D9: Jonas Egerer & Clemens Gerbaulet & Richard Ihlenburg & Friedrich Kunz & Benjamin Reinhard & Christian von Hirschhausen & Alexander Weber & Jens Weibezahn, 2014. "Electricity Sector Data for Policy-Relevant Modeling: Data Documentation and Applications to the German and European Electricity Markets," Data Documentation 72, DIW Berlin, German Institute for Economic Research.
C10: en2x (2024) | D10: Wirtschaftsverband Fuels und Energie e.V. (en2x); Verbraucherpreise, URL: https://en2x.de/service/statistiken/verbraucherpreise/ (letzter Zugriff am 01.02.2024)
C11: EWI (2019) | D11: Energiewirtschaftliches Institut an der Universität zu Köln gGmbH; Auswirkungen einer Beendigung der Kohleverstromung bis 2038 auf den Strommarkt, CO2-Emissionen und ausgewählte Industrien - Eine Analyse des Abschlussberichts der WSB-Kommission, August 2019.
C12: investing.com (2024a) | D12: investing.com, Coal (API2) CIF ARA (ARGUS-McCloskey) Futures - (MTFc1) , URL: https://de.investing.com/commodities/coal-(api2)-cif-ara-futures-historical-data (letzter Zugriff am 01.02.2024)
C13: investing.com (2024b) | D13: investing.com, CO2-Emmissionsrechte Futures, URL: https://de.investing.com/commodities/carbon-emissions-historical-data (letzter Zugriff am 01.02.2024)
C14: OPSD (2018) | D14: Open Power System Data. 2018. Data Package Conventional power plants. Version 2018-12-20.
C15: OPSD (2020) | D15: Open Power System Data. 2020. Data Package Conventional power plants. Version 2020-10-01.
C16: R2B (2019) | D16: R2b energy consulting GmbH, Consentec GmbH, Fraunhofer ISI, TEP Energy GmbH; Definition und Monitoring der Versorgungssicherheit an den europäischen Strommärkten, Projekt Nr. 047/16, Januar 2019.
C17: ÜNB (2019) | D17: 50Hertz Transmission GmbH, Amprio GmbH, TenneT TSO GmbH und TransnetBW GmbH; Netzentwicklungsplan Strom 2030, Version 2019, 2. Entwurf. April 2019.

Sheet Impressum
C3: EWI Merit-Order Tool 2023
C5: Impressum | F5: =CONCATENATE("Version ",F11," ") -> Version 2023.0
D8: EWI Merit-Order Tool 2023
D10: Energiewirtschaftliches Institut an der Universität zu Köln gGmbH (EWI) | E10: Letzte Aktualisierung: | F10: 20.02.2024
D11: Alte Wagenfabrik | E11: Modellversion: | F11: 2023.0
D12: Vogelsanger Straße 321a
D13: 50827 Köln
D14: Tel.: +49 (0)221 277 29-100
D15: Fax: +49 (0)221 277 29-400
D16: www.ewi.uni-koeln.de
D18: Autoren:
D19: Dr. Fabian Arnold
D20: Jakob Junkermann
D21: Martin Lange
D26: Kontakt bei Fragen, Anmerkungen und Kritik: | E26: © Energiewirtschaftliches Institut an der Universität zu Köln gGmbH (EWI).
D27: Dr. Fabian Arnold | E27: Alle Rechte vorbehalten. Nutzung des Tools und Ergebnisse nur mit Verweis auf
D28: Tel.: +49 (0)221 277 29-232 | E28: die Autoren und das Energiewirtschaftliche Institut an der Universität zu Köln
D29: fabian.arnold@ewi.uni-koeln.de | E29: gGmbH (EWI) gestattet. Die Haftung für Folgeschäden ist ausgeschlossen. Dies
E30: betrifft auch und insbesondere Schäden oder entgangene Gewinne, die dem/der
E31: Nutzer*in infolge der Verwendung der in diesem Dokument gegebenen
E32: Informationen entstehen.

Sheet Start Reset (hidden)
C3: EWI Merit-Order Tool 2023
C5: Start | P5: =Impressum!F5 -> Version 2023.0
C7: Brennstoffkosten | H7: Übersicht über die Grenzkosten der Kraftwerke
C8: Brennstoff | D8: Kosten | E8: Einheit | F8: Quelle Standardwert | H8: Das Boxplot-Diagramm gibt einen ersten Überblick über die Grenzkosten der Kraftwerke. In der Abbildung rechts
C9: Kernenergie | D9: 5.5 | E9: EUR/MWhth | F9: siehe Dokumentation | H9: werden die einzelnen Elemente des Diagramms erläutert. Veränderungen an den Annahmen gibt das Diagramm
C10: Braunkohle | D10: 3.1 | E10: EUR/MWhth | F10: EWI (2019) | H10: augenblicklich wieder. Um die Annahmen in die Merit-Order (Tabellenblatt: Merit-Order) zu übernehmen, muss die
C11: Steinkohle | D11: 16.59 | E11: EUR/MWhth | F11: ARA, investing.com (2024a) | H11: Schaltfläche Aktualisiere Merit-Order aktiviert werden.
C12: Erdgas | D12: 45.16 | E12: EUR/MWhth | F12: Spot TTF
C13: Öl | D13: 86.87 | E13: EUR/MWhth | F13: en2x (2024)
C14: Abfall | D14: 0 | E14: EUR/MWhth | F14: siehe Dokumentation
C15: Sonstige | D15: =D13 -> 86.87 | E15: EUR/MWhth | F15: siehe Dokumentation | S15: =1568/15.68 -> 100
C17: Emissionszertifikatspreis
D18: Kosten | E18: Einheit | F18: Quelle Standardwert
C19: Emissionszertifikatspreis | D19: 84.6 | E19: EUR/tCO2 | F19: EU-ETS, investing.com (2024b)
C21: Transportkosten
C22: Kraftwerkstyp | D22: Kosten | E22: Einheit | F22: Quelle Standardwert
C23: Kernenergie | D23: 0 | E23: EUR/MWhth | F23: siehe Dokumentation
C24: Braunkohle | D24: 0 | E24: EUR/MWhth | F24: siehe Dokumentation
C25: Steinkohle | D25: 1.25 | E25: EUR/MWhth | F25: R2B (2019)
C26: Erdgas | D26: 0.5 | E26: EUR/MWhth | F26: R2B (2019)
C27: Öl | D27: 0.3 | E27: EUR/MWhth | F27: R2B (2019)
C28: Abfall | D28: 0 | E28: EUR/MWhth | F28: siehe Dokumentation
C29: Sonstige | D29: 0 | E29: EUR/MWhth | F29: siehe Dokumentation | H29: EE-Erzeugung | I29: 0 | J29: MWh
C31: sonstige variable Kosten | H31: Nicht Verfügbarkeit | M31: Emissionsfaktoren
C32: Kraftwerkstyp | D32: Kosten | E32: Einheit | F32: Quelle Standardwert | H32: Kraftwerkstyp | I32: Kosten | J32: Einheit | K32: Quelle Standardwert | M32: Brennstoff | N32: Kosten | O32: Einheit | P32: Quelle Standardwert
C33: Kernenergie | D33: 1.2 | E33: EUR/Mwhel | F33: siehe Dokumentation | H33: Kernenergie | I33: 7 | J33: % | K33: siehe Dokumentation | M33: Kernenergie | N33: 0 | O33: tCO2/MWhth | P33: siehe Dokumentation
C34: Braunkohle | D34: 1.7 | E34: EUR/Mwhel | F34: R2B (2019) | H34: Braunkohle | I34: 13 | J34: % | K34: siehe Dokumentation | M34: Braunkohle | N34: 0.404 | O34: tCO2/MWhth | P34: ÜNB (2019)
C35: Steinkohle | D35: 1.3 | E35: EUR/Mwhel | F35: R2B (2019) | H35: Steinkohle | I35: 20 | J35: % | K35: siehe Dokumentation | M35: Steinkohle | N35: 0.337 | O35: tCO2/MWhth | P35: ÜNB (2019)
C36: GuD | D36: 1.5 | E36: EUR/Mwhel | F36: R2B (2019) | H36: GuD | I36: 13 | J36: % | K36: siehe Dokumentation | M36: Erdgas | N36: 0.201 | O36: tCO2/MWhth | P36: ÜNB (2019)
C37: Gasturbine | D37: 1 | E37: EUR/Mwhel | F37: R2B (2019) | H37: Gasturbine | I37: 13 | J37: % | K37: siehe Dokumentation | M37: Öl | N37: 0.28 | O37: tCO2/MWhth | P37: ÜNB (2019)
C38: Öl | D38: 1 | E38: EUR/Mwhel | F38: siehe Dokumentation | H38: Öl | I38: 15 | J38: % | K38: siehe Dokumentation | M38: Abfall | N38: 0 | O38: tCO2/MWhth | P38: siehe Dokumentation
C39: Abfall | D39: 1 | E39: EUR/Mwhel | F39: siehe Dokumentation | H39: Abfall | I39: 15 | J39: % | K39: siehe Dokumentation | M39: Sonstige | N39: 0.214 | O39: tCO2/MWhth | P39: ÜNB (2019)
C40: Sonstige | D40: 1 | E40: EUR/Mwhel | F40: siehe Dokumentation | H40: Sonstige | I40: 15 | J40: % | K40: siehe Dokumentation

Sheet Backend I (hidden)
A1: Index | B1: Kraftwerktyp | C1: Leistung | D1: kumulierte Leistung | E1: Grenzkosten
A2: SEE900128586359 | B2: Abfall | C2: 15.98 | D2: 15.98 | E2: 1
A3: SEE900664653232 | B3: Abfall | C3: 9.095 | D3: 25.075 | E3: 1
A4: SEE900838448145 | B4: Abfall | C4: 8.5 | D4: 33.575 | E4: 1
A5: SEE901453618340 | B5: Abfall | C5: 1.785 | D5: 35.36 | E5: 1
A6: SEE904604163027 | B6: Abfall | C6: 32.3 | D6: 67.66 | E6: 1
A7: SEE904983741502 | B7: Abfall | C7: 21.76 | D7: 89.42 | E7: 1
A8: SEE906215229154 | B8: Abfall | C8: 31.875 | D8: 121.295 | E8: 1
A9: SEE906331863386 | B9: Abfall | C9: 0.4607 | D9: 121.7557 | E9: 1
A10: SEE907370296296 | B10: Abfall | C10: 25.5 | D10: 147.2557 | E10: 1
A11: SEE909031885047 | B11: Abfall | C11: 8.5e-06 | D11: 147.2557085 | E11: 1
A12: SEE912257091857 | B12: Abfall | C12: 39.525 | D12: 186.7807085 | E12: 1
A13: SEE914179988338 | B13: Abfall | C13: 2.1675 | D13: 188.9482085 | E13: 1
A14: SEE917110358740 | B14: Abfall | C14: 14.45 | D14: 203.3982085 | E14: 1
A15: SEE918623387630 | B15: Abfall | C15: 9.69 | D15: 213.0882085 | E15: 1
A16: SEE921479798321 | B16: Abfall | C16: 7.9696 | D16: 221.0578085 | E16: 1
A17: SEE922849915072 | B17: Abfall | C17: 5.61 | D17: 226.6678085 | E17: 1
A18: SEE923271533315 | B18: Abfall | C18: 19.975 | D18: 246.6428085 | E18: 1
A19: SEE923791565131 | B19: Abfall | C19: 7.905 | D19: 254.5478085 | E19: 1
A20: SEE923959807806 | B20: Abfall | C20: 9.469 | D20: 264.0168085 | E20: 1
A21: SEE924286409503 | B21: Abfall | C21: 25.5 | D21: 289.5168085 | E21: 1
A22: SEE924302504816 | B22: Abfall | C22: 10.302 | D22: 299.8188085 | E22: 1
A23: SEE925011950635 | B23: Abfall | C23: 15.504 | D23: 315.3228085 | E23: 1
A24: SEE925411264011 | B24: Abfall | C24: 1.6405 | D24: 316.9633085 | E24: 1
A25: SEE925652456091 | B25: Abfall | C25: 6.8 | D25: 323.7633085 | E25: 1
A26: SEE925794342412 | B26: Abfall | C26: 13.80825 | D26: 337.5715585 | E26: 1
A27: SEE927032372373 | B27: Abfall | C27: 11.9 | D27: 349.4715585 | E27: 1
A28: SEE927716043575 | B28: Abfall | C28: 23.12 | D28: 372.5915585 | E28: 1
A29: SEE927727929912 | B29: Abfall | C29: 22.95 | D29: 395.5415585 | E29: 1
A30: SEE928761575349 | B30: Abfall | C30: 21.25 | D30: 416.7915585 | E30: 1
A31: SEE929095613516 | B31: Abfall | C31: 0.4607 | D31: 417.2522585 | E31: 1
A32: SEE932127408097 | B32: Abfall | C32: 23.12 | D32: 440.3722585 | E32: 1
A33: SEE934298270268 | B33: Abfall | C33: 13.345 | D33: 453.7172585 | E33: 1
A34: SEE937544161082 | B34: Abfall | C34: 14.875 | D34: 468.5922585 | E34: 1
A35: SEE937822704543 | B35: Abfall | C35: 1.00045 | D35: 469.5927085 | E35: 1
A36: SEE937978171572 | B36: Abfall | C36: 2.89 | D36: 472.4827085 | E36: 1
A37: SEE938035990372 | B37: Abfall | C37: 13.6 | D37: 486.0827085 | E37: 1
A38: SEE938782869693 | B38: Abfall | C38: 14.2477 | D38: 500.3304085 | E38: 1
A39: SEE939382623364 | B39: Abfall | C39: 3.9865 | D39: 504.3169085 | E39: 1
A40: SEE940303116315 | B40: Abfall | C40: 27.472 | D40: 531.7889085 | E40: 1
A41: SEE940474859066 | B41: Abfall | C41: 10.2 | D41: 541.9889085 | E41: 1
A42: SEE941568392261 | B42: Abfall | C42: 12.648 | D42: 554.6369085 | E42: 1
A43: SEE941568476039 | B43: Abfall | C43: 39.1 | D43: 593.7369085 | E43: 1
A44: SEE942253705168 | B44: Abfall | C44: 10.2595 | D44: 603.9964085 | E44: 1
A45: SEE942366584926 | B45: Abfall | C45: 15.3 | D45: 619.2964085 | E45: 1
A46: SEE942777699660 | B46: Abfall | C46: 25.415 | D46: 644.7114085 | E46: 1
A47: SEE942956157011 | B47: Abfall | C47: 15.3 | D47: 660.0114085 | E47: 1
A48: SEE943548208159 | B48: Abfall | C48: 5.712 | D48: 665.7234085 | E48: 1
A49: SEE943841929270 | B49: Abfall | C49: 6.7745 | D49: 672.4979085 | E49: 1
A50: SEE944111876263 | B50: Abfall | C50: 27.2 | D50: 699.6979085 | E50: 1
A51: SEE944429192826 | B51: Abfall | C51: 10.88 | D51: 710.5779085 | E51: 1
A52: SEE945150729886 | B52: Abfall | C52: 12.648 | D52: 723.2259085 | E52: 1
A53: SEE945602121718 | B53: Abfall | C53: 17 | D53: 740.2259085 | E53: 1
A54: SEE946934017984 | B54: Abfall | C54: 15.725 | D54: 755.9509085 | E54: 1
A55: SEE947996339434 | B55: Abfall | C55: 10.421 | D55: 766.3719085 | E55: 1
A56: SEE948093740512 | B56: Abfall | C56: 3.621 | D56: 769.9929085 | E56: 1
A57: SEE950201173198 | B57: Abfall | C57: 41.82 | D57: 811.8129085 | E57: 1
A58: SEE950593842498 | B58: Abfall | C58: 20.4 | D58: 832.2129085 | E58: 1
A59: SEE951648072822 | B59: Abfall | C59: 10.285 | D59: 842.4979085 | E59: 1
A60: SEE951966828576 | B60: Abfall | C60: 6.256 | D60: 848.7539085 | E60: 1
A61: SEE953182244383 | B61: Abfall | C61: 3.468 | D61: 852.2219085 | E61: 1
A62: SEE953730197888 | B62: Abfall | C62: 3.621 | D62: 855.8429085 | E62: 1
A63: SEE955292024220 | B63: Abfall | C63: 8.5 | D63: 864.3429085 | E63: 1
A64: SEE955548455112 | B64: Abfall | C64: 10.71 | D64: 875.0529085 | E64: 1
A65: SEE955718847075 | B65: Abfall | C65: 5.865 | D65: 880.9179085 | E65: 1
A66: SEE955937262338 | B66: Abfall | C66: 17.935 | D66: 898.8529085 | E66: 1
A67: SEE956268312785 | B67: Abfall | C67: 25.5 | D67: 924.3529085 | E67: 1
A68: SEE957509710094 | B68: Abfall | C68: 9.86 | D68: 934.2129085 | E68: 1
A69: SEE957686843929 | B69: Abfall | C69: 8.6887 | D69: 942.9016085 | E69: 1
A70: SEE957830042178 | B70: Abfall | C70: 15.8525 | D70: 958.7541085 | E70: 1
A71: SEE958310939391 | B71: Abfall | C71: 27.2 | D71: 985.9541085 | E71: 1
A72: SEE958335974377 | B72: Abfall | C72: 10.625 | D72: 996.5791085 | E72: 1
A73: SEE958909269267 | B73: Abfall | C73: 60.35 | D73: 1056.929108 | E73: 1
A74: SEE962737235608 | B74: Abfall | C74: 24.82 | D74: 1081.749108 | E74: 1
A75: SEE964170331206 | B75: Abfall | C75: 9.01 | D75: 1090.759108 | E75: 1
A76: SEE966264899036 | B76: Abfall | C76: 7.772672 | D76: 1098.53178 | E76: 1
A77: SEE969698095906 | B77: Abfall | C77: 4.6636015 | D77: 1103.195382 | E77: 1
A78: SEE971280976463 | B78: Abfall | C78: 9.35 | D78: 1112.545382 | E78: 1
A79: SEE971796321603 | B79: Abfall | C79: 10.2 | D79: 1122.745382 | E79: 1
A80: SEE972694764301 | B80: Abfall | C80: 2.21 | D80: 1124.955382 | E80: 1
A81: SEE973464796218 | B81: Abfall | C81: 24.5684 | D81: 1149.523782 | E81: 1
A82: SEE974051053875 | B82: Abfall | C82: 11.7725 | D82: 1161.296282 | E82: 1
A83: SEE976589352260 | B83: Abfall | C83: 12.495 | D83: 1173.791282 | E83: 1
A84: SEE976826191515 | B84: Abfall | C84: 5.525 | D84: 1179.316282 | E84: 1
A85: SEE977514334252 | B85: Abfall | C85: 1.802 | D85: 1181.118282 | E85: 1
A86: SEE977770417713 | B86: Abfall | C86: 10.6437 | D86: 1191.761982 | E86: 1
A87: SEE977898966292 | B87: Abfall | C87: 20.29375 | D87: 1212.055732 | E87: 1
A88: SEE979423615132 | B88: Abfall | C88: 0.7905 | D88: 1212.846232 | E88: 1
A89: SEE981003349412 | B89: Abfall | C89: 12.274 | D89: 1225.120232 | E89: 1
A90: SEE981876305560 | B90: Abfall | C90: 13.80825 | D90: 1238.928482 | E90: 1
A91: SEE986030306643 | B91: Abfall | C91: 12.75 | D91: 1251.678482 | E91: 1
A92: SEE986413873564 | B92: Abfall | C92: 11.305 | D92: 1262.983482 | E92: 1
A93: SEE988429673565 | B93: Abfall | C93: 11.56 | D93: 1274.543482 | E93: 1
A94: SEE988580370860 | B94: Abfall | C94: 1.1475 | D94: 1275.690982 | E94: 1
A95: SEE988841475051 | B95: Abfall | C95: 23.8 | D95: 1299.490982 | E95: 1
A96: SEE988848971327 | B96: Abfall | C96: 30.6 | D96: 1330.090982 | E96: 1
A97: SEE989887901764 | B97: Abfall | C97: 10.421 | D97: 1340.511982 | E97: 1
A98: SEE990065849372 | B98: Abfall | C98: 7.395 | D98: 1347.906982 | E98: 1
A99: SEE990760688887 | B99: Abfall | C99: 4.25 | D99: 1352.156982 | E99: 1
A100: SEE992607731794 | B100: Abfall | C100: 7.8455 | D100: 1360.002482 | E100: 1
A101: SEE992947793209 | B101: Abfall | C101: 13.6 | D101: 1373.602482 | E101: 1
A102: SEE993054223955 | B102: Abfall | C102: 34.34 | D102: 1407.942482 | E102: 1
A103: SEE993546424112 | B103: Abfall | C103: 10.727 | D103: 1418.669482 | E103: 1
A104: SEE993787055366 | B104: Abfall | C104: 0.7905 | D104: 1419.459982 | E104: 1
A105: SEE994238154089 | B105: Abfall | C105: 3.5275 | D105: 1422.987482 | E105: 1
A106: SEE994551453975 | B106: Abfall | C106: 17 | D106: 1439.987482 | E106: 1
A107: SEE996047653111 | B107: Abfall | C107: 8.5 | D107: 1448.487482 | E107: 1
A108: SEE996891820448 | B108: Abfall | C108: 6.8 | D108: 1455.287482 | E108: 1
A109: SEE998216550733 | B109: Abfall | C109: 3.9865 | D109: 1459.273982 | E109: 1
A110: SEE998261618013 | B110: Abfall | C110: 4.1905 | D110: 1463.464482 | E110: 1
A111: SEE998278854237 | B111: Abfall | C111: 18.7 | D111: 1482.164482 | E111: 1
A112: SEE999588015110 | B112: Abfall | C112: 22.1 | D112: 1504.264482 | E112: 1
A113: SEE999819576335 | B113: Abfall | C113: 28.56 | D113: 1532.824482 | E113: 1
B114: Abfall | C114: 145.2678135 | D114: 1678.092295 | E114: 1
A115: SEE968582186379 | B115: Braunkohle | C115: 548.1 | D115: 2226.192295 | E115: 87.00526316
A116: SEE952937205877 | B116: Braunkohle | C116: 17.1129 | D116: 2243.305195 | E116: 87.67416974
A117: SEE925599434282 | B117: Braunkohle | C117: 922.2 | D117: 3165.505195 | E117: 88.39395349
A118: SEE983252937631 | B118: Braunkohle | C118: 821.28 | D118: 3986.785195 | E118: 88.39395349
A119: SEE993592183001 | B119: Braunkohle | C119: 922.2 | D119: 4908.985195 | E119: 88.39395349
A120: SEE915426748132 | B120: Braunkohle | C120: 65.511 | D120: 4974.496195 | E120: 89.62075472
A121: SEE907389779292 | B121: Braunkohle | C121: 730.8 | D121: 5705.296196 | E121: 89.8286052
A122: SEE957229968300 | B122: Braunkohle | C122: 563.76 | D122: 6269.056196 | E122: 90.12125237
A123: SEE998199911088 | B123: Braunkohle | C123: 775.17 | D123: 7044.226196 | E123: 90.45809524
A124: SEE921905907730 | B124: Braunkohle | C124: 546.36 | D124: 7590.586196 | E124: 90.62748092
A125: SEE938337436349 | B125: Braunkohle | C125: 656.85 | D125: 8247.436196 | E125: 92.62292683
A126: SEE952672318108 | B126: Braunkohle | C126: 656.85 | D126: 8904.286196 | E126: 92.62292683
A127: SEE966331411864 | B127: Braunkohle | C127: 775.17 | D127: 9679.456196 | E127: 92.62292683
A128: SEE990438768378 | B128: Steinkohle | C128: 26.32 | D128: 9705.776196 | E128: 93.26468254
A129: SEE919134316447 | B129: Braunkohle | C129: 95.7 | D129: 9801.476196 | E129: 94.896
A130: SEE921449009914 | B130: Braunkohle | C130: 15.46251 | D130: 9816.938706 | E130: 94.896
A131: SEE947677200282 | B131: Braunkohle | C131: 391.5 | D131: 10208.43871 | E131: 94.896
A132: SEE960652233358 | B132: Braunkohle | C132: 391.5 | D132: 10599.93871 | E132: 94.896
A133: SEE978888539755 | B133: Braunkohle | C133: 39.15 | D133: 10639.08871 | E133: 94.896
A134: SEE975343602986 | B134: Braunkohle | C134: 8.613 | D134: 10647.70171 | E134: 97.77835052
A135: SEE986936308987 | B135: Braunkohle | C135: 8.613 | D135: 10656.31471 | E135: 97.77835052
A136: SEE998111672394 | B136: Braunkohle | C136: 26.97 | D136: 10683.28471 | E136: 98.52701299
A137: SEE970305352633 | B137: Braunkohle | C137: 14.6595 | D137: 10697.94421 | E137: 98.98183716
A138: SEE999145467468 | B138: Braunkohle | C138: 54.81 | D138: 10752.75421 | E138: 98.98183716
A139: SEE957285549260 | B139: Steinkohle | C139: 26.32 | D139: 10779.07421 | E139: 99.39566138
A140: SEE996990805407 | B140: Steinkohle | C140: 35.6 | D140: 10814.67421 | E140: 100.3388889
A141: SEE933960350956 | B141: Braunkohle | C141: 80.32884 | D141: 10895.00305 | E141: 100.8446809
A142: SEE994335340088 | B142: Braunkohle | C142: 14.79 | D142: 10909.79305 | E142: 100.8446809
B143: Braunkohle | C143: 21.735645 | D143: 10931.52869 | E143: 100.8446809
A144: SEE901205245022 | B144: GuD | C144: 11.076318 | D144: 10942.60501 | E144: 100.967619
A145: SEE903604447151 | B145: GuD | C145: 1.65213 | D145: 10944.25714 | E145: 100.967619
A146: SEE903779951637 | B146: GuD | C146: 11.076318 | D146: 10955.33346 | E146: 100.967619
A147: SEE905023260298 | B147: GuD | C147: 3.87759 | D147: 10959.21105 | E147: 100.967619
A148: SEE905366486355 | B148: GuD | C148: 23.316 | D148: 10982.52705 | E148: 100.967619
A149: SEE905410926998 | B149: GuD | C149: 3.62877 | D149: 10986.15582 | E149: 100.967619
A150: SEE908964165929 | B150: GuD | C150: 9.135 | D150: 10995.29082 | E150: 100.967619
A151: SEE909438607068 | B151: GuD | C151: 11.223 | D151: 11006.51382 | E151: 100.967619
A152: SEE909466066615 | B152: GuD | C152: 10.90545 | D152: 11017.41927 | E152: 100.967619
A153: SEE909553236495 | B153: GuD | C153: 10.66185 | D153: 11028.08112 | E153: 100.967619
A154: SEE911129038174 | B154: GuD | C154: 46.52847 | D154: 11074.60959 | E154: 100.967619
A155: SEE912224455828 | B155: GuD | C155: 11.076318 | D155: 11085.6859 | E155: 100.967619
A156: SEE912583238223 | B156: GuD | C156: 10.59225 | D156: 11096.27815 | E156: 100.967619
A157: SEE913088869400 | B157: GuD | C157: 13.3023 | D157: 11109.58045 | E157: 100.967619
A158: SEE913985941537 | B158: GuD | C158: 2.32551 | D158: 11111.90596 | E158: 100.967619
A159: SEE915375007878 | B159: GuD | C159: 3.89064 | D159: 11115.7966 | E159: 100.967619
A160: SEE915851127786 | B160: GuD | C160: 18.70935 | D160: 11134.50595 | E160: 100.967619
A161: SEE917303295586 | B161: GuD | C161: 11.076318 | D161: 11145.58227 | E161: 100.967619
A162: SEE917925869486 | B162: GuD | C162: 19.6707 | D162: 11165.25297 | E162: 100.967619
A163: SEE918506212059 | B163: GuD | C163: 7.6647 | D163: 11172.91767 | E163: 100.967619
A164: SEE919939073064 | B164: GuD | C164: 42.978 | D164: 11215.89567 | E164: 100.967619
A165: SEE920801236685 | B165: GuD | C165: 32.103 | D165: 11247.99867 | E165: 100.967619
A166: SEE921877855527 | B166: GuD | C166: 50.895 | D166: 11298.89367 | E166: 100.967619
A167: SEE923129957027 | B167: GuD | C167: 3.89064 | D167: 11302.78431 | E167: 100.967619
A168: SEE923793340132 | B168: GuD | C168: 10.005 | D168: 11312.78931 | E168: 100.967619
A169: SEE924562445072 | B169: GuD | C169: 10.005 | D169: 11322.79431 | E169: 100.967619
A170: SEE927282130440 | B170: GuD | C170: 45.67152 | D170: 11368.46583 | E170: 100.967619
A171: SEE927303933470 | B171: GuD | C171: 3.47565 | D171: 11371.94148 | E171: 100.967619
A172: SEE928331694449 | B172: GuD | C172: 10.90545 | D172: 11382.84693 | E172: 100.967619
A173: SEE929090964958 | B173: GuD | C173: 3.62877 | D173: 11386.4757 | E173: 100.967619
A174: SEE930277153294 | B174: GuD | C174: 3.89064 | D174: 11390.36634 | E174: 100.967619
A175: SEE930647914081 | B175: GuD | C175: 10.005 | D175: 11400.37134 | E175: 100.967619
A176: SEE936473203580 | B176: GuD | C176: 10.59225 | D176: 11410.96359 | E176: 100.967619
A177: SEE936668903264 | B177: GuD | C177: 17.87241 | D177: 11428.836 | E177: 100.967619
A178: SEE936761155751 | B178: GuD | C178: 11.076318 | D178: 11439.91232 | E178: 100.967619
A179: SEE939899660715 | B179: GuD | C179: 10.005 | D179: 11449.91732 | E179: 100.967619
A180: SEE939917723934 | B180: GuD | C180: 2.28114 | D180: 11452.19846 | E180: 100.967619
A181: SEE944044057432 | B181: GuD | C181: 10.90545 | D181: 11463.10391 | E181: 100.967619
A182: SEE944148486770 | B182: GuD | C182: 19.14 | D182: 11482.24391 | E182: 100.967619
A183: SEE946709181179 | B183: GuD | C183: 10.90545 | D183: 11493.14936 | E183: 100.967619
A184: SEE949216632202 | B184: GuD | C184: 33.234 | D184: 11526.38336 | E184: 100.967619
A185: SEE951078548935 | B185: GuD | C185: 2.88231 | D185: 11529.26567 | E185: 100.967619
A186: SEE951160693116 | B186: GuD | C186: 10.59225 | D186: 11539.85792 | E186: 100.967619
A187: SEE951344432289 | B187: GuD | C187: 3.8193 | D187: 11543.67722 | E187: 100.967619
A188: SEE951684578067 | B188: GuD | C188: 13.0935 | D188: 11556.77072 | E188: 100.967619
A189: SEE953907486180 | B189: GuD | C189: 3.62877 | D189: 11560.39949 | E189: 100.967619
A190: SEE953987748918 | B190: GuD | C190: 3.89064 | D190: 11564.29013 | E190: 100.967619
A191: SEE955076814825 | B191: GuD | C191: 10.90545 | D191: 11575.19558 | E191: 100.967619
A192: SEE955178360381 | B192: GuD | C192: 3.48435 | D192: 11578.67993 | E192: 100.967619
A193: SEE957163765348 | B193: GuD | C193: 11.658 | D193: 11590.33793 | E193: 100.967619
A194: SEE959044776498 | B194: GuD | C194: 3.89064 | D194: 11594.22857 | E194: 100.967619
A195: SEE960155611554 | B195: GuD | C195: 2.32551 | D195: 11596.55408 | E195: 100.967619
A196: SEE962395118756 | B196: GuD | C196: 10.005 | D196: 11606.55908 | E196: 100.967619
A197: SEE963154903477 | B197: GuD | C197: 3.8193 | D197: 11610.37838 | E197: 100.967619
A198: SEE963438570067 | B198: GuD | C198: 10.005 | D198: 11620.38338 | E198: 100.967619
A199: SEE965203033722 | B199: GuD | C199: 2.28114 | D199: 11622.66452 | E199: 100.967619
A200: SEE965660903200 | B200: GuD | C200: 10.005 | D200: 11632.66952 | E200: 100.967619
... 963 more rows

Sheet Backend II (hidden)
A1: Power | B1: Erneuerbare Energien | C1: Abfall | D1: Kernenergie | E1: Braunkohle | F1: Steinkohle | G1: GuD | H1: Gasturbine | I1: Öl | J1: Sonstige
A2: 0 | B2: 0 | C2: 3 | D2: 0 | E2: 0 | F2: 0 | G2: 0 | H2: 0 | I2: 0 | J2: 0
A3: 1678.092295 | B3: 0 | C3: 3 | D3: 0 | E3: 0 | F3: 0 | G3: 0 | H3: 0 | I3: 0 | J3: 0
A4: 1678.092295 | B4: 0 | C4: 0 | D4: 0 | E4: 87.0053 | F4: 0 | G4: 0 | H4: 0 | I4: 0 | J4: 0
A5: 2226.192295 | B5: 0 | C5: 0 | D5: 0 | E5: 87.0053 | F5: 0 | G5: 0 | H5: 0 | I5: 0 | J5: 0
A6: 2226.192295 | B6: 0 | C6: 0 | D6: 0 | E6: 87.6742 | F6: 0 | G6: 0 | H6: 0 | I6: 0 | J6: 0
A7: 2243.305195 | B7: 0 | C7: 0 | D7: 0 | E7: 87.6742 | F7: 0 | G7: 0 | H7: 0 | I7: 0 | J7: 0
A8: 2243.305195 | B8: 0 | C8: 0 | D8: 0 | E8: 88.394 | F8: 0 | G8: 0 | H8: 0 | I8: 0 | J8: 0
A9: 4908.985195 | B9: 0 | C9: 0 | D9: 0 | E9: 88.394 | F9: 0 | G9: 0 | H9: 0 | I9: 0 | J9: 0
A10: 4908.985195 | B10: 0 | C10: 0 | D10: 0 | E10: 89.6208 | F10: 0 | G10: 0 | H10: 0 | I10: 0 | J10: 0
A11: 4974.496195 | B11: 0 | C11: 0 | D11: 0 | E11: 89.6208 | F11: 0 | G11: 0 | H11: 0 | I11: 0 | J11: 0
A12: 4974.496195 | B12: 0 | C12: 0 | D12: 0 | E12: 89.8286 | F12: 0 | G12: 0 | H12: 0 | I12: 0 | J12: 0
A13: 5705.296196 | B13: 0 | C13: 0 | D13: 0 | E13: 89.8286 | F13: 0 | G13: 0 | H13: 0 | I13: 0 | J13: 0
A14: 5705.296196 | B14: 0 | C14: 0 | D14: 0 | E14: 90.1213 | F14: 0 | G14: 0 | H14: 0 | I14: 0 | J14: 0
A15: 6269.056196 | B15: 0 | C15: 0 | D15: 0 | E15: 90.1213 | F15: 0 | G15: 0 | H15: 0 | I15: 0 | J15: 0
A16: 6269.056196 | B16: 0 | C16: 0 | D16: 0 | E16: 90.4581 | F16: 0 | G16: 0 | H16: 0 | I16: 0 | J16: 0
A17: 7044.226196 | B17: 0 | C17: 0 | D17: 0 | E17: 90.4581 | F17: 0 | G17: 0 | H17: 0 | I17: 0 | J17: 0
A18: 7044.226196 | B18: 0 | C18: 0 | D18: 0 | E18: 90.6275 | F18: 0 | G18: 0 | H18: 0 | I18: 0 | J18: 0
A19: 7590.586196 | B19: 0 | C19: 0 | D19: 0 | E19: 90.6275 | F19: 0 | G19: 0 | H19: 0 | I19: 0 | J19: 0
A20: 7590.586196 | B20: 0 | C20: 0 | D20: 0 | E20: 92.6229 | F20: 0 | G20: 0 | H20: 0 | I20: 0 | J20: 0
A21: 9679.456196 | B21: 0 | C21: 0 | D21: 0 | E21: 92.6229 | F21: 0 | G21: 0 | H21: 0 | I21: 0 | J21: 0
A22: 9679.456196 | B22: 0 | C22: 0 | D22: 0 | E22: 0 | F22: 93.2647 | G22: 0 | H22: 0 | I22: 0 | J22: 0
A23: 9705.776196 | B23: 0 | C23: 0 | D23: 0 | E23: 0 | F23: 93.2647 | G23: 0 | H23: 0 | I23: 0 | J23: 0
A24: 9705.776196 | B24: 0 | C24: 0 | D24: 0 | E24: 94.896 | F24: 0 | G24: 0 | H24: 0 | I24: 0 | J24: 0
A25: 10639.08871 | B25: 0 | C25: 0 | D25: 0 | E25: 94.896 | F25: 0 | G25: 0 | H25: 0 | I25: 0 | J25: 0
A26: 10639.08871 | B26: 0 | C26: 0 | D26: 0 | E26: 97.7784 | F26: 0 | G26: 0 | H26: 0 | I26: 0 | J26: 0
A27: 10656.31471 | B27: 0 | C27: 0 | D27: 0 | E27: 97.7784 | F27: 0 | G27: 0 | H27: 0 | I27: 0 | J27: 0
A28: 10656.31471 | B28: 0 | C28: 0 | D28: 0 | E28: 98.527 | F28: 0 | G28: 0 | H28: 0 | I28: 0 | J28: 0
A29: 10683.28471 | B29: 0 | C29: 0 | D29: 0 | E29: 98.527 | F29: 0 | G29: 0 | H29: 0 | I29: 0 | J29: 0
A30: 10683.28471 | B30: 0 | C30: 0 | D30: 0 | E30: 98.9818 | F30: 0 | G30: 0 | H30: 0 | I30: 0 | J30: 0
A31: 10752.75421 | B31: 0 | C31: 0 | D31: 0 | E31: 98.9818 | F31: 0 | G31: 0 | H31: 0 | I31: 0 | J31: 0
A32: 10752.75421 | B32: 0 | C32: 0 | D32: 0 | E32: 0 | F32: 99.3957 | G32: 0 | H32: 0 | I32: 0 | J32: 0
A33: 10779.07421 | B33: 0 | C33: 0 | D33: 0 | E33: 0 | F33: 99.3957 | G33: 0 | H33: 0 | I33: 0 | J33: 0
A34: 10779.07421 | B34: 0 | C34: 0 | D34: 0 | E34: 0 | F34: 100.3389 | G34: 0 | H34: 0 | I34: 0 | J34: 0
A35: 10814.67421 | B35: 0 | C35: 0 | D35: 0 | E35: 0 | F35: 100.3389 | G35: 0 | H35: 0 | I35: 0 | J35: 0
A36: 10814.67421 | B36: 0 | C36: 0 | D36: 0 | E36: 100.8447 | F36: 0 | G36: 0 | H36: 0 | I36: 0 | J36: 0
A37: 10931.52869 | B37: 0 | C37: 0 | D37: 0 | E37: 100.8447 | F37: 0 | G37: 0 | H37: 0 | I37: 0 | J37: 0
A38: 10931.52869 | B38: 0 | C38: 0 | D38: 0 | E38: 0 | F38: 0 | G38: 100.9676 | H38: 0 | I38: 0 | J38: 0
A39: 11901.55346 | B39: 0 | C39: 0 | D39: 0 | E39: 0 | F39: 0 | G39: 100.9676 | H39: 0 | I39: 0 | J39: 0
A40: 11901.55346 | B40: 0 | C40: 0 | D40: 0 | E40: 101.1091 | F40: 0 | G40: 0 | H40: 0 | I40: 0 | J40: 0
A41: 13641.55346 | B41: 0 | C41: 0 | D41: 0 | E41: 101.1091 | F41: 0 | G41: 0 | H41: 0 | I41: 0 | J41: 0
A42: 13641.55346 | B42: 0 | C42: 0 | D42: 0 | E42: 0 | F42: 101.1927 | G42: 0 | H42: 0 | I42: 0 | J42: 0
A43: 14315.95346 | B43: 0 | C43: 0 | D43: 0 | E43: 0 | F43: 101.1927 | G43: 0 | H43: 0 | I43: 0 | J43: 0
A44: 14315.95346 | B44: 0 | C44: 0 | D44: 0 | E44: 0 | F44: 101.3004 | G44: 0 | H44: 0 | I44: 0 | J44: 0
A45: 14370.67346 | B45: 0 | C45: 0 | D45: 0 | E45: 0 | F45: 101.3004 | G45: 0 | H45: 0 | I45: 0 | J45: 0
A46: 14370.67346 | B46: 0 | C46: 0 | D46: 0 | E46: 101.4816 | F46: 0 | G46: 0 | H46: 0 | I46: 0 | J46: 0
A47: 14834.81846 | B47: 0 | C47: 0 | D47: 0 | E47: 101.4816 | F47: 0 | G47: 0 | H47: 0 | I47: 0 | J47: 0
A48: 14834.81846 | B48: 0 | C48: 0 | D48: 0 | E48: 0 | F48: 101.5166 | G48: 0 | H48: 0 | I48: 0 | J48: 0
A49: 15415.61846 | B49: 0 | C49: 0 | D49: 0 | E49: 0 | F49: 101.5166 | G49: 0 | H49: 0 | I49: 0 | J49: 0
A50: 15415.61846 | B50: 0 | C50: 0 | D50: 0 | E50: 0 | F50: 102.0613 | G50: 0 | H50: 0 | I50: 0 | J50: 0
A51: 16082.81846 | B51: 0 | C51: 0 | D51: 0 | E51: 0 | F51: 102.0613 | G51: 0 | H51: 0 | I51: 0 | J51: 0
A52: 16082.81846 | B52: 0 | C52: 0 | D52: 0 | E52: 102.1267 | F52: 0 | G52: 0 | H52: 0 | I52: 0 | J52: 0
A53: 16182.1481 | B53: 0 | C53: 0 | D53: 0 | E53: 102.1267 | F53: 0 | G53: 0 | H53: 0 | I53: 0 | J53: 0
A54: 16182.1481 | B54: 0 | C54: 0 | D54: 0 | E54: 0 | F54: 102.1709 | G54: 0 | H54: 0 | I54: 0 | J54: 0
A55: 16778.9481 | B55: 0 | C55: 0 | D55: 0 | E55: 0 | F55: 102.1709 | G55: 0 | H55: 0 | I55: 0 | J55: 0
A56: 16778.9481 | B56: 0 | C56: 0 | D56: 0 | E56: 102.7803 | F56: 0 | G56: 0 | H56: 0 | I56: 0 | J56: 0
A57: 17213.9481 | B57: 0 | C57: 0 | D57: 0 | E57: 102.7803 | F57: 0 | G57: 0 | H57: 0 | I57: 0 | J57: 0
A58: 17213.9481 | B58: 0 | C58: 0 | D58: 0 | E58: 103.5536 | F58: 0 | G58: 0 | H58: 0 | I58: 0 | J58: 0
A59: 18267.5181 | B59: 0 | C59: 0 | D59: 0 | E59: 103.5536 | F59: 0 | G59: 0 | H59: 0 | I59: 0 | J59: 0
A60: 18267.5181 | B60: 0 | C60: 0 | D60: 0 | E60: 0 | F60: 103.7314 | G60: 0 | H60: 0 | I60: 0 | J60: 0
A61: 18645.1181 | B61: 0 | C61: 0 | D61: 0 | E61: 0 | F61: 103.7314 | G61: 0 | H61: 0 | I61: 0 | J61: 0
A62: 18645.1181 | B62: 0 | C62: 0 | D62: 0 | E62: 0 | F62: 0 | G62: 103.8931 | H62: 0 | I62: 0 | J62: 0
A63: 19616.7341 | B63: 0 | C63: 0 | D63: 0 | E63: 0 | F63: 0 | G63: 103.8931 | H63: 0 | I63: 0 | J63: 0
A64: 19616.7341 | B64: 0 | C64: 0 | D64: 0 | E64: 0 | F64: 104.3004 | G64: 0 | H64: 0 | I64: 0 | J64: 0
A65: 21038.3341 | B65: 0 | C65: 0 | D65: 0 | E65: 0 | F65: 104.3004 | G65: 0 | H65: 0 | I65: 0 | J65: 0
A66: 21038.3341 | B66: 0 | C66: 0 | D66: 0 | E66: 0 | F66: 0 | G66: 104.6516 | H66: 0 | I66: 0 | J66: 0
A67: 21266.20885 | B67: 0 | C67: 0 | D67: 0 | E67: 0 | F67: 0 | G67: 104.6516 | H67: 0 | I67: 0 | J67: 0
A68: 21266.20885 | B68: 0 | C68: 0 | D68: 0 | E68: 0 | F68: 104.8759 | G68: 0 | H68: 0 | I68: 0 | J68: 0
A69: 21888.60885 | B69: 0 | C69: 0 | D69: 0 | E69: 0 | F69: 104.8759 | G69: 0 | H69: 0 | I69: 0 | J69: 0
A70: 21888.60885 | B70: 0 | C70: 0 | D70: 0 | E70: 0 | F70: 0 | G70: 105.2493 | H70: 0 | I70: 0 | J70: 0
A71: 22376.67885 | B71: 0 | C71: 0 | D71: 0 | E71: 0 | F71: 0 | G71: 105.2493 | H71: 0 | I71: 0 | J71: 0
A72: 22376.67885 | B72: 0 | C72: 0 | D72: 0 | E72: 105.2511 | F72: 0 | G72: 0 | H72: 0 | I72: 0 | J72: 0
A73: 23524.20885 | B73: 0 | C73: 0 | D73: 0 | E73: 105.2511 | F73: 0 | G73: 0 | H73: 0 | I73: 0 | J73: 0
A74: 23524.20885 | B74: 0 | C74: 0 | D74: 0 | E74: 0 | F74: 0 | G74: 105.4214 | H74: 0 | I74: 0 | J74: 0
A75: 23530.03785 | B75: 0 | C75: 0 | D75: 0 | E75: 0 | F75: 0 | G75: 105.4214 | H75: 0 | I75: 0 | J75: 0
A76: 23530.03785 | B76: 0 | C76: 0 | D76: 0 | E76: 0 | F76: 0 | G76: 0 | H76: 105.441 | I76: 0 | J76: 0
A77: 24041.59785 | B77: 0 | C77: 0 | D77: 0 | E77: 0 | F77: 0 | G77: 0 | H77: 105.441 | I77: 0 | J77: 0
A78: 24041.59785 | B78: 0 | C78: 0 | D78: 0 | E78: 0 | F78: 0 | G78: 105.941 | H78: 0 | I78: 0 | J78: 0
A79: 24206.46285 | B79: 0 | C79: 0 | D79: 0 | E79: 0 | F79: 0 | G79: 105.941 | H79: 0 | I79: 0 | J79: 0
A80: 24206.46285 | B80: 0 | C80: 0 | D80: 0 | E80: 0 | F80: 106.0462 | G80: 0 | H80: 0 | I80: 0 | J80: 0
A81: 24486.46285 | B81: 0 | C81: 0 | D81: 0 | E81: 0 | F81: 106.0462 | G81: 0 | H81: 0 | I81: 0 | J81: 0
A82: 24486.46285 | B82: 0 | C82: 0 | D82: 0 | E82: 0 | F82: 0 | G82: 106.2028 | H82: 0 | I82: 0 | J82: 0
A83: 24526.52809 | B83: 0 | C83: 0 | D83: 0 | E83: 0 | F83: 0 | G83: 106.2028 | H83: 0 | I83: 0 | J83: 0
A84: 24526.52809 | B84: 0 | C84: 0 | D84: 0 | E84: 0 | F84: 0 | G84: 106.4658 | H84: 0 | I84: 0 | J84: 0
A85: 25262.54809 | B85: 0 | C85: 0 | D85: 0 | E85: 0 | F85: 0 | G85: 106.4658 | H85: 0 | I85: 0 | J85: 0
A86: 25262.54809 | B86: 0 | C86: 0 | D86: 0 | E86: 0 | F86: 106.6414 | G86: 0 | H86: 0 | I86: 0 | J86: 0
A87: 25520.94809 | B87: 0 | C87: 0 | D87: 0 | E87: 0 | F87: 106.6414 | G87: 0 | H87: 0 | I87: 0 | J87: 0
A88: 25520.94809 | B88: 0 | C88: 0 | D88: 0 | E88: 0 | F88: 107.2433 | G88: 0 | H88: 0 | I88: 0 | J88: 0
A89: 26138.54809 | B89: 0 | C89: 0 | D89: 0 | E89: 0 | F89: 107.2433 | G89: 0 | H89: 0 | I89: 0 | J89: 0
A90: 26138.54809 | B90: 0 | C90: 0 | D90: 0 | E90: 0 | F90: 0 | G90: 107.3524 | H90: 0 | I90: 0 | J90: 0
A91: 27319.13809 | B91: 0 | C91: 0 | D91: 0 | E91: 0 | F91: 0 | G91: 107.3524 | H91: 0 | I91: 0 | J91: 0
A92: 27319.13809 | B92: 0 | C92: 0 | D92: 0 | E92: 0 | F92: 0 | G92: 107.7112 | H92: 0 | I92: 0 | J92: 0
A93: 27681.92809 | B93: 0 | C93: 0 | D93: 0 | E93: 0 | F93: 0 | G93: 107.7112 | H93: 0 | I93: 0 | J93: 0
A94: 27681.92809 | B94: 0 | C94: 0 | D94: 0 | E94: 108.2097 | F94: 0 | G94: 0 | H94: 0 | I94: 0 | J94: 0
A95: 28551.92809 | B95: 0 | C95: 0 | D95: 0 | E95: 108.2097 | F95: 0 | G95: 0 | H95: 0 | I95: 0 | J95: 0
A96: 28551.92809 | B96: 0 | C96: 0 | D96: 0 | E96: 108.3316 | F96: 0 | G96: 0 | H96: 0 | I96: 0 | J96: 0
A97: 28591.85239 | B97: 0 | C97: 0 | D97: 0 | E97: 108.3316 | F97: 0 | G97: 0 | H97: 0 | I97: 0 | J97: 0
A98: 28591.85239 | B98: 0 | C98: 0 | D98: 0 | E98: 0 | F98: 108.4681 | G98: 0 | H98: 0 | I98: 0 | J98: 0
A99: 29143.85239 | B99: 0 | C99: 0 | D99: 0 | E99: 0 | F99: 108.4681 | G99: 0 | H99: 0 | I99: 0 | J99: 0
A100: 29143.85239 | B100: 0 | C100: 0 | D100: 0 | E100: 0 | F100: 108.5921 | G100: 0 | H100: 0 | I100: 0 | J100: 0
A101: 29555.05239 | B101: 0 | C101: 0 | D101: 0 | E101: 0 | F101: 108.5921 | G101: 0 | H101: 0 | I101: 0 | J101: 0
A102: 29555.05239 | B102: 0 | C102: 0 | D102: 0 | E102: 0 | F102: 0 | G102: 108.619 | H102: 0 | I102: 0 | J102: 0
A103: 30278.67228 | B103: 0 | C103: 0 | D103: 0 | E103: 0 | F103: 0 | G103: 108.619 | H103: 0 | I103: 0 | J103: 0
A104: 30278.67228 | B104: 0 | C104: 0 | D104: 0 | E104: 0 | F104: 0 | G104: 109.4494 | H104: 0 | I104: 0 | J104: 0
A105: 30484.48818 | B105: 0 | C105: 0 | D105: 0 | E105: 0 | F105: 0 | G105: 109.4494 | H105: 0 | I105: 0 | J105: 0
A106: 30484.48818 | B106: 0 | C106: 0 | D106: 0 | E106: 0 | F106: 0 | G106: 109.5424 | H106: 0 | I106: 0 | J106: 0
A107: 31218.76818 | B107: 0 | C107: 0 | D107: 0 | E107: 0 | F107: 0 | G107: 109.5424 | H107: 0 | I107: 0 | J107: 0
A108: 31218.76818 | B108: 0 | C108: 0 | D108: 0 | E108: 0 | F108: 0 | G108: 110.1042 | H108: 0 | I108: 0 | J108: 0
A109: 31960.00818 | B109: 0 | C109: 0 | D109: 0 | E109: 0 | F109: 0 | G109: 110.1042 | H109: 0 | I109: 0 | J109: 0
A110: 31960.00818 | B110: 0 | C110: 0 | D110: 0 | E110: 0 | F110: 110.3593 | G110: 0 | H110: 0 | I110: 0 | J110: 0
A111: 32057.60818 | B111: 0 | C111: 0 | D111: 0 | E111: 0 | F111: 110.3593 | G111: 0 | H111: 0 | I111: 0 | J111: 0
A112: 32057.60818 | B112: 0 | C112: 0 | D112: 0 | E112: 0 | F112: 0 | G112: 111.1493 | H112: 0 | I112: 0 | J112: 0
A113: 32325.56818 | B113: 0 | C113: 0 | D113: 0 | E113: 0 | F113: 0 | G113: 111.1493 | H113: 0 | I113: 0 | J113: 0
A114: 32325.56818 | B114: 0 | C114: 0 | D114: 0 | E114: 0 | F114: 111.6576 | G114: 0 | H114: 0 | I114: 0 | J114: 0
A115: 32367.96818 | B115: 0 | C115: 0 | D115: 0 | E115: 0 | F115: 111.6576 | G115: 0 | H115: 0 | I115: 0 | J115: 0
A116: 32367.96818 | B116: 0 | C116: 0 | D116: 0 | E116: 0 | F116: 0 | G116: 112.9037 | H116: 0 | I116: 0 | J116: 0
A117: 32954.21159 | B117: 0 | C117: 0 | D117: 0 | E117: 0 | F117: 0 | G117: 112.9037 | H117: 0 | I117: 0 | J117: 0
A118: 32954.21159 | B118: 0 | C118: 0 | D118: 0 | E118: 112.9124 | F118: 0 | G118: 0 | H118: 0 | I118: 0 | J118: 0
A119: 33208.25159 | B119: 0 | C119: 0 | D119: 0 | E119: 112.9124 | F119: 0 | G119: 0 | H119: 0 | I119: 0 | J119: 0
A120: 33208.25159 | B120: 0 | C120: 0 | D120: 0 | E120: 0 | F120: 0 | G120: 113.8022 | H120: 0 | I120: 0 | J120: 0
A121: 33573.82559 | B121: 0 | C121: 0 | D121: 0 | E121: 0 | F121: 0 | G121: 113.8022 | H121: 0 | I121: 0 | J121: 0
A122: 33573.82559 | B122: 0 | C122: 0 | D122: 0 | E122: 0 | F122: 114.4873 | G122: 0 | H122: 0 | I122: 0 | J122: 0
A123: 33618.27359 | B123: 0 | C123: 0 | D123: 0 | E123: 0 | F123: 114.4873 | G123: 0 | H123: 0 | I123: 0 | J123: 0
A124: 33618.27359 | B124: 0 | C124: 0 | D124: 0 | E124: 114.5281 | F124: 0 | G124: 0 | H124: 0 | I124: 0 | J124: 0
A125: 33878.40359 | B125: 0 | C125: 0 | D125: 0 | E125: 114.5281 | F125: 0 | G125: 0 | H125: 0 | I125: 0 | J125: 0
A126: 33878.40359 | B126: 0 | C126: 0 | D126: 0 | E126: 114.6648 | F126: 0 | G126: 0 | H126: 0 | I126: 0 | J126: 0
A127: 34174.20359 | B127: 0 | C127: 0 | D127: 0 | E127: 114.6648 | F127: 0 | G127: 0 | H127: 0 | I127: 0 | J127: 0
A128: 34174.20359 | B128: 0 | C128: 0 | D128: 0 | E128: 0 | F128: 0 | G128: 114.7152 | H128: 0 | I128: 0 | J128: 0
A129: 34298.56487 | B129: 0 | C129: 0 | D129: 0 | E129: 0 | F129: 0 | G129: 114.7152 | H129: 0 | I129: 0 | J129: 0
A130: 34298.56487 | B130: 0 | C130: 0 | D130: 0 | E130: 0 | F130: 115.0428 | G130: 0 | H130: 0 | I130: 0 | J130: 0
A131: 34769.76487 | B131: 0 | C131: 0 | D131: 0 | E131: 0 | F131: 115.0428 | G131: 0 | H131: 0 | I131: 0 | J131: 0
A132: 34769.76487 | B132: 0 | C132: 0 | D132: 0 | E132: 115.3537 | F132: 0 | G132: 0 | H132: 0 | I132: 0 | J132: 0
A133: 35026.41487 | B133: 0 | C133: 0 | D133: 0 | E133: 115.3537 | F133: 0 | G133: 0 | H133: 0 | I133: 0 | J133: 0
A134: 35026.41487 | B134: 0 | C134: 0 | D134: 0 | E134: 0 | F134: 0 | G134: 115.4356 | H134: 0 | I134: 0 | J134: 0
A135: 35249.48026 | B135: 0 | C135: 0 | D135: 0 | E135: 0 | F135: 0 | G135: 115.4356 | H135: 0 | I135: 0 | J135: 0
A136: 35249.48026 | B136: 0 | C136: 0 | D136: 0 | E136: 0 | F136: 0 | G136: 115.6432 | H136: 0 | I136: 0 | J136: 0
A137: 35262.37366 | B137: 0 | C137: 0 | D137: 0 | E137: 0 | F137: 0 | G137: 115.6432 | H137: 0 | I137: 0 | J137: 0
A138: 35262.37366 | B138: 0 | C138: 0 | D138: 0 | E138: 0 | F138: 115.7449 | G138: 0 | H138: 0 | I138: 0 | J138: 0
A139: 35679.97366 | B139: 0 | C139: 0 | D139: 0 | E139: 0 | F139: 115.7449 | G139: 0 | H139: 0 | I139: 0 | J139: 0
A140: 35679.97366 | B140: 0 | C140: 0 | D140: 0 | E140: 0 | F140: 116.1135 | G140: 0 | H140: 0 | I140: 0 | J140: 0
A141: 35683.23526 | B141: 0 | C141: 0 | D141: 0 | E141: 0 | F141: 116.1135 | G141: 0 | H141: 0 | I141: 0 | J141: 0
A142: 35683.23526 | B142: 0 | C142: 0 | D142: 0 | E142: 0 | F142: 116.4558 | G142: 0 | H142: 0 | I142: 0 | J142: 0
A143: 35949.63526 | B143: 0 | C143: 0 | D143: 0 | E143: 0 | F143: 116.4558 | G143: 0 | H143: 0 | I143: 0 | J143: 0
A144: 35949.63526 | B144: 0 | C144: 0 | D144: 0 | E144: 0 | F144: 0 | G144: 116.5865 | H144: 0 | I144: 0 | J144: 0
A145: 36068.82526 | B145: 0 | C145: 0 | D145: 0 | E145: 0 | F145: 0 | G145: 116.5865 | H145: 0 | I145: 0 | J145: 0
A146: 36068.82526 | B146: 0 | C146: 0 | D146: 0 | E146: 0 | F146: 117.1755 | G146: 0 | H146: 0 | I146: 0 | J146: 0
A147: 37145.62526 | B147: 0 | C147: 0 | D147: 0 | E147: 0 | F147: 117.1755 | G147: 0 | H147: 0 | I147: 0 | J147: 0
A148: 37145.62526 | B148: 0 | C148: 0 | D148: 0 | E148: 0 | F148: 0 | G148: 117.5456 | H148: 0 | I148: 0 | J148: 0
A149: 38136.2003 | B149: 0 | C149: 0 | D149: 0 | E149: 0 | F149: 0 | G149: 117.5456 | H149: 0 | I149: 0 | J149: 0
A150: 38136.2003 | B150: 0 | C150: 0 | D150: 0 | E150: 0 | F150: 117.9043 | G150: 0 | H150: 0 | I150: 0 | J150: 0
A151: 38498.2003 | B151: 0 | C151: 0 | D151: 0 | E151: 0 | F151: 117.9043 | G151: 0 | H151: 0 | I151: 0 | J151: 0
A152: 38498.2003 | B152: 0 | C152: 0 | D152: 0 | E152: 0 | F152: 0 | G152: 118.5207 | H152: 0 | I152: 0 | J152: 0
A153: 38596.0753 | B153: 0 | C153: 0 | D153: 0 | E153: 0 | F153: 0 | G153: 118.5207 | H153: 0 | I153: 0 | J153: 0
A154: 38596.0753 | B154: 0 | C154: 0 | D154: 0 | E154: 0 | F154: 118.6423 | G154: 0 | H154: 0 | I154: 0 | J154: 0
A155: 38645.2753 | B155: 0 | C155: 0 | D155: 0 | E155: 0 | F155: 118.6423 | G155: 0 | H155: 0 | I155: 0 | J155: 0
A156: 38645.2753 | B156: 0 | C156: 0 | D156: 0 | E156: 0 | F156: 0 | G156: 0 | H156: 119.0124 | I156: 0 | J156: 0
A157: 38678.6833 | B157: 0 | C157: 0 | D157: 0 | E157: 0 | F157: 0 | G157: 0 | H157: 119.0124 | I157: 0 | J157: 0
A158: 38678.6833 | B158: 0 | C158: 0 | D158: 0 | E158: 0 | F158: 119.3897 | G158: 0 | H158: 0 | I158: 0 | J158: 0
A159: 39378.6833 | B159: 0 | C159: 0 | D159: 0 | E159: 0 | F159: 119.3897 | G159: 0 | H159: 0 | I159: 0 | J159: 0
A160: 39378.6833 | B160: 0 | C160: 0 | D160: 0 | E160: 0 | F160: 0 | G160: 119.5124 | H160: 0 | I160: 0 | J160: 0
A161: 39428.13149 | B161: 0 | C161: 0 | D161: 0 | E161: 0 | F161: 0 | G161: 119.5124 | H161: 0 | I161: 0 | J161: 0
A162: 39428.13149 | B162: 0 | C162: 0 | D162: 0 | E162: 0 | F162: 0 | G162: 119.7351 | H162: 0 | I162: 0 | J162: 0
A163: 39535.75049 | B163: 0 | C163: 0 | D163: 0 | E163: 0 | F163: 0 | G163: 119.7351 | H163: 0 | I163: 0 | J163: 0
A164: 39535.75049 | B164: 0 | C164: 0 | D164: 0 | E164: 0 | F164: 0 | G164: 120.5211 | H164: 0 | I164: 0 | J164: 0
A165: 39956.26064 | B165: 0 | C165: 0 | D165: 0 | E165: 0 | F165: 0 | G165: 120.5211 | H165: 0 | I165: 0 | J165: 0
A166: 39956.26064 | B166: 0 | C166: 0 | D166: 0 | E166: 0 | F166: 0 | G166: 120.8611 | H166: 0 | I166: 0 | J166: 0
A167: 40014.54281 | B167: 0 | C167: 0 | D167: 0 | E167: 0 | F167: 0 | G167: 120.8611 | H167: 0 | I167: 0 | J167: 0
A168: 40014.54281 | B168: 0 | C168: 0 | D168: 0 | E168: 0 | F168: 120.9134 | G168: 0 | H168: 0 | I168: 0 | J168: 0
A169: 40236.14281 | B169: 0 | C169: 0 | D169: 0 | E169: 0 | F169: 120.9134 | G169: 0 | H169: 0 | I169: 0 | J169: 0
A170: 40236.14281 | B170: 0 | C170: 0 | D170: 0 | E170: 0 | F170: 0 | G170: 121.5471 | H170: 0 | I170: 0 | J170: 0
A171: 40487.57281 | B171: 0 | C171: 0 | D171: 0 | E171: 0 | F171: 0 | G171: 121.5471 | H171: 0 | I171: 0 | J171: 0
A172: 40487.57281 | B172: 0 | C172: 0 | D172: 0 | E172: 0 | F172: 121.6901 | G172: 0 | H172: 0 | I172: 0 | J172: 0
A173: 40523.57281 | B173: 0 | C173: 0 | D173: 0 | E173: 0 | F173: 121.6901 | G173: 0 | H173: 0 | I173: 0 | J173: 0
A174: 40523.57281 | B174: 0 | C174: 0 | D174: 0 | E174: 0 | F174: 122.477 | G174: 0 | H174: 0 | I174: 0 | J174: 0
A175: 41104.37281 | B175: 0 | C175: 0 | D175: 0 | E175: 0 | F175: 122.477 | G175: 0 | H175: 0 | I175: 0 | J175: 0
A176: 41104.37281 | B176: 0 | C176: 0 | D176: 0 | E176: 0 | F176: 0 | G176: 122.591 | H176: 0 | I176: 0 | J176: 0
A177: 41428.63834 | B177: 0 | C177: 0 | D177: 0 | E177: 0 | F177: 0 | G177: 122.591 | H177: 0 | I177: 0 | J177: 0
A178: 41428.63834 | B178: 0 | C178: 0 | D178: 0 | E178: 0 | F178: 123.2742 | G178: 0 | H178: 0 | I178: 0 | J178: 0
A179: 41464.63834 | B179: 0 | C179: 0 | D179: 0 | E179: 0 | F179: 123.2742 | G179: 0 | H179: 0 | I179: 0 | J179: 0
A180: 41464.63834 | B180: 0 | C180: 0 | D180: 0 | E180: 0 | F180: 0 | G180: 123.6532 | H180: 0 | I180: 0 | J180: 0
A181: 41828.19394 | B181: 0 | C181: 0 | D181: 0 | E181: 0 | F181: 0 | G181: 123.6532 | H181: 0 | I181: 0 | J181: 0
A182: 41828.19394 | B182: 0 | C182: 0 | D182: 0 | E182: 0 | F182: 124.082 | G182: 0 | H182: 0 | I182: 0 | J182: 0
A183: 42404.19394 | B183: 0 | C183: 0 | D183: 0 | E183: 0 | F183: 124.082 | G183: 0 | H183: 0 | I183: 0 | J183: 0
A184: 42404.19394 | B184: 0 | C184: 0 | D184: 0 | E184: 0 | F184: 124.9005 | G184: 0 | H184: 0 | I184: 0 | J184: 0
A185: 42427.87046 | B185: 0 | C185: 0 | D185: 0 | E185: 0 | F185: 124.9005 | G185: 0 | H185: 0 | I185: 0 | J185: 0
A186: 42427.87046 | B186: 0 | C186: 0 | D186: 0 | E186: 0 | F186: 0 | G186: 125.8345 | H186: 0 | I186: 0 | J186: 0
A187: 42430.48046 | B187: 0 | C187: 0 | D187: 0 | E187: 0 | F187: 0 | G187: 125.8345 | H187: 0 | I187: 0 | J187: 0
A188: 42430.48046 | B188: 0 | C188: 0 | D188: 0 | E188: 0 | F188: 126.5708 | G188: 0 | H188: 0 | I188: 0 | J188: 0
A189: 42599.28046 | B189: 0 | C189: 0 | D189: 0 | E189: 0 | F189: 126.5708 | G189: 0 | H189: 0 | I189: 0 | J189: 0
A190: 42599.28046 | B190: 0 | C190: 0 | D190: 0 | E190: 0 | F190: 0 | G190: 126.8292 | H190: 0 | I190: 0 | J190: 0
A191: 43053.35347 | B191: 0 | C191: 0 | D191: 0 | E191: 0 | F191: 0 | G191: 126.8292 | H191: 0 | I191: 0 | J191: 0
A192: 43053.35347 | B192: 0 | C192: 0 | D192: 0 | E192: 0 | F192: 0 | G192: 128.0952 | H192: 0 | I192: 0 | J192: 0
A193: 43076.40847 | B193: 0 | C193: 0 | D193: 0 | E193: 0 | F193: 0 | G193: 128.0952 | H193: 0 | I193: 0 | J193: 0
A194: 43076.40847 | B194: 0 | C194: 0 | D194: 0 | E194: 0 | F194: 128.2868 | G194: 0 | H194: 0 | I194: 0 | J194: 0
A195: 43600.88847 | B195: 0 | C195: 0 | D195: 0 | E195: 0 | F195: 128.2868 | G195: 0 | H195: 0 | I195: 0 | J195: 0
A196: 43600.88847 | B196: 0 | C196: 0 | D196: 0 | E196: 0 | F196: 0 | G196: 129.3869 | H196: 0 | I196: 0 | J196: 0
A197: 43987.16847 | B197: 0 | C197: 0 | D197: 0 | E197: 0 | F197: 0 | G197: 129.3869 | H197: 0 | I197: 0 | J197: 0
A198: 43987.16847 | B198: 0 | C198: 0 | D198: 0 | E198: 0 | F198: 130.0506 | G198: 0 | H198: 0 | I198: 0 | J198: 0
A199: 44189.56847 | B199: 0 | C199: 0 | D199: 0 | E199: 0 | F199: 130.0506 | G199: 0 | H199: 0 | I199: 0 | J199: 0
A200: 44189.56847 | B200: 0 | C200: 0 | D200: 0 | E200: 0 | F200: 0 | G200: 130.1747 | H200: 0 | I200: 0 | J200: 0
... 1264 more rows

Sheet Kraftwerksliste Backend (hidden)
C3: EWI Merit-Order Tool 2023
C5: Kraftwerksliste | L5: =Impressum!F5 -> Version 2023.0
C7: Kurze Erläuterung der Liste und der grundsätzlichen Datenquellen
C10: Teil der Merit-Order? | D10: MaStR-Nr. | E10: Status | F10: Unternehmen | G10: Kraftwerksname | H10: Aufnahme der kommerziellen Stromerzeugung | I10: Zuordnung Kraftwerkstyp | J10: Effizienz | K10: Mittlere verfügbare Netto-Nennleistung [MW] | L10: Grenzkosten [EUR/MWHel]
C11: Nein | D11: (optional) | E11: (optional) | F11: (optional) | G11: (optional) | H11: (optional) | I11: (notwendig) | J11: (notwendig) | K11: 0 | L11: 0
C12: Nein | D12: (optional) | E12: (optional) | F12: (optional) | G12: (optional) | H12: (optional) | I12: (notwendig) | J12: (notwendig) | K12: 0 | L12: 0
C13: Nein | D13: (optional) | E13: (optional) | F13: (optional) | G13: (optional) | H13: (optional) | I13: (notwendig) | J13: (notwendig) | K13: 0 | L13: 0
C14: Nein | D14: (optional) | E14: (optional) | F14: (optional) | G14: (optional) | H14: (optional) | I14: (notwendig) | J14: (notwendig) | K14: 0 | L14: 0
C15: Nein | D15: (optional) | E15: (optional) | F15: (optional) | G15: (optional) | H15: (optional) | I15: (notwendig) | J15: (notwendig) | K15: 0 | L15: 0
C16: Nein | D16: (optional) | E16: (optional) | F16: (optional) | G16: (optional) | H16: (optional) | I16: (notwendig) | J16: (notwendig) | K16: 0 | L16: 0
C17: Nein | D17: (optional) | E17: (optional) | F17: (optional) | G17: (optional) | H17: (optional) | I17: (notwendig) | J17: (notwendig) | K17: 0 | L17: 0
C18: Nein | D18: (optional) | E18: (optional) | F18: (optional) | G18: (optional) | H18: (optional) | I18: (notwendig) | J18: (notwendig) | K18: 0 | L18: 0
C19: Nein | D19: (optional) | E19: (optional) | F19: (optional) | G19: (optional) | H19: (optional) | I19: (notwendig) | J19: (notwendig) | K19: 0 | L19: 0
C20: Nein | D20: (optional) | E20: (optional) | F20: (optional) | G20: (optional) | H20: (optional) | I20: (notwendig) | J20: (notwendig) | K20: 0 | L20: 0
C21: Ja | D21: SEE900128586359 | E21: In Betrieb | F21: N-ERGIE Kraftwerke GmbH | G21: HKW-Sandreuth (Müll) | H21: 1992-07-17 | I21: Abfall | J21: 0.33 | K21: 15.98 | L21: 1
C22: Ja | D22: SEE900664653232 | E22: In Betrieb | F22: AMK-Abfallentsorgungsgesellschaft des Märkischen Kreises mbH | G22: Turbine 1 | H22: 1996-08-01 | I22: Abfall | J22: 0.33 | K22: 9.095 | L22: 1
C23: Ja | D23: SEE900838448145 | E23: In Betrieb | F23: Zweckverband Müllverwertung Schwandorf | G23: MKW SAD Turbine 3 | H23: 1982-08-31 | I23: Abfall | J23: 0.33 | K23: 8.5 | L23: 1
C24: Ja | D24: SEE901453618340 | E24: In Betrieb | F24: Stadt Rosenheim | G24: MHKW Dampfturbine 2 | H24: 1957-01-01 | I24: Abfall | J24: 0.58 | K24: 1.785 | L24: 1
C25: Ja | D25: SEE904604163027 | E25: In Betrieb | F25: RWE Generation SE | G25: Karnap B | H25: 1987-02-14 | I25: Abfall | J25: 0.33 | K25: 32.3 | L25: 1
C26: Ja | D26: SEE904983741502 | E26: In Betrieb | F26: MVV Umwelt Asset GmbH | G26: MHKW Mannheim Generator T60 | H26: 2010-01-07 | I26: Abfall | J26: 0.33 | K26: 21.76 | L26: 1
C27: Ja | D27: SEE906215229154 | E27: In Betrieb | F27: EEW Energy from Waste Helmstedt GmbH | G27: MVA EEW Helmstedt | H27: 2014-01-01 | I27: Abfall | J27: 0.33 | K27: 31.875 | L27: 1
C28: Ja | D28: SEE906331863386 | E28: In Betrieb | F28: GSB Sonderabfall-Entsorgung Bayern GmbH | G28: Turbine VA3 | H28: 1995-12-20 | I28: Abfall | J28: 0.33 | K28: 0.4607 | L28: 1
C29: Ja | D29: SEE907370296296 | E29: In Betrieb | F29: Zweckverband Müllverwertung Schwandorf | G29: MKW SAD Turbine 5 | H29: 1992-06-04 | I29: Abfall | J29: 0.33 | K29: 25.5 | L29: 1
C30: Ja | D30: SEE909031885047 | E30: In Betrieb | F30: Müllverwertung Borsigstraße GmbH | G30: MVB Borsigstraße Müll | H30: 2010-07-16 | I30: Abfall | J30: 0.33 | K30: 8.5e-06 | L30: 1
C31: Ja | D31: SEE912257091857 | E31: In Betrieb | F31: MHKW Müllheizkraftwerk Frankfurt am Main GmbH | G31: Turbine 7 | H31: 2005-12-21 | I31: Abfall | J31: 0.33 | K31: 39.525 | L31: 1
C32: Ja | D32: SEE914179988338 | E32: In Betrieb | F32: Enertec Hameln GmbH | G32: Turbine 6 | H32: 1970-11-13 | I32: Abfall | J32: 0.33 | K32: 2.1675 | L32: 1
C33: Ja | D33: SEE917110358740 | E33: In Betrieb | F33: Steinbeis Energie GmbH | G33: Steinbeis Energie EBS Kessel 6 | H33: 2010-09-27 | I33: Abfall | J33: 0.33 | K33: 14.45 | L33: 1
C34: Ja | D34: SEE918623387630 | E34: In Betrieb | F34: EEW Energy from Waste Stapelfeld GmbH | G34: EEW Stapelfeld GmbH | H34: 1979-10-01 | I34: Abfall | J34: 0.33 | K34: 9.69 | L34: 1
C35: Ja | D35: SEE921479798321 | E35: In Betrieb | F35: EkoCity | G35: Generator C | H35: 2017-12-20 | I35: Abfall | J35: 0.407 | K35: 7.9696 | L35: 1
C36: Ja | D36: SEE922849915072 | E36: In Betrieb | F36: MHB Hamm Betriebsführungsgesellschaft mbH | G36: MVA Hamm Turbine 1 | H36: 1985-01-01 | I36: Abfall | J36: 0.33 | K36: 5.61 | L36: 1
C37: Ja | D37: SEE923271533315 | E37: In Betrieb | F37: RZR II Herten GmbH | G37: RZR II Turbine3 | H37: 2009-01-01 | I37: Abfall | J37: 0.33 | K37: 19.975 | L37: 1
C38: Ja | D38: SEE923791565131 | E38: In Betrieb | F38: Zweckverband Müllheizkraftwerk Stadt und Landkreis Bamberg | G38: Rheinstraße | H38: 2014-08-07 | I38: Abfall | J38: 0.33 | K38: 7.905 | L38: 1
C39: Ja | D39: SEE923959807806 | E39: In Betrieb | F39: BASF SE | G39: Turbine 3 | H39: 2006-11-10 | I39: Abfall | J39: 0.33 | K39: 9.469 | L39: 1
C40: Ja | D40: SEE924286409503 | E40: In Betrieb | F40: IKW Rüdersdorf | G40: IKW Rüdersdorf | H40: 2007-12-12 | I40: Abfall | J40: 0.33 | K40: 25.5 | L40: 1
C41: Ja | D41: SEE924302504816 | E41: In Betrieb | F41: Energie- und Wasserversorgung Bonn/Rhein-Sieg GmbH | G41: HKW Bonn-Nord, Turbogruppe 4 | H41: 1991-04-01 | I41: Abfall | J41: 0.33 | K41: 10.302 | L41: 1
C42: Ja | D42: SEE925011950635 | E42: In Betrieb | F42: Zweckverband Müllverwertungsanlage Ingolstadt | G42: Turbine VE 40 ZV MVA IN | H42: 1996-09-10 | I42: Abfall | J42: 0.33 | K42: 15.504 | L42: 1
C43: Ja | D43: SEE925411264011 | E43: In Betrieb | F43: EGK Entsorgungsgesellschaft Krefeld GmbH & Co. KG | G43: Turbine 5 | H43: 1997-12-01 | I43: Abfall | J43: 0.33 | K43: 1.6405 | L43: 1
C44: Ja | D44: SEE925652456091 | E44: In Betrieb | F44: Müllheizkraftwerk Kassel GmbH | G44: Müllheizkraftwerk Kassel M7 | H44: 1985-12-17 | I44: Abfall | J44: 0.33 | K44: 6.8 | L44: 1
C45: Ja | D45: SEE925794342412 | E45: In Betrieb | F45: MVV Umwelt Asset GmbH | G45: TREA Leuna 2 | H45: 2007-06-19 | I45: Abfall | J45: 0.33 | K45: 13.80825 | L45: 1
C46: Ja | D46: SEE927032372373 | E46: In Betrieb | F46: Bremerhavener Entsorgungsgesellschaft mbH | G46: MHKW, Generator 1+2 | H46: 1977-03-17 | I46: Abfall | J46: 0.33 | K46: 11.9 | L46: 1
C47: Ja | D47: SEE927716043575 | E47: In Betrieb | F47: EEW Energy from Waste Hannover GmbH | G47: MVA EEW Hannover | H47: 2005-06-01 | I47: Abfall | J47: 0.33 | K47: 23.12 | L47: 1
C48: Ja | D48: SEE927727929912 | E48: In Betrieb | F48: MVA Weisweiler GmbH & Co. KG | G48: MVA-Turbine | H48: 1996-10-01 | I48: Abfall | J48: 0.33 | K48: 22.95 | L48: 1
C49: Ja | D49: SEE928761575349 | E49: In Betrieb | F49: EEW Energy from Waste Großräschen GmbH | G49: EEW Großräschen GmbH | H49: 2008-01-16 | I49: Abfall | J49: 0.33 | K49: 21.25 | L49: 1
C50: Ja | D50: SEE929095613516 | E50: In Betrieb | F50: GSB Sonderabfall-Entsorgung Bayern GmbH | G50: Turbine VA2 | H50: 1995-10-06 | I50: Abfall | J50: 0.33 | K50: 0.4607 | L50: 1
C51: Ja | D51: SEE932127408097 | E51: In Betrieb | F51: PreZero Energy Zorbau GmbH | G51: Generator Zorbau | H51: 2005-06-06 | I51: Abfall | J51: 0.33 | K51: 23.12 | L51: 1
C52: Ja | D52: SEE934298270268 | E52: In Betrieb | F52: Thermische Abfallbehandlung Lauta GmbH & Co. oHG | G52: T.A. Lauta | H52: 2004-07-21 | I52: Abfall | J52: 0.33 | K52: 13.345 | L52: 1
C53: Ja | D53: SEE937544161082 | E53: In Betrieb | F53: SpreeStromErzeugungs GmbH | G53: EBS Heizkraftwerk Spremberg | H53: 2012-12-12 | I53: Abfall | J53: 0.33 | K53: 14.875 | L53: 1
C54: Ja | D54: SEE937822704543 | E54: In Betrieb | F54: Zweckverband Abfallverwertung Südhessen (ZAS) | G54: Turbine 2 | H54: 2020-01-27 | I54: Abfall | J54: 0.33 | K54: 1.00045 | L54: 1
C55: Ja | D55: SEE937978171572 | E55: In Betrieb | F55: AMK-Abfallentsorgungsgesellschaft des Märkischen Kreises mbH | G55: Turbine 2 | H55: 1981-04-01 | I55: Abfall | J55: 0.33 | K55: 2.89 | L55: 1
C56: Ja | D56: SEE938035990372 | E56: In Betrieb | F56: AVA Velsen GmbH | G56: ABR992555104343 | H56: 1997-08-07 | I56: Abfall | J56: 0.33 | K56: 13.6 | L56: 1
C57: Ja | D57: SEE938782869693 | E57: In Betrieb | F57: Energieversorgung Offenbach AG | G57: Müllheizkraftwerk Offenbach Turbine 1 | H57: 2016-07-29 | I57: Abfall | J57: 0.33 | K57: 14.2477 | L57: 1
C58: Ja | D58: SEE939382623364 | E58: In Betrieb | F58: Klingele Paper Weener SE & Co. KG | G58: TWIN2 | H58: 2008-03-01 | I58: Abfall | J58: 0.33 | K58: 3.9865 | L58: 1
C59: Ja | D59: SEE940303116315 | E59: In Betrieb | F59: EEW Energy from Waste Premnitz GmbH | G59: Turbosatz 5 | H59: 2021-11-16 | I59: Abfall | J59: 0.33 | K59: 27.472 | L59: 1
C60: Ja | D60: SEE940474859066 | E60: In Betrieb | F60: BASF SE | G60: Z564 VT1 | H60: 1992-04-30 | I60: Abfall | J60: 0.33 | K60: 10.2 | L60: 1
C61: Ja | D61: SEE941568392261 | E61: In Betrieb | F61: AGR Abfallentsorgungs-Gesellschaft Ruhrgebiet mbH | G61: RZR I Turbine2 | H61: 1981-01-01 | I61: Abfall | J61: 0.33 | K61: 12.648 | L61: 1
C62: Ja | D62: SEE941568476039 | E62: In Betrieb | F62: AVG Abfallentsorgungs- und Verwertungsgesellschaft Köln mbH | G62: Turbosatz 1 | H62: 1998-02-02 | I62: Abfall | J62: 0.33 | K62: 39.1 | L62: 1
C63: Ja | D63: SEE942253705168 | E63: In Betrieb | F63: Technische Werke Ludwigshafen am Rhein | G63: FHKW DT 2 | H63: 1989-02-24 | I63: Abfall | J63: 0.33 | K63: 10.2595 | L63: 1
C64: Ja | D64: SEE942366584926 | E64: In Betrieb | F64: SWM Services GmbH | G64: SWM HKW Nord 1 T10 | H64: 1991-08-29 | I64: Abfall | J64: 0.33 | K64: 15.3 | L64: 1
C65: Ja | D65: SEE942777699660 | E65: In Betrieb | F65: EBS Kraftwerk GmbH | G65: EBKW Knapsack | H65: 2009-01-01 | I65: Abfall | J65: 0.33 | K65: 25.415 | L65: 1
C66: Ja | D66: SEE942956157011 | E66: In Betrieb | F66: AVG Abfallentsorgungs- und Verwertungsgesellschaft Köln mbH | G66: Turbosatz 2 | H66: 2017-05-30 | I66: Abfall | J66: 0.33 | K66: 15.3 | L66: 1
C67: Ja | D67: SEE943548208159 | E67: In Betrieb | F67: AVA Abfallverwertung Augsburg Kommunalunternehmen | G67: AHKW ND Turbine | H67: 1994-09-16 | I67: Abfall | J67: 0.33 | K67: 5.712 | L67: 1
C68: Ja | D68: SEE943841929270 | E68: In Betrieb | F68: AVA Abfallverwertung Augsburg Kommunalunternehmen | G68: AHKW HD Turbine | H68: 1994-09-16 | I68: Abfall | J68: 0.33 | K68: 6.7745 | L68: 1
C69: Ja | D69: SEE944111876263 | E69: In Betrieb | F69: Progroup Power 1 GmbH | G69: PPO1 - Eisenhüttenstadt | H69: 2009-10-19 | I69: Abfall | J69: 0.33 | K69: 27.2 | L69: 1
C70: Ja | D70: SEE944429192826 | E70: In Betrieb | F70: Zweckverband Abfallverwertung Südostbayern | G70: SEE944429192826 (MHKW Burgkirchen (Müllverbrennung)) | H70: 1994-01-28 | I70: Abfall | J70: 0.33 | K70: 10.88 | L70: 1
C71: Ja | D71: SEE945150729886 | E71: In Betrieb | F71: AGR Abfallentsorgungs-Gesellschaft Ruhrgebiet mbH | G71: RZR I Turbine1 | H71: 1981-01-01 | I71: Abfall | J71: 0.33 | K71: 12.648 | L71: 1
C72: Ja | D72: SEE945602121718 | E72: In Betrieb | F72: EkoCity | G72: Generator B | H72: 1976-01-01 | I72: Abfall | J72: 0.33 | K72: 17 | L72: 1
C73: Ja | D73: SEE946934017984 | E73: In Betrieb | F73: Vattenfall Europe New Energy Ecopower GmbH | G73: EBS-HKW Rostock | H73: 2010-03-31 | I73: Abfall | J73: 0.33 | K73: 15.725 | L73: 1
C74: Ja | D74: SEE947996339434 | E74: In Betrieb | F74: RZR II Herten GmbH | G74: RZR II Turbine4 | H74: 2019-02-07 | I74: Abfall | J74: 0.33 | K74: 10.421 | L74: 1
C75: Ja | D75: SEE948093740512 | E75: In Betrieb | F75: MVV Umwelt Asset GmbH | G75: MHKW Mannheim Generator TE0 | H75: 2012-06-14 | I75: Abfall | J75: 0.33 | K75: 3.621 | L75: 1
C76: Ja | D76: SEE950201173198 | E76: In Betrieb | F76: swb Entsorgung GmbH&Co. KG | G76: MHKW_Gen4 | H76: 2013-01-01 | I76: Abfall | J76: 0.33 | K76: 41.82 | L76: 1
C77: Ja | D77: SEE950593842498 | E77: In Betrieb | F77: Remondis Thermische Abfallverwertung GmbH | G77: Remondis Thermische Abfallverwertung GmbH | H77: 2007-12-06 | I77: Abfall | J77: 0.33 | K77: 20.4 | L77: 1
C78: Ja | D78: SEE951648072822 | E78: In Betrieb | F78: Zweckverband für Abfallwirtschaft Südwestthüringen (ZASt) | G78: ZASt | H78: 2007-10-15 | I78: Abfall | J78: 0.33 | K78: 10.285 | L78: 1
C79: Ja | D79: SEE951966828576 | E79: In Betrieb | F79: Zweckverband Müllverwertungsanlage Ingolstadt | G79: Turbine VE 32 ZV MVA IN | H79: 1996-09-10 | I79: Abfall | J79: 0.33 | K79: 6.256 | L79: 1
C80: Ja | D80: SEE953182244383 | E80: In Betrieb | F80: MVV Umwelt Asset GmbH | G80: MHKW Mannheim Generator X1 | H80: 2020-03-13 | I80: Abfall | J80: 0.33 | K80: 3.468 | L80: 1
C81: Ja | D81: SEE953730197888 | E81: In Betrieb | F81: MVV Umwelt Asset GmbH | G81: MHKW Mannheim Generator TD0 | H81: 2012-08-13 | I81: Abfall | J81: 0.33 | K81: 3.621 | L81: 1
C82: Ja | D82: SEE955292024220 | E82: In Betrieb | F82: Zweckverband Müllverwertung Schwandorf | G82: MKW SAD Turbine 4 | H82: 1982-09-21 | I82: Abfall | J82: 0.33 | K82: 8.5 | L82: 1
C83: Ja | D83: SEE955548455112 | E83: In Betrieb | F83: Zweckverband Restmüllheizkraftwerk Böblingen | G83: Restmüllheizkraftwerk | H83: 1999-05-01 | I83: Abfall | J83: 0.33 | K83: 10.71 | L83: 1
C84: Ja | D84: SEE955718847075 | E84: In Betrieb | F84: Stadtwerke Rosenheim GmbH & Co. KG | G84: DT1 | H84: 1988-01-01 | I84: Abfall | J84: 0.33 | K84: 5.865 | L84: 1
C85: Ja | D85: SEE955937262338 | E85: In Betrieb | F85: GMVA Gemeinschafts-Müll-Verbrennungsanlage Niederrhein GmbH | G85: „Turbosatz 1“ | H85: 2006-04-06 | I85: Abfall | J85: 0.33 | K85: 17.935 | L85: 1
C86: Ja | D86: SEE956268312785 | E86: In Betrieb | F86: Solvay Chemicals GmbH | G86: Kondensationsturbine EKT | H86: 2009-12-17 | I86: Abfall | J86: 0.33 | K86: 25.5 | L86: 1
C87: Ja | D87: SEE957509710094 | E87: In Betrieb | F87: EEW Energy from Waste Saarbrücken GmbH AHKW-Neunkirchen | G87: AHKW-Neunkirchen | H87: 1977-06-02 | I87: Abfall | J87: 0.33 | K87: 9.86 | L87: 1
C88: Ja | D88: SEE957686843929 | E88: In Betrieb | F88: Zweckverband Abfallverwertung Südhessen (ZAS) | G88: Turbine 1 | H88: 1991-10-09 | I88: Abfall | J88: 0.33 | K88: 8.6887 | L88: 1
C89: Ja | D89: SEE957830042178 | E89: In Betrieb | F89: AVEA Entsorgungsbetriebe | G89: Turbine 3 | H89: 2010-08-09 | I89: Abfall | J89: 0.33 | K89: 15.8525 | L89: 1
C90: Ja | D90: SEE958310939391 | E90: In Betrieb | F90: swb Entsorgung GmbH&Co. KG | G90: MKK | H90: 2009-07-03 | I90: Abfall | J90: 0.33 | K90: 27.2 | L90: 1
C91: Ja | D91: SEE958335974377 | E91: In Betrieb | F91: IHKW Industrieheizkraftwerk Andernach GmbH | G91: Dampfturbine | H91: 2008-12-15 | I91: Abfall | J91: 0.33 | K91: 10.625 | L91: 1
C92: Ja | D92: SEE958909269267 | E92: In Betrieb | F92: Infraserv GmbH & Co. Höchst KG | G92: IPH Ersatzbrennstoffverbrennung Turbine | H92: 2014-07-28 | I92: Abfall | J92: 0.33 | K92: 60.35 | L92: 1
C93: Ja | D93: SEE962737235608 | E93: In Betrieb | F93: Müllheizkraftwerk Rothensee GmbH | G93: Block 1 | H93: 2005-07-17 | I93: Abfall | J93: 0.33 | K93: 24.82 | L93: 1
C94: Ja | D94: SEE964170331206 | E94: In Betrieb | F94: Zweckverband für Abfallwirtschaft in Nordwest-Oberfranken | G94: MHKW Coburg | H94: 1988-01-01 | I94: Abfall | J94: 0.33 | K94: 9.01 | L94: 1
C95: Ja | D95: SEE966264899036 | E95: In Betrieb | F95: Technische Werke Ludwigshafen am Rhein | G95: FHKW DT5 | H95: 2005-07-05 | I95: Abfall | J95: 0.33 | K95: 7.772672 | L95: 1
C96: Ja | D96: SEE969698095906 | E96: In Betrieb | F96: Technische Werke Ludwigshafen am Rhein | G96: FHKW DT6 | H96: 2018-04-12 | I96: Abfall | J96: 0.33 | K96: 4.6636015 | L96: 1
C97: Ja | D97: SEE971280976463 | E97: In Betrieb | F97: EEW Energy from Waste Göppingen | G97: MHKW Turbine | H97: 1975-07-01 | I97: Abfall | J97: 0.33 | K97: 9.35 | L97: 1
C98: Ja | D98: SEE971796321603 | E98: In Betrieb | F98: Zweckverband Abfallwirtschaft Raum Würzburg | G98: TS II | H98: 1998-11-09 | I98: Abfall | J98: 0.33 | K98: 10.2 | L98: 1
C99: Ja | D99: SEE972694764301 | E99: In Betrieb | F99: swb Entsorgung GmbH&Co. KG | G99: MHKW_Gen1 | H99: 1984-01-01 | I99: Abfall | J99: 0.33 | K99: 2.21 | L99: 1
C100: Ja | D100: SEE973464796218 | E100: In Betrieb | F100: LEIPA Georg Leinfelder GmbH | G100: Dampfturbine FSK Kuhheide 32a | H100: 2011-04-01 | I100: Abfall | J100: 0.33 | K100: 24.5684 | L100: 1
C101: Ja | D101: SEE974051053875 | E101: In Betrieb | F101: Klingele Paper Weener SE & Co. KG | G101: Turbine 4 | H101: 2021-08-12 | I101: Abfall | J101: 0.33 | K101: 11.7725 | L101: 1
C102: Ja | D102: SEE976589352260 | E102: In Betrieb | F102: Müllheizkraftwerk Kassel GmbH | G102: Müllheizkraftwerk Kassel M8 | H102: 2012-03-12 | I102: Abfall | J102: 0.33 | K102: 12.495 | L102: 1
C103: Ja | D103: SEE976826191515 | E103: In Betrieb | F103: MHB Hamm Betriebsführungsgesellschaft mbH | G103: MVA Hamm Turbine 2 | H103: 1985-01-01 | I103: Abfall | J103: 0.33 | K103: 5.525 | L103: 1
C104: Ja | D104: SEE977514334252 | E104: In Betrieb | F104: Energieversorgung Offenbach AG | G104: Müllheizkraftwerk Offenbach Turbine 2 | H104: 2006-06-30 | I104: Abfall | J104: 0.33 | K104: 1.802 | L104: 1
C105: Ja | D105: SEE977770417713 | E105: In Betrieb | F105: SWN Stadtwerke Neumünster GmbH | G105: T3 | H105: 1979-07-06 | I105: Abfall | J105: 0.33 | K105: 10.6437 | L105: 1
C106: Ja | D106: SEE977898966292 | E106: In Betrieb | F106: MVR Müllverwertung Rugenberger Damm GmbH | G106: MVR Rugenberger Damm Müll | H106: 1999-02-16 | I106: Abfall | J106: 0.33 | K106: 20.29375 | L106: 1
C107: Ja | D107: SEE979423615132 | E107: In Betrieb | F107: EGK Entsorgungsgesellschaft Krefeld GmbH & Co. KG | G107: Turbine 1 | H107: 1974-08-27 | I107: Abfall | J107: 0.33 | K107: 0.7905 | L107: 1
C108: Ja | D108: SEE981003349412 | E108: In Betrieb | F108: SWN Stadtwerke Neumünster GmbH | G108: T6 | H108: 2014-07-10 | I108: Abfall | J108: 0.33 | K108: 12.274 | L108: 1
C109: Ja | D109: SEE981876305560 | E109: In Betrieb | F109: MVV Umwelt Asset GmbH | G109: TREA Leuna 1 | H109: 2005-08-26 | I109: Abfall | J109: 0.33 | K109: 13.80825 | L109: 1
C110: Ja | D110: SEE986030306643 | E110: In Betrieb | F110: Entsorgungsgesellschaft Mainz mbH | G110: MHKW DTS | H110: 2009-06-01 | I110: Abfall | J110: 0.33 | K110: 12.75 | L110: 1
C111: Ja | D111: SEE986413873564 | E111: In Betrieb | F111: swb Entsorgung GmbH&Co. KG | G111: MHKW_Gen2 | H111: 2004-01-01 | I111: Abfall | J111: 0.33 | K111: 11.305 | L111: 1
C112: Ja | D112: SEE988429673565 | E112: In Betrieb | F112: EEW Energy from Waste Saarbrücken GmbH | G112: TREA Breisgau | H112: 2004-05-17 | I112: Abfall | J112: 0.33 | K112: 11.56 | L112: 1
C113: Ja | D113: SEE988580370860 | E113: In Betrieb | F113: EEW Energy from Waste Premnitz GmbH | G113: Turbosatz 4 | H113: 2005-12-18 | I113: Abfall | J113: 0.33 | K113: 1.1475 | L113: 1
C114: Ja | D114: SEE988841475051 | E114: In Betrieb | F114: B+T Energie GmbH | G114: HKW Witzenhausen | H114: 2009-06-24 | I114: Abfall | J114: 0.33 | K114: 23.8 | L114: 1
C115: Ja | D115: SEE988848971327 | E115: In Betrieb | F115: Vattenfall Wärme Berlin AG | G115: HKW Reuter, Dampfturbine M | H115: 1998-02-04 | I115: Abfall | J115: 0.33 | K115: 30.6 | L115: 1
C116: Ja | D116: SEE989887901764 | E116: In Betrieb | F116: Enertec Hameln GmbH | G116: Turbine 5 | H116: 2009-10-01 | I116: Abfall | J116: 0.33 | K116: 10.421 | L116: 1
C117: Ja | D117: SEE990065849372 | E117: In Betrieb | F117: Zweckverband Abfallwirtschaft Raum Würzburg | G117: TS I | H117: 1984-06-04 | I117: Abfall | J117: 0.33 | K117: 7.395 | L117: 1
C118: Ja | D118: SEE990760688887 | E118: In Betrieb | F118: Entsorgungsgesellschaft Mainz mbH | G118: MHKW EBT | H118: 2003-01-01 | I118: Abfall | J118: 0.33 | K118: 4.25 | L118: 1
C119: Ja | D119: SEE992607731794 | E119: In Betrieb | F119: EGK Entsorgungsgesellschaft Krefeld GmbH & Co. KG | G119: Turbine 4 | H119: 2001-04-05 | I119: Abfall | J119: 0.33 | K119: 7.8455 | L119: 1
C120: Ja | D120: SEE992947793209 | E120: In Betrieb | F120: Kreis Weseler Abfallgesellschaft mbH & Co.KG | G120: Dampfturbine | H120: 1997-04-01 | I120: Abfall | J120: 0.33 | K120: 13.6 | L120: 1
C121: Ja | D121: SEE993054223955 | E121: In Betrieb | F121: GMVA Gemeinschafts-Müll-Verbrennungsanlage Niederrhein GmbH | G121: „Turbosatz 2“ | H121: 1991-10-17 | I121: Abfall | J121: 0.33 | K121: 34.34 | L121: 1
C122: Ja | D122: SEE993546424112 | E122: In Betrieb | F122: Enertec Hameln GmbH | G122: Turbine 2 | H122: 1952-08-05 | I122: Abfall | J122: 0.33 | K122: 10.727 | L122: 1
C123: Ja | D123: SEE993787055366 | E123: In Betrieb | F123: EGK Entsorgungsgesellschaft Krefeld GmbH & Co. KG | G123: Turbine 2 | H123: 1974-08-27 | I123: Abfall | J123: 0.33 | K123: 0.7905 | L123: 1
C124: Ja | D124: SEE994238154089 | E124: In Betrieb | F124: MHB Hamm Betriebsführungsgesellschaft mbH | G124: MVA Hamm Turbine 3 | H124: 2006-03-24 | I124: Abfall | J124: 0.33 | K124: 3.5275 | L124: 1
C125: Ja | D125: SEE994551453975 | E125: In Betrieb | F125: EkoCity | G125: Generator A | H125: 1976-01-01 | I125: Abfall | J125: 0.33 | K125: 17 | L125: 1
C126: Ja | D126: SEE996047653111 | E126: In Betrieb | F126: PD energy GmbH | G126: KW TRB Bitterfeld, Bitterfeld-Wolfen, Oststr. 1 | H126: 2009-11-19 | I126: Abfall | J126: 0.33 | K126: 8.5 | L126: 1
C127: Ja | D127: SEE996891820448 | E127: In Betrieb | F127: EGK Entsorgungsgesellschaft Krefeld GmbH & Co. KG | G127: Turbine 3 | H127: 1978-01-01 | I127: Abfall | J127: 0.33 | K127: 6.8 | L127: 1
C128: Ja | D128: SEE998216550733 | E128: In Betrieb | F128: Klingele Paper Weener SE & Co. KG | G128: TWIN 1 | H128: 2008-03-01 | I128: Abfall | J128: 0.33 | K128: 3.9865 | L128: 1
C129: Ja | D129: SEE998261618013 | E129: In Betrieb | F129: Enertec Hameln GmbH | G129: Turbine 1 | H129: 2000-10-31 | I129: Abfall | J129: 0.33 | K129: 4.1905 | L129: 1
C130: Ja | D130: SEE998278854237 | E130: In Betrieb | F130: SWM Services GmbH | G130: SWM HKW Nord 3 T30 | H130: 1984-03-14 | I130: Abfall | J130: 0.33 | K130: 18.7 | L130: 1
C131: Ja | D131: SEE999588015110 | E131: In Betrieb | F131: MHKW Müllheizkraftwerk Frankfurt am Main GmbH | G131: Turbine 3 | H131: 1986-12-12 | I131: Abfall | J131: 0.33 | K131: 22.1 | L131: 1
C132: Ja | D132: SEE999819576335 | E132: In Betrieb | F132: Müllheizkraftwerk Rothensee GmbH | G132: Block 2 | H132: 2006-09-08 | I132: Abfall | J132: 0.33 | K132: 28.56 | L132: 1
C133: Ja | E133: In Betrieb | F133: Nicht-EEG-Anlagen < 10 MW | I133: Abfall | J133: 0.33 | K133: 145.2678135 | L133: 1
C134: Ja | D134: SEE968582186379 | E134: In Betrieb | F134: Lausitz Energie Kraftwerke AG | G134: Boxberg Block R | H134: 2012-11-06 | I134: Braunkohle | J134: 0.437 | K134: 548.1 | L134: 87.00526316
C135: Ja | D135: SEE952937205877 | E135: In Betrieb | F135: Pfeifer & Langen GmbH ＆ Co. KG | G135: Könnern Generator 2 | H135: 1993-09-28 | I135: Braunkohle | J135: 0.4336 | K135: 17.1129 | L135: 87.67416974
C136: Ja | D136: SEE925599434282 | E136: In Betrieb | F136: RWE Power AG | G136: Neurath F | H136: 2012-08-03 | I136: Braunkohle | J136: 0.43 | K136: 922.2 | L136: 88.39395349
C137: Ja | D137: SEE983252937631 | E137: In Betrieb | F137: RWE Power AG | G137: Niederaußem K | H137: 2003-01-28 | I137: Braunkohle | J137: 0.43 | K137: 821.28 | L137: 88.39395349
C138: Ja | D138: SEE993592183001 | E138: In Betrieb | F138: RWE Power AG | G138: Neurath G | H138: 2012-07-08 | I138: Braunkohle | J138: 0.43 | K138: 922.2 | L138: 88.39395349
C139: Ja | D139: SEE915426748132 | E139: In Betrieb | F139: RheinEnergie AG | G139: Block 6 Merkenich RheinEnergie | H139: 2010-12-16 | I139: Braunkohle | J139: 0.424 | K139: 65.511 | L139: 89.62075472
C140: Ja | D140: SEE907389779292 | E140: In Betrieb | F140: Lausitz Energie Kraftwerke AG | G140: Boxberg Block Q | H140: 2000-10-01 | I140: Braunkohle | J140: 0.423 | K140: 730.8 | L140: 89.8286052
C141: Ja | D141: SEE957229968300 | E141: In Betrieb | F141: RWE Power AG | G141: Niederaußem H | H141: 1974-09-16 | I141: Braunkohle | J141: 0.4216 | K141: 563.76 | L141: 90.12125237
C142: Ja | D142: SEE998199911088 | E142: In Betrieb | F142: EnBW Energie Baden-Württemberg AG | G142: Kraftwerk Lippendorf Block S | H142: 1999-12-01 | I142: Braunkohle | J142: 0.42 | K142: 775.17 | L142: 90.45809524
C143: Ja | D143: SEE921905907730 | E143: In Betrieb | F143: RWE Power AG | G143: Niederaußem G | H143: 1974-10-23 | I143: Braunkohle | J143: 0.4192 | K143: 546.36 | L143: 90.62748092
C144: Ja | D144: SEE938337436349 | E144: In Betrieb | F144: Lausitz Energie Kraftwerke AG | G144: Kraftwerk Schwarze Pumpe Block A | H144: 1997-12-15 | I144: Braunkohle | J144: 0.41 | K144: 656.85 | L144: 92.62292683
C145: Ja | D145: SEE952672318108 | E145: In Betrieb | F145: Lausitz Energie Kraftwerke AG | G145: Kraftwerk Schwarze Pumpe Block B | H145: 1998-05-25 | I145: Braunkohle | J145: 0.41 | K145: 656.85 | L145: 92.62292683
C146: Ja | D146: SEE966331411864 | E146: In Betrieb | F146: Lausitz Energie Kraftwerke AG | G146: Kraftwerk Lippendorf Block R | H146: 2000-06-20 | I146: Braunkohle | J146: 0.41 | K146: 775.17 | L146: 92.62292683
C147: Ja | D147: SEE990438768378 | E147: In Betrieb | F147: Stadtwerke Flensburg | G147: Dampfturbine 8 | H147: 1985-05-24 | I147: Steinkohle | J147: 0.504 | K147: 26.32 | L147: 93.26468254
C148: Ja | D148: SEE919134316447 | E148: In Betrieb | F148: Saale Energie GmbH | G148: Schkopau A+B Bahngenerator | H148: 1996-01-01 | I148: Braunkohle | J148: 0.4 | K148: 95.7 | L148: 94.896
C149: Ja | D149: SEE921449009914 | E149: In Betrieb | F149: CropEnergies Bioethanol GmbH | G149: Dampfturbine IV CropEnergies Zeitz | H149: 2004-01-01 | I149: Braunkohle | J149: 0.4 | K149: 15.46251 | L149: 94.896
C150: Ja | D150: SEE947677200282 | E150: In Betrieb | F150: Saale Energie GmbH | G150: Schkopau B | H150: 1996-01-01 | I150: Braunkohle | J150: 0.4 | K150: 391.5 | L150: 94.896
C151: Ja | D151: SEE960652233358 | E151: In Betrieb | F151: Saale Energie GmbH | G151: Schkopau A | H151: 1995-01-01 | I151: Braunkohle | J151: 0.4 | K151: 391.5 | L151: 94.896
C152: Ja | D152: SEE978888539755 | E152: In Betrieb | F152: Stadtwerke Cottbus GmbH | G152: Mittel-Niederdruckdampfturbine | H152: 1999-03-23 | I152: Braunkohle | J152: 0.4 | K152: 39.15 | L152: 94.896
C153: Ja | D153: SEE975343602986 | E153: In Betrieb | F153: Martinswerk GmbH | G153: KWK-Anlage: Generator 2 | H153: 1961-01-01 | I153: Braunkohle | J153: 0.388 | K153: 8.613 | L153: 97.77835052
C154: Ja | D154: SEE986936308987 | E154: In Betrieb | F154: Martinswerk GmbH | G154: KWK-Anlage: Generator 1 | H154: 1961-01-01 | I154: Braunkohle | J154: 0.388 | K154: 8.613 | L154: 97.77835052
C155: Ja | D155: SEE998111672394 | E155: In Betrieb | F155: MIBRAG GmbH | G155: IKW Wählitz | H155: 1994-08-25 | I155: Braunkohle | J155: 0.385 | K155: 26.97 | L155: 98.52701299
C156: Ja | D156: SEE970305352633 | E156: In Betrieb | F156: Südzucker AG | G156: Dampfturbine III Südzucker Zeitz | H156: 1993-08-01 | I156: Braunkohle | J156: 0.3832 | K156: 14.6595 | L156: 98.98183716
C157: Ja | D157: SEE999145467468 | E157: In Betrieb | F157: RWE Power AG | G157: GoWerk F | H157: 1992-12-01 | I157: Braunkohle | J157: 0.3832 | K157: 54.81 | L157: 98.98183716
C158: Ja | D158: SEE957285549260 | E158: In Betrieb | F158: Stadtwerke Flensburg | G158: Dampfturbine 9 | H158: 1988-08-16 | I158: Steinkohle | J158: 0.4725 | K158: 26.32 | L158: 99.39566138
C159: Ja | D159: SEE996990805407 | E159: In Betrieb | F159: Braunschweiger Versorgungs-AG & Co. KG | G159: HKW Mitte Kessel 1 | H159: 1985-01-18 | I159: Steinkohle | J159: 0.468 | K159: 35.6 | L159: 100.3388889
C160: Ja | D160: SEE933960350956 | E160: In Betrieb | F160: eins energie in sachsen GmbH & Co. KG | G160: HKW Chemnitz Nord II, Block C | H160: 1990-06-07 | I160: Braunkohle | J160: 0.376 | K160: 80.32884 | L160: 100.8446809
C161: Ja | D161: SEE994335340088 | E161: In Betrieb | F161: Stadtwerke Frankfurt (Oder) GmbH | G161: HKW DT | H161: 1997-10-09 | I161: Braunkohle | J161: 0.376 | K161: 14.79 | L161: 100.8446809
C162: Ja | E162: In Betrieb | F162: Nicht-EEG-Anlagen < 10 MW | I162: Braunkohle | J162: 0.376 | K162: 21.735645 | L162: 100.8446809
C163: Ja | D163: SEE901205245022 | E163: In Betrieb | F163: eins energie in sachsen GmbH & Co. KG | G163: Motor-Heizkraftwerk Chemnitz-Süd, Motor 3 | H163: 2022-12-21 | I163: GuD | J163: 0.63 | K163: 11.076318 | L163: 100.967619
C164: Ja | D164: SEE903604447151 | E164: In Betrieb | F164: SWP Stadtwerke Pforzheim | G164: E-BHKW | H164: 2017-06-23 | I164: GuD | J164: 0.63 | K164: 1.65213 | L164: 100.967619
C165: Ja | D165: SEE903779951637 | E165: In Betrieb | F165: eins energie in sachsen GmbH & Co. KG | G165: Motor-Heizkraftwerk Chemnitz-Süd, Motor 5 | H165: 2022-12-21 | I165: GuD | J165: 0.63 | K165: 11.076318 | L165: 100.967619
C166: Ja | D166: SEE905023260298 | E166: In Betrieb | F166: Stadtwerke Rosenheim GmbH & Co. KG | G166: GM7 | H166: 2022-04-04 | I166: GuD | J166: 0.63 | K166: 3.87759 | L166: 100.967619
C167: Ja | D167: SEE905366486355 | E167: In Betrieb | F167: Infraserv GmbH & Co. Höchst KG | G167: IPH Strom VT4 | H167: 2021-09-15 | I167: GuD | J167: 0.63 | K167: 23.316 | L167: 100.967619
C168: Ja | D168: SEE905410926998 | E168: In Betrieb | F168: Forschungszentrum Jülich GmbH | G168: FZJ_WVVZ-03.19_BHKW-1 | H168: 2022-06-27 | I168: GuD | J168: 0.63 | K168: 3.62877 | L168: 100.967619
C169: Ja | D169: SEE908964165929 | E169: In Betrieb | F169: SWE Energie GmbH | G169: swe energie T-DT | H169: 2022-01-01 | I169: GuD | J169: 0.63 | K169: 9.135 | L169: 100.967619
C170: Ja | D170: SEE909438607068 | E170: In Betrieb | F170: Infraserv GmbH & Co. Höchst KG | G170: IPH Strom VT3 | H170: 2021-09-15 | I170: GuD | J170: 0.63 | K170: 11.223 | L170: 100.967619
C171: Ja | D171: SEE909466066615 | E171: In Betrieb | F171: eins energie in sachsen GmbH & Co. KG | G171: Motor-Heizkraftwerk Chemnitz-Nord. Motor 3 | H171: 2023-07-06 | I171: GuD | J171: 0.63 | K171: 10.90545 | L171: 100.967619
C172: Ja | D172: SEE909553236495 | E172: In Betrieb | F172: Arla Foods Deutschland GmbH | G172: Turbine Pronsfeld | H172: 2021-10-27 | I172: GuD | J172: 0.63 | K172: 10.66185 | L172: 100.967619
C173: Ja | D173: SEE911129038174 | E173: In Betrieb | F173: Stadtwerke Cottbus GmbH | G173: BHKW-Anlage | H173: 2022-09-15 | I173: GuD | J173: 0.63 | K173: 46.52847 | L173: 100.967619
C174: Ja | D174: SEE912224455828 | E174: In Betrieb | F174: eins energie in sachsen GmbH & Co. KG | G174: Motor-Heizkraftwerk Chemnitz-Süd, Motor 2 | H174: 2022-12-21 | I174: GuD | J174: 0.63 | K174: 11.076318 | L174: 100.967619
C175: Ja | D175: SEE912583238223 | E175: In Betrieb | F175: TEAG Thüringer Energie AG | G175: Gasmotor 3 Jena | H175: 2022-11-04 | I175: GuD | J175: 0.63 | K175: 10.59225 | L175: 100.967619
C176: Ja | D176: SEE913088869400 | E176: In Betrieb | F176: Städtische Werke Energie + Wärme GmbH | G176: Kombi-HKW GT1 | H176: 2021-03-31 | I176: GuD | J176: 0.63 | K176: 13.3023 | L176: 100.967619
C177: Ja | D177: SEE913985941537 | E177: In Betrieb | F177: medl GmbH | G177: medl BHKW Broich Modul 2 neu | H177: 2020-11-30 | I177: GuD | J177: 0.63 | K177: 2.32551 | L177: 100.967619
C178: Ja | D178: SEE915375007878 | E178: In Betrieb | F178: Stadtwerke Duisburg AG | G178: Mitte BHKW 2 Modul 4 | H178: 2023-05-17 | I178: GuD | J178: 0.63 | K178: 3.89064 | L178: 100.967619
C179: Ja | D179: SEE915851127786 | E179: In Betrieb | F179: Stadtwerke Aachen AG | G179: BHKW Schwarzer Weg | H179: 2023-04-05 | I179: GuD | J179: 0.63 | K179: 18.70935 | L179: 100.967619
C180: Ja | D180: SEE917303295586 | E180: In Betrieb | F180: eins energie in sachsen GmbH & Co. KG | G180: Motor-Heizkraftwerk Chemnitz-Süd, Motor 4 | H180: 2022-12-21 | I180: GuD | J180: 0.63 | K180: 11.076318 | L180: 100.967619
C181: Ja | D181: SEE917925869486 | E181: In Betrieb | F181: Nordland Papier GmbH | G181: Nordland GuD-Anlage HD-DTS | H181: 2022-05-23 | I181: GuD | J181: 0.63 | K181: 19.6707 | L181: 100.967619
C182: Ja | D182: SEE918506212059 | E182: In Betrieb | F182: Energieversorgung Oberhausen | G182: Gasmotoren Danziger Straße | H182: 2021-05-10 | I182: GuD | J182: 0.63 | K182: 7.6647 | L182: 100.967619
C183: Ja | D183: SEE919939073064 | E183: In Betrieb | F183: Volkswagen AG | G183: GT 31 GuD Süd Wolfsburg | H183: 2021-12-27 | I183: GuD | J183: 0.63 | K183: 42.978 | L183: 100.967619
C184: Ja | D184: SEE920801236685 | E184: In Betrieb | F184: Evonik Operations GmbH | G184: Kraftwerk VII, Block 71, DT710 | H184: 2022-12-12 | I184: GuD | J184: 0.63 | K184: 32.103 | L184: 100.967619
C185: Ja | D185: SEE921877855527 | E185: In Betrieb | F185: Solvay Chemicals GmbH | G185: Gasturbine 01 Industriekraftwerk | H185: 2019-12-16 | I185: GuD | J185: 0.63 | K185: 50.895 | L185: 100.967619
C186: Ja | D186: SEE923129957027 | E186: In Betrieb | F186: Stadtwerke Duisburg AG | G186: Mitte BHKW 2 Modul 3 | H186: 2023-05-17 | I186: GuD | J186: 0.63 | K186: 3.89064 | L186: 100.967619
C187: Ja | D187: SEE923793340132 | E187: In Betrieb | F187: DREWAG - Stadtwerke Dresden GmbH | G187: Gasmotoren-Heizkraftwerk Dresden-Reick - Aggregat VIII | H187: 2022-02-18 | I187: GuD | J187: 0.63 | K187: 10.005 | L187: 100.967619
C188: Ja | D188: SEE924562445072 | E188: In Betrieb | F188: DREWAG - Stadtwerke Dresden GmbH | G188: Gasmotoren-Heizkraftwerk Dresden-Reick - Aggregat V | H188: 2022-02-18 | I188: GuD | J188: 0.63 | K188: 10.005 | L188: 100.967619
C189: Ja | D189: SEE927282130440 | E189: In Betrieb | F189: Energie SaarLorLux AG | G189: Gasmotorenkraftwerk Römerbrücke | H189: 2022-07-01 | I189: GuD | J189: 0.63 | K189: 45.67152 | L189: 100.967619
C190: Ja | D190: SEE927303933470 | E190: In Betrieb | F190: Nordland Papier GmbH | G190: Nordland GuD-Anlage ND-DTS | H190: 2022-05-23 | I190: GuD | J190: 0.63 | K190: 3.47565 | L190: 100.967619
C191: Ja | D191: SEE928331694449 | E191: In Betrieb | F191: eins energie in sachsen GmbH & Co. KG | G191: Motor-Heizkraftwerk Chemnitz-Nord, Motor 2 | H191: 2023-07-06 | I191: GuD | J191: 0.63 | K191: 10.90545 | L191: 100.967619
C192: Ja | D192: SEE929090964958 | E192: In Betrieb | F192: Forschungszentrum Jülich GmbH | G192: FZJ_WVVZ-03.19_BHKW-3 | H192: 2022-06-27 | I192: GuD | J192: 0.63 | K192: 3.62877 | L192: 100.967619
C193: Ja | D193: SEE930277153294 | E193: In Betrieb | F193: Stadtwerke Duisburg AG | G193: Mitte BHKW 2 Modul 7 | H193: 2023-05-17 | I193: GuD | J193: 0.63 | K193: 3.89064 | L193: 100.967619
C194: Ja | D194: SEE930647914081 | E194: In Betrieb | F194: DREWAG - Stadtwerke Dresden GmbH | G194: Gasmotoren-Heizkraftwerk Dresden-Reick - Aggregat III | H194: 2022-02-18 | I194: GuD | J194: 0.63 | K194: 10.005 | L194: 100.967619
C195: Ja | D195: SEE936473203580 | E195: In Betrieb | F195: TEAG Thüringer Energie AG | G195: Gasmotor 2 Jena | H195: 2022-11-11 | I195: GuD | J195: 0.63 | K195: 10.59225 | L195: 100.967619
C196: Ja | D196: SEE936668903264 | E196: In Betrieb | F196: Fernwärme Ulm GmbH | G196: BHKW1 | H196: 2022-12-09 | I196: GuD | J196: 0.63 | K196: 17.87241 | L196: 100.967619
C197: Ja | D197: SEE936761155751 | E197: In Betrieb | F197: eins energie in sachsen GmbH & Co. KG | G197: Motor-Heizkraftwerk Chemnitz-Süd, Motor 1 | H197: 2022-12-21 | I197: GuD | J197: 0.63 | K197: 11.076318 | L197: 100.967619
C198: Ja | D198: SEE939899660715 | E198: In Betrieb | F198: DREWAG - Stadtwerke Dresden GmbH | G198: Gasmotoren-Heizkraftwerk Dresden-Reick - Aggregat VII | H198: 2022-02-18 | I198: GuD | J198: 0.63 | K198: 10.005 | L198: 100.967619
C199: Ja | D199: SEE939917723934 | E199: In Betrieb | F199: SWU Energie GmbH | G199: BHKW Neu-Ulm M3 | H199: 2021-12-14 | I199: GuD | J199: 0.63 | K199: 2.28114 | L199: 100.967619
C200: Ja | D200: SEE944044057432 | E200: In Betrieb | F200: eins energie in sachsen GmbH & Co. KG | G200: Motor-Heizkraftwerk Chemnitz-Nord, Motor 1 | H200: 2023-07-06 | I200: GuD | J200: 0.63 | K200: 10.90545 | L200: 100.967619
C201: Ja | D201: SEE944148486770 | E201: In Betrieb | F201: ORION Engineered Carbons GmbH | G201: Generator 4 | H201: 2017-12-21 | I201: GuD | J201: 0.63 | K201: 19.14 | L201: 100.967619
C202: Ja | D202: SEE946709181179 | E202: In Betrieb | F202: eins energie in sachsen GmbH & Co. KG | G202: Motor-Heizkraftwerk Chemnitz-Nord, Motor 4 | H202: 2023-07-06 | I202: GuD | J202: 0.63 | K202: 10.90545 | L202: 100.967619
C203: Ja | D203: SEE949216632202 | E203: In Betrieb | F203: Stadtwerke Flensburg | G203: Dampfturbine 13 | H203: 2022-12-16 | I203: GuD | J203: 0.63 | K203: 33.234 | L203: 100.967619
C204: Ja | D204: SEE951078548935 | E204: In Betrieb | F204: Stadtwerke Kempen GmbH | G204: 0050 - STW - BHKW - KWK | H204: 2017-11-01 | I204: GuD | J204: 0.63 | K204: 2.88231 | L204: 100.967619
C205: Ja | D205: SEE951160693116 | E205: In Betrieb | F205: TEAG Thüringer Energie AG | G205: Gasmotor 5 Jena | H205: 2022-11-11 | I205: GuD | J205: 0.63 | K205: 10.59225 | L205: 100.967619
C206: Ja | D206: SEE951344432289 | E206: In Betrieb | F206: BTB Blockheizkraftwerks-, Träger- und Betreibergesellschaft | G206: KWK Adlershof Modul 2 | H206: 2023-07-06 | I206: GuD | J206: 0.63 | K206: 3.8193 | L206: 100.967619
... 976 more rows

Sheet Hilfssheet Abbildung (hidden)
C2: Abfall | D2: Kernenergie | E2: Braunkohle | F2: Steinkohle | G2: GuD | H2: Gasturbine | I2: Öl
B3: Minimalwert | C3: =MIN(IF(Kraftwerksliste!$S$11:$S$1178='Hilfssheet Abbildung'!C2,Kraftwerksliste!$Z$11:$Z$1178,"fail")) -> 1 | D3: =MIN(IF(Kraftwerksliste!$S$11:$S$1182='Hilfssheet Abbildung'!D2,Kraftwerksliste!$Z$11:$Z$1182,"fail")) -> 0 | E3: =MIN(IF(Kraftwerksliste!$S$11:$S$1182='Hilfssheet Abbildung'!E2,Kraftwerksliste!$Z$11:$Z$1182,"fail")) -> 87.00526316 | F3: =MIN(IF(Kraftwerksliste!$S$11:$S$1182='Hilfssheet Abbildung'!F2,Kraftwerksliste!$Z$11:$Z$1182,"fail")) -> 93.26468254 | G3: =MIN(IF(Kraftwerksliste!$S$11:$S$1182='Hilfssheet Abbildung'!G2,Kraftwerksliste!$Z$11:$Z$1182,"fail")) -> 100.967619 | H3: =MIN(IF(Kraftwerksliste!$S$11:$S$1182='Hilfssheet Abbildung'!H2,Kraftwerksliste!$Z$11:$Z$1182,"fail")) -> 105.441 | I3: =MIN(IF(Kraftwerksliste!$S$11:$S$1182='Hilfssheet Abbildung'!I2,Kraftwerksliste!$Z$11:$Z$1182,"fail")) -> 202.56
B4: erstes Quartil | C4: =_xlfn.QUARTILE.INC(IF(Kraftwerksliste!$S$11:$S$1178='Hilfssheet Abbildung'!C2,Kraftwerksliste!$Z$11:$Z$1178,"fail"),1) -> 1 | D4: =_xlfn.QUARTILE.INC(IF(Kraftwerksliste!$S$11:$S$1182='Hilfssheet Abbildung'!D2,Kraftwerksliste!$Z$11:$Z$1182,"fail"),1) ->  | E4: =_xlfn.QUARTILE.INC(IF(Kraftwerksliste!$S$11:$S$1182='Hilfssheet Abbildung'!E2,Kraftwerksliste!$Z$11:$Z$1182,"fail"),1) -> 93.19119512 | F4: =_xlfn.QUARTILE.INC(IF(Kraftwerksliste!$S$11:$S$1182='Hilfssheet Abbildung'!F2,Kraftwerksliste!$Z$11:$Z$1182,"fail"),1) -> 113.779881 | G4: =_xlfn.QUARTILE.INC(IF(Kraftwerksliste!$S$11:$S$1182='Hilfssheet Abbildung'!G2,Kraftwerksliste!$Z$11:$Z$1182,"fail"),1) -> 117.5455556 | H4: =_xlfn.QUARTILE.INC(IF(Kraftwerksliste!$S$11:$S$1182='Hilfssheet Abbildung'!H2,Kraftwerksliste!$Z$11:$Z$1182,"fail"),1) -> 146.0569444 | I4: =_xlfn.QUARTILE.INC(IF(Kraftwerksliste!$S$11:$S$1182='Hilfssheet Abbildung'!I2,Kraftwerksliste!$Z$11:$Z$1182,"fail"),1) -> 292.2716763
B5: Median | C5: =_xlfn.QUARTILE.INC(IF(Kraftwerksliste!$S$11:$S$1178='Hilfssheet Abbildung'!C2,Kraftwerksliste!$Z$11:$Z$1178,"fail"),2) -> 1 | D5: =_xlfn.QUARTILE.INC(IF(Kraftwerksliste!$S$11:$S$1182='Hilfssheet Abbildung'!D2,Kraftwerksliste!$Z$11:$Z$1182,"fail"),2) ->  | E5: =_xlfn.QUARTILE.INC(IF(Kraftwerksliste!$S$11:$S$1182='Hilfssheet Abbildung'!E2,Kraftwerksliste!$Z$11:$Z$1182,"fail"),2) -> 100.8446809 | F5: =_xlfn.QUARTILE.INC(IF(Kraftwerksliste!$S$11:$S$1182='Hilfssheet Abbildung'!F2,Kraftwerksliste!$Z$11:$Z$1182,"fail"),2) -> 122.0835617 | G5: =_xlfn.QUARTILE.INC(IF(Kraftwerksliste!$S$11:$S$1182='Hilfssheet Abbildung'!G2,Kraftwerksliste!$Z$11:$Z$1182,"fail"),2) -> 156.3038538 | H5: =_xlfn.QUARTILE.INC(IF(Kraftwerksliste!$S$11:$S$1182='Hilfssheet Abbildung'!H2,Kraftwerksliste!$Z$11:$Z$1182,"fail"),2) -> 148.1291865 | I5: =_xlfn.QUARTILE.INC(IF(Kraftwerksliste!$S$11:$S$1182='Hilfssheet Abbildung'!I2,Kraftwerksliste!$Z$11:$Z$1182,"fail"),2) -> 293.9651163
B6: Drittes Quartil | C6: =_xlfn.QUARTILE.INC(IF(Kraftwerksliste!$S$11:$S$1178='Hilfssheet Abbildung'!C2,Kraftwerksliste!$Z$11:$Z$1178,"fail"),3) -> 1 | D6: =_xlfn.QUARTILE.INC(IF(Kraftwerksliste!$S$11:$S$1182='Hilfssheet Abbildung'!D2,Kraftwerksliste!$Z$11:$Z$1182,"fail"),3) ->  | E6: =_xlfn.QUARTILE.INC(IF(Kraftwerksliste!$S$11:$S$1182='Hilfssheet Abbildung'!E2,Kraftwerksliste!$Z$11:$Z$1182,"fail"),3) -> 104.8267213 | F6: =_xlfn.QUARTILE.INC(IF(Kraftwerksliste!$S$11:$S$1182='Hilfssheet Abbildung'!F2,Kraftwerksliste!$Z$11:$Z$1182,"fail"),3) -> 141.7551515 | G6: =_xlfn.QUARTILE.INC(IF(Kraftwerksliste!$S$11:$S$1182='Hilfssheet Abbildung'!G2,Kraftwerksliste!$Z$11:$Z$1182,"fail"),3) -> 163.4556635 | H6: =_xlfn.QUARTILE.INC(IF(Kraftwerksliste!$S$11:$S$1182='Hilfssheet Abbildung'!H2,Kraftwerksliste!$Z$11:$Z$1182,"fail"),3) -> 172.4149695 | I6: =_xlfn.QUARTILE.INC(IF(Kraftwerksliste!$S$11:$S$1182='Hilfssheet Abbildung'!I2,Kraftwerksliste!$Z$11:$Z$1182,"fail"),3) -> 318.9970935
B7: Maximalwert | C7: =MAX(IF(Kraftwerksliste!$S$11:$S$1178='Hilfssheet Abbildung'!C2,Kraftwerksliste!$Z$11:$Z$1178,"fail")) -> 1 | D7: =MAX(IF(Kraftwerksliste!$S$11:$S$1182='Hilfssheet Abbildung'!D2,Kraftwerksliste!$Z$11:$Z$1182,"fail")) -> 0 | E7: =MAX(IF(Kraftwerksliste!$S$11:$S$1182='Hilfssheet Abbildung'!E2,Kraftwerksliste!$Z$11:$Z$1182,"fail")) -> 187.3494024 | F7: =MAX(IF(Kraftwerksliste!$S$11:$S$1182='Hilfssheet Abbildung'!F2,Kraftwerksliste!$Z$11:$Z$1182,"fail")) -> 200.6556989 | G7: =MAX(IF(Kraftwerksliste!$S$11:$S$1182='Hilfssheet Abbildung'!G2,Kraftwerksliste!$Z$11:$Z$1182,"fail")) -> 252.1584 | H7: =MAX(IF(Kraftwerksliste!$S$11:$S$1182='Hilfssheet Abbildung'!H2,Kraftwerksliste!$Z$11:$Z$1182,"fail")) -> 206.7275115 | I7: =MAX(IF(Kraftwerksliste!$S$11:$S$1182='Hilfssheet Abbildung'!I2,Kraftwerksliste!$Z$11:$Z$1182,"fail")) -> 482.9913043
C10: Abfall | D10: Kernenergie | E10: Braunkohle | F10: Steinkohle | G10: GuD | H10: Gasturbine | I10: Öl
B11: Q1-Minimum | E11: =E4-E3 -> 6.185931964 | F11: 20.51519841 | G11: 16.57793651 | H11: 40.61594444 | I11: =I4-I3 -> 89.7116763
B12: Q1 | C12: =C4 -> 1 | D12: =D4 ->  | E12: =E4 -> 93.19119512 | F12: 113.779881 | G12: 117.5455556 | H12: 146.0569444 | I12: =I4 -> 292.2716763
B13: Median-Q1 | C13: =C5-C4+0.1 -> 0.1 | D13: =D5-D4+0.1 ->  | E13: =E5-E4 -> 7.653485729 | F13: 8.303680715 | G13: 38.7582982 | H13: 2.072242063 | I13: =I5-I4 -> 1.693439978
B14: Q3-Median | C14: =C6-C5+0.1 -> 0.1 | D14: =D6-D5+0.1 ->  | E14: =E6-E5 -> 3.98204046 | F14: 19.67158985 | G14: 7.151809742 | H14: 24.28578295 | I14: =I6-I5 -> 25.03197721
B15: Maximum-Q3 | E15: =E7-E6 -> 82.52268108 | F15: 58.90054741 | G15: 88.7027365 | H15: 34.31254203 | I15: =I7-I6 -> 163.9942109
B18: Teil der Merit Order? | C18: Angenommener Hauptenergieträger | D18: Zuordnung Kraftwerkstyp
B19: Ja | C19: Abfall | D19: Abfall
B20: Nein | C20: Kernenergie | D20: Kernenergie
C21: Braunkohle | D21: Braunkohle
C22: Steinkohle | D22: Steinkohle
C23: Erdgas | D23: GuD
C24: Öl | D24: Gasturbine
C25: Sonstige | D25: Öl
D26: Sonstige
